Workbook

Sheet Read_me (hidden)
C2: Created | D2: 2017-08-28
C3: By | D3: Michael MacLeod
C4: Based on | D4: FISHe v1 test
C6: Blue sheets | D6: Sheets that will be visible to the user
C7: Green sheets | D7: Used in the calculations, but will be hidden from the user
C8: Grey sheets | D8: Not used in calculations, will be removed from final version
C10: Description of the sheets
C11: Name | D11: Function
C12: Read me | D12: File information and version control
C14: START | D14: Introductory sheet
C15: INPUTS | D15: Sheet where user inputs details about their fish farm
C16: RESULTS | D16: Provides results, i.e. total emissions and emissions intensity, and compares against benchmarks
C17: Reference material | D17: References, abbreviations and terms used in the tool
C19: Feed Efs | D19: Calculates the feed emissions per kg of dry matter
C20: Electricity EFs | D20: Emission factors for electricity by country
C21: Fuel Efs | D21: Emission factors for fuels
C22: Fert EFs | D22: Emission factors for fertilizers and lime
C23: Fingerling EF | D23: Emission factor per kg of juvenile fish imported into the farm
C24: Processing | D24: Factors to convert from liveweight to carcass weight
C25: Country list | D25: Full list of FAO countries
C26: Conversions | D26: Unit conversions
C29: Date | D29: Action
C30: 2017-08-28 | D30: Deleted VBA sub "refresh". Saved to word doc "FISHe v1 old VBA"
C31: 2017-08-28 | D31: Green and red files hidden
C32: 2017-08-28 | D32: Cells locked

Sheet START
S4: Location | V4: Commodities | X4: Systems
S6: ='Country list'!H4 -> Afghanistan | T6: ='Country list'!I4 -> South Asia | U6: ='Country list'!J4 -> sa | V6: ='Feed EFs'!G240 -> Algae | X6: Cages
S7: ='Country list'!H5 -> Albania | T7: ='Country list'!I5 -> Western Europe | U7: ='Country list'!J5 -> we | V7: ='Feed EFs'!G241 -> Bivalves | X7: Ponds: extensive
S8: ='Country list'!H6 -> Algeria | T8: ='Country list'!I6 -> Near East and North Africa | U8: ='Country list'!J6 -> nena | V8: ='Feed EFs'!G242 -> Catfish | X8: Ponds: semi-intensive
S9: ='Country list'!H7 -> American Samoa | T9: ='Country list'!I7 -> Oceania | U9: ='Country list'!J7 -> oc | V9: ='Feed EFs'!G243 -> Cyprinids | X9: Ponds: intensive
S10: ='Country list'!H8 -> Andorra | T10: ='Country list'!I8 -> Western Europe | U10: ='Country list'!J8 -> we | V10: ='Feed EFs'!G244 -> Freshwater fish - general | X10: Recirculating aquaculture systems
S11: ='Country list'!H9 -> Angola | T11: ='Country list'!I9 -> Sub-Saharan Africa | U11: ='Country list'!J9 -> ssa | V11: ='Feed EFs'!G245 -> Indian major carps | X11: Tanks: flow through
S12: ='Country list'!H10 -> Anguilla | T12: ='Country list'!I10 -> Latin America and the Caribbean | U12: ='Country list'!J10 -> lac | V12: ='Feed EFs'!G246 -> Marine fish - general
S13: ='Country list'!H11 -> Antigua and Barbuda | T13: ='Country list'!I11 -> Latin America and the Caribbean | U13: ='Country list'!J11 -> lac | V13: ='Feed EFs'!G247 -> Salmonids
S14: ='Country list'!H12 -> Argentina | T14: ='Country list'!I12 -> Latin America and the Caribbean | U14: ='Country list'!J12 -> lac | V14: ='Feed EFs'!G248 -> Shrimp
S15: ='Country list'!H13 -> Armenia | T15: ='Country list'!I13 -> Near East and North Africa | U15: ='Country list'!J13 -> nena | V15: ='Feed EFs'!G249 -> Tilapia
S16: ='Country list'!H14 -> Aruba | T16: ='Country list'!I14 -> Latin America and the Caribbean | U16: ='Country list'!J14 -> lac
S17: ='Country list'!H15 -> Australia | T17: ='Country list'!I15 -> Oceania | U17: ='Country list'!J15 -> oc
S18: ='Country list'!H16 -> Austria | T18: ='Country list'!I16 -> Western Europe | U18: ='Country list'!J16 -> we
S19: ='Country list'!H17 -> Azerbaijan | T19: ='Country list'!I17 -> Near East and North Africa | U19: ='Country list'!J17 -> nena
S20: ='Country list'!H18 -> Bahamas | T20: ='Country list'!I18 -> Latin America and the Caribbean | U20: ='Country list'!J18 -> lac
S21: ='Country list'!H19 -> Bahrain | T21: ='Country list'!I19 -> Near East and North Africa | U21: ='Country list'!J19 -> nena
S22: ='Country list'!H20 -> Bangladesh | T22: ='Country list'!I20 -> South Asia | U22: ='Country list'!J20 -> sa
S23: ='Country list'!H21 -> Barbados | T23: ='Country list'!I21 -> Latin America and the Caribbean | U23: ='Country list'!J21 -> lac
B24: To get started, enter your location, commodity and system then press NEXT | S24: ='Country list'!H22 -> Belarus | T24: ='Country list'!I22 -> Eastern Europe | U24: ='Country list'!J22 -> ee
S25: ='Country list'!H23 -> Belgium | T25: ='Country list'!I23 -> Western Europe | U25: ='Country list'!J23 -> we
S26: ='Country list'!H24 -> Belize | T26: ='Country list'!I24 -> Latin America and the Caribbean | U26: ='Country list'!J24 -> lac
H27: 219 | S27: ='Country list'!H25 -> Benin | T27: ='Country list'!I25 -> Sub-Saharan Africa | U27: ='Country list'!J25 -> ssa
S28: ='Country list'!H26 -> Bermuda | T28: ='Country list'!I26 -> North America | U28: ='Country list'!J26 -> nam
S29: ='Country list'!H27 -> Bhutan | T29: ='Country list'!I27 -> South Asia | U29: ='Country list'!J27 -> sa
H30: 6 | S30: ='Country list'!H28 -> Bolivia | T30: ='Country list'!I28 -> Latin America and the Caribbean | U30: ='Country list'!J28 -> lac
S31: ='Country list'!H29 -> Bosnia and Herzegovina | T31: ='Country list'!I29 -> Western Europe | U31: ='Country list'!J29 -> we
S32: ='Country list'!H30 -> Botswana | T32: ='Country list'!I30 -> Sub-Saharan Africa | U32: ='Country list'!J30 -> ssa
H33: 1 | S33: ='Country list'!H31 -> Brazil | T33: ='Country list'!I31 -> Latin America and the Caribbean | U33: ='Country list'!J31 -> lac
S34: ='Country list'!H32 -> British Indian Ocean Territory | T34: ='Country list'!I32 -> South Asia | U34: ='Country list'!J32 -> sa
S35: ='Country list'!H33 -> British Virgin Islands | T35: ='Country list'!I33 -> Latin America and the Caribbean | U35: ='Country list'!J33 -> lac
S36: ='Country list'!H34 -> Brunei Darussalam | T36: ='Country list'!I34 -> East Asia and Southeast Asia | U36: ='Country list'!J34 -> esea
S37: ='Country list'!H35 -> Bulgaria | T37: ='Country list'!I35 -> Eastern Europe | U37: ='Country list'!J35 -> ee
S38: ='Country list'!H36 -> Burkina Faso | T38: ='Country list'!I36 -> Sub-Saharan Africa | U38: ='Country list'!J36 -> ssa
B39: Disclaimer | S39: ='Country list'!H37 -> Burundi | T39: ='Country list'!I37 -> Sub-Saharan Africa | U39: ='Country list'!J37 -> ssa
B40: The views expressed in this information product are those of the author(s) and do not necessarily reflect the views or policies of FAO. | S40: ='Country list'!H38 -> Cambodia | T40: ='Country list'!I38 -> East Asia and Southeast Asia | U40: ='Country list'!J38 -> esea
S41: ='Country list'!H39 -> Cameroon | T41: ='Country list'!I39 -> Sub-Saharan Africa | U41: ='Country list'!J39 -> ssa
S42: ='Country list'!H40 -> Canada | T42: ='Country list'!I40 -> North America | U42: ='Country list'!J40 -> nam
S43: ='Country list'!H41 -> Cape Verde | T43: ='Country list'!I41 -> Sub-Saharan Africa | U43: ='Country list'!J41 -> ssa
S44: ='Country list'!H42 -> Cayman Islands | T44: ='Country list'!I42 -> Latin America and the Caribbean | U44: ='Country list'!J42 -> lac
S45: ='Country list'!H43 -> Central African Republic | T45: ='Country list'!I43 -> Sub-Saharan Africa | U45: ='Country list'!J43 -> ssa
S46: ='Country list'!H44 -> Chad | T46: ='Country list'!I44 -> Sub-Saharan Africa | U46: ='Country list'!J44 -> ssa
S47: ='Country list'!H45 -> Chile | T47: ='Country list'!I45 -> Latin America and the Caribbean | U47: ='Country list'!J45 -> lac
S48: ='Country list'!H46 -> China | T48: ='Country list'!I46 -> East Asia and Southeast Asia | U48: ='Country list'!J46 -> esea
S49: ='Country list'!H47 -> Christmas Island | T49: ='Country list'!I47 -> East Asia and Southeast Asia | U49: ='Country list'!J47 -> esea
S50: ='Country list'!H48 -> Colombia | T50: ='Country list'!I48 -> Latin America and the Caribbean | U50: ='Country list'!J48 -> lac
S51: ='Country list'!H49 -> Comoros | T51: ='Country list'!I49 -> Sub-Saharan Africa | U51: ='Country list'!J49 -> ssa
S52: ='Country list'!H50 -> Congo | T52: ='Country list'!I50 -> Sub-Saharan Africa | U52: ='Country list'!J50 -> ssa
S53: ='Country list'!H51 -> Cook Islands | T53: ='Country list'!I51 -> Oceania | U53: ='Country list'!J51 -> oc
S54: ='Country list'!H52 -> Costa Rica | T54: ='Country list'!I52 -> Latin America and the Caribbean | U54: ='Country list'!J52 -> lac
S55: ='Country list'!H53 -> Cote d’Ivoire | T55: ='Country list'!I53 -> Sub-Saharan Africa | U55: ='Country list'!J53 -> ssa
S56: ='Country list'!H54 -> Croatia | T56: ='Country list'!I54 -> Western Europe | U56: ='Country list'!J54 -> we
S57: ='Country list'!H55 -> Cuba | T57: ='Country list'!I55 -> Latin America and the Caribbean | U57: ='Country list'!J55 -> lac
S58: ='Country list'!H56 -> Cyprus | T58: ='Country list'!I56 -> Near East and North Africa | U58: ='Country list'!J56 -> nena
S59: ='Country list'!H57 -> Czech Republic | T59: ='Country list'!I57 -> Eastern Europe | U59: ='Country list'!J57 -> ee
S60: ='Country list'!H58 -> Democratic People’s Republic of Korea | T60: ='Country list'!I58 -> East Asia and Southeast Asia | U60: ='Country list'!J58 -> esea
S61: ='Country list'!H59 -> Democratic Republic of the Congo | T61: ='Country list'!I59 -> Sub-Saharan Africa | U61: ='Country list'!J59 -> ssa
S62: ='Country list'!H60 -> Denmark | T62: ='Country list'!I60 -> Western Europe | U62: ='Country list'!J60 -> we
S63: ='Country list'!H61 -> Djibouti | T63: ='Country list'!I61 -> Sub-Saharan Africa | U63: ='Country list'!J61 -> ssa
S64: ='Country list'!H62 -> Dominica | T64: ='Country list'!I62 -> Latin America and the Caribbean | U64: ='Country list'!J62 -> lac
S65: ='Country list'!H63 -> Dominican Republic | T65: ='Country list'!I63 -> Latin America and the Caribbean | U65: ='Country list'!J63 -> lac
S66: ='Country list'!H64 -> Ecuador | T66: ='Country list'!I64 -> Latin America and the Caribbean | U66: ='Country list'!J64 -> lac
S67: ='Country list'!H65 -> Egypt | T67: ='Country list'!I65 -> Near East and North Africa | U67: ='Country list'!J65 -> nena
S68: ='Country list'!H66 -> El Salvador | T68: ='Country list'!I66 -> Latin America and the Caribbean | U68: ='Country list'!J66 -> lac
S69: ='Country list'!H67 -> Equatorial Guinea | T69: ='Country list'!I67 -> Sub-Saharan Africa | U69: ='Country list'!J67 -> ssa
S70: ='Country list'!H68 -> Eritrea | T70: ='Country list'!I68 -> Sub-Saharan Africa | U70: ='Country list'!J68 -> ssa
S71: ='Country list'!H69 -> Estonia | T71: ='Country list'!I69 -> Western Europe | U71: ='Country list'!J69 -> we
S72: ='Country list'!H70 -> Ethiopia | T72: ='Country list'!I70 -> Sub-Saharan Africa | U72: ='Country list'!J70 -> ssa
S73: ='Country list'!H71 -> Falkland Islands (Malvinas) | T73: ='Country list'!I71 -> Latin America and the Caribbean | U73: ='Country list'!J71 -> lac
S74: ='Country list'!H72 -> Faroe Islands | T74: ='Country list'!I72 -> Western Europe | U74: ='Country list'!J72 -> we
S75: ='Country list'!H73 -> Fiji | T75: ='Country list'!I73 -> Oceania | U75: ='Country list'!J73 -> oc
S76: ='Country list'!H74 -> Finland | T76: ='Country list'!I74 -> Western Europe | U76: ='Country list'!J74 -> we
S77: ='Country list'!H75 -> France | T77: ='Country list'!I75 -> Western Europe | U77: ='Country list'!J75 -> we
S78: ='Country list'!H76 -> French Guiana | T78: ='Country list'!I76 -> Latin America and the Caribbean | U78: ='Country list'!J76 -> lac
S79: ='Country list'!H77 -> French Polynesia | T79: ='Country list'!I77 -> Oceania | U79: ='Country list'!J77 -> oc
S80: ='Country list'!H78 -> Gabon | T80: ='Country list'!I78 -> Sub-Saharan Africa | U80: ='Country list'!J78 -> ssa
S81: ='Country list'!H79 -> Gambia | T81: ='Country list'!I79 -> Sub-Saharan Africa | U81: ='Country list'!J79 -> ssa
S82: ='Country list'!H80 -> Gaza Strip | T82: ='Country list'!I80 -> Near East and North Africa | U82: ='Country list'!J80 -> nena
S83: ='Country list'!H81 -> Georgia | T83: ='Country list'!I81 -> Near East and North Africa | U83: ='Country list'!J81 -> nena
S84: ='Country list'!H82 -> Germany | T84: ='Country list'!I82 -> Western Europe | U84: ='Country list'!J82 -> we
S85: ='Country list'!H83 -> Ghana | T85: ='Country list'!I83 -> Sub-Saharan Africa | U85: ='Country list'!J83 -> ssa
S86: ='Country list'!H84 -> Greece | T86: ='Country list'!I84 -> Western Europe | U86: ='Country list'!J84 -> we
S87: ='Country list'!H85 -> Greenland | T87: ='Country list'!I85 -> North America | U87: ='Country list'!J85 -> nam
S88: ='Country list'!H86 -> Grenada | T88: ='Country list'!I86 -> Latin America and the Caribbean | U88: ='Country list'!J86 -> lac
S89: ='Country list'!H87 -> Guadeloupe | T89: ='Country list'!I87 -> Latin America and the Caribbean | U89: ='Country list'!J87 -> lac
S90: ='Country list'!H88 -> Guam | T90: ='Country list'!I88 -> Oceania | U90: ='Country list'!J88 -> oc
S91: ='Country list'!H89 -> Guatemala | T91: ='Country list'!I89 -> Latin America and the Caribbean | U91: ='Country list'!J89 -> lac
S92: ='Country list'!H90 -> Guernsey | T92: ='Country list'!I90 -> Western Europe | U92: ='Country list'!J90 -> we
S93: ='Country list'!H91 -> Guinea | T93: ='Country list'!I91 -> Sub-Saharan Africa | U93: ='Country list'!J91 -> ssa
S94: ='Country list'!H92 -> Guinea-Bissau | T94: ='Country list'!I92 -> Sub-Saharan Africa | U94: ='Country list'!J92 -> ssa
S95: ='Country list'!H93 -> Guyana | T95: ='Country list'!I93 -> Latin America and the Caribbean | U95: ='Country list'!J93 -> lac
S96: ='Country list'!H94 -> Haiti | T96: ='Country list'!I94 -> Latin America and the Caribbean | U96: ='Country list'!J94 -> lac
S97: ='Country list'!H95 -> Honduras | T97: ='Country list'!I95 -> Latin America and the Caribbean | U97: ='Country list'!J95 -> lac
S98: ='Country list'!H96 -> Hong Kong | T98: ='Country list'!I96 -> East Asia and Southeast Asia | U98: ='Country list'!J96 -> esea
S99: ='Country list'!H97 -> Hungary | T99: ='Country list'!I97 -> Eastern Europe | U99: ='Country list'!J97 -> ee
S100: ='Country list'!H98 -> Iceland | T100: ='Country list'!I98 -> Western Europe | U100: ='Country list'!J98 -> we
S101: ='Country list'!H99 -> India | T101: ='Country list'!I99 -> South Asia | U101: ='Country list'!J99 -> sa
S102: ='Country list'!H100 -> Indonesia | T102: ='Country list'!I100 -> East Asia and Southeast Asia | U102: ='Country list'!J100 -> esea
S103: ='Country list'!H101 -> Iran (Islamic Republic of) | T103: ='Country list'!I101 -> South Asia | U103: ='Country list'!J101 -> sa
S104: ='Country list'!H102 -> Iraq | T104: ='Country list'!I102 -> Near East and North Africa | U104: ='Country list'!J102 -> nena
S105: ='Country list'!H103 -> Ireland | T105: ='Country list'!I103 -> Western Europe | U105: ='Country list'!J103 -> we
S106: ='Country list'!H104 -> Isle of Man | T106: ='Country list'!I104 -> Western Europe | U106: ='Country list'!J104 -> we
S107: ='Country list'!H105 -> Israel | T107: ='Country list'!I105 -> Near East and North Africa | U107: ='Country list'!J105 -> nena
S108: ='Country list'!H106 -> Italy | T108: ='Country list'!I106 -> Western Europe | U108: ='Country list'!J106 -> we
S109: ='Country list'!H107 -> Jamaica | T109: ='Country list'!I107 -> Latin America and the Caribbean | U109: ='Country list'!J107 -> lac
S110: ='Country list'!H108 -> Japan | T110: ='Country list'!I108 -> East Asia and Southeast Asia | U110: ='Country list'!J108 -> esea
S111: ='Country list'!H109 -> Jersey | T111: ='Country list'!I109 -> Western Europe | U111: ='Country list'!J109 -> we
S112: ='Country list'!H110 -> Jordan | T112: ='Country list'!I110 -> Near East and North Africa | U112: ='Country list'!J110 -> nena
S113: ='Country list'!H111 -> Kazakhstan | T113: ='Country list'!I111 -> Near East and North Africa | U113: ='Country list'!J111 -> nena
S114: ='Country list'!H112 -> Kenya | T114: ='Country list'!I112 -> Sub-Saharan Africa | U114: ='Country list'!J112 -> ssa
S115: ='Country list'!H113 -> Kiribati | T115: ='Country list'!I113 -> Oceania | U115: ='Country list'!J113 -> oc
S116: ='Country list'!H114 -> Kuwait | T116: ='Country list'!I114 -> Near East and North Africa | U116: ='Country list'!J114 -> nena
S117: ='Country list'!H115 -> Kyrgyzstan | T117: ='Country list'!I115 -> Near East and North Africa | U117: ='Country list'!J115 -> nena
S118: ='Country list'!H116 -> Lao People’s Democratic Republic | T118: ='Country list'!I116 -> East Asia and Southeast Asia | U118: ='Country list'!J116 -> esea
S119: ='Country list'!H117 -> Latvia | T119: ='Country list'!I117 -> Western Europe | U119: ='Country list'!J117 -> we
S120: ='Country list'!H118 -> Lebanon | T120: ='Country list'!I118 -> Near East and North Africa | U120: ='Country list'!J118 -> nena
S121: ='Country list'!H119 -> Lesotho | T121: ='Country list'!I119 -> Sub-Saharan Africa | U121: ='Country list'!J119 -> ssa
S122: ='Country list'!H120 -> Liberia | T122: ='Country list'!I120 -> Sub-Saharan Africa | U122: ='Country list'!J120 -> ssa
S123: ='Country list'!H121 -> Liechtenstein | T123: ='Country list'!I121 -> Western Europe | U123: ='Country list'!J121 -> we
S124: ='Country list'!H122 -> Lithuania | T124: ='Country list'!I122 -> Western Europe | U124: ='Country list'!J122 -> we
S125: ='Country list'!H123 -> Luxembourg | T125: ='Country list'!I123 -> Western Europe | U125: ='Country list'!J123 -> we
S126: ='Country list'!H124 -> Macau | T126: ='Country list'!I124 -> East Asia and Southeast Asia | U126: ='Country list'!J124 -> esea
S127: ='Country list'!H125 -> Madagascar | T127: ='Country list'!I125 -> Sub-Saharan Africa | U127: ='Country list'!J125 -> ssa
S128: ='Country list'!H126 -> Madeira Islands | T128: ='Country list'!I126 -> Western Europe | U128: ='Country list'!J126 -> we
S129: ='Country list'!H127 -> Malawi | T129: ='Country list'!I127 -> Sub-Saharan Africa | U129: ='Country list'!J127 -> ssa
S130: ='Country list'!H128 -> Malaysia | T130: ='Country list'!I128 -> East Asia and Southeast Asia | U130: ='Country list'!J128 -> esea
S131: ='Country list'!H129 -> Maldives | T131: ='Country list'!I129 -> South Asia | U131: ='Country list'!J129 -> sa
S132: ='Country list'!H130 -> Mali | T132: ='Country list'!I130 -> Sub-Saharan Africa | U132: ='Country list'!J130 -> ssa
S133: ='Country list'!H131 -> Malta | T133: ='Country list'!I131 -> Western Europe | U133: ='Country list'!J131 -> we
S134: ='Country list'!H132 -> Marshall Islands | T134: ='Country list'!I132 -> Oceania | U134: ='Country list'!J132 -> oc
S135: ='Country list'!H133 -> Martinique | T135: ='Country list'!I133 -> Latin America and the Caribbean | U135: ='Country list'!J133 -> lac
S136: ='Country list'!H134 -> Mauritania | T136: ='Country list'!I134 -> Sub-Saharan Africa | U136: ='Country list'!J134 -> ssa
S137: ='Country list'!H135 -> Mauritius | T137: ='Country list'!I135 -> Sub-Saharan Africa | U137: ='Country list'!J135 -> ssa
S138: ='Country list'!H136 -> Mayotte | T138: ='Country list'!I136 -> Sub-Saharan Africa | U138: ='Country list'!J136 -> ssa
S139: ='Country list'!H137 -> Mexico | T139: ='Country list'!I137 -> Latin America and the Caribbean | U139: ='Country list'!J137 -> lac
S140: ='Country list'!H138 -> Micronesia (Federated States of) | T140: ='Country list'!I138 -> Oceania | U140: ='Country list'!J138 -> oc
S141: ='Country list'!H139 -> Moldova, Republic of | T141: ='Country list'!I139 -> Eastern Europe | U141: ='Country list'!J139 -> ee
S142: ='Country list'!H140 -> Monaco | T142: ='Country list'!I140 -> Western Europe | U142: ='Country list'!J140 -> we
S143: ='Country list'!H141 -> Mongolia | T143: ='Country list'!I141 -> East Asia and Southeast Asia | U143: ='Country list'!J141 -> esea
S144: ='Country list'!H142 -> Montenegro | T144: ='Country list'!I142 -> Western Europe | U144: ='Country list'!J142 -> we
S145: ='Country list'!H143 -> Montserrat | T145: ='Country list'!I143 -> Latin America and the Caribbean | U145: ='Country list'!J143 -> lac
S146: ='Country list'!H144 -> Morocco | T146: ='Country list'!I144 -> Near East and North Africa | U146: ='Country list'!J144 -> nena
S147: ='Country list'!H145 -> Mozambique | T147: ='Country list'!I145 -> Sub-Saharan Africa | U147: ='Country list'!J145 -> ssa
S148: ='Country list'!H146 -> Myanmar | T148: ='Country list'!I146 -> East Asia and Southeast Asia | U148: ='Country list'!J146 -> esea
S149: ='Country list'!H147 -> Namibia | T149: ='Country list'!I147 -> Sub-Saharan Africa | U149: ='Country list'!J147 -> ssa
S150: ='Country list'!H148 -> Nauru | T150: ='Country list'!I148 -> Oceania | U150: ='Country list'!J148 -> oc
S151: ='Country list'!H149 -> Nepal | T151: ='Country list'!I149 -> South Asia | U151: ='Country list'!J149 -> sa
S152: ='Country list'!H150 -> Netherlands | T152: ='Country list'!I150 -> Western Europe | U152: ='Country list'!J150 -> we
S153: ='Country list'!H151 -> Netherlands Antilles | T153: ='Country list'!I151 -> Latin America and the Caribbean | U153: ='Country list'!J151 -> lac
S154: ='Country list'!H152 -> New Caledonia | T154: ='Country list'!I152 -> Oceania | U154: ='Country list'!J152 -> oc
S155: ='Country list'!H153 -> New Zealand | T155: ='Country list'!I153 -> Oceania | U155: ='Country list'!J153 -> oc
S156: ='Country list'!H154 -> Nicaragua | T156: ='Country list'!I154 -> Latin America and the Caribbean | U156: ='Country list'!J154 -> lac
S157: ='Country list'!H155 -> Niger | T157: ='Country list'!I155 -> Sub-Saharan Africa | U157: ='Country list'!J155 -> ssa
S158: ='Country list'!H156 -> Nigeria | T158: ='Country list'!I156 -> Sub-Saharan Africa | U158: ='Country list'!J156 -> ssa
S159: ='Country list'!H157 -> Niue | T159: ='Country list'!I157 -> Oceania | U159: ='Country list'!J157 -> oc
S160: ='Country list'!H158 -> Norfolk Island | T160: ='Country list'!I158 -> Oceania | U160: ='Country list'!J158 -> oc
S161: ='Country list'!H159 -> Northern Mariana Islands | T161: ='Country list'!I159 -> Oceania | U161: ='Country list'!J159 -> oc
S162: ='Country list'!H160 -> Norway | T162: ='Country list'!I160 -> Western Europe | U162: ='Country list'!J160 -> we
S163: ='Country list'!H161 -> Oman | T163: ='Country list'!I161 -> Near East and North Africa | U163: ='Country list'!J161 -> nena
S164: ='Country list'!H162 -> Pakistan | T164: ='Country list'!I162 -> South Asia | U164: ='Country list'!J162 -> sa
S165: ='Country list'!H163 -> Palau | T165: ='Country list'!I163 -> Oceania | U165: ='Country list'!J163 -> oc
S166: ='Country list'!H164 -> Panama | T166: ='Country list'!I164 -> Latin America and the Caribbean | U166: ='Country list'!J164 -> lac
S167: ='Country list'!H165 -> Papua New Guinea | T167: ='Country list'!I165 -> Oceania | U167: ='Country list'!J165 -> oc
S168: ='Country list'!H166 -> Paraguay | T168: ='Country list'!I166 -> Latin America and the Caribbean | U168: ='Country list'!J166 -> lac
S169: ='Country list'!H167 -> Peru | T169: ='Country list'!I167 -> Latin America and the Caribbean | U169: ='Country list'!J167 -> lac
S170: ='Country list'!H168 -> Philippines | T170: ='Country list'!I168 -> East Asia and Southeast Asia | U170: ='Country list'!J168 -> esea
S171: ='Country list'!H169 -> Pitcairn | T171: ='Country list'!I169 -> Oceania | U171: ='Country list'!J169 -> oc
S172: ='Country list'!H170 -> Poland | T172: ='Country list'!I170 -> Eastern Europe | U172: ='Country list'!J170 -> ee
S173: ='Country list'!H171 -> Portugal | T173: ='Country list'!I171 -> Western Europe | U173: ='Country list'!J171 -> we
S174: ='Country list'!H172 -> Puerto Rico | T174: ='Country list'!I172 -> Latin America and the Caribbean | U174: ='Country list'!J172 -> lac
S175: ='Country list'!H173 -> Qatar | T175: ='Country list'!I173 -> Near East and North Africa | U175: ='Country list'!J173 -> nena
S176: ='Country list'!H174 -> Republic of Korea | T176: ='Country list'!I174 -> East Asia and Southeast Asia | U176: ='Country list'!J174 -> esea
S177: ='Country list'!H175 -> Republic of Serbia | T177: ='Country list'!I175 -> Western Europe | U177: ='Country list'!J175 -> we
S178: ='Country list'!H176 -> Republic of Sudan | T178: ='Country list'!I176 -> Near East and North Africa | U178: ='Country list'!J176 -> nena
S179: ='Country list'!H177 -> Reunion | T179: ='Country list'!I177 -> Sub-Saharan Africa | U179: ='Country list'!J177 -> ssa
S180: ='Country list'!H178 -> Romania | T180: ='Country list'!I178 -> Eastern Europe | U180: ='Country list'!J178 -> ee
S181: ='Country list'!H179 -> Russian Federation | T181: ='Country list'!I179 -> Russian Federation | U181: ='Country list'!J179 -> rus
S182: ='Country list'!H180 -> Rwanda | T182: ='Country list'!I180 -> Sub-Saharan Africa | U182: ='Country list'!J180 -> ssa
S183: ='Country list'!H181 -> Saint Helena | T183: ='Country list'!I181 -> Sub-Saharan Africa | U183: ='Country list'!J181 -> ssa
S184: ='Country list'!H182 -> Saint Kitts and Nevis | T184: ='Country list'!I182 -> Latin America and the Caribbean | U184: ='Country list'!J182 -> lac
S185: ='Country list'!H183 -> Saint Lucia | T185: ='Country list'!I183 -> Latin America and the Caribbean | U185: ='Country list'!J183 -> lac
S186: ='Country list'!H184 -> Saint Pierre et Miquelon | T186: ='Country list'!I184 -> Oceania | U186: ='Country list'!J184 -> oc
S187: ='Country list'!H185 -> Saint Vincent and the Grenadines | T187: ='Country list'!I185 -> Latin America and the Caribbean | U187: ='Country list'!J185 -> lac
S188: ='Country list'!H186 -> Samoa | T188: ='Country list'!I186 -> Oceania | U188: ='Country list'!J186 -> oc
S189: ='Country list'!H187 -> San Marino | T189: ='Country list'!I187 -> Western Europe | U189: ='Country list'!J187 -> we
S190: ='Country list'!H188 -> Sao Tome and Principe | T190: ='Country list'!I188 -> Sub-Saharan Africa | U190: ='Country list'!J188 -> ssa
S191: ='Country list'!H189 -> Saudi Arabia | T191: ='Country list'!I189 -> Near East and North Africa | U191: ='Country list'!J189 -> nena
S192: ='Country list'!H190 -> Senegal | T192: ='Country list'!I190 -> Sub-Saharan Africa | U192: ='Country list'!J190 -> ssa
S193: ='Country list'!H191 -> Seychelles | T193: ='Country list'!I191 -> Sub-Saharan Africa | U193: ='Country list'!J191 -> ssa
S194: ='Country list'!H192 -> Sierra Leone | T194: ='Country list'!I192 -> Sub-Saharan Africa | U194: ='Country list'!J192 -> ssa
S195: ='Country list'!H193 -> Singapore | T195: ='Country list'!I193 -> East Asia and Southeast Asia | U195: ='Country list'!J193 -> esea
S196: ='Country list'!H194 -> Slovakia | T196: ='Country list'!I194 -> Eastern Europe | U196: ='Country list'!J194 -> ee
S197: ='Country list'!H195 -> Slovenia | T197: ='Country list'!I195 -> Western Europe | U197: ='Country list'!J195 -> we
S198: ='Country list'!H196 -> Solomon Islands | T198: ='Country list'!I196 -> Oceania | U198: ='Country list'!J196 -> oc
S199: ='Country list'!H197 -> Somalia | T199: ='Country list'!I197 -> Sub-Saharan Africa | U199: ='Country list'!J197 -> ssa
S200: ='Country list'!H198 -> South Africa | T200: ='Country list'!I198 -> Sub-Saharan Africa | U200: ='Country list'!J198 -> ssa
S201: ='Country list'!H199 -> South Sudan | T201: ='Country list'!I199 -> Near East and North Africa | U201: ='Country list'!J199 -> nena
S202: ='Country list'!H200 -> Spain | T202: ='Country list'!I200 -> Western Europe | U202: ='Country list'!J200 -> we
S203: ='Country list'!H201 -> Sri Lanka | T203: ='Country list'!I201 -> South Asia | U203: ='Country list'!J201 -> sa
S204: ='Country list'!H202 -> State of Libya | T204: ='Country list'!I202 -> Near East and North Africa | U204: ='Country list'!J202 -> nena
... 38 more rows

Sheet INPUTS
U3: Misc | V3: Power sources | X3: Units | Y3: Units | Z3: Activity | AC3: ='Feed EFs'!F6 -> Commercial | AD3: ='Feed EFs'!G6 -> Non-commercial | AF3: ='Fert EFs'!Y5 -> Synthetic fertilizers kgCO2e/kg fertilizer | AJ3: ='Fert EFs'!AC5 -> Organic fertilizers kgCO2e/kg fertilizer
U4: kgCO2e | V4: Grid electricity | X4: ='Fuel EFs'!I4 -> _tonnes | Y4: _tonne | Z4: Pumping water | AC4: ='Feed EFs'!F7 -> Blood meal | AD4: ='Feed EFs'!G7 -> Cassava | AF4: ='Fert EFs'!Y6 -> Urea | AJ4: ='Fert EFs'!AC6 -> Cattle manure-fresh
U5: kgCO2e/ | X5: ='Fuel EFs'!I5 -> _litres | Y5: _litre | Z5: Water heating | AC5: ='Feed EFs'!F8 -> Cassava | AD5: ='Feed EFs'!G8 -> Groundnut meal | AF5: ='Fert EFs'!Y7 -> Urea Ammonium Nitrate | AJ5: ='Fert EFs'!AC7 -> Cattle manure-dried
V6: ='Fuel EFs'!H4 -> Compressed natural gas | X6: ='Fuel EFs'!I6 -> _cubic metres | Y6: m3 | Z6: Space heating/cooling | AC6: ='Feed EFs'!F9 -> Feather meal | AD6: ='Feed EFs'!G9 -> Maize | AF6: ='Fert EFs'!Y8 -> Anhydrous Ammonia | AJ6: ='Fert EFs'!AC8 -> Buffalo manure-fresh
V7: ='Fuel EFs'!H5 -> Liquefied natural gas | X7: ='Fuel EFs'!I7 -> _kWh | Y7: _kWh | Z7: Refrigeration | AC7: ='Feed EFs'!F10 -> Fishmeal - reduction | AD7: ='Feed EFs'!G10 -> Maize DDGS | AF7: ='Fert EFs'!Y9 -> Ammonium Nitrate | AJ7: ='Fert EFs'!AC9 -> Buffalo manure-dried
V8: ='Fuel EFs'!H6 -> Liquid petroleum gas | X8: _MJ | Y8: _MJ | Z8: Feed blending | AC8: ='Feed EFs'!F11 -> Fishoil - reduction | AD8: ='Feed EFs'!G11 -> Maize gluten meal | AF8: ='Fert EFs'!Y10 -> Calcium Ammonium Nitrate | AJ8: ='Fert EFs'!AC10 -> Pig manure-fresh
E9: Value | F9: Units | V9: ='Fuel EFs'!H7 -> Natural gas | Z9: Lighting | AC9: ='Feed EFs'!F12 -> Lime | AD9: ='Feed EFs'!G12 -> Oilseed meal (non-soy) | AF9: ='Fert EFs'!Y11 -> Dry Ammonium Sulphate | AJ9: ='Fert EFs'!AC11 -> Pig manure-dried
D10: Juvenile fish weight at input | E10: 50 | F10: g per fingerling | V10: ='Fuel EFs'!H8 -> Burning oil | Z10: Mobile machinery | AC10: ='Feed EFs'!F13 -> Maize | AD10: ='Feed EFs'!G13 -> Oilseed oil (non-soy) | AF10: ='Fert EFs'!Y12 -> Triple Super Phosphate | AJ10: ='Fert EFs'!AC12 -> Sheep manure - fresh
D11: Fish weight at harvest | E11: 1.2 | F11: kg liveweight (LW) per fish | V11: ='Fuel EFs'!H9 -> Diesel (average biofuel blend) | Z11: Electricity generation | AC11: ='Feed EFs'!F14 -> Maize DDGS | AD11: ='Feed EFs'!G14 -> Pulses | AF11: ='Fert EFs'!Y13 -> Single Super Phosphate | AJ11: ='Fert EFs'!AC13 -> Sheep manure - dried
D12: Length of the growing period | E12: 300 | F12: days | V12: ='Fuel EFs'!H10 -> Diesel (100% mineral diesel) | Z12: Other | AC12: ='Feed EFs'!F15 -> Maize gluten meal | AD12: ='Feed EFs'!G15 -> Rice by-products | AF12: ='Fert EFs'!Y14 -> Ground rock | AJ12: ='Fert EFs'!AC14 -> Goat manure - fresh
D13: % of fingerlings surviving to harvest | E13: 0.96 | F13: per cent | V13: ='Fuel EFs'!H11 -> Fuel oil | Z13: ALL | AC13: ='Feed EFs'!F16 -> Meat and bone meal | AD13: ='Feed EFs'!G16 -> Soybean | AF13: ='Fert EFs'!Y15 -> Potassium chloride | AJ13: ='Fert EFs'!AC15 -> Goat manure - dried
V14: ='Fuel EFs'!H12 -> Gas oil | AC14: ='Feed EFs'!F17 -> Oilseed meal (non-soy) | AD14: ='Feed EFs'!G17 -> Soybean meal | AF14: ='Fert EFs'!Y16 -> Potassium sulphate | AJ14: ='Fert EFs'!AC16 -> Duck manure-fresh
D15: Total fish production | E15: 10000 | F15: kgLW per year | V15: ='Fuel EFs'!H13 -> Petrol (average biofuel blend) | AC15: ='Feed EFs'!F18 -> Oilseed oil (non-soy) | AD15: ='Feed EFs'!G18 -> Wheat | AF15: ='Fert EFs'!Y17 -> MAP | AJ15: ='Fert EFs'!AC17 -> Duck manure-dried
D16: Total feed consumption | E16: 14000 | F16: kg feed per year (as fed, not dry matter) | V16: ='Fuel EFs'!H14 -> Petrol (100% mineral petrol) | AC16: ='Feed EFs'!F19 -> Poultry meal | AD16: ='Feed EFs'!G19 -> Wheat by-products | AF16: ='Fert EFs'!Y18 -> DAP | AJ16: ='Fert EFs'!AC18 -> Layer hen manure-fresh
V17: ='Fuel EFs'!H15 -> Coal (domestic) | AC17: ='Feed EFs'!F20 -> Pulses | AD17: ='Feed EFs'!G20 -> Wheat flour | AF17: ='Fert EFs'!Y19 -> NPK (based on AN) | AJ17: ='Fert EFs'!AC19 -> Layer hen manure-dried
D18: Implied feed conversion ratio | E18: =E16/E15 -> 1.4 | F18: kg feed in (as fed)/kg fish LW out | V18: ='Fuel EFs'!H16 -> Bioethanol | AC18: ='Feed EFs'!F21 -> Rice by-products | AF18: ='Fert EFs'!Y20 -> NPK (based on Urea) | AJ18: ='Fert EFs'!AC20 -> Broiler litter
D19: Actual feed conversion ratio (if different from the implied FCR) | E19: 1.5 | F19: kg feed in (as fed)/kg fish LW out | V19: ='Fuel EFs'!H17 -> Biodiesel | AC19: ='Feed EFs'!F22 -> Soy oil | AF19: ='Fert EFs'!Y21 -> NK (nitric acid and MOP) | AJ19: ='Fert EFs'!AC21 -> Cattle slurry
D20: Regional default feed conversion ratio | E20: ='Feed EFs'!F46 -> 1.130760464 | F20: kg feed in (as fed)/kg fish LW out | V20: ='Fuel EFs'!H18 -> Biomethane | AC20: ='Feed EFs'!F23 -> Soybean | AF20: ='Fert EFs'!Y22 -> PK | AJ20: ='Fert EFs'!AC22 -> Pig slurry
V21: ='Fuel EFs'!H19 -> Biodiesel (from used cooking oil) | AC21: ='Feed EFs'!F24 -> Soybean meal
V22: ='Fuel EFs'!H20 -> Biodiesel (from tallow) | AC22: ='Feed EFs'!F25 -> Vitamin/mineral premix
V23: ='Fuel EFs'!H21 -> Wood logs | AC23: ='Feed EFs'!F26 -> Wheat
V24: ='Fuel EFs'!H22 -> Wood chips | AC24: ='Feed EFs'!F27 -> Wheat by-products
V25: ='Fuel EFs'!H23 -> Wood pellets | AC25: ='Feed EFs'!F28 -> Wheat flour
M26: Comparison of specified and default rations | V26: ='Fuel EFs'!H24 -> Grass/straw
V27: ='Fuel EFs'!H25 -> Biogas
N28: Default | O28: Specified | R28: Default | S28: Specified | V28: ='Fuel EFs'!H26 -> Landfill gas
M29: ='Feed EFs'!B137 -> Blood meal | N29: ='Feed EFs'!C137 -> 0 | O29: ='Feed EFs'!D137 -> 0 | Q29: ='Feed EFs'!B161 -> Cassava | R29: ='Feed EFs'!C161 -> 0 | S29: ='Feed EFs'!D161 -> 0.069
M30: ='Feed EFs'!B138 -> Cassava | N30: ='Feed EFs'!C138 -> 0 | O30: ='Feed EFs'!D138 -> 0 | Q30: ='Feed EFs'!B162 -> Groundnut meal | R30: ='Feed EFs'!C162 -> 0 | S30: ='Feed EFs'!D162 -> 0.033
M31: ='Feed EFs'!B139 -> Feather meal | N31: ='Feed EFs'!C139 -> 0 | O31: ='Feed EFs'!D139 -> 0 | Q31: ='Feed EFs'!B163 -> Maize | R31: ='Feed EFs'!C163 -> 0 | S31: ='Feed EFs'!D163 -> 0.012
M32: ='Feed EFs'!B140 -> Fishmeal - reduction | N32: ='Feed EFs'!C140 -> 0.176 | O32: ='Feed EFs'!D140 -> 0.14 | Q32: ='Feed EFs'!B164 -> Maize DDGS | R32: ='Feed EFs'!C164 -> 0 | S32: ='Feed EFs'!D164 -> 0.03
M33: ='Feed EFs'!B141 -> Fishoil - reduction | N33: ='Feed EFs'!C141 -> 0.112 | O33: ='Feed EFs'!D141 -> 0 | Q33: ='Feed EFs'!B165 -> Maize gluten meal | R33: ='Feed EFs'!C165 -> 0 | S33: ='Feed EFs'!D165 -> 0
M34: ='Feed EFs'!B142 -> Lime | N34: ='Feed EFs'!C142 -> 0 | O34: ='Feed EFs'!D142 -> 0 | Q34: ='Feed EFs'!B166 -> Oilseed meal (non-soy) | R34: ='Feed EFs'!C166 -> 0.072 | S34: ='Feed EFs'!D166 -> 0
M35: ='Feed EFs'!B143 -> Maize | N35: ='Feed EFs'!C143 -> 0 | O35: ='Feed EFs'!D143 -> 0.105 | Q35: ='Feed EFs'!B167 -> Oilseed oil (non-soy) | R35: ='Feed EFs'!C167 -> 0.192 | S35: ='Feed EFs'!D167 -> 0
M36: ='Feed EFs'!B144 -> Maize DDGS | N36: ='Feed EFs'!C144 -> 0 | O36: ='Feed EFs'!D144 -> 0 | Q36: ='Feed EFs'!B168 -> Pulses | R36: ='Feed EFs'!C168 -> 0 | S36: ='Feed EFs'!D168 -> 0
M37: ='Feed EFs'!B145 -> Maize gluten meal | N37: ='Feed EFs'!C145 -> 0 | O37: ='Feed EFs'!D145 -> 0 | Q37: ='Feed EFs'!B169 -> Rice by-products | R37: ='Feed EFs'!C169 -> 0 | S37: ='Feed EFs'!D169 -> 0.03
M38: ='Feed EFs'!B146 -> Meat and bone meal | N38: ='Feed EFs'!C146 -> 0 | O38: ='Feed EFs'!D146 -> 0 | Q38: ='Feed EFs'!B170 -> Soybean | R38: ='Feed EFs'!C170 -> 0 | S38: ='Feed EFs'!D170 -> 0.015
M39: ='Feed EFs'!B147 -> Oilseed meal (non-soy) | N39: ='Feed EFs'!C147 -> 0 | O39: ='Feed EFs'!D147 -> 0.035 | Q39: ='Feed EFs'!B171 -> Soybean meal | R39: ='Feed EFs'!C171 -> 0 | S39: ='Feed EFs'!D171 -> 0.03
M40: ='Feed EFs'!B148 -> Oilseed oil (non-soy) | N40: ='Feed EFs'!C148 -> 0 | O40: ='Feed EFs'!D148 -> 0.105 | Q40: ='Feed EFs'!B172 -> Wheat | R40: ='Feed EFs'!C172 -> 0.106 | S40: ='Feed EFs'!D172 -> 0.021
B41: 1. Proportions of commercial and farm-made/semi-commercial feed | M41: ='Feed EFs'!B149 -> Poultry meal | N41: ='Feed EFs'!C149 -> 0 | O41: ='Feed EFs'!D149 -> 0 | Q41: ='Feed EFs'!B173 -> Wheat by-products | R41: ='Feed EFs'!C173 -> 0.066 | S41: ='Feed EFs'!D173 -> 0
E42: % of total ration | M42: ='Feed EFs'!B150 -> Pulses | N42: ='Feed EFs'!C150 -> 0 | O42: ='Feed EFs'!D150 -> 0 | Q42: ='Feed EFs'!B174 -> Wheat flour | R42: ='Feed EFs'!C174 -> 0 | S42: ='Feed EFs'!D174 -> 0
D43: Commercial | E43: 0.7 | M43: ='Feed EFs'!B151 -> Rice by-products | N43: ='Feed EFs'!C151 -> 0 | O43: ='Feed EFs'!D151 -> 0.07
D44: Farm made/semi-commercial | E44: =1-E43 -> 0.3 | M44: ='Feed EFs'!B152 -> Soy oil | N44: ='Feed EFs'!C152 -> 0 | O44: ='Feed EFs'!D152 -> 0.028
M45: ='Feed EFs'!B153 -> Soybean | N45: ='Feed EFs'!C153 -> 0 | O45: ='Feed EFs'!D153 -> 0.14
B46: 2. Commercial feed composition | F46: 3. Farm made/semi-commercial feed composition | M46: ='Feed EFs'!B154 -> Soybean meal | N46: ='Feed EFs'!C154 -> 0.254 | O46: ='Feed EFs'!D154 -> 0.014
B47: Feed material | C47: % in ration | F47: Feed material | H47: % in ration | M47: ='Feed EFs'!B155 -> Vitamin/mineral premix | N47: ='Feed EFs'!C155 -> 0.021 | O47: ='Feed EFs'!D155 -> 0
B48: 17 | C48: 0.2 | F48: 11 | H48: 0.1 | M48: ='Feed EFs'!B156 -> Wheat | N48: ='Feed EFs'!C156 -> 0 | O48: ='Feed EFs'!D156 -> 0
B49: 18 | C49: 0.02 | F49: 10 | H49: 0.05 | M49: ='Feed EFs'!B157 -> Wheat by-products | N49: ='Feed EFs'!C157 -> 0 | O49: ='Feed EFs'!D157 -> 0.035
B50: 21 | C50: 0.05 | F50: 1 | H50: 0.23 | M50: ='Feed EFs'!B158 -> Wheat flour | N50: ='Feed EFs'!C158 -> 0 | O50: ='Feed EFs'!D158 -> 0.028
B51: 22 | C51: 0.04 | F51: 3 | H51: 0.04
B52: 4 | C52: 0.2 | F52: 12 | H52: 0.07
B53: 11 | C53: 0.05 | F53: 2 | H53: 0.11
B54: 15 | C54: 0.1 | F54: 8 | H54: 0
B55: 12 | C55: 0.15 | F55: 9 | H55: 0.1
B56: 7 | C56: 0.15 | F56: 8 | H56: 0.2
B57: 16 | C57: 0.04 | F57: 4 | H57: 0.1
B58: Commercial total | C58: =SUM(C48:C57) -> 1 | G58: Non-commercial total | H58: =SUM(H48:H57) -> 1
C59: =IF(C58=0,"",IF(C58=1,"","Total should equal 0% or 100%")) ->  | H59: =IF(H58=0,"",IF(H58=1,"","Total should equal 0% or 100%")) -> 
C71: Activity | D71: Annual consumption | E71: Units | G71: Emission factor | H71: Units | I71: Total emissions
C72: 1 | D72: 20000 | E72: 1 | G72: =IF(E72=1,VLOOKUP(INDEX(START!S$6:S$242,START!H$27),'Electricity EFs'!D$19:K$255,7,FALSE),VLOOKUP(INDEX(START!S$6:S$242,START!H$27),'Electricity EFs'!D$19:K$255,8,FALSE)) -> 0.53334 | H72: =CONCATENATE(U$5,INDEX(X$7:X$8, E72)) -> kgCO2e/_kWh | I72: =D72*G72/1000 -> 10.6668 | J72: tonne CO2e/year
C73: 3 | D73: 1000 | E73: 2 | G73: =IF(E73=1,VLOOKUP(INDEX(START!S$6:S$242,START!H$27),'Electricity EFs'!D$19:K$255,7,FALSE),VLOOKUP(INDEX(START!S$6:S$242,START!H$27),'Electricity EFs'!D$19:K$255,8,FALSE)) -> 0.14815 | H73: =CONCATENATE(U$5,INDEX(X$7:X$8, E73)) -> kgCO2e/_MJ | I73: =D73*G73/1000 -> 0.14815 | J73: tonne CO2e/year
C74: 7 | D74: 2000 | E74: 1 | G74: =IF(E74=1,VLOOKUP(INDEX(START!S$6:S$242,START!H$27),'Electricity EFs'!D$19:K$255,7,FALSE),VLOOKUP(INDEX(START!S$6:S$242,START!H$27),'Electricity EFs'!D$19:K$255,8,FALSE)) -> 0.53334 | H74: =CONCATENATE(U$5,INDEX(X$7:X$8, E74)) -> kgCO2e/_kWh | I74: 1.06668 | J74: tonne CO2e/year
H75: Total grid electricity emissions | I75: =SUM(I72:I74) -> 11.88163 | J75: tonne CO2e/year
C78: Activity | D78: Annual fuel consumption | E78: Units | G78: Emission factor | H78: Units | I78: Total emissions
B79: 4 | C79: 3 | D79: 0.5 | E79: 3 | G79: =IFERROR(VLOOKUP(CONCATENATE(INDEX(V$6:V$28,B79),INDEX(X$4:X$8,E79)),'Fuel EFs'!C$4:F$39,4,FALSE),"No unit*") -> 2.303842537 | H79: =CONCATENATE(U$5,INDEX(Y$4:Y$8,E79)) -> kgCO2e/m3 | I79: =G79*D79/1000 -> 0.001151921269 | J79: tonne CO2e/year
B80: 16 | C80: 7 | D80: 200 | E80: 2 | G80: =IFERROR(VLOOKUP(CONCATENATE(INDEX(V$6:V$28,B80),INDEX(X$4:X$8,E80)),'Fuel EFs'!C$4:F$39,4,FALSE),"No unit*") -> 0.4951 | H80: =CONCATENATE(U$5,INDEX(Y$4:Y$8,E80)) -> kgCO2e/_litre | I80: =G80*D80/1000 -> 0.09902 | J80: tonne CO2e/year
B81: 12 | C81: 3 | D81: 1 | E81: 1 | G81: =IFERROR(VLOOKUP(CONCATENATE(INDEX(V$6:V$28,B81),INDEX(X$4:X$8,E81)),'Fuel EFs'!C$4:F$39,4,FALSE),"No unit*") -> 3279.002596 | H81: =CONCATENATE(U$5,INDEX(Y$4:Y$8,E81)) -> kgCO2e/_tonne | I81: 3.279002596 | J81: tonne CO2e/year
B82: 18 | C82: 2 | D82: 2 | E82: 1 | G82: =IFERROR(VLOOKUP(CONCATENATE(INDEX(V$6:V$28,B82),INDEX(X$4:X$8,E82)),'Fuel EFs'!C$4:F$39,4,FALSE),"No unit*") -> 105.49377 | H82: =CONCATENATE(U$5,INDEX(Y$4:Y$8,E82)) -> kgCO2e/_tonne | I82: 0.21098754 | J82: tonne CO2e/year
B83: 21 | C83: 9 | D83: 1 | E83: 1 | G83: =IFERROR(VLOOKUP(CONCATENATE(INDEX(V$6:V$28,B83),INDEX(X$4:X$8,E83)),'Fuel EFs'!C$4:F$39,4,FALSE),"No unit*") -> 161.90091 | H83: =CONCATENATE(U$5,INDEX(Y$4:Y$8,E83)) -> kgCO2e/_tonne | I83: 0.16190091 | J83: tonne CO2e/year
B84: *If "No unit" message appears, select another unit. | H84: Total fuel emissions | I84: =SUM(I79:I83) -> 3.752062967 | J84: tonne CO2e/year
B94: Synthetic fertilizers | C94: Annual use (tonnes) | G94: Emission factor | H94: Units | I94: Total emissions
B95: 1 | C95: 2 | G95: =VLOOKUP('Feed EFs'!E$302,'Fert EFs'!D$40:V$49,INPUTS!B95+2,FALSE) -> 1.5705 | H95: kgCO2e/kg fertilizer | I95: =C95*G95 -> 3.141 | J95: tonne CO2e/year
B96: 4 | C96: 0.5 | G96: =VLOOKUP('Feed EFs'!E$302,'Fert EFs'!D$40:V$49,INPUTS!B96+2,FALSE) -> 2.7166 | H96: kgCO2e/kg fertilizer | I96: =C96*G96 -> 1.3583 | J96: tonne CO2e/year
B97: 8 | C97: 0 | G97: =VLOOKUP('Feed EFs'!E$302,'Fert EFs'!D$40:V$49,INPUTS!B97+2,FALSE) -> 0.026 | H97: kgCO2e/kg fertilizer | I97: 0 | J97: tonne CO2e/year
B98: Organic fertilizers
B99: 3 | C99: 5 | G99: =VLOOKUP('Feed EFs'!E$302,'Fert EFs'!Y$40:AP$49,INPUTS!B99+1,FALSE) -> 0 | H99: kgCO2e/kg fertilizer | I99: =C99*G99 -> 0 | J99: tonne CO2e/year
B100: 4 | C100: 0 | G100: =VLOOKUP('Feed EFs'!E$302,'Fert EFs'!Y$40:AP$49,INPUTS!B100+1,FALSE) -> 0 | H100: kgCO2e/kg fertilizer | I100: =C100*G100 -> 0 | J100: tonne CO2e/year
B101: 10 | C101: 0 | G101: =VLOOKUP('Feed EFs'!E$302,'Fert EFs'!Y$40:AP$49,INPUTS!B101+1,FALSE) -> 0 | H101: kgCO2e/kg fertilizer | I101: 0 | J101: tonne CO2e/year
B102: Lime
B103: ='Fert EFs'!D55 -> Agricultural lime (CaCO3) | C103: 0.6 | G103: ='Fert EFs'!E55 -> 0.074 | H103: ='Fert EFs'!F55 -> kgCO2e/kg CaCO3 | I103: =C103*G103 -> 0.0444 | J103: tonne CO2e/year
H104: Total emissions | I104: =SUM(I95:I103) -> 4.5437 | J104: tonne CO2e/year

Sheet RESULTS
C8: Fish output | D8: =INPUTS!$E$15 -> 10000 | E8: kgLW/year
C9: Liveweight gain (LWG) inc. mortalities | D9: =D8/INPUTS!$E$13 -> 10416.66667 | E9: kgLW/year
C10: Juvenile fish input | D10: =D9/INPUTS!$E$11*INPUTS!$E$10/1000 -> 434.0277778 | E10: kgLW/year
C11: Total LWG on-farm | D11: =D9-D10 -> 9982.638889 | E11: kgLW/year
C12: LWG on-farm excluding mortalities | D12: =D8-D10 -> 9565.972222 | E12: kgLW/year
C14: Feed conversion ratio | D14: =IF(INPUTS!$E$19>0,INPUTS!$E$19,IFERROR(INPUTS!$E$18,INPUTS!$E$20)) -> 1.5 | E14: kg feed in (as fed)/kg LW out
C15: Feed dry matter content | D15: 0.9
C16: Feed conversion ratio | D16: =D14*D15 -> 1.35 | E16: kg feed in (dry matter)/kg LW out
C17: Feed input | D17: =D8*D14 -> 15000 | E17: kg (as fed)/year
C18: Feed input | D18: =D8*D16 -> 13500 | E18: kg (dry matter)/year
C23: Feed production | D23: Specified ration | E23: Default ration and FCR
C24: Feed: fertilizer production | D24: =D$18*'Feed EFs'!F89 -> 1758.155929 | E24: ='Feed EFs'!F$46*RESULTS!D$15*D$8*'Feed EFs'!C89 -> 1903.873496 | F24: kgCO2e
C25: Feed: crop N2O | D25: =D$18*'Feed EFs'!F90 -> 2794.39759 | E25: ='Feed EFs'!F$46*RESULTS!D$15*D$8*'Feed EFs'!C90 -> 3093.458452 | F25: kgCO2e
C26: Feed: crop energy use | D26: =D$18*'Feed EFs'!F91 -> 3511.475348 | E26: ='Feed EFs'!F$46*RESULTS!D$15*D$8*'Feed EFs'!C91 -> 2499.177246 | F26: kgCO2e
C27: Feed: crop LUC | D27: =D$18*'Feed EFs'!F92 -> 5328.077928 | E27: ='Feed EFs'!F$46*RESULTS!D$15*D$8*'Feed EFs'!C92 -> 4659.124735 | F27: kgCO2e
C28: Feed: rice CH4 | D28: =D$18*'Feed EFs'!F93 -> 430.8704414 | E28: ='Feed EFs'!F$46*RESULTS!D$15*D$8*'Feed EFs'!C93 -> 0 | F28: kgCO2e
C29: Feed: fishmeal | D29: =D$18*'Feed EFs'!F94 -> 2457 | E29: ='Feed EFs'!F$46*RESULTS!D$15*D$8*'Feed EFs'!C94 -> 4710.657632 | F29: kgCO2e
C30: Feed: animal by-products | D30: =D$18*'Feed EFs'!F95 -> 0 | E30: ='Feed EFs'!F$46*RESULTS!D$15*D$8*'Feed EFs'!C95 -> 0 | F30: kgCO2e
C31: Feed: blending & transport | D31: =D$18*'Feed EFs'!F96 -> 997.434 | E31: ='Feed EFs'!F$46*RESULTS!D$15*D$8*'Feed EFs'!C96 -> 799.1000523 | F31: kgCO2e
C32: Feed: other | D32: =D$18*'Feed EFs'!F97 -> 612.522 | E32: ='Feed EFs'!F$46*RESULTS!D$15*D$8*'Feed EFs'!C97 -> 769.3694197 | F32: kgCO2e
C33: Feed: TOTAL | D33: =SUM(D24:D32) -> 17889.93324 | E33: =SUM(E24:E32) -> 18434.76103 | F33: kgCO2e
C34: Juvenile fish production | D34: =D10*'Fingerling EF'!F23 -> 1202.482667 | E34: =D10*'Fingerling EF'!G23 -> 1363.366866 | F34: kgCO2e
C35: Pond fertilizer production | D35: =INPUTS!I104*1000 -> 4543.7 | E35: =IF('Feed EFs'!N302<0,0,INPUTS!I104*1000) -> 4543.7 | F35: kgCO2e
C36: Grid electricity | D36: =INPUTS!I75*1000 -> 11881.63 | E36: =IF('Feed EFs'!N302<0,0,INPUTS!I75*1000) -> 11881.63 | F36: kgCO2e
C37: On-farm fuel use | D37: =INPUTS!I84*1000 -> 3752.062967 | E37: =IF('Feed EFs'!N302<0,0,INPUTS!I84*1000) -> 3752.062967 | F37: kgCO2e
C38: Pond N2O | D38: 0 | E38: 0 | F38: kgCO2e | G38: Not included in current version
C39: Refrigerant leakage | D39: 0 | E39: 0 | F39: kgCO2e | G39: Not included in current version
C40: TOTAL | D40: =SUM(D33:D39) -> 39269.80887 | E40: =IF('Feed EFs'!N302<0,"No default ration",SUM(E33:E39)) -> 39975.52087 | F40: kgCO2e
N42: =IF('Feed EFs'!N302<0,"No default ration for specified location/commodity combination","") -> 
V45: _ | W45: _( | X45: )
C47: Commodity | D47: System | E47: Location | F47: EI | G47: Units | H47: Source | W47: Commodity/system/location/source | X47: =G48 -> kgCO2e/kgLW at the farm gate
C48: ='Feed EFs'!E301 -> Salmonids | D48: ='Feed EFs'!E300 -> Cages | E48: ='Feed EFs'!E299 -> U.K. of Great Britain and Northern Ireland | F48: =D40/D8 -> 3.926980887 | G48: kgCO2e/kgLW at the farm gate | H48: FISH-e | W48: =CONCATENATE(C48,V$45,D48,V$45,E48,W45,H48,X45) -> Salmonids_Cages_U.K. of Great Britain and Northern Ireland_(FISH-e) | X48: =F48 -> 3.926980887
C49: ='Feed EFs'!E301 -> Salmonids | D49: ='Feed EFs'!E300 -> Cages | E49: ='Feed EFs'!E299 -> U.K. of Great Britain and Northern Ireland | F49: =D40/(D8*VLOOKUP('Feed EFs'!E301,Processing!C19:D26,2,FALSE)) -> 5.949971041 | G49: kgCO2e/kgCW at the farm gate | H49: FISH-e | W49: =CONCATENATE(C58,V$45,D58,V$45,E58,W$45,H58,X$45) -> Tilapia_Lake_Indonesia_(2) | X49: =F58 -> 1.52
C50: ='Feed EFs'!E301 -> Salmonids | D50: ='Feed EFs'!E300 -> Cages | E50: ='Feed EFs'!E299 -> U.K. of Great Britain and Northern Ireland | G50: kgCO2e/kg protein at farm gate | H50: FISH-e | W50: Tilapia_Pond_Indonesia_(2) | X50: 2.1
W51: Striped catfish_Pond_Viet Nam_(1) | X51: 1.37
C52: Comparison with other seafood studies | W52: Striped catfish_Pond_Viet Nam_(4) | X52: 8.93
C53: Commodity | D53: System | E53: Country | F53: EI | G53: Units, kgCO2e per kg of: | H53: Source | W53: Striped catfish*_Pond_Viet Nam_(4) | X53: 2.85
C54: Striped catfish | D54: Pond - small | E54: Viet Nam | F54: 8.02 | G54: Frozen fillet at import to EU | H54: 3 | W54: Tilapia_Pond_Bangladesh_(1) | X54: 1.58
C55: Striped catfish | D55: Pond - medium | E55: Viet Nam | F55: 7.88 | G55: Frozen fillet at import to EU | H55: 3 | W55: Atlantic salmon_Cage_Norway_(5) | X55: 1.79
C56: Striped catfish | D56: Pond - large | E56: Viet Nam | F56: 6.88 | G56: Frozen fillet at import to EU | H56: 3 | W56: Atlantic salmon_Cage_UK_(5) | X56: 3.27
C57: Tilapia | D57: Pond | E57: Thailand | F57: 10.35 | G57: Frozen fillet at import to EU | H57: 3 | W57: Atlantic salmon_Cage_Canada_(5) | X57: 2.37
C58: Tilapia | D58: Lake | E58: Indonesia | F58: 1.52 | G58: LW at farm gate | H58: 2 | W58: Atlantic salmon_Cage_Chile_(5) | X58: 2.3
C59: Tilapia | D59: Pond | E59: Indonesia | F59: 2.1 | G59: LW at farm gate | H59: 2 | W59: Indian major carps_Pond_India_(1) | X59: 1.84
C60: Striped catfish | D60: Pond | E60: Viet Nam | F60: 1.37 | G60: LW at farm gate | H60: 1
C61: Striped catfish | D61: Pond | E61: Viet Nam | F61: 8.93 | G61: LW at farm gate | H61: 4
C62: Striped catfish* | D62: Pond | E62: Viet Nam | F62: 2.85 | G62: LW at farm gate | H62: 4
C63: Tilapia | D63: Pond | E63: Bangladesh | F63: 1.58 | G63: LW at farm gate | H63: 1
C64: Atlantic salmon | D64: Cage | E64: Norway | F64: 1.79 | G64: LW at farm gate | H64: 5
C65: Atlantic salmon | D65: Cage | E65: UK | F65: 3.27 | G65: LW at farm gate | H65: 5
C66: Atlantic salmon | D66: Cage | E66: Canada | F66: 2.37 | G66: LW at farm gate | H66: 5
C67: Atlantic salmon | D67: Cage | E67: Chile | F67: 2.3 | G67: LW at farm gate | H67: 5
C68: Indian major carps | D68: Pond | E68: India | F68: 1.84 | G68: LW at farm gate | H68: 1
C69: *low EI ration
C71: Comparison with livestock commodities
C72: Commodity | D72: System | E72: Country | F72: EI | G72: Units* | H72: Source
C73: Dairy cattle: milk | D73: All | E73: Global average | F73: 2.8 | G73: kgCO2e/MILK | H73: 6
C74: Dairy cattle: meat | D74: All | E74: Global average | F74: 18.4 | G74: kgCO2e/CW | H74: 6
C75: Specialized beef cattle: meat | D75: All | E75: Global average | F75: 67.8 | G75: kgCO2e/CW | H75: 6
C76: Buffalo: milk | D76: All | E76: Global average | F76: 3.4 | G76: kgCO2e/MILK | H76: 6
C77: Buffalo: meat | D77: All | E77: Global average | F77: 53.4 | G77: kgCO2e/CW | H77: 6
C78: Small ruminants: milk | D78: All | E78: Global average | F78: 6.5 | G78: kgCO2e/MILK | H78: 6
C79: Small ruminants: meat | D79: All | E79: Global average | F79: 23.8 | G79: kgCO2e/CW | H79: 6
C80: Pigs: meat | D80: Backyard | E80: Global average | F80: 5.6 | G80: kgCO2e/CW | H80: 7
C81: Pigs: meat | D81: Intermediate | E81: Global average | F81: 6.5 | G81: kgCO2e/CW | H81: 7
C82: Pigs: meat | D82: Industrial | E82: Global average | F82: 6.1 | G82: kgCO2e/CW | H82: 7
C83: Chickens: eggs | D83: Backyard | E83: Global average | F83: 4.2 | G83: kgCO2e/EGGS | H83: 8
C84: Chickens: meat | D84: Backyard | E84: Global average | F84: 6.6 | G84: kgCO2e/CW | H84: 8
C85: Layers: eggs | D85: Industrial | E85: Global average | F85: 3.7 | G85: kgCO2e/EGGS | H85: 8
C86: Layers: meat | D86: Industrial | E86: Global average | F86: 6.9 | G86: kgCO2e/CW | H86: 8
C87: Broilers: meat | D87: Industrial | E87: Global average | F87: 5.3 | G87: kgCO2e/CW | H87: 8
C88: *At delivery to point of retail. CW = carcass weight; milk Ei corrected for fat and protein content
H92: Source
H93: 1 | I93: Robb et al. (2017)
H94: 2 | I94: Pelletier and Tyedmers (2010)
H95: 3 | I95: Henriksson et al. (2014a)
H96: 4 | I96: Bosma et al. (2009)
H97: 5 | I97: Pelletier et al. (2009)
H98: 6 | I98: Opio et al. (2013)
H99: 7 | I99: MacLeod et al. (2013)
H100: 8 | I100: MacLeod et al. (2013), Gerber et al. (2013)

Sheet Reference material
C3: GLOSSARY
C4: Term | D4: Definition
C5: Animal by-products | D5: Products of slaughter not included in the carcass weight, e.g. offal, trimmings etc.
C6: Carcass weight | D6: Weight of an eviscerated carcass, including bones
C7: CO2e | D7: Carbon dioxide equivalent, i.e. the global warming potential of non-CO2 greenhouse gases, expressed in terms of CO2
C8: Cradle to gate | D8: Processes occurring pre- and on-farm
C9: Crop by-products | D9: By-products from the processing of grains and oilseeds, e.g. rapeseed meal, wheat bran.
C10: Crop residues | D10: Stubble, straws and stovers.
C11: Digestible energy/digestibility | D11: Feed gross energy minus undigested energy excreted in faeces.
C12: Dry matter | D12: Mass of a feed material (e.g. wheat) not including its moisture content.
C13: Edible protein | D13: Mass of protein produced by livestock intended for human consumption, i.e. the protein content of meat.
C14: Emission factor | D14: The amount of emissions produced per unit of good or service, e.g. kg of CO2e per MJ of electricity.
C15: Emission intensity (EI) | D15: The amount of emissions produced per unit of commodity output, e.g. kg of CO2e per kg of liveweight
C16: Feed conversion ratio | D16: A measure of the efficiency with which livestock convert feed into outputs, e.g. kg feed in/kg of live weight gain.
C17: F-gases | D17: Fluorinated gases (such as HFCs) used (amongst other things) as refrigerants in cooling systems.
C18: Fieldwork | D18: Ploughing, manure spreading, crop harvesting etc.
C19: Gross energy | D19: Total chemical energy in feed measured from complete combustion in a bomb calorimeter
C20: Land use change (LUC) | D20: Conversion of land from one class to another, e.g. from grassland to cropland.
C21: Life cycle analysis | D21: Analytical approach that measures the environmental impact of a good or service over its full life cycle, including: production of inputs, manufacturing, distribution, consumption, end of life disposal.
C22: Manure N | D22: The total nitrogen content of manure.
C23: Methane | D23: Greenhouse gas produced from the anaerobic decomposition of organic compounds.
C24: Methane conversion factor | D24: The rate at which organic compounds are converted to methane.
C25: N excretion | D25: Excretion of nitrogenous wastes by livestock.
C26: Nitrous oxide | D26: Greenhouse gas produced by the microbial transformation of nitrogenous compounds in soils, manure storage or ponds.
C27: Nutrient use efficiency | D27: A measure of the proportion of a nutrient that is taken up by a plant or animal, e.g. the % of applied fertiliser nitrogen that is taken up by a wheat crop.
C28: On-farm | D28: Processes occurring on the fish farm
C29: Organic N | D29: Nitrogen content of organic compounds such as: manures, composts and feed.
C30: Post-farm | D30: Processes occurring after the fish farm
C31: Pre-farm | D31: Processes occurring before the fish farm
C32: Synthetic N | D32: Manufactured nitrogenous fertiliser, e.g. ammonium nitrate and urea.
C33: Volatile solids | D33: Undigested organic matter excreted by fish.
C36: ABBREVIATIONS
C37: AFFRIS | D37: FAO's Aquaculture Feed and Fertilizer Resources Information System
C38: CH4 | D38: Methane
C39: CO2 | D39: Carbon dioxide
C40: CP | D40: Crude protein
C41: CW | D41: Carcass weight
C42: DDGS | D42: Distiller's dried grains with solubles
C43: DE | D43: Digestible energy
C44: EF | D44: Emission factor
C45: EI | D45: Emission Intensity
C46: FAO | D46: Food and Agriculture Organization of the United Nations
C47: FAOstat | D47: Food and Agriculture Organization of the United Nations Statistics
C48: FCR | D48: Feed conversion ratio
C49: GE | D49: Gross energy
C50: GLEAM | D50: Global Livestock Environmental Assessment Model
C51: IPCC | D51: Intergovernmental Panel on Climate Change
C52: kgCO2e/kg CW | D52: kg of CO2 equivalent emitted per kg of carcass weight
C53: kgCO2e/kg LW | D53: kg of CO2 equivalent emitted per kg of live weight
C54: kgCO2e/kg protein | D54: kg of CO2 equivalent emitted per kg of edible protein
C55: LCA | D55: Life cycle analysis
C56: LUC | D56: Land use change
C57: LW | D57: Live weight
C58: MCF | D58: Methane conversion factor
C59: N2O | D59: Nitrous oxide
C60: NUE | D60: Nutrient use efficiency
C62: REFERENCES
C63: Bosma, R.H., Hanh, C.T.T., &and Potting, J. (2009.) Environmental impact assessment of the Pangasius sector in the Mekong Delta. Wageningen University. pp58. Sourced September
C64: Gerber, P.J., Steinfeld, H., Henderson, B., Mottet, A., Opio, C., Dijkman, J., Falcucci, A. & Tempio, G. 2013. Tackling climate change through livestock – A global assessment of emissions and mitigation opportunities. Food and Agriculture Organization of the United Nations (FAO), Rome.
C65: Henriksson P.J.G., Zhang W., Nahid S.A.A., Newton R., Phan L.T., Dao H.M., Zhang Z., Jaithiang J., Andong R., Chaimanuskul K., Vo N.S., Hua H.V., Haque M.M., Das R., Kruijssen F., Satapornvanit K., Nguyen P.T., Liu Q., Liu L., Wahab M.A., Murray F.J., Little D.C. &and Guinée J.B. (2014a.) SEAT Deliverable Ref: D 3.5 (2014) Final LCA case study report. Results of LCA studies of Asian Aquaculture Systems for Tilapia, Catfish, Shrimp, and Freshwater prawn
C66: MacLeod M, Gerber P, Vellinga T, Opio C, Falcucci A, Tempio G, Henderson B, Mottet A. and Steinfeld H 2013. Greenhouse Gas Emissions from Pig and Chicken Supply Chains: A Global Life Cycle Assessment Food and Agriculture Organization of the United Nations (FAO), Rome.
C67: Opio C, Gerber P, Vellinga T, MacLeod M., Falcucci A, Henderson B, Mottet A, Tempio G and Steinfeld H 2013. Greenhouse Gas Emissions from Ruminant Supply Chains: A Global Life Cycle Assessment Food and Agriculture Organization of the United Nations (FAO), Rome.
C68: Pelletier, N. &, Tyedmers, P.H (2010.) A life cycle assessment of frozen Indonesian tilapia fillets from lake and pond-based production systems. Journal of Industrial Ecology, 14:467–481.
C69: Pelletier, N., Tyedmers, P., Sonesson, U., Scholz, A., Ziegler, F., Flysjo, A., Kruse, S., Cancino, B., &and Silverman, H. (2009.) Not all salmon are created equal: Life Cycle Assessment (LCA) of global salmon farming systems. Environmental Science and Technology, 43:, 8730-8736.
C70: Robb, D.H.F, Michael MacLeod, Mohammad R. Hasan, Doris Soto, Mamun Rashid, Rajendran Suresh and La Van Chung (2017) Greenhouse gas emissions from aquaculture: a life cycle assessment of three Asian systems Rome: UN FAO

Sheet Feed EFs (hidden)
M1: GLEAM feed no. | N1: 3 | O1: 6 | P1: 7 | Q1: 8 | R1: 9 | S1: 12 | T1: 14 | U1: 20 | V1: 31 | W1: 33 | X1: 34 | Y1: 37 | Z1: 39 | AA1: 41
K2: Values in blue copied from: 2016 04 19 SOFA aqua GHG model - final.xl\Feed calcs comm. (30/1/17) | N2: pulses | O2: wheat-S | P2: wheat-N | Q2: maize-S | R2: maize-N | S2: rice | T2: soybean | U2: mloilsds | V2: cpulses | W2: cwheat | X2: cmaize | Y2: rice | Z2: csoybean | AA2: cmloilsds
B3: Specified ration | K3: EI (kgCO2e/kgDM) | L3: VALUE | M3: REG_ANNEX5 | N3: ='[8]Fertiliser production CO2'!C3 -> feed 3 | O3: ='[8]Fertiliser production CO2'!D3 -> feed 6 | P3: ='[8]Fertiliser production CO2'!E3 -> feed 7 | Q3: ='[8]Fertiliser production CO2'!F3 -> feed 8 | R3: ='[8]Fertiliser production CO2'!G3 -> feed 9 | S3: ='[8]Fertiliser production CO2'!H3 -> feed 12 | T3: ='[8]Fertiliser production CO2'!I3 -> feed 14 | U3: ='[8]Fertiliser production CO2'!J3 -> feed 20 | V3: ='[8]Fertiliser production CO2'!K3 -> feed 31 | W3: ='[8]Fertiliser production CO2'!L3 -> feed 33 | X3: ='[8]Fertiliser production CO2'!M3 -> feed 34 | Y3: ='[8]Fertiliser production CO2'!N3 -> feed 37 | Z3: ='[8]Fertiliser production CO2'!O3 -> feed 39 | AA3: ='[8]Fertiliser production CO2'!P3 -> feed 41
K4: Manure applied to soils N2O | L4: 1 | M4: North America | N4: 0.01607872501 | O4: 0.0121490987 | P4: 0.01402429706 | Q4: 0.004955981116 | R4: 0.007297148433 | S4: 0.003803463736 | T4: 0.02317877434 | U4: 0.01796275784 | V4: 0.02776698805 | W4: 0.01392695738 | X4: 0.007127024892 | Y4: 0.004189183865 | Z4: 0.02608383897 | AA4: 0.0170684052 | BW4: FAO country | BX4: FAO region
K5: Manure applied to soils N2O | L5: 2 | M5: Russian Federation | N5: 0.01026815669 | O5: 0.008560277256 | P5: 0.009919609598 | Q5: 0.005228574377 | R5: 0.007935271486 | S5: 0.001983467024 | T5: 0.02135081966 | U5: 0.01233008347 | V5: 0.01728894618 | W5: 0.008194300266 | X5: 0.00617496033 | Y5: 0.002183640681 | Z5: 0.01632468963 | AA5: 0.009601835191 | BW5: ='Country list'!H4 -> Afghanistan | BX5: ='Country list'!I4 -> South Asia | BY5: ='Country list'!J4 -> sa
A6: Category | B6: Name | C6: % | F6: Commercial | G6: Non-commercial | K6: Manure applied to soils N2O | L6: 3 | M6: Western Europe | N6: 0.04371260942 | O6: 0.02454331641 | P6: 0.02816902225 | Q6: 0.0144860553 | R6: 0.02133833713 | S6: 0.007159315337 | T6: 0.04752178266 | U6: 0.0387096795 | V6: 0.0694183927 | W6: 0.02836313352 | X6: 0.022673814 | Y6: 0.008226981536 | Z6: 0.1049295044 | AA6: 0.03317165295 | BW6: ='Country list'!H5 -> Albania | BX6: ='Country list'!I5 -> Western Europe | BY6: ='Country list'!J5 -> we
A7: Commercial | B7: =INDEX(F$7:F$28,B36) -> Soybean | C7: =C36 -> 0.2 | D7: c_ | E7: =CONCATENATE(D7,B7) -> c_Soybean | F7: Blood meal | G7: Cassava | K7: Manure applied to soils N2O | L7: 4 | M7: Eastern Europe | N7: 0.02555504105 | O7: 0.01552580222 | P7: 0.01789832547 | Q7: 0.009710480044 | R7: 0.01455309823 | S7: 0.004324898866 | T7: 0.03646165741 | U7: 0.01985293112 | V7: 0.04927228147 | W7: 0.02264184554 | X7: 0.01529403195 | Y7: 0.004937094702 | Z7: 0.03610614703 | AA7: 0.02157945791 | BW7: ='Country list'!H6 -> Algeria | BX7: ='Country list'!I6 -> Near East and North Africa | BY7: ='Country list'!J6 -> nena
A8: Commercial | B8: =INDEX(F$7:F$28,B37) -> Soybean meal | C8: =C37 -> 0.02 | D8: c_ | E8: =CONCATENATE(D8,B8) -> c_Soybean meal | F8: Cassava | G8: Groundnut meal | K8: Manure applied to soils N2O | L8: 5 | M8: West Asia & Northern Africa | N8: 0.03532064956 | O8: 0.02684133151 | P8: 0.03136988622 | Q8: 0.006289974375 | R8: 0.009581422339 | S8: 0.002779344648 | T8: 0.0395086699 | U8: 0.04768271343 | V8: 0.06129066268 | W8: 0.02696123492 | X8: 0.0087310491 | Y8: 0.00297317703 | Z8: 0.02181105797 | AA8: 0.04375779544 | BW8: ='Country list'!H7 -> American Samoa | BX8: ='Country list'!I7 -> Oceania | BY8: ='Country list'!J7 -> oc
A9: Commercial | B9: Wheat by-products | C9: 0.05 | D9: c_ | E9: c_Wheat by-products | F9: Feather meal | G9: Maize | K9: Manure applied to soils N2O | L9: 6 | M9: East Asia | N9: 0.07274036779 | O9: 0.02487695796 | P9: 0.02858622976 | Q9: 0.02309479208 | R9: 0.03450941514 | S9: 0.01026031852 | T9: 0.1051089649 | U9: 0.04384512763 | V9: 0.1395069176 | W9: 0.02987964504 | X9: 0.03592749528 | Y9: 0.0118702181 | Z9: 0.06966846396 | AA9: 0.04308309697 | BW9: ='Country list'!H8 -> Andorra | BX9: ='Country list'!I8 -> Western Europe | BY9: ='Country list'!J8 -> we
A10: Commercial | B10: Wheat flour | C10: 0.04 | D10: c_ | E10: c_Wheat flour | F10: Fishmeal - reduction | G10: Maize DDGS | K10: Manure applied to soils N2O | L10: 7 | M10: Oceania | N10: 0.0006574788895 | O10: 0.0004580472767 | P10: 0.0005332067165 | Q10: 0.0003159653538 | R10: 0.0004725013434 | S10: 5.313280252e-05 | T10: 0.1131788854 | U10: 0.0008239005756 | V10: 0.001236832329 | W10: 0.0005304560727 | X10: 0.000476160986 | Y10: 5.974722896e-05 | Z10: 0.0007778483405 | AA10: 0.000795887991 | BW10: ='Country list'!H9 -> Angola | BX10: ='Country list'!I9 -> Sub-Saharan Africa | BY10: ='Country list'!J9 -> ssa
A11: Commercial | B11: Fishmeal - reduction | C11: 0.2 | D11: c_ | E11: c_Fishmeal - reduction | F11: Fishoil - reduction | G11: Maize gluten meal | K11: Manure applied to soils N2O | L11: 8 | M11: South Asia | N11: 0.1281279403 | O11: 0.0403058173 | P11: 0.04656009655 | Q11: 0.046968462 | R11: 0.07338560862 | S11: 0.01900514675 | T11: 0.1454620541 | U11: 0.1304802762 | V11: 0.2744251899 | W11: 0.04868186664 | X11: 0.07087484843 | Y11: 0.02068134664 | Z11: 0.1737997975 | AA11: 0.1174533793 | BW11: ='Country list'!H10 -> Anguilla | BX11: ='Country list'!I10 -> Latin America and the Caribbean | BY11: ='Country list'!J10 -> lac
A12: Commercial | B12: Oilseed meal (non-soy) | C12: 0.05 | D12: c_ | E12: c_Oilseed meal (non-soy) | F12: Lime | G12: Oilseed meal (non-soy) | K12: Manure applied to soils N2O | L12: 9 | M12: Central & South America | N12: 0.03050253136 | O12: 0.01030425889 | P12: 0.01191561986 | Q12: 0.009427958976 | R12: 0.01435249634 | S12: 0.004472174085 | T12: 0.01783126521 | U12: 0.005620752323 | V12: 0.05754629365 | W12: 0.01032241027 | X12: 0.01267507466 | Y12: 0.00473833907 | Z12: 0.01495052168 | AA12: 0.005307738276 | BW12: ='Country list'!H11 -> Antigua and Barbuda | BX12: ='Country list'!I11 -> Latin America and the Caribbean | BY12: ='Country list'!J11 -> lac
A13: Commercial | B13: Rice by-products | C13: 0.1 | D13: c_ | E13: c_Rice by-products | F13: Maize | G13: Oilseed oil (non-soy) | K13: Manure applied to soils N2O | L13: 10 | M13: Sub-Saharan Africa | N13: 0.026270936 | O13: 0.02169281759 | P13: 0.02516792431 | Q13: 0.008846967841 | R13: 0.01423598405 | S13: 0.002923412234 | T13: 0.02063152926 | U13: 0.01023212603 | V13: 0.06252873375 | W13: 0.02647685981 | X13: 0.01632987279 | Y13: 0.003726638821 | Z13: 0.01855257315 | AA13: 0.01056411756 | BW13: ='Country list'!H12 -> Argentina | BX13: ='Country list'!I12 -> Latin America and the Caribbean | BY13: ='Country list'!J12 -> lac
A14: Commercial | B14: Oilseed oil (non-soy) | C14: 0.15 | D14: c_ | E14: c_Oilseed oil (non-soy) | F14: Maize DDGS | G14: Pulses | K14: Synthetic fertilizers N2O | L14: 1 | M14: North America | N14: 0.1006090613 | O14: 0.0864398079 | P14: 0.09978754289 | Q14: 0.03797360696 | R14: 0.05591484398 | S14: 0.02262355431 | T14: 0.1739536729 | U14: 0.1509620866 | V14: 0.173539592 | W14: 0.09840391384 | X14: 0.05451159674 | Y14: 0.02513753215 | Z14: 0.1769343547 | AA14: 0.1436167296 | BW14: ='Country list'!H13 -> Armenia | BX14: ='Country list'!I13 -> Near East and North Africa | BY14: ='Country list'!J13 -> nena
A15: Commercial | B15: Maize | C15: 0.15 | D15: c_ | E15: c_Maize | F15: Maize gluten meal | G15: Rice by-products | K15: Synthetic fertilizers N2O | L15: 2 | M15: Russian Federation | N15: 0.02952943383 | O15: 0.02461783866 | P15: 0.02852703477 | Q15: 0.01503647703 | R15: 0.02282046911 | S15: 0.005288420925 | T15: 0.06140130339 | U15: 0.03545914126 | V15: 0.04971999172 | W15: 0.02356535553 | X15: 0.01775811328 | Y15: 0.005822127725 | Z15: 0.04676650822 | AA15: 0.02761315608 | BW15: ='Country list'!H14 -> Aruba | BX15: ='Country list'!I14 -> Latin America and the Caribbean | BY15: ='Country list'!J14 -> lac
A16: Commercial | B16: =INDEX(F$7:F$28,B45) -> Soy oil | C16: 0.04 | D16: c_ | E16: c_Soy oil | F16: Meat and bone meal | G16: Soybean | K16: Synthetic fertilizers N2O | L16: 3 | M16: Western Europe | N16: 0.1565307569 | O16: 0.07938162069 | P16: 0.0910776807 | Q16: 0.04873478893 | R16: 0.07180416278 | S16: 0.01876722412 | T16: 0.151239031 | U16: 0.141073511 | V16: 0.2570596888 | W16: 0.09479375859 | X16: 0.07424225239 | Y16: 0.02153089378 | Z16: 0.2533264038 | AA16: 0.1249602438 | BW16: ='Country list'!H15 -> Australia | BX16: ='Country list'!I15 -> Oceania | BY16: ='Country list'!J15 -> oc
F17: Oilseed meal (non-soy) | G17: Soybean meal | K17: Synthetic fertilizers N2O | L17: 4 | M17: Eastern Europe | N17: 0.08637311298 | O17: 0.05207525473 | P17: 0.06001036306 | Q17: 0.0297348763 | R17: 0.04454136101 | S17: 0.01105650213 | T17: 0.09166880237 | U17: 0.05276030002 | V17: 0.178133996 | W17: 0.0789845821 | X17: 0.04756794873 | Y17: 0.01265612753 | Z17: 0.09151293227 | AA17: 0.05826145574 | BW17: ='Country list'!H16 -> Austria | BX17: ='Country list'!I16 -> Western Europe | BY17: ='Country list'!J16 -> we
A18: Non-commercial | B18: =INDEX(G$7:G$20,B49) -> Soybean meal | C18: =C49 -> 0.1 | D18: nc_ | E18: =CONCATENATE(D18,B18) -> nc_Soybean meal | F18: Oilseed oil (non-soy) | G18: Wheat | K18: Synthetic fertilizers N2O | L18: 5 | M18: West Asia & Northern Africa | N18: 0.1304678652 | O18: 0.04615074673 | P18: 0.05326928894 | Q18: 0.1246619987 | R18: 0.1848094376 | S18: 0.05916087879 | T18: 0.009371120854 | U18: 0.03860023565 | V18: 0.4242443563 | W18: 0.08630241116 | X18: 0.2222992852 | Y18: 0.06574505506 | Z18: 0.3253782354 | AA18: 0.03929177264 | BW18: ='Country list'!H17 -> Azerbaijan | BX18: ='Country list'!I17 -> Near East and North Africa | BY18: ='Country list'!J17 -> nena
A19: Non-commercial | B19: =INDEX(G$7:G$20,B50) -> Soybean | C19: =C50 -> 0.05 | D19: nc_ | E19: =CONCATENATE(D19,B19) -> nc_Soybean | F19: Poultry meal | G19: Wheat by-products | K19: Synthetic fertilizers N2O | L19: 6 | M19: East Asia | N19: 0.6162377475 | O19: 0.2465242852 | P19: 0.2832653631 | Q19: 0.2268477053 | R19: 0.3388753445 | S19: 0.08155129576 | T19: 1.023132127 | U19: 0.4026368675 | V19: 1.176796043 | W19: 0.2972033178 | X19: 0.3537021196 | Y19: 0.09481509402 | Z19: 0.796332418 | AA19: 0.3918060288 | BW19: ='Country list'!H18 -> Bahamas | BX19: ='Country list'!I18 -> Latin America and the Caribbean | BY19: ='Country list'!J18 -> lac
A20: Non-commercial | B20: Cassava | C20: 0.23 | D20: nc_ | E20: nc_Cassava | F20: Pulses | G20: Wheat flour | K20: Synthetic fertilizers N2O | L20: 7 | M20: Oceania | N20: 0.07405215019 | O20: 0.05813554197 | P20: 0.06776527801 | Q20: 0.02917161428 | R20: 0.04361332592 | S20: 0.005219466704 | T20: 0 | U20: 0.05984616259 | V20: 0.1247787625 | W20: 0.06102190123 | X20: 0.04115646807 | Y20: 0.005734888775 | Z20: 0.05769845608 | AA20: 0.05781139512 | BW20: ='Country list'!H19 -> Bahrain | BX20: ='Country list'!I19 -> Near East and North Africa | BY20: ='Country list'!J19 -> nena
A21: Non-commercial | B21: Maize | C21: 0.04 | D21: nc_ | E21: nc_Maize | F21: Rice by-products | K21: Synthetic fertilizers N2O | L21: 8 | M21: South Asia | N21: 0.4771360471 | O21: 0.1489904668 | P21: 0.1720751311 | Q21: 0.1756717132 | R21: 0.2746151794 | S21: 0.06079584535 | T21: 0.5633251723 | U21: 0.4685084824 | V21: 1.020507903 | W21: 0.1821743898 | X21: 0.2619989463 | Y21: 0.06542442943 | Z21: 0.5386543311 | AA21: 0.4182137479 | BW21: ='Country list'!H20 -> Bangladesh | BX21: ='Country list'!I20 -> South Asia | BY21: ='Country list'!J20 -> sa
A22: Non-commercial | B22: Wheat | C22: 0.07 | D22: nc_ | E22: nc_Wheat | F22: Soy oil | K22: Synthetic fertilizers N2O | L22: 9 | M22: Central & South America | N22: 0.1451189525 | O22: 0.05351936887 | P22: 0.06185287744 | Q22: 0.04500357676 | R22: 0.0684360303 | S22: 0.01910858025 | T22: 0.08457988693 | U22: 0.04138307468 | V22: 0.2750377771 | W22: 0.05586711678 | X22: 0.06234254304 | Y22: 0.01995209536 | Z22: 0.07912902127 | AA22: 0.03955732944 | BW22: ='Country list'!H21 -> Barbados | BX22: ='Country list'!I21 -> Latin America and the Caribbean | BY22: ='Country list'!J21 -> lac
A23: Non-commercial | B23: Groundnut meal | C23: 0.11 | D23: nc_ | E23: nc_Groundnut meal | F23: Soybean | K23: Synthetic fertilizers N2O | L23: 10 | M23: Sub-Saharan Africa | N23: 0.01745889246 | O23: 0.03172127044 | P23: 0.03670165071 | Q23: 0.01921297645 | R23: 0.03011499398 | S23: 0.00303262896 | T23: 0.08860386291 | U23: 0.05922205339 | V23: 0.0501920816 | W23: 0.03566497401 | X23: 0.03078062706 | Y23: 0.003257819446 | Z23: 0.07784009207 | AA23: 0.05050678362 | BW23: ='Country list'!H22 -> Belarus | BX23: ='Country list'!I22 -> Eastern Europe | BY23: ='Country list'!J22 -> ee
A24: Non-commercial | B24: Pulses | C24: 0 | D24: nc_ | E24: nc_Pulses | F24: Soybean meal | K24: Crop residue N2O | L24: 1 | M24: North America | N24: 0.07646258612 | O24: 0.07068531864 | P24: 0.08160498994 | Q24: 0.05196900252 | R24: 0.07652073819 | S24: 0.02766204329 | T24: 0.1025992411 | U24: 0.05844333599 | V24: 0.04714914973 | W24: 0.05089739122 | X24: 0.04258235169 | Y24: 0.01720884831 | Z24: 0.06222339417 | AA24: 0.0367092005 | BW24: ='Country list'!H23 -> Belgium | BX24: ='Country list'!I23 -> Western Europe | BY24: ='Country list'!J23 -> we
A25: Non-commercial | B25: Rice by-products | C25: 0.1 | D25: nc_ | E25: nc_Rice by-products | F25: Vitamin/mineral premix | K25: Crop residue N2O | L25: 2 | M25: Russian Federation | N25: 0.07708916278 | O25: 0.07155609931 | P25: 0.08291888854 | Q25: 0.05256439562 | R25: 0.07977561507 | S25: 0.02832057323 | T25: 0.1232025855 | U25: 0.06465496606 | V25: 0.05019980919 | W25: 0.05183990579 | X25: 0.04469735688 | Y25: 0.0185563242 | Z25: 0.07340258156 | AA25: 0.03877536836 | BW25: ='Country list'!H24 -> Belize | BX25: ='Country list'!I24 -> Latin America and the Caribbean | BY25: ='Country list'!J24 -> lac
A26: Non-commercial | B26: Pulses | C26: 0.2 | D26: nc_ | E26: nc_Pulses | F26: Wheat | K26: Crop residue N2O | L26: 3 | M26: Western Europe | N26: 0.07564249879 | O26: 0.06750760926 | P26: 0.07746623625 | Q26: 0.05085582181 | R26: 0.07494637382 | S26: 0.02770327662 | T26: 0.1024178726 | U26: 0.05820763146 | V26: 0.04103624375 | W26: 0.04628857278 | X26: 0.04118573491 | Y26: 0.01755953002 | Z26: 0.05916134713 | AA26: 0.03507899106 | BW26: ='Country list'!H25 -> Benin | BX26: ='Country list'!I25 -> Sub-Saharan Africa | BY26: ='Country list'!J25 -> ssa
A27: Non-commercial | B27: Maize DDGS | C27: 0.1 | D27: nc_ | E27: nc_Maize DDGS | F27: Wheat by-products | K27: Crop residue N2O | L27: 4 | M27: Eastern Europe | N27: 0.07664968749 | O27: 0.07049956592 | P27: 0.08128742152 | Q27: 0.05221517963 | R27: 0.07820930786 | S27: 0.02823695523 | T27: 0.1137482293 | U27: 0.05819784838 | V27: 0.04906034513 | W27: 0.05117506845 | X27: 0.0445220854 | Y27: 0.0185563242 | Z27: 0.07286063547 | AA27: 0.03877502144 | BW27: ='Country list'!H26 -> Bermuda | BX27: ='Country list'!I26 -> North America | BY27: ='Country list'!J26 -> nam
F28: Wheat flour | K28: Crop residue N2O | L28: 5 | M28: West Asia & Northern Africa | N28: 0.07652905554 | O28: 0.0721313495 | P28: 0.08408625779 | Q28: 0.05223372672 | R28: 0.07784570346 | S28: 0.02777108818 | T28: 0.115541837 | U28: 0.08043387398 | V28: 0.05636335214 | W28: 0.0532941586 | X28: 0.04410504701 | Y28: 0.01746045468 | Z28: 0.06539302037 | AA28: 0.05681958789 | BW28: ='Country list'!H27 -> Bhutan | BX28: ='Country list'!I27 -> South Asia | BY28: ='Country list'!J27 -> sa
K29: Crop residue N2O | L29: 6 | M29: East Asia | N29: 0.07697372593 | O29: 0.07071070434 | P29: 0.08124529704 | Q29: 0.05228264644 | R29: 0.07810206694 | S29: 0.02796464655 | T29: 0.1140882086 | U29: 0.0541273464 | V29: 0.05326508256 | W29: 0.05027892377 | X29: 0.04438798438 | Y29: 0.01804537628 | Z29: 0.06685273713 | AA29: 0.03301315711 | BW29: ='Country list'!H28 -> Bolivia | BX29: ='Country list'!I28 -> Latin America and the Caribbean | BY29: ='Country list'!J28 -> lac
K30: Crop residue N2O | L30: 7 | M30: Oceania | N30: 0.07612063806 | O30: 0.07213179616 | P30: 0.08407559007 | Q30: 0.05240083262 | R30: 0.07880101929 | S30: 0.02741118713 | T30: 0.1169077472 | U30: 0.06426188667 | V30: 0.05688123949 | W30: 0.05361429421 | X30: 0.04358209466 | Y30: 0.0166513061 | Z30: 0.06460033086 | AA30: 0.04265699102 | BW30: ='Country list'!H29 -> Bosnia and Herzegovina | BX30: ='Country list'!I29 -> Western Europe | BY30: ='Country list'!J29 -> we
K31: Crop residue N2O | L31: 8 | M31: South Asia | N31: 0.07475689606 | O31: 0.07123840947 | P31: 0.08228716016 | Q31: 0.05303114298 | R31: 0.08269497054 | S31: 0.02928482436 | T31: 0.1301961159 | U31: 0.07929768396 | V31: 0.07606047386 | W31: 0.05182077762 | X31: 0.04849682943 | Y31: 0.02042321388 | Z31: 0.08831840171 | AA31: 0.05351750419 | BW31: ='Country list'!H30 -> Botswana | BX31: ='Country list'!I30 -> Sub-Saharan Africa | BY31: ='Country list'!J30 -> ssa
K32: Crop residue N2O | L32: 9 | M32: Central & South America | N32: 0.07572758035 | O32: 0.0712475334 | P32: 0.08230566821 | Q32: 0.05256381887 | R32: 0.07977984747 | S32: 0.02867051557 | T32: 0.1029715879 | U32: 0.05920736576 | V32: 0.06325588183 | W32: 0.05138369606 | X32: 0.04547296502 | Y32: 0.01901589036 | Z32: 0.06322648056 | AA32: 0.03750414931 | BW32: ='Country list'!H31 -> Brazil | BX32: ='Country list'!I31 -> Latin America and the Caribbean | BY32: ='Country list'!J31 -> lac
K33: Crop residue N2O | L33: 10 | M33: Sub-Saharan Africa | N33: 0.07426158438 | O33: 0.07149006354 | P33: 0.08279326966 | Q33: 0.0535242951 | R33: 0.0863581695 | S33: 0.03063855777 | T33: 0.1317521891 | U33: 0.06865331784 | V33: 0.0808414155 | W33: 0.05231920289 | X33: 0.05188107624 | Y33: 0.02449028354 | Z33: 0.08172066096 | AA33: 0.04491916302 | BW33: ='Country list'!H32 -> British Indian Ocean Territory | BX33: ='Country list'!I32 -> South Asia | BY33: ='Country list'!J32 -> sa
K34: Energy used in field operations CO2 | L34: 1 | M34: North America | N34: 0.0688547343 | O34: 0.05171684921 | P34: 0.05970760807 | Q34: 0.04181978106 | R34: 0.06158100814 | S34: 0.9239102602 | T34: 0.1109119132 | U34: 0.1234128401 | V34: 0.1186006218 | W34: 0.05845177919 | X34: 0.05990803987 | Y34: 1.026576638 | Z34: 0.1099885255 | AA34: 0.116743505 | BW34: ='Country list'!H33 -> British Virgin Islands | BX34: ='Country list'!I33 -> Latin America and the Caribbean | BY34: ='Country list'!J33 -> lac
B35: FEED MATERIAL | C35: % IN RATION | E35: Proportions of commercial and non-commercial feed | K35: Energy used in field operations CO2 | L35: 2 | M35: Russian Federation | N35: 0.07795737684 | O35: 0.06785807014 | P35: 0.07863361388 | Q35: 0.09826739132 | R35: 0.1491378695 | S35: 1.334816933 | T35: 0.2304345071 | U35: 0.1684093773 | V35: 0.1312602311 | W35: 0.06495693326 | X35: 0.1160539985 | Y35: 1.469526291 | Z35: 0.1755112261 | AA35: 0.1311457008 | BW35: ='Country list'!H34 -> Brunei Darussalam | BX35: ='Country list'!I34 -> East Asia and Southeast Asia | BY35: ='Country list'!J34 -> esea
A36: Commercial | B36: =INPUTS!B48 -> 17 | C36: =INPUTS!C48 -> 0.2 | E36: Commercial | F36: =INPUTS!E43 -> 0.7 | K36: Energy used in field operations CO2 | L36: 3 | M36: Western Europe | N36: 0.05258469656 | O36: 0.02518526092 | P36: 0.02891916223 | Q36: 0.04333195463 | R36: 0.06392200291 | S36: 1.02229619 | T36: 0.0943505615 | U36: 0.1210140884 | V36: 0.08423764259 | W36: 0.02898989432 | X36: 0.0672519058 | Y36: 1.184032679 | Z36: 0.1223681644 | AA36: 0.10409417 | BW36: ='Country list'!H35 -> Bulgaria | BX36: ='Country list'!I35 -> Eastern Europe | BY36: ='Country list'!J35 -> ee
A37: Commercial | B37: =INPUTS!B49 -> 18 | C37: =INPUTS!C49 -> 0.02 | E37: Non-commercial | F37: =1-F36 -> 0.3 | K37: Energy used in field operations CO2 | L37: 4 | M37: Eastern Europe | N37: 0.07189840078 | O37: 0.04611974582 | P37: 0.05318380892 | Q37: 0.07384033501 | R37: 0.1106606796 | S37: 1.282641292 | T37: 0.1743074059 | U37: 0.1206232458 | V37: 0.1312602311 | W37: 0.06495693326 | X37: 0.1160539985 | Y37: 1.469526291 | Z37: 0.1733335853 | AA37: 0.1311457008 | BW37: ='Country list'!H36 -> Burkina Faso | BX37: ='Country list'!I36 -> Sub-Saharan Africa | BY37: ='Country list'!J36 -> ssa
A38: Commercial | B38: =INPUTS!B50 -> 21 | C38: =INPUTS!C50 -> 0.05 | K38: Energy used in field operations CO2 | L38: 5 | M38: West Asia & Northern Africa | N38: 0.04119662568 | O38: 0.09198148549 | P38: 0.1075252518 | Q38: 0.06229598448 | R38: 0.09339324385 | S38: 0.4349445105 | T38: 0.1853445023 | U38: 0.06871125102 | V38: 0.1823543012 | W38: 0.09081564099 | X38: 0.09972575307 | Y38: 1.10928607 | Z38: 0.1281800717 | AA38: 0.2646889091 | BW38: ='Country list'!H37 -> Burundi | BX38: ='Country list'!I37 -> Sub-Saharan Africa | BY38: ='Country list'!J37 -> ssa
A39: Commercial | B39: =INPUTS!B51 -> 22 | C39: =INPUTS!C51 -> 0.04 | E39: Error messages | K39: Energy used in field operations CO2 | L39: 6 | M39: East Asia | N39: 0.01236762665 | O39: 0.0125394864 | P39: 0.01440888178 | Q39: 0.04185507819 | R39: 0.06252223998 | S39: 0.5507726073 | T39: 0.03803755715 | U39: 0.01811818779 | V39: 0.1566705108 | W39: 0.03720041737 | X39: 0.1075254306 | Y39: 1.301564097 | Z39: 0.136629954 | AA39: 0.08850023896 | BW39: ='Country list'!H38 -> Cambodia | BX39: ='Country list'!I38 -> East Asia and Southeast Asia | BY39: ='Country list'!J38 -> esea
A40: Commercial | B40: =INPUTS!B52 -> 4 | C40: =INPUTS!C52 -> 0.2 | E40: No non-commercial ration specified, either set commercial to 100% or specific a non-commercial ration. | K40: Energy used in field operations CO2 | L40: 7 | M40: Oceania | N40: 0.1125391722 | O40: 0.09300518036 | P40: 0.1084166914 | Q40: 0.08123201132 | R40: 0.1222710833 | S40: 0.7671180367 | T40: 0 | U40: 0.1655002087 | V40: 0.1866474003 | W40: 0.09650811553 | X40: 0.08530969918 | Y40: 0.8432983756 | Z40: 0.1229487211 | AA40: 0.1598731875 | BW40: ='Country list'!H39 -> Cameroon | BX40: ='Country list'!I39 -> Sub-Saharan Africa | BY40: ='Country list'!J39 -> ssa
A41: Commercial | B41: =INPUTS!B53 -> 11 | C41: =INPUTS!C53 -> 0.05 | E41: No default ration for this region/species combination. | K41: Energy used in field operations CO2 | L41: 8 | M41: South Asia | N41: 0.02418593876 | O41: 0.006810825784 | P41: 0.007871557958 | Q41: 0.01077541895 | R41: 0.01682165638 | S41: 0.5759065151 | T41: 0.01937863231 | U41: 0.05535568669 | V41: 0.3456378877 | W41: 0.06461681426 | X41: 0.2207940966 | Y41: 2.083218813 | Z41: 0.261833787 | AA41: 0.2402505875 | BW41: ='Country list'!H40 -> Canada | BX41: ='Country list'!I40 -> North America | BY41: ='Country list'!J40 -> nam
A42: Commercial | B42: =INPUTS!B54 -> 15 | C42: =INPUTS!C54 -> 0.1 | K42: Energy used in field operations CO2 | L42: 9 | M42: Central & South America | N42: 0.06909488887 | O42: 0.05437908694 | P42: 0.06284451485 | Q42: 0.09667014331 | R42: 0.1468966007 | S42: 0.7685674429 | T42: 0.1117679253 | U42: 0.100419268 | V42: 0.2394914627 | W42: 0.05684479326 | X42: 0.1374350488 | Y42: 1.620596886 | Z42: 0.1152991876 | AA42: 0.12173751 | BW42: ='Country list'!H41 -> Cape Verde | BX42: ='Country list'!I41 -> Sub-Saharan Africa | BY42: ='Country list'!J41 -> ssa
A43: Commercial | B43: =INPUTS!B55 -> 12 | C43: =INPUTS!C55 -> 0.15 | K43: Energy used in field operations CO2 | L43: 10 | M43: Sub-Saharan Africa | N43: 0.001589846332 | O43: 0.01920834742 | P43: 0.02218759619 | Q43: 0.01974098198 | R43: 0.03023288585 | S43: 0.2781205475 | T43: 0 | U43: 0.04945745319 | V43: 0.3852704763 | W43: 0.07347951829 | X43: 0.3140876293 | Y43: 3.420167685 | Z43: 0.2235803008 | AA43: 0.1766152233 | BW43: ='Country list'!H42 -> Cayman Islands | BX43: ='Country list'!I42 -> Latin America and the Caribbean | BY43: ='Country list'!J42 -> lac
A44: Commercial | B44: =INPUTS!B56 -> 7 | C44: =INPUTS!C56 -> 0.15 | K44: Processing and transport CO2 | L44: 1 | M44: North America | N44: 0 | O44: 0 | P44: 0 | Q44: 0 | R44: 0 | S44: 0 | T44: 0 | U44: 0.008971829899 | V44: 0.01118999999 | W44: 0.01491999999 | X44: 0.01491999906 | Y44: 0.01491999999 | Z44: 0.05210500211 | AA44: 0.02369204909 | BW44: ='Country list'!H43 -> Central African Republic | BX44: ='Country list'!I43 -> Sub-Saharan Africa | BY44: ='Country list'!J43 -> ssa
A45: Commercial | B45: =INPUTS!B57 -> 16 | C45: =INPUTS!C57 -> 0.04 | E45: FEED CONVERSION RATIO (kg IN (as fed)/kg fish LW out) | K45: Processing and transport CO2 | L45: 2 | M45: Russian Federation | N45: 0 | O45: 0 | P45: 0 | Q45: 0 | R45: 0 | S45: 0 | T45: 0 | U45: 0.008971829899 | V45: 0.01118999999 | W45: 0.01491999999 | X45: 0.01491999999 | Y45: 0.01491999906 | Z45: 0.2156228125 | AA45: 0.02369205095 | BW45: ='Country list'!H44 -> Chad | BX45: ='Country list'!I44 -> Sub-Saharan Africa | BY45: ='Country list'!J44 -> ssa
B46: Total | C46: =SUM(C36:C45) -> 1 | E46: Default | F46: =VLOOKUP(E303,D256:K294,7,FALSE) -> 1.130760464 | K46: Processing and transport CO2 | L46: 3 | M46: Western Europe | N46: 0 | O46: 0 | P46: 0 | Q46: 0 | R46: 0 | S46: 0 | T46: 0 | U46: 0.008971829899 | V46: 0.01118999999 | W46: 0.01491999906 | X46: 0.01492000092 | Y46: 0.01491999999 | Z46: 0.2146817744 | AA46: 0.02369205095 | BW46: ='Country list'!H45 -> Chile | BX46: ='Country list'!I45 -> Latin America and the Caribbean | BY46: ='Country list'!J45 -> lac
E47: Specified (please enter) | K47: Processing and transport CO2 | L47: 4 | M47: Eastern Europe | N47: 0 | O47: 0 | P47: 0 | Q47: 0 | R47: 0 | S47: 0 | T47: 0 | U47: 0.008971829899 | V47: 0.01119000092 | W47: 0.01491999906 | X47: 0.01491999906 | Y47: 0.01491999999 | Z47: 0.05403120443 | AA47: 0.02369204909 | BW47: ='Country list'!H46 -> China | BX47: ='Country list'!I46 -> East Asia and Southeast Asia | BY47: ='Country list'!J46 -> esea
K48: Processing and transport CO2 | L48: 5 | M48: West Asia & Northern Africa | N48: 0 | O48: 0 | P48: 0 | Q48: 0 | R48: 0 | S48: 0 | T48: 0 | U48: 0.008971829899 | V48: 0.01118999906 | W48: 0.01491999999 | X48: 0.01491999999 | Y48: 0.01491999906 | Z48: 0.1992333233 | AA48: 0.02369205095 | BW48: ='Country list'!H47 -> Christmas Island | BX48: ='Country list'!I47 -> East Asia and Southeast Asia | BY48: ='Country list'!J47 -> esea
A49: Non-commercial | B49: =INPUTS!F48 -> 11 | C49: =INPUTS!H48 -> 0.1 | K49: Processing and transport CO2 | L49: 6 | M49: East Asia | N49: 0 | O49: 0 | P49: 0 | Q49: 0 | R49: 0 | S49: 0 | T49: 0 | U49: 0.008971829899 | V49: 0.01118999999 | W49: 0.01491999999 | X49: 0.01492000092 | Y49: 0.01491999999 | Z49: 0.2160587907 | AA49: 0.02369204909 | BW49: ='Country list'!H48 -> Colombia | BX49: ='Country list'!I48 -> Latin America and the Caribbean | BY49: ='Country list'!J48 -> lac
A50: Non-commercial | B50: =INPUTS!F49 -> 10 | C50: =INPUTS!H49 -> 0.05 | K50: Processing and transport CO2 | L50: 7 | M50: Oceania | N50: 0 | O50: 0 | P50: 0 | Q50: 0 | R50: 0 | S50: 0 | T50: 0 | U50: 0.008971829899 | V50: 0.01118999999 | W50: 0.01492000092 | X50: 0.01491999999 | Y50: 0.01491999999 | Z50: 0.05234588683 | AA50: 0.02369205095 | BW50: ='Country list'!H49 -> Comoros | BX50: ='Country list'!I49 -> Sub-Saharan Africa | BY50: ='Country list'!J49 -> ssa
A51: Non-commercial | B51: =INPUTS!F50 -> 1 | C51: =INPUTS!H50 -> 0.23 | K51: Processing and transport CO2 | L51: 8 | M51: South Asia | N51: 0 | O51: 0 | P51: 0 | Q51: 0 | R51: 0 | S51: 0 | T51: 0 | U51: 0.008971829899 | V51: 0.01118999999 | W51: 0.01491999906 | X51: 0.01491999999 | Y51: 0.01491999999 | Z51: 0.06088742241 | AA51: 0.02369204722 | BW51: ='Country list'!H50 -> Congo | BX51: ='Country list'!I50 -> Sub-Saharan Africa | BY51: ='Country list'!J50 -> ssa
A52: Non-commercial | B52: =INPUTS!F51 -> 3 | C52: =INPUTS!H51 -> 0.04 | K52: Processing and transport CO2 | L52: 9 | M52: Central & South America | N52: 0 | O52: 0 | P52: 0 | Q52: 0 | R52: 0 | S52: 0 | T52: 0 | U52: 0.008971828967 | V52: 0.01119000092 | W52: 0.01491999906 | X52: 0.01492000092 | Y52: 0.01491999906 | Z52: 0.05530077964 | AA52: 0.02369204909 | BW52: ='Country list'!H51 -> Cook Islands | BX52: ='Country list'!I51 -> Oceania | BY52: ='Country list'!J51 -> oc
A53: Non-commercial | B53: =INPUTS!F52 -> 12 | C53: =INPUTS!H52 -> 0.07 | K53: Processing and transport CO2 | L53: 10 | M53: Sub-Saharan Africa | N53: 0 | O53: 0 | P53: 0 | Q53: 0 | R53: 0 | S53: 0 | T53: 0 | U53: 0.008971829899 | V53: 0.01118999999 | W53: 0.01492000092 | X53: 0.01491999999 | Y53: 0.01491999999 | Z53: 0.05439320579 | AA53: 0.02369204722 | BW53: ='Country list'!H52 -> Costa Rica | BX53: ='Country list'!I52 -> Latin America and the Caribbean | BY53: ='Country list'!J52 -> lac
A54: Non-commercial | B54: =INPUTS!F53 -> 2 | C54: =INPUTS!H53 -> 0.11 | K54: Blending and transport CO2 | L54: 1 | M54: North America | BW54: ='Country list'!H53 -> Cote d’Ivoire | BX54: ='Country list'!I53 -> Sub-Saharan Africa | BY54: ='Country list'!J53 -> ssa
A55: Non-commercial | B55: =INPUTS!F54 -> 8 | C55: =INPUTS!H54 -> 0 | K55: Blending and transport CO2 | L55: 2 | M55: Russian Federation | BW55: ='Country list'!H54 -> Croatia | BX55: ='Country list'!I54 -> Western Europe | BY55: ='Country list'!J54 -> we
A56: Non-commercial | B56: =INPUTS!F55 -> 9 | C56: =INPUTS!H55 -> 0.1 | K56: Blending and transport CO2 | L56: 3 | M56: Western Europe | BW56: ='Country list'!H55 -> Cuba | BX56: ='Country list'!I55 -> Latin America and the Caribbean | BY56: ='Country list'!J55 -> lac
A57: Non-commercial | B57: =INPUTS!F56 -> 8 | C57: =INPUTS!H56 -> 0.2 | K57: Blending and transport CO2 | L57: 4 | M57: Eastern Europe | BW57: ='Country list'!H56 -> Cyprus | BX57: ='Country list'!I56 -> Near East and North Africa | BY57: ='Country list'!J56 -> nena
A58: Non-commercial | B58: =INPUTS!F57 -> 4 | C58: =INPUTS!H57 -> 0.1 | K58: Blending and transport CO2 | L58: 5 | M58: West Asia & Northern Africa | BW58: ='Country list'!H57 -> Czech Republic | BX58: ='Country list'!I57 -> Eastern Europe | BY58: ='Country list'!J57 -> ee
B59: Total | C59: =SUM(C49:C58) -> 1 | K59: Blending and transport CO2 | L59: 6 | M59: East Asia | BW59: ='Country list'!H58 -> Democratic People’s Republic of Korea | BX59: ='Country list'!I58 -> East Asia and Southeast Asia | BY59: ='Country list'!J58 -> esea
K60: Blending and transport CO2 | L60: 7 | M60: Oceania | BW60: ='Country list'!H59 -> Democratic Republic of the Congo | BX60: ='Country list'!I59 -> Sub-Saharan Africa | BY60: ='Country list'!J59 -> ssa
K61: Blending and transport CO2 | L61: 8 | M61: South Asia | BW61: ='Country list'!H60 -> Denmark | BX61: ='Country list'!I60 -> Western Europe | BY61: ='Country list'!J60 -> we
K62: Blending and transport CO2 | L62: 9 | M62: Central & South America | BW62: ='Country list'!H61 -> Djibouti | BX62: ='Country list'!I61 -> Sub-Saharan Africa | BY62: ='Country list'!J61 -> ssa
B63: PRODUCT GROUP | C63: LOCATION | K63: Blending and transport CO2 | L63: 10 | M63: Sub-Saharan Africa | BW63: ='Country list'!H62 -> Dominica | BX63: ='Country list'!I62 -> Latin America and the Caribbean | BY63: ='Country list'!J62 -> lac
B64: =START!H30 -> 6 | C64: =START!H27 -> 219 | K64: Rice cultivation CH4 | L64: 1 | M64: North America | S64: 1.22499736 | Y64: 1.249997411 | BW64: ='Country list'!H63 -> Dominican Republic | BX64: ='Country list'!I63 -> Latin America and the Caribbean | BY64: ='Country list'!J63 -> lac
K65: Rice cultivation CH4 | L65: 2 | M65: Russian Federation | S65: 1.300000027 | Y65: 1.324999984 | BW65: ='Country list'!H64 -> Ecuador | BX65: ='Country list'!I64 -> Latin America and the Caribbean | BY65: ='Country list'!J64 -> lac
K66: Rice cultivation CH4 | L66: 3 | M66: Western Europe | S66: 1.300000027 | Y66: 1.324999984 | BW66: ='Country list'!H65 -> Egypt | BX66: ='Country list'!I65 -> Near East and North Africa | BY66: ='Country list'!J65 -> nena
K67: Rice cultivation CH4 | L67: 4 | M67: Eastern Europe | S67: 1.299999934 | Y67: 1.324999984 | BW67: ='Country list'!H66 -> El Salvador | BX67: ='Country list'!I66 -> Latin America and the Caribbean | BY67: ='Country list'!J66 -> lac
K68: Rice cultivation CH4 | L68: 5 | M68: West Asia & Northern Africa | S68: 1.336800307 | Y68: 1.369129121 | BW68: ='Country list'!H67 -> Equatorial Guinea | BX68: ='Country list'!I67 -> Sub-Saharan Africa | BY68: ='Country list'!J67 -> ssa
K69: Rice cultivation CH4 | L69: 6 | M69: East Asia | S69: 1.229612902 | Y69: 1.27915768 | BW69: ='Country list'!H68 -> Eritrea | BX69: ='Country list'!I68 -> Sub-Saharan Africa | BY69: ='Country list'!J68 -> ssa
B70: Results | C70: EI (kgCO2e/kgDM) | D70: Ration | K70: Rice cultivation CH4 | L70: 7 | M70: Oceania | S70: 1.124999952 | Y70: 1.150000002 | BW70: ='Country list'!H69 -> Estonia | BX70: ='Country list'!I69 -> Western Europe | BY70: ='Country list'!J69 -> we
D71: Specified ration | E71: Specified ration | F71: Average | K71: Rice cultivation CH4 | L71: 8 | M71: South Asia | S71: 1.504718326 | Y71: 1.555392519 | BW71: ='Country list'!H70 -> Ethiopia | BX71: ='Country list'!I70 -> Sub-Saharan Africa | BY71: ='Country list'!J70 -> ssa
B72: GHG category | C72: Default ration | D72: Commercial | E72: Non-commercial | F72: Specified ration | K72: Rice cultivation CH4 | L72: 9 | M72: Central & South America | S72: 0.6793868728 | Y72: 0.7061545271 | BW72: ='Country list'!H71 -> Falkland Islands (Malvinas) | BX72: ='Country list'!I71 -> Latin America and the Caribbean | BY72: ='Country list'!J71 -> lac
B73: Manure applied to soils N2O | C73: =SUMPRODUCT($N$302:$BE$302,$N306:$BE306) -> 0.05734063985 | D73: =SUMPRODUCT($N$303:$BE$303,$N306:$BE306) -> 0.05458428761 | E73: =SUMPRODUCT($N$304:$BE$304,$N306:$BE306) -> 0.01074852714 | F73: =D73*F$36+E73*F$37 -> 0.04143355947 | K73: Rice cultivation CH4 | L73: 10 | M73: Sub-Saharan Africa | S73: 1.353996247 | Y73: 1.481006388 | BW73: ='Country list'!H72 -> Faroe Islands | BX73: ='Country list'!I72 -> Western Europe | BY73: ='Country list'!J72 -> we
B74: Synthetic fertilizers N2O | C74: =SUMPRODUCT($N$302:$BE$302,$N307:$BE307) -> 0.1777484663 | D74: =SUMPRODUCT($N$303:$BE$303,$N307:$BE307) -> 0.162855906 | E74: =SUMPRODUCT($N$304:$BE$304,$N307:$BE307) -> 0.03456606061 | F74: =D74*F$36+E74*F$37 -> 0.1243689524 | K74: LUC for feed production CO2 | L74: 1 | M74: North America | Z74: 0.01314411405 | BW74: ='Country list'!H73 -> Fiji | BX74: ='Country list'!I73 -> Oceania | BY74: ='Country list'!J73 -> oc
B75: Crop residue N2O | C75: 0.06888120119 | D75: 0.04715045142 | E75: =SUMPRODUCT($N$304:$BE$304,$N308:$BE308) -> 0.02728195407 | F75: 0.04118990222 | K75: LUC for feed production CO2 | L75: 2 | M75: Russian Federation | Z75: 0.7545100451 | BW75: ='Country list'!H74 -> Finland | BX75: ='Country list'!I74 -> Western Europe | BY75: ='Country list'!J74 -> we
B76: Energy used in field operations CO2 | C76: 0.1234790133 | D76: 0.1360342652 | E76: 0.04584059709 | F76: 0.1089761648 | K76: LUC for feed production CO2 | L76: 3 | M76: Western Europe | Z76: 2.002695799 | BW76: ='Country list'!H75 -> France | BX76: ='Country list'!I75 -> Western Europe | BY76: ='Country list'!J75 -> we
B77: Processing and transport CO2 | C77: 0.1220958627 | D77: 0.1647896762 | E77: 0.119267823 | F77: 0.1511331203 | K77: LUC for feed production CO2 | L77: 4 | M77: Eastern Europe | Z77: 0.4764385223 | BW77: ='Country list'!H76 -> French Guiana | BX77: ='Country list'!I76 -> Latin America and the Caribbean | BY77: ='Country list'!J76 -> lac
B78: Rice cultivation CH4 | C78: 0 | D78: 0.03209801557 | E78: 0.03149239365 | F78: 0.03191632899 | K78: LUC for feed production CO2 | L78: 5 | M78: West Asia & Northern Africa | Z78: 1.5092839 | BW78: ='Country list'!H77 -> French Polynesia | BX78: ='Country list'!I77 -> Oceania | BY78: ='Country list'!J77 -> oc
B79: LUC for feed production CO2 | C79: 0.4578162596 | D79: 0.5638177702 | E79: 0 | F79: 0.3946724391 | K79: LUC for feed production CO2 | L79: 6 | M79: East Asia | Z79: 1.913517356 | BW79: ='Country list'!H78 -> Gabon | BX79: ='Country list'!I78 -> Sub-Saharan Africa | BY79: ='Country list'!J78 -> ssa
B80: Fert. Prod CO2 | C80: 0.187078967 | D80: 0.1705859496 | E80: 0.03607869267 | F80: 0.1302337725 | K80: LUC for feed production CO2 | L80: 7 | M80: Oceania | Z80: 0.003183427965 | BW80: ='Country list'!H79 -> Gambia | BX80: ='Country list'!I79 -> Sub-Saharan Africa | BY80: ='Country list'!J79 -> ssa
B81: CO2e non-disaggregated feeds | C81: 0.53848 | D81: 0.26 | E81: 0.15124 | F81: 0.227372 | K81: LUC for feed production CO2 | L81: 8 | M81: South Asia | Z81: 1.218054652 | BW81: ='Country list'!H80 -> Gaza Strip | BX81: ='Country list'!I80 -> Near East and North Africa | BY81: ='Country list'!J80 -> nena
B82: Feed blending/transport (from GLEAM) | C82: 0.0785214 | D82: 0.0786 | E82: 0.06288 | F82: 0.073884 | K82: LUC for feed production CO2 | L82: 9 | M82: Central & South America | Z82: 4.564888 | BW82: ='Country list'!H81 -> Georgia | BX82: ='Country list'!I81 -> Near East and North Africa | BY82: ='Country list'!J81 -> nena
B83: Total | C83: =SUM(C73:C82) -> 1.81144181 | D83: =SUM(D73:D82) -> 1.670516322 | E83: 0.5193960483 | F83: 1.32518024 | K83: LUC for feed production CO2 | L83: 10 | M83: Sub-Saharan Africa | Z83: 0.9622837901 | BW83: ='Country list'!H82 -> Germany | BX83: ='Country list'!I82 -> Western Europe | BY83: ='Country list'!J82 -> we
K84: Fert. Prod CO2 | L84: 1 | M84: North America | N84: 0.07610888779 | O84: 0.061205782 | P84: 0.0706589818 | Q84: 0.02477288991 | R84: 0.03647772595 | S84: 0.03091933019 | T84: 0.1137575433 | U84: 0.0991095826 | V84: 0.1312072128 | W84: 0.06950106472 | X84: 0.03553988412 | Y84: 0.03435514122 | Z84: 0.114843294 | AA84: 0.0941266641 | BW84: ='Country list'!H83 -> Ghana | BX84: ='Country list'!I83 -> Sub-Saharan Africa | BY84: ='Country list'!J83 -> ssa
K85: Fert. Prod CO2 | L85: 2 | M85: Russian Federation | N85: 0.03693947569 | O85: 0.03079538047 | P85: 0.0356855467 | Q85: 0.0188096948 | R85: 0.02854698524 | S85: 0.01402482949 | T85: 0.07680920511 | U85: 0.04435717314 | V85: 0.06219660491 | W85: 0.02947879396 | X85: 0.02221428975 | Y85: 0.0154402107 | Z85: 0.05850198865 | AA85: 0.03454233706 | BW85: ='Country list'!H84 -> Greece | BX85: ='Country list'!I84 -> Western Europe | BY85: ='Country list'!J84 -> we
C86: EI (kgCO2e/kgDM) | D86: Ration | K86: Fert. Prod CO2 | L86: 3 | M86: Western Europe | N86: 0.1609784961 | O86: 0.08030629158 | P86: 0.09214501083 | Q86: 0.04964140803 | R86: 0.07313728333 | S86: 0.04402228817 | T86: 0.1562695801 | U86: 0.1507996023 | V86: 0.2637863755 | W86: 0.09575551003 | X86: 0.07609829307 | Y86: 0.05063622817 | Z86: 0.2613790631 | AA86: 0.1325252354 | BW86: ='Country list'!H85 -> Greenland | BX86: ='Country list'!I85 -> North America | BY86: ='Country list'!J85 -> nam
D87: Specified ration | E87: Specified ration | F87: Average | K87: Fert. Prod CO2 | L87: 4 | M87: Eastern Europe | N87: 0.1010285988 | O87: 0.06168449298 | P87: 0.07107775658 | Q87: 0.03440076858 | R87: 0.05152922496 | S87: 0.02648619004 | T87: 0.1020400897 | U87: 0.05916117132 | V87: 0.2100664526 | W87: 0.09438714385 | X87: 0.05511876196 | Y87: 0.030305814 | Z87: 0.1020939648 | AA87: 0.06542399526 | BW87: ='Country list'!H86 -> Grenada | BX87: ='Country list'!I86 -> Latin America and the Caribbean | BY87: ='Country list'!J86 -> lac
B88: GHG category | C88: Default ration | D88: Commercial | E88: Non-commercial | F88: Specified ration | K88: Fert. Prod CO2 | L88: 5 | M88: West Asia & Northern Africa | N88: 0.141979903 | O88: 0.05095981807 | P88: 0.058850687 | Q88: 0.1215270758 | R88: 0.1802162528 | S88: 0.1203831881 | T88: 0.01092019305 | U88: 0.04735551402 | V88: 0.4358751476 | W88: 0.0912020728 | X88: 0.2165072709 | Y88: 0.133856982 | Z88: 0.3312860727 | AA88: 0.04824889451 | BW88: ='Country list'!H87 -> Guadeloupe | BX88: ='Country list'!I87 -> Latin America and the Caribbean | BY88: ='Country list'!J87 -> lac
B89: Feed: fertiliser production | C89: =SUMPRODUCT(N$302:BE$302,N319:BE319) -> 0.187078967 | D89: =SUMPRODUCT(N$303:BE$303,N319:BE319) -> 0.1705859496 | E89: =SUMPRODUCT(N$304:BE$304,N319:BE319) -> 0.03607869267 | F89: =D89*F$36+E89*F$37 -> 0.1302337725 | K89: Fert. Prod CO2 | L89: 6 | M89: East Asia | N89: 0.7662028074 | O89: 0.3064861 | P89: 0.3521637321 | Q89: 0.2820320725 | R89: 0.4213124216 | S89: 0.2151278555 | T89: 1.272079468 | U89: 0.5005390644 | V89: 1.463113427 | W89: 0.3694889843 | X89: 0.4397486448 | Y89: 0.2501502633 | Z89: 0.9901916981 | AA89: 0.4870723188 | BW89: ='Country list'!H88 -> Guam | BX89: ='Country list'!I88 -> Oceania | BY89: ='Country list'!J88 -> oc
B90: Feed: crop N2O | C90: =SUMPRODUCT(N$302:BE$302,N320:BE320) -> 0.3039703074 | D90: =SUMPRODUCT(N$303:BE$303,N320:BE320) -> 0.2645906451 | E90: =SUMPRODUCT(N$304:BE$304,N320:BE320) -> 0.07259654182 | F90: =D90*F$36+E90*F$37 -> 0.2069924141 | K90: Fert. Prod CO2 | L90: 7 | M90: Oceania | N90: 0.05113366619 | O90: 0.03990855813 | P90: 0.04651730508 | Q90: 0.02389271371 | R90: 0.03561357409 | S90: 0.007578188553 | T90: 0 | U90: 0.0409863852 | V90: 0.08712784946 | W90: 0.04223525897 | X90: 0.03755069897 | Y90: 0.008326534182 | Z90: 0.04022885486 | AA90: 0.03959285095 | BW90: ='Country list'!H89 -> Guatemala | BX90: ='Country list'!I89 -> Latin America and the Caribbean | BY90: ='Country list'!J89 -> lac
B91: Feed: crop energy use | C91: 0.245574876 | D91: 0.3008239414 | E91: 0.1651084201 | F91: 0.260109285 | K91: Fert. Prod CO2 | L91: 8 | M91: South Asia | N91: 0.6113262773 | O91: 0.1875554323 | P91: 0.2166086733 | Q91: 0.2242849022 | R91: 0.350697428 | S91: 0.1649861038 | T91: 0.7252207994 | U91: 0.5921828747 | V91: 1.307915092 | W91: 0.2298239321 | X91: 0.3328922093 | Y91: 0.177501291 | Z91: 0.6929891109 | AA91: 0.5214279294 | BW91: ='Country list'!H90 -> Guernsey | BX91: ='Country list'!I90 -> Western Europe | BY91: ='Country list'!J90 -> we
B92: Feed: crop LUC | C92: 0.4578162596 | D92: 0.5638177702 | E92: 0 | F92: 0.3946724391 | K92: Fert. Prod CO2 | L92: 9 | M92: Central & South America | N92: 0.1144997701 | O92: 0.0414442271 | P92: 0.04790624231 | Q92: 0.03537235409 | R92: 0.0537895523 | S92: 0.03200047091 | T92: 0.067459777 | U92: 0.0285446737 | V92: 0.2164292037 | W92: 0.04269871861 | X92: 0.04857491702 | Y92: 0.03334366903 | Z92: 0.06114092842 | AA92: 0.02695535496 | BW92: ='Country list'!H91 -> Guinea | BX92: ='Country list'!I91 -> Sub-Saharan Africa | BY92: ='Country list'!J91 -> ssa
B93: Feed: rice CH4 | C93: 0 | D93: 0.03209801557 | E93: 0.03149239365 | F93: 0.03191632899 | K93: Fert. Prod CO2 | L93: 10 | M93: Sub-Saharan Africa | N93: 0.01759548672 | O93: 0.03442266956 | P93: 0.03983133286 | Q93: 0.0199755542 | R93: 0.03127985448 | S93: 0.006208362989 | T93: 0.09140849859 | U93: 0.06241124868 | V93: 0.05028778315 | W93: 0.03867977858 | X93: 0.03206094354 | Y93: 0.006685630418 | Z93: 0.08006600291 | AA93: 0.05318789184 | BW93: ='Country list'!H92 -> Guinea-Bissau | BX93: ='Country list'!I92 -> Sub-Saharan Africa | BY93: ='Country list'!J92 -> ssa
B94: Feed: fishmeal | C94: 0.46288 | D94: 0.26 | E94: 0 | F94: 0.182 | K94: Total EI | L94: 1 | M94: North America | N94: =SUM(N84,N74,N64,N54,N44,N34,N24,N14,N4) -> 0.3381139945 | O94: =SUM(O84,O74,O64,O54,O44,O34,O24,O14,O4) -> 0.2821968564 | P94: 0.3257834198 | Q94: 0.1614912616 | R94: 0.2377914647 | S94: 2.233916012 | T94: 0.5244011448 | U94: 0.458862433 | V94: 0.5094535643 | W94: 0.3061011063 | X94: 0.2145888964 | Y94: 2.372384755 | Z94: 0.5553225235 | AA94: 0.4319565535 | AD94: =O94/W94 -> 0.9219073391 | AE94: =P94/W94 -> 1.06430004 | AG94: =Q94/X94 -> 0.7525611265 | AH94: =R94/X94 -> 1.108125671 | BW94: ='Country list'!H93 -> Guyana | BX94: ='Country list'!I93 -> Latin America and the Caribbean | BY94: ='Country list'!J93 -> lac
B95: Feed: animal by-products | C95: 0 | D95: 0 | E95: 0 | F95: 0 | K95: Total EI | L95: 2 | M95: Russian Federation | N95: =SUM(N85,N75,N65,N55,N45,N35,N25,N15,N5) -> 0.2317836058 | O95: 0.2033876658 | P95: 0.2356846935 | Q95: 0.1899065331 | R95: 0.2882162104 | S95: 2.68443425 | T95: 0.5131984208 | U95: 0.3341825712 | V95: 0.3218555831 | W95: 0.1929552888 | X95: 0.2218187187 | Y95: 2.851448578 | Z95: 1.340639852 | AA95: 0.2653704485 | AD95: =O95/W95 -> 1.054066292 | AE95: =P95/W95 -> 1.221447181 | AG95: =Q95/X95 -> 0.8561339379 | AH95: =R95/X95 -> 1.29933223 | BW95: ='Country list'!H94 -> Haiti | BX95: ='Country list'!I94 -> Latin America and the Caribbean | BY95: ='Country list'!J94 -> lac
B96: Feed: blending & transport | C96: 0.0785214 | D96: 0.0786 | E96: 0.06288 | F96: 0.073884 | K96: Total EI | L96: 3 | M96: Western Europe | N96: 0.4894490577 | O96: 0.2769240989 | P96: 0.3177771123 | Q96: 0.2070500287 | R96: 0.30514816 | S96: 2.419948321 | T96: 0.5517988279 | U96: 0.5187763425 | V96: 0.7267283433 | W96: 0.3091108683 | X96: 0.2963720011 | Y96: 2.621906296 | Z96: 3.018542056 | AA96: 0.4535223442 | AD96: 0.8958730581 | AE96: 1.028036038 | AG96: 0.6986153481 | AH96: 1.02961197 | BW96: ='Country list'!H95 -> Honduras | BX96: ='Country list'!I95 -> Latin America and the Caribbean | BY96: ='Country list'!J95 -> lac
B97: Feed: other | C97: 0.0756 | D97: 0 | E97: =SUMPRODUCT(N$304:BE$304,N327:BE327) -> 0.15124 | F97: 0.045372 | K97: Total EI | L97: 4 | M97: Eastern Europe | N97: 0.3615048411 | O97: 0.2459048617 | P97: 0.2834576756 | Q97: 0.1999016396 | R97: 0.2994936717 | S97: 2.652745772 | T97: 0.5182261847 | U97: 0.3195673266 | V97: 0.6289833073 | W97: 0.3270655723 | X97: 0.2934768256 | Y97: 2.875901636 | Z97: 1.006376992 | AA97: 0.3388776802 | AD97: 0.7518518686 | AE97: 0.8666692541 | AG97: 0.6811496587 | AH97: 1.020501946 | BW97: ='Country list'!H96 -> Hong Kong | BX97: ='Country list'!I96 -> East Asia and Southeast Asia | BY97: ='Country list'!J96 -> esea
B98: Feed: total | C98: =SUMPRODUCT(N$302:BE$302,N328:BE328) -> 1.81144181 | D98: 1.670516322 | E98: 0.5193960483 | F98: 1.32518024 | K98: Total EI | L98: 5 | M98: West Asia & Northern Africa | N98: 0.425494099 | O98: 0.2880647313 | P98: 0.3351013717 | Q98: 0.36700876 | R98: 0.5458460601 | S98: 1.981839317 | T98: 0.3606863231 | U98: 0.291755418 | V98: 1.171317819 | W98: 0.3634955185 | X98: 0.6062884053 | Y98: 2.713370859 | Z98: 2.580565682 | AA98: 0.4764990105 | AD98: 0.7924849597 | AE98: 0.9218858411 | AG98: 0.6053369268 | AH98: 0.9003076016 | BW98: ='Country list'!H97 -> Hungary | BX98: ='Country list'!I97 -> Eastern Europe | BY98: ='Country list'!J97 -> ee
K99: Total EI | L99: 6 | M99: East Asia | N99: 1.544522275 | O99: 0.6611375338 | P99: 0.7596695037 | Q99: 0.6261122946 | R99: 0.9353214881 | S99: 2.115289626 | T99: 2.552446326 | U99: 1.028238424 | V99: 3.000541981 | W99: 0.7989712883 | X99: 0.9962116756 | Y99: 2.970522729 | Z99: 4.189251418 | AA99: 1.06716689 | AD99: 0.827485973 | AE99: 0.9508095158 | AG99: 0.6284932308 | AH99: 0.9388782636 | BW99: ='Country list'!H98 -> Iceland | BX99: ='Country list'!I98 -> Western Europe | BY99: ='Country list'!J98 -> we
K100: Total EI | L100: 7 | M100: Oceania | N100: 0.3145031055 | O100: 0.2636391239 | P100: 0.3073080713 | Q100: 0.1870131373 | R100: 0.2807715039 | S100: 1.932379964 | T100: 0.2300866327 | U100: 0.3403903737 | V100: 0.467862084 | W100: 0.2688300269 | X100: 0.2229951218 | Y100: 2.038990854 | Z100: 0.341783526 | AA100: 0.3244223636 | AD100: 0.9806907618 | AE100: 1.143131498 | AG100: 0.8386422794 | AH100: 1.259092583 | BW100: ='Country list'!H99 -> India | BX100: ='Country list'!I99 -> South Asia | BY100: ='Country list'!J99 -> sa
K101: Total EI | L101: 8 | M101: South Asia | N101: 1.315533099 | O101: 0.4549009517 | P101: 0.5254026191 | Q101: 0.5107316393 | R101: 0.7982148429 | S101: 2.354696761 | T101: 1.583582774 | U101: 1.334796834 | V101: 3.035736546 | W101: 0.5920377795 | X101: 0.94997693 | Y101: 3.937561613 | Z101: 3.034537503 | AA101: 1.374555196 | AD101: 0.7683647353 | AE101: 0.8874477902 | AG101: 0.5376253077 | AH101: 0.8402465551 | BW101: ='Country list'!H100 -> Indonesia | BX101: ='Country list'!I100 -> East Asia and Southeast Asia | BY101: ='Country list'!J100 -> esea
K102: Total EI | L102: 9 | M102: Central & South America | N102: 0.4349437232 | O102: 0.2308944752 | P102: 0.2668249227 | Q102: 0.239037852 | R102: 0.3632545271 | S102: 1.532206057 | T102: 0.3846104423 | U102: 0.2441469634 | V102: 0.86295062 | W102: 0.232036734 | X102: 0.3214205495 | Y102: 2.418721406 | Z102: 4.95393492 | AA102: 0.254754131 | AD102: 0.99507725 | AE102: 1.14992535 | AG102: 0.7436918778 | AH102: 1.130153401 | BW102: ='Country list'!H101 -> Iran (Islamic Republic of) | BX102: ='Country list'!I101 -> South Asia | BY102: ='Country list'!J101 -> sa
K103: Total EI | L103: 10 | M103: Sub-Saharan Africa | N103: 0.1371767459 | O103: 0.1785351686 | P103: 0.2066817737 | Q103: 0.1213007756 | R103: 0.1922218879 | S103: 1.674919757 | T103: 0.3323960798 | U103: 0.258948029 | V103: 0.6403104903 | W103: 0.2415403345 | X103: 0.4600601489 | Y103: 4.954254444 | Z103: 1.498436626 | AA103: 0.3594852266 | AD103: 0.7391526095 | AE103: 0.8556822369 | AG103: 0.263662862 | AH103: 0.4178190358 | BW103: ='Country list'!H102 -> Iraq | BX103: ='Country list'!I102 -> Near East and North Africa | BY103: ='Country list'!J102 -> nena
BW104: ='Country list'!H103 -> Ireland | BX104: ='Country list'!I103 -> Western Europe | BY104: ='Country list'!J103 -> we
K105: Aqua feed EI | BW105: ='Country list'!H104 -> Isle of Man | BX105: ='Country list'!I104 -> Western Europe | BY105: ='Country list'!J104 -> we
K106: By-product processing GHG | L106: (needed for feeds where we are calculating the BY EI from the grain EI in this sheet) | BW106: ='Country list'!H105 -> Israel | BX106: ='Country list'!I105 -> Near East and North Africa | BY106: ='Country list'!J105 -> nena
O107: Soybean meal | P107: Soy oil | U107: Wheat flour | V107: Wheat by-products | X107: Maize gluten meal | Y107: Maize DDGS | Z107: Rice by-products | AB107: Soybean meal | AG107: Wheat flour-S | AH107: Wheat by-products-S | AJ107: Wheat flour-N | AK107: Wheat by-products-N | AM107: Maize gluten meal-S | AN107: Maize DDGS-S | AP107: Maize gluten meal-N | AQ107: Maize DDGS-N | AR107: Rice by-products | BW107: ='Country list'!H106 -> Italy | BX107: ='Country list'!I106 -> Western Europe | BY107: ='Country list'!J106 -> we
M108: kgCO2e/kg grain/oilseed) | O108: 0.1873587913 | P108: 0.4502166378 | U108: 0.5551725322 | V108: 0.5551725322 | X108: 1.553973143 | Y108: 1.730848135 | Z108: 0.5551725322 | AB108: 0.1873587913 | AG108: 0.5551725322 | AH108: 0.5551725322 | AJ108: 0.5551725322 | AK108: 0.5551725322 | AM108: 1.553973143 | AN108: 1.730848135 | AP108: 1.553973143 | AQ108: 1.730848135 | AR108: 0.5551725322 | BW108: ='Country list'!H107 -> Jamaica | BX108: ='Country list'!I107 -> Latin America and the Caribbean | BY108: ='Country list'!J107 -> lac
M109: kgCO2e/kg by-product | O109: 0.1686229121 | P109: 0.7150499541 | U109: 0.5915772884 | V109: 0.354946373 | X109: 0.4712435814 | Y109: 0.8895652291 | Z109: 0.134490089 | AB109: 0.1686229121 | AC109: 0 | AD109: 0 | AE109: 0 | AF109: 0 | AG109: 0.5915772884 | AH109: 0.354946373 | AI109: 0 | AJ109: 0.5915772884 | AK109: 0.354946373 | AL109: 0 | AM109: 0.4712435814 | AN109: 0.8895652291 | AO109: 0 | AP109: 0.4712435814 | AQ109: 0.8895652291 | AR109: 0.134490089 | BW109: ='Country list'!H108 -> Japan | BX109: ='Country list'!I108 -> East Asia and Southeast Asia | BY109: ='Country list'!J108 -> esea
BW110: ='Country list'!H109 -> Jersey | BX110: ='Country list'!I109 -> Western Europe | BY110: ='Country list'!J109 -> we
BW111: ='Country list'!H110 -> Jordan | BX111: ='Country list'!I110 -> Near East and North Africa | BY111: ='Country list'!J110 -> nena
K112: Allocation | M112: Source of EI | N112: GLEAM | Q112: GLEAM | R112: GLEAM | T112: GLEAM | W112: GLEAM | AA112: GLEAM | AC112: GLEAM | AD112: GLEAM | AF112: GLEAM | AI112: GLEAM | AL112: GLEAM | AO112: GLEAM | AS112: Assume same as reduction | AT112: Feedprint, Fishmeal CP 0-580 | AU112: Assume same as reduction | AV112: Pelletier and Tydmers (2010, p476) | AW112: Based on Feedprint, CFAT 0-100,poultry. | AX112: Feedprint, feather meal, hydrolised | AY112: Feedprint, meat bone meal, porcine | AZ112: Feedprint, blood meal, porcine | BA112: GLEAM | BB112: Feedprint, chalk in laying hen conc feed | BC112: GLEAM | BE112: Feedprint, peanut expeller partly with shell | BW112: ='Country list'!H111 -> Kazakhstan | BX112: ='Country list'!I111 -> Near East and North Africa | BY112: ='Country list'!J111 -> nena
M113: Source of allocation (EFA, MFA) | O113: GLEAM | P113: GLEAM | Y113: GLEAM | AD113: GLEAM | BL113: Allocation | BW113: ='Country list'!H112 -> Kenya | BX113: ='Country list'!I112 -> Sub-Saharan Africa | BY113: ='Country list'!J112 -> ssa
M114: Mass Fraction Allocation | O114: 0.8 | P114: 0.17 | R114: 0.58 | S114: =1-R114 -> 0.42 | U114: =BL118 -> 0.8461538462 | V114: =BM118 -> 0.1538461538 | Y114: 1 | Z114: =BM164+BO164+BP164 -> 0.264 | AB114: 0.8 | AD114: 0.58 | AE114: =1-AD114 -> 0.42 | AG114: =BL118 -> 0.8461538462 | AH114: =BM118 -> 0.1538461538 | AJ114: =BL118 -> 0.8461538462 | AK114: =BM118 -> 0.1538461538 | AR114: =Z114 -> 0.264 | BL114: Wheat | BW114: ='Country list'!H113 -> Kiribati | BX114: ='Country list'!I113 -> Oceania | BY114: ='Country list'!J113 -> oc
M115: Economic Fraction Allocation | O115: 0.72 | P115: 0.27 | R115: 0.28 | S115: =1-R115 -> 0.72 | U115: =BL119 -> 0.9016393443 | V115: =BM119 -> 0.09836065574 | Y115: 0.08 | Z115: =BM166+BO166+BP166 -> 0.06395378272 | AB115: 0.72 | AD115: 0.28 | AE115: =1-AD115 -> 0.72 | AG115: =BL119 -> 0.9016393443 | AH115: =BM119 -> 0.09836065574 | AJ115: =BL119 -> 0.9016393443 | AK115: =BM119 -> 0.09836065574 | AR115: =Z115 -> 0.06395378272 | BL115: Flour | BM115: Bran | BW115: ='Country list'!H114 -> Kuwait | BX115: ='Country list'!I114 -> Near East and North Africa | BY115: ='Country list'!J114 -> nena
M116: Final Fraction Allocation | O116: =O115/O114 -> 0.9 | P116: =P115/P114 -> 1.588235294 | R116: 0.4827586207 | S116: 1.714285714 | U116: 1.06557377 | V116: 0.6393442623 | X116: ='Feed EFs'!BO158 -> 0.3032507888 | Y116: =BM147 -> 0.5139475909 | Z116: =Z115/Z114 -> 0.242249177 | AB116: =AB115/AB114 -> 0.9 | AD116: =AD115/AD114 -> 0.4827586207 | AE116: 1.714285714 | AG116: =AG115/AG114 -> 1.06557377 | AH116: =AH115/AH114 -> 0.6393442623 | AJ116: =AJ115/AJ114 -> 1.06557377 | AK116: =AK115/AK114 -> 0.6393442623 | AM116: =BO158 -> 0.3032507888 | AN116: =BM147 -> 0.5139475909 | AP116: =BO158 -> 0.3032507888 | AQ116: =BM147 -> 0.5139475909 | AR116: =Z116 -> 0.242249177 | BK116: % of mass | BL116: 0.825 | BM116: 0.15 | BO116: Henriksson et al (2014b, p87, 97) | BW116: ='Country list'!H115 -> Kyrgyzstan | BX116: ='Country list'!I115 -> Near East and North Africa | BY116: ='Country list'!J115 -> nena
N117: Non-local | O117: Non-local | P117: Non-local | Q117: Non-local | R117: Non-local | S117: Non-local | T117: Non-local | U117: Non-local | V117: Non-local | W117: Non-local | X117: Non-local | Y117: Non-local | Z117: Non-local | AA117: Local | AB117: Local | AC117: Local | AD117: Local | AE117: Local | AF117: Local | AG117: Local | AH117: Local | AI117: Local | AJ117: Local | AK117: Local | AL117: Local | AM117: Local | AN117: Local | AO117: Local | AP117: Local | AQ117: Local | AR117: Local | AS117: Non-local | AT117: Non-local | AU117: Non-local | AV117: Non-local | AW117: Non-local | AX117: Non-local | AY117: Non-local | AZ117: Non-local | BA117: Non-local | BB117: Non-local | BC117: Non-local | BD117: Local | BE117: Local | BK117: Value (€/kg) | BL117: 0.3 | BM117: 0.18 | BN117: =BL116*BL117+BM116*BM117 -> 0.2745 | BO117: Henriksson et al (2014b, p87, 97) | BW117: ='Country list'!H116 -> Lao People’s Democratic Republic | BX117: ='Country list'!I116 -> East Asia and Southeast Asia | BY117: ='Country list'!J116 -> esea
N118: Crop | O118: Crop | P118: Crop | Q118: Crop | R118: Crop | S118: Crop | T118: Crop | U118: Crop | V118: Crop | W118: Crop | X118: Crop | Y118: Crop | Z118: Crop | AA118: Crop | AB118: Crop | AC118: Crop | AD118: Crop | AE118: Crop | AF118: Crop | AG118: Crop | AH118: Crop | AI118: Crop | AJ118: Crop | AK118: Crop | AL118: Crop | AM118: Crop | AN118: Crop | AO118: Crop | AP118: Crop | AQ118: Crop | AR118: Crop | AS118: Fish | AT118: Fish | AU118: Fish | AV118: Fish | AW118: Animal by | AX118: Animal by | AY118: Animal by | AZ118: Animal by | BA118: Synthetics | BB118: Synthetics | BC118: Crop | BD118: Crop | BE118: Crop | BK118: MFA | BL118: =BL116/(BL116+BM116) -> 0.8461538462 | BM118: =BM116/(BL116+BM116) -> 0.1538461538 | BW118: ='Country list'!H117 -> Latvia | BX118: ='Country list'!I117 -> Western Europe | BY118: ='Country list'!J117 -> we
N119: 1 | O119: 2 | P119: 3 | Q119: 4 | R119: 5 | S119: 6 | T119: 7 | U119: 8 | V119: 9 | W119: 10 | X119: 11 | Y119: 12 | Z119: 13 | AA119: 14 | AB119: 15 | AC119: 16 | AD119: 17 | AE119: 18 | AF119: 19 | AG119: 20 | AH119: 21 | AI119: 22 | AJ119: 23 | AK119: 24 | AL119: 25 | AM119: 26 | AN119: 27 | AO119: 28 | AP119: 29 | AQ119: 30 | AR119: 31 | AS119: 32 | AT119: 33 | AU119: 34 | AV119: 35 | AW119: 36 | AX119: 37 | AY119: 38 | AZ119: 39 | BA119: 40 | BB119: 41 | BC119: 42 | BD119: 43 | BE119: 44 | BK119: EFA | BL119: =BL116*BL117/BN117 -> 0.9016393443 | BM119: =BM116*BM117/BN117 -> 0.09836065574 | BW119: ='Country list'!H118 -> Lebanon | BX119: ='Country list'!I118 -> Near East and North Africa | BY119: ='Country list'!J118 -> nena
A120: Cyprinids. East Asia | B120: EI (east asia) | C120: Mt oilsdmeal | D120: GHG | H120: Region | I120: GHG category | L120: VALUE | M120: REG_ANNEX5 | N120: Soybean | O120: Soybean meal | P120: Soy oil | Q120: Pulses | R120: Oilseed meal | S120: Oilseed oil | T120: Wheat | U120: Wheat flour | V120: Wheat by-products | W120: Maize | X120: Maize gluten meal | Y120: Maize DDGS | Z120: Rice by-products | AA120: Soybean | AB120: Soybean meal | AC120: Pulses | AD120: Oilseed meal | AE120: Oilseed oil | AF120: Wheat-S | AG120: Wheat flour-S | AH120: Wheat by-products-S | AI120: Wheat-N | AJ120: Wheat flour-N | AK120: Wheat by-products-N | AL120: Maize-S | AM120: Maize gluten meal-S | AN120: Maize DDGS-S | AO120: Maize-N | AP120: Maize gluten meal-N | AQ120: Maize DDGS-N | AR120: Rice by-products | AS120: Fishmeal - trimmings | AT120: Fishmeal - reduction | AU120: Fishoil - trimmings | AV120: Fishoil - reduction | AW120: Poultry meal | AX120: Feather meal | AY120: Meat and bone meal | AZ120: Blood meal | BA120: Vit and mineral premix | BB120: Lime | BC120: Cassava | BD120: Cassava | BE120: Groundnut meal | BW120: ='Country list'!H119 -> Lesotho | BX120: ='Country list'!I119 -> Sub-Saharan Africa | BY120: ='Country list'!J119 -> ssa
A121: Manure applied to soils N2O | B121: 0.04308309697 | C121: =R$350 -> 1526669.528 | D121: =B121*C121 -> 65773.65134 | H121: =L121 -> 1 | I121: a | J121: =CONCATENATE(H121,I121) -> 1a | K121: Manure applied to soils N2O | L121: 1 | M121: North America | N121: =Z4 -> 0.02608383897 | O121: =N121*O$116 -> 0.02347545507 | P121: =N121*P$116 -> 0.04142727365 | Q121: =V4 -> 0.02776698805 | R121: =AA4 -> 0.0170684052 | S121: =R121*(R$114/R$115)*S$116 -> 0.0606102552 | T121: =W4 -> 0.01392695738 | U121: =T121*U$116 -> 0.01484020049 | V121: =T121*V$116 -> 0.008904120295 | W121: =X4 -> 0.007127024892 | X121: =W121*X$116 -> 0.00216127592 | Y121: =W121*Y$116 -> 0.003662917273 | Z121: =Y4*Z$116 -> 0.001014826343 | AA121: =T4 -> 0.02317877434 | AB121: =AA121*AB$116 -> 0.02086089691 | AC121: =N4 -> 0.01607872501 | AD121: =U4 -> 0.01796275784 | AE121: =AD121*(AD$114/AD$115)*AE$116 -> 0.06378611968 | AF121: =O4 -> 0.0121490987 | AG121: =AF121*AG$116 -> 0.01294576091 | AH121: =AF121*AH$116 -> 0.007767456546 | AI121: =P4 -> 0.01402429706 | AJ121: =AI121*AJ$116 -> 0.0149439231 | AK121: =AI121*AK$116 -> 0.008966353858 | AL121: =Q4 -> 0.004955981116 | AM121: =AL121*AM$116 -> 0.001502905183 | AN121: =AL121*AN$116 -> 0.002547114555 | AO121: =R4 -> 0.007297148433 | AP121: =AO121*AP$116 -> 0.002212866018 | AQ121: =AO121*AQ$116 -> 0.003750351858 | AR121: =S4*AR$116 -> 0.0009213859598 | BL121: Maize | BW121: ='Country list'!H120 -> Liberia | BX121: ='Country list'!I120 -> Sub-Saharan Africa | BY121: ='Country list'!J120 -> ssa
A122: Synthetic fertilizers N2O | B122: 0.3918060288 | C122: =R$350 -> 1526669.528 | D122: =B122*C122 -> 598158.3252 | H122: =L122 -> 2 | I122: a | J122: =CONCATENATE(H122,I122) -> 2a | K122: Manure applied to soils N2O | L122: 2 | M122: Russian Federation | N122: =Z5 -> 0.01632468963 | O122: =N122*O$116 -> 0.01469222066 | P122: =N122*P$116 -> 0.02592744823 | Q122: 0.01728894618 | R122: 0.009601835191 | S122: 0.03409631272 | T122: 0.008194300266 | U122: 0.008731631431 | V122: =T122*V$116 -> 0.005238978859 | W122: 0.00617496033 | X122: 0.001872561591 | Y122: =W122*Y$116 -> 0.003173605985 | Z122: 0.0005289851578 | AA122: =T5 -> 0.02135081966 | AB122: =AA122*AB$116 -> 0.0192157377 | AC122: 0.01026815669 | AD122: 0.01233008347 | AE122: =AD122*(AD$114/AD$115)*AE$116 -> 0.04378437805 | AF122: =O5 -> 0.008560277256 | AG122: 0.009121606912 | AH122: 0.005472964147 | AI122: 0.009919609598 | AJ122: 0.0105700758 | AK122: 0.006342045481 | AL122: =Q5 -> 0.005228574377 | AM122: 0.001585569304 | AN122: 0.002687213205 | AO122: 0.007935271486 | AP122: 0.002406377337 | AQ122: 0.004078313663 | AR122: =S5*AR$116 -> 0.0004804932541 | BL122: Flour | BM122: Bran | BW122: ='Country list'!H121 -> Liechtenstein | BX122: ='Country list'!I121 -> Western Europe | BY122: ='Country list'!J121 -> we
A123: Crop residue N2O | B123: 0.03301315711 | C123: 1526669.528 | D123: 50400.181 | H123: 3 | I123: a | J123: 3a | K123: Manure applied to soils N2O | L123: 3 | M123: Western Europe | N123: 0.1049295044 | O123: 0.09443655395 | P123: 0.1666527423 | Q123: 0.0694183927 | R123: 0.03317165295 | S123: 0.1177932166 | T123: 0.02836313352 | U123: 0.03022301113 | V123: 0.01813380668 | W123: 0.022673814 | X123: 0.006875851982 | Y123: 0.01165315208 | Z123: 0.001992979506 | AA123: 0.04752178266 | AB123: 0.04276960439 | AC123: 0.04371260942 | AD123: 0.0387096795 | AE123: 0.1374588619 | AF123: 0.02454331641 | AG123: 0.02615271421 | AH123: 0.01569162852 | AI123: 0.02816902225 | AJ123: 0.03001617125 | AK123: 0.01800970275 | AL123: 0.0144860553 | AM123: 0.004392907698 | AN123: 0.007445073225 | AO123: 0.02133833713 | AP123: =AO123*AP$116 -> 0.006470867566 | AQ123: 0.01096678696 | AR123: 0.001734338248 | BK123: % of mass | BL123: 0.825 | BM123: 0.15 | BW123: ='Country list'!H122 -> Lithuania | BX123: ='Country list'!I122 -> Western Europe | BY123: ='Country list'!J122 -> we
A124: Energy used in field operations CO2 | B124: 0.08850023896 | C124: 1526669.528 | D124: 135110.6181 | H124: 4 | I124: a | J124: 4a | K124: Manure applied to soils N2O | L124: 4 | M124: Eastern Europe | N124: 0.03610614703 | O124: 0.03249553233 | P124: 0.05734505705 | Q124: 0.04927228147 | R124: 0.02157945791 | S124: 0.07662909544 | T124: 0.02264184554 | U124: 0.02412655673 | V124: 0.01447593404 | W124: 0.01529403195 | X124: 0.004637927254 | Y124: 0.007860330877 | Z124: 0.001196007128 | AA124: 0.03646165741 | AB124: 0.03281549167 | AC124: 0.02555504105 | AD124: 0.01985293112 | AE124: 0.07049816356 | AF124: 0.01552580222 | AG124: 0.01654388761 | AH124: 0.009926332567 | AI124: 0.01789832547 | AJ124: 0.01907198616 | AK124: 0.0114431917 | AL124: 0.009710480044 | AM124: 0.002944710733 | AN124: 0.004990677825 | AO124: 0.01455309823 | AP124: 0.004413238517 | AQ124: 0.007479529773 | AR124: 0.001047703191 | BK124: Value (€/kg) | BL124: 0.3 | BM124: 0.18 | BN124: =BL123*BL124+BM123*BM124 -> 0.2745 | BR124: =1/0.055 -> 18.18181818 | BW124: ='Country list'!H123 -> Luxembourg | BX124: ='Country list'!I123 -> Western Europe | BY124: ='Country list'!J123 -> we
A125: Processing and transport CO2 | B125: 0 | C125: 1526669.528 | D125: 0 | H125: 5 | I125: a | J125: 5a | K125: Manure applied to soils N2O | L125: 5 | M125: West Asia & Northern Africa | N125: 0.02181105797 | O125: 0.01962995218 | P125: 0.03464109208 | Q125: 0.06129066268 | R125: 0.04375779544 | S125: 0.1553848246 | T125: 0.02696123492 | U125: 0.02872918475 | V125: 0.01723751085 | W125: 0.0087310491 | X125: 0.002647697527 | Y125: 0.004487301651 | Z125: 0.0007202496885 | AA125: 0.0395086699 | AB125: 0.03555780291 | AC125: 0.03532064956 | AD125: 0.04768271343 | AE125: 0.1693222885 | AF125: 0.02684133151 | AG125: 0.02860141882 | AH125: 0.01716085129 | AI125: 0.03136988622 | AJ125: 0.03342692793 | AK125: 0.02005615676 | AL125: 0.006289974375 | AM125: 0.001907439691 | AN125: 0.003232717177 | AO125: 0.009581422339 | AP125: 0.002905573882 | AQ125: 0.004924348928 | AR125: 0.0006732939535 | BK125: MFA | BL125: =BL123/(BL123+BM123) -> 0.8461538462 | BM125: =BM123/(BL123+BM123) -> 0.1538461538 | BW125: ='Country list'!H124 -> Macau | BX125: ='Country list'!I124 -> East Asia and Southeast Asia | BY125: ='Country list'!J124 -> esea
A126: Blending and transport CO2 | B126: 0.02369204909 | C126: 1526669.528 | D126: 36169.92941 | H126: 6 | I126: a | J126: 6a | K126: Manure applied to soils N2O | L126: 6 | M126: East Asia | N126: 0.06966846396 | O126: 0.06270161756 | P126: 0.1106499133 | Q126: 0.1395069176 | R126: 0.04308309697 | S126: 0.1529889566 | T126: 0.02987964504 | U126: 0.03183896602 | V126: 0.01910337961 | W126: 0.03592749528 | X126: 0.01089504128 | Y126: 0.01846484964 | Z126: 0.002875550565 | AA126: 0.1051089649 | AB126: 0.09459806841 | AC126: 0.07274036779 | AD126: 0.04384512763 | AE126: 0.155694943 | AF126: 0.02487695796 | AG126: 0.02650823389 | AH126: 0.01590494034 | AI126: 0.02858622976 | AJ126: 0.03046073663 | AK126: 0.01827644198 | AL126: 0.02309479208 | AM126: 0.007003513915 | AN126: 0.01186951275 | AO126: 0.03450941514 | AP126: 0.01046500736 | AQ126: 0.01773603077 | AR126: 0.002485553716 | BK126: EFA | BL126: =BL123*BL124/BN124 -> 0.9016393443 | BM126: =BM123*BM124/BN124 -> 0.09836065574 | BW126: ='Country list'!H125 -> Madagascar | BX126: ='Country list'!I125 -> Sub-Saharan Africa | BY126: ='Country list'!J125 -> ssa
A127: Rice cultivation CH4 | B127: 0 | C127: 1526669.528 | D127: 0 | H127: 7 | I127: a | J127: 7a | K127: Manure applied to soils N2O | L127: 7 | M127: Oceania | N127: 0.0007778483405 | O127: 0.0007000635064 | P127: 0.001235406188 | Q127: 0.001236832329 | R127: 0.000795887991 | S127: 0.002826214499 | T127: 0.0005304560727 | U127: 0.0005652400775 | V127: 0.0003391440465 | W127: 0.000476160986 | X127: 0.0001443961946 | Y127: 0.0002447217916 | Z127: 1.447371704e-05 | AA127: 0.1131788854 | AB127: 0.1018609969 | AC127: 0.0006574788895 | AD127: 0.0008239005756 | AE127: 0.002925687758 | AF127: 0.0004580472767 | AG127: 0.0004880831636 | AH127: 0.0002928498982 | AI127: 0.0005332067165 | AJ127: 0.0005681710913 | AK127: 0.0003409026548 | AL127: 0.0003159653538 | AM127: 9.581674278e-05 | AN127: 0.0001623896324 | AO127: 0.0004725013434 | AP127: 0.0001432864051 | AQ127: 0.0002428409271 | AR127: 1.287137768e-05 | BW127: ='Country list'!H126 -> Madeira Islands | BX127: ='Country list'!I126 -> Western Europe | BY127: ='Country list'!J126 -> we
A128: LUC for feed production CO2 | B128: 0 | C128: 1526669.528 | D128: 0 | H128: 8 | I128: a | J128: 8a | K128: Manure applied to soils N2O | L128: 8 | M128: South Asia | N128: 0.1737997975 | O128: 0.1564198178 | P128: 0.2760349726 | Q128: 0.2744251899 | R128: 0.1174533793 | S128: 0.417079347 | T128: 0.04868186664 | U128: 0.05187412019 | V128: 0.03112447211 | W128: 0.07087484843 | X128: 0.02149285369 | Y128: 0.03642595761 | Z128: 0.005010039201 | AA128: 0.1454620541 | AB128: 0.1309158487 | AC128: 0.1281279403 | AD128: 0.1304802762 | AE128: 0.4633381236 | AF128: 0.0403058173 | AG128: 0.04294882171 | AH128: 0.02576929303 | AI128: 0.04656009655 | AJ128: 0.04961321764 | AK128: 0.02976793058 | AL128: 0.046968462 | AM128: 0.01424322315 | AN128: 0.02413932789 | AO128: 0.07338560862 | AP128: 0.0222542437 | AQ128: 0.03771635675 | AR128: 0.004603981158 | BK128: Feedprint | BW128: ='Country list'!H127 -> Malawi | BX128: ='Country list'!I127 -> Sub-Saharan Africa | BY128: ='Country list'!J127 -> ssa
A129: Fert. Prod CO2 | B129: 0.4870723188 | C129: 1526669.528 | D129: 743598.4672 | H129: 9 | I129: a | J129: 9a | K129: Manure applied to soils N2O | L129: 9 | M129: Central & South America | N129: 0.01495052168 | O129: 0.01345546951 | P129: 0.02374494619 | Q129: 0.05754629365 | R129: 0.005307738276 | S129: 0.01884788694 | T129: 0.01032241027 | U129: 0.01099928963 | V129: 0.00659957378 | W129: 0.01267507466 | X129: 0.003843726388 | Y129: 0.006514324084 | Z129: 0.00114785874 | AA129: 0.01783126521 | AB129: 0.01604813869 | AC129: 0.03050253136 | AD129: 0.005620752323 | AE129: 0.01995940621 | AF129: 0.01030425889 | AG129: 0.010979948 | AH129: 0.006587968798 | AI129: 0.01191561986 | AJ129: 0.01269697199 | AK129: 0.007618183191 | AL129: 0.009427958976 | AM129: 0.002859035996 | AN129: 0.004845476802 | AO129: 0.01435249634 | AP129: 0.004352405837 | AQ129: 0.007376430918 | AR129: 0.001083380491 | BM129: CO2e/kg | BW129: ='Country list'!H128 -> Malaysia | BX129: ='Country list'!I128 -> East Asia and Southeast Asia | BY129: ='Country list'!J128 -> esea
A130: CO2e non-disaggregated feeds | C130: 1526669.528 | D130: 0 | H130: 10 | I130: a | J130: 10a | K130: Manure applied to soils N2O | L130: 10 | M130: Sub-Saharan Africa | N130: 0.01855257315 | O130: 0.01669731584 | P130: 0.02946585147 | Q130: 0.06252873375 | R130: 0.01056411756 | S130: 0.03751339705 | T130: 0.02647685981 | U130: 0.02821304734 | V130: 0.01692782841 | W130: 0.01632987279 | X130: 0.004952046805 | Y130: 0.008392698781 | Z130: 0.0009027751872 | AA130: 0.02063152926 | AB130: 0.01856837633 | AC130: 0.026270936 | AD130: 0.01023212603 | AE130: 0.03633448837 | AF130: 0.02169281759 | AG130: 0.02311529744 | AH130: 0.01386917846 | AI130: 0.02516792431 | AJ130: 0.02681828 | AK130: 0.016090968 | AL130: 0.008846967841 | AM130: 0.002682849976 | AN130: 0.004546877809 | AO130: 0.01423598405 | AP130: 0.004317073391 | AQ130: 0.007316549704 | AR130: 0.0007081942076 | BK130: Maize grain EI | BL130: Brazil | BM130: 711 | BW130: ='Country list'!H129 -> Maldives | BX130: ='Country list'!I129 -> South Asia | BY130: ='Country list'!J129 -> sa
A131: Feed blending/transport (form GLEAM) | B131: 0.0786 | C131: 1526669.528 | D131: 119996.2249 | H131: 1 | I131: b | J131: 1b | K131: Synthetic fertilizers N2O | L131: 1 | M131: North America | N131: 0.1769343547 | O131: 0.1592409192 | P131: 0.2810133869 | Q131: 0.173539592 | R131: 0.1436167296 | S131: 0.5099859379 | T131: 0.09840391384 | U131: 0.1048566295 | V131: 0.0629139777 | W131: 0.05451159674 | X131: 0.01653068471 | Y131: 0.02801610382 | Z131: 0.006089546475 | AA131: 0.1739536729 | AB131: 0.1565583056 | AC131: 0.1006090613 | AD131: 0.1509620866 | AE131: 0.5360694505 | AF131: 0.0864398079 | AG131: 0.09210799202 | AH131: 0.05526479521 | AI131: 0.09978754289 | AJ131: 0.1063309883 | AK131: 0.06379859299 | AL131: 0.03797360696 | AM131: 0.01151552626 | AN131: 0.01951644381 | AO131: 0.05591484398 | AP131: 0.01695622054 | AQ131: 0.02873729936 | AR131: 0.005480537411 | BK131: Maize grain EI | BL131: Germany | BM131: 450 | BW131: ='Country list'!H130 -> Mali | BX131: ='Country list'!I130 -> Sub-Saharan Africa | BY131: ='Country list'!J130 -> ssa
H132: 2 | I132: b | J132: 2b | K132: Synthetic fertilizers N2O | L132: 2 | M132: Russian Federation | N132: 0.04676650822 | O132: 0.0420898574 | P132: 0.07427621895 | Q132: 0.04971999172 | R132: 0.02761315608 | S132: 0.09805488078 | T132: 0.02356535553 | U132: 0.02511062474 | V132: 0.01506637485 | W132: 0.01775811328 | X132: 0.00538516186 | Y132: 0.009126739539 | Z132: 0.00141040565 | AA132: 0.06140130339 | AB132: 0.05526117305 | AC132: 0.02952943383 | AD132: 0.03545914126 | AE132: 0.1259161343 | AF132: 0.02461783866 | AG132: 0.02623212316 | AH132: 0.0157392739 | AI132: 0.02852703477 | AJ132: 0.03039766 | AK132: 0.018238596 | AL132: 0.01503647703 | AM132: 0.00455982352 | AN132: 0.007727961145 | AO132: 0.02282046911 | AP132: 0.006920325258 | AQ132: 0.01172852512 | AR132: 0.001281115617 | BK132: Maize grain EI | BL132: France | BM132: 637 | BW132: ='Country list'!H131 -> Malta | BX132: ='Country list'!I131 -> Western Europe | BY132: ='Country list'!J131 -> we
H133: 3 | I133: b | J133: 3b | K133: Synthetic fertilizers N2O | L133: 3 | M133: Western Europe | N133: 0.2533264038 | O133: 0.2279937634 | P133: 0.4023419354 | Q133: 0.2570596888 | R133: 0.1249602438 | S133: 0.443736376 | T133: 0.09479375859 | U133: 0.1010097428 | V133: 0.06060584565 | W133: 0.07424225239 | X133: 0.0225140216 | Y133: 0.03815662676 | Z133: 0.005215841297 | AA133: 0.151239031 | AB133: 0.1361151279 | AC133: 0.1565307569 | AD133: 0.141073511 | AE133: 0.5009549165 | AF133: 0.07938162069 | AG133: 0.08458697286 | AH133: 0.05075218372 | AI133: 0.0910776807 | AJ133: 0.09704998763 | AK133: 0.05822999258 | AL133: 0.04873478893 | AM133: 0.01477886318 | AN133: 0.02504712736 | AO133: 0.07180416278 | AP133: 0.021774669 | AQ133: 0.03690357648 | AR133: 0.004546344596 | BK133: Maize grain EI | BL133: Hungary | BM133: 496 | BW133: ='Country list'!H132 -> Marshall Islands | BX133: ='Country list'!I132 -> Oceania | BY133: ='Country list'!J132 -> oc
B134: Comparison of default and specified rations | H134: 4 | I134: b | J134: 4b | K134: Synthetic fertilizers N2O | L134: 4 | M134: Eastern Europe | N134: 0.09151293227 | O134: 0.08236163904 | P134: 0.1453440689 | Q134: 0.178133996 | R134: 0.05826145574 | S134: 0.2068876183 | T134: 0.0789845821 | U134: 0.08416389896 | V134: 0.05049833937 | W134: 0.04756794873 | X134: 0.01442501797 | Y134: 0.02444743265 | Z134: 0.003065936478 | AA134: 0.09166880237 | AB134: 0.08250192213 | AC134: 0.08637311298 | AD134: 0.05276030002 | AE134: 0.1873529021 | AF134: 0.05207525473 | AG134: 0.05549002553 | AH134: 0.03329401532 | AI134: 0.06001036306 | AJ134: 0.06394546883 | AK134: 0.0383672813 | AL134: 0.0297348763 | AM134: 0.009017124692 | AN134: 0.01528216804 | AO134: 0.04454136101 | AP134: 0.01350720286 | AQ134: 0.02289192519 | AR134: 0.002678428541 | BK134: Maize grain EI | BL134: USA | BM134: 270 | BW134: ='Country list'!H133 -> Martinique | BX134: ='Country list'!I133 -> Latin America and the Caribbean | BY134: ='Country list'!J133 -> lac
C135: Default | D135: Specified | H135: 5 | I135: b | J135: 5b | K135: Synthetic fertilizers N2O | L135: 5 | M135: West Asia & Northern Africa | N135: 0.3253782354 | O135: 0.2928404119 | P135: 0.5167771974 | Q135: 0.4242443563 | R135: 0.03929177264 | S135: 0.1395258865 | T135: 0.08630241116 | U135: 0.09196158566 | V135: 0.0551769514 | W135: 0.2222992852 | X135: 0.0674124336 | Y135: 0.1142501821 | Z135: 0.01592668548 | AA135: 0.009371120854 | AB135: 0.008434008768 | AC135: 0.1304678652 | AD135: 0.03860023565 | AE135: 0.1370702246 | AF135: 0.04615074673 | AG135: 0.0491770252 | AH135: 0.02950621512 | AI135: 0.05326928894 | AJ135: 0.05676235707 | AK135: 0.03405741424 | AL135: 0.1246619987 | AM135: 0.03780384944 | AN135: 0.06406973391 | AO135: 0.1848094376 | AP135: 0.05604360773 | AQ135: 0.09498236523 | AR135: 0.0143316742 | BK135: Maize grain EI | BL135: Average | BM135: =AVERAGE(BM130:BM134) -> 512.8 | BW135: ='Country list'!H134 -> Mauritania | BX135: ='Country list'!I134 -> Sub-Saharan Africa | BY135: ='Country list'!J134 -> ssa
B136: Commercial | F136: Default | G136: With N and S wheat and maize merged | H136: 6 | I136: b | J136: 6b | K136: Synthetic fertilizers N2O | L136: 6 | M136: East Asia | N136: 0.796332418 | O136: 0.7166991762 | P136: 1.264763252 | Q136: 1.176796043 | R136: 0.3918060288 | S136: 1.391311204 | T136: 0.2972033178 | U136: 0.3166920599 | V136: 0.1900152359 | W136: 0.3537021196 | X136: 0.1072604468 | Y136: 0.1817843522 | Z136: 0.02296887849 | AA136: 1.023132127 | AB136: 0.9208189145 | AC136: 0.6162377475 | AD136: 0.4026368675 | AE136: 1.429771734 | AF136: 0.2465242852 | AG136: 0.2626898121 | AH136: 0.1576138872 | AI136: 0.2832653631 | AJ136: 0.301840141 | AK136: 0.1811040846 | AL136: 0.2268477053 | AM136: 0.06879174557 | AN136: 0.1165878316 | AO136: 0.3388753445 | AP136: 0.1027642155 | AQ136: 0.1741641669 | AR136: 0.01975573428 | BK136: Maize gluten meal | BM136: 1020 | BW136: ='Country list'!H135 -> Mauritius | BX136: ='Country list'!I135 -> Sub-Saharan Africa | BY136: ='Country list'!J135 -> ssa
A137: c_ | B137: Blood meal | C137: =IFERROR(VLOOKUP(CONCATENATE(A137,B137),E$137:G$180,3,FALSE),0) -> 0 | D137: =IFERROR(VLOOKUP(B137,B$7:C$16,2,FALSE),0)*F$36 -> 0 | E137: =TRANSPOSE(N296:BE296) -> c_Soybean | F137: =TRANSPOSE(N302:BE302) -> 0 | G137: =F137 -> 0 | H137: 7 | I137: b | J137: 7b | K137: Synthetic fertilizers N2O | L137: 7 | M137: Oceania | N137: 0.05769845608 | O137: 0.05192861047 | P137: 0.09163872436 | Q137: 0.1247787625 | R137: 0.05781139512 | S137: 0.2052894439 | T137: 0.06102190123 | U137: 0.06502333738 | V137: 0.03901400243 | W137: 0.04115646807 | X137: 0.01248073141 | Y137: 0.02115226761 | Z137: 0.001389272086 | AA137: 0 | AB137: 0 | AC137: 0.07405215019 | AD137: 0.05984616259 | AE137: 0.2125149447 | AF137: 0.05813554197 | AG137: 0.06194770866 | AH137: 0.03716862519 | AI137: 0.06776527801 | AJ137: 0.0722089028 | AK137: 0.04332534168 | AL137: 0.02917161428 | AM137: 0.008846315041 | AN137: 0.01499268088 | AO137: 0.04361332592 | AP137: 0.01322577549 | AQ137: 0.02241496379 | AR137: 0.001264411513 | BL137: Ratio of gluten meal EI to grain EI | BM137: =BM136/BM135 -> 1.989079563 | BW137: ='Country list'!H136 -> Mayotte | BX137: ='Country list'!I136 -> Sub-Saharan Africa | BY137: ='Country list'!J136 -> ssa
A138: c_ | B138: Cassava | C138: =IFERROR(VLOOKUP(CONCATENATE(A138,B138),E$137:G$180,3,FALSE),0) -> 0 | D138: =IFERROR(VLOOKUP(B138,B$7:C$16,2,FALSE),0)*F$36 -> 0 | E138: c_Soybean meal | F138: 0.254 | G138: =F138 -> 0.254 | H138: 8 | I138: b | J138: 8b | K138: Synthetic fertilizers N2O | L138: 8 | M138: South Asia | N138: 0.5386543311 | O138: 0.484788898 | P138: 0.85550982 | Q138: 1.020507903 | R138: 0.4182137479 | S138: 1.485085554 | T138: 0.1821743898 | U138: 0.1941202515 | V138: 0.1164721509 | W138: 0.2619989463 | X138: 0.07945138713 | Y138: 0.1346537273 | Z138: 0.01584901418 | AA138: 0.5633251723 | AB138: 0.5069926551 | AC138: 0.4771360471 | AD138: 0.4685084824 | AE138: 1.663683183 | AF138: 0.1489904668 | AG138: 0.1587603335 | AH138: 0.09525620011 | AI138: 0.1720751311 | AJ138: 0.1833587462 | AK138: 0.1100152477 | AL138: 0.1756717132 | AM138: 0.05327258559 | AN138: 0.09028605378 | AO138: 0.2746151794 | AP138: 0.08327726977 | AQ138: 0.1411378099 | AR138: 0.0147277435 | BW138: ='Country list'!H137 -> Mexico | BX138: ='Country list'!I137 -> Latin America and the Caribbean | BY138: ='Country list'!J137 -> lac
A139: c_ | B139: Feather meal | C139: 0 | D139: 0 | E139: c_Soy oil | F139: 0 | G139: =F139 -> 0 | H139: 9 | I139: b | J139: 9b | K139: Synthetic fertilizers N2O | L139: 9 | M139: Central & South America | N139: 0.07912902127 | O139: 0.07121611914 | P139: 0.1256755044 | Q139: 0.2750377771 | R139: 0.03955732944 | S139: 0.1404688841 | T139: 0.05586711678 | U139: 0.05953053428 | V139: 0.03571832057 | W139: 0.06234254304 | X139: 0.01890542535 | Y139: 0.0320407998 | Z139: 0.00483337868 | AA139: 0.08457988693 | AB139: 0.07612189823 | AC139: 0.1451189525 | AD139: 0.04138307468 | AE139: 0.1469521428 | AF139: 0.05351936887 | AG139: 0.05702883568 | AH139: 0.03421730141 | AI139: 0.06185287744 | AJ139: 0.06590880382 | AK139: 0.03954528229 | AL139: 0.04500357676 | AM139: 0.01364737015 | AN139: 0.02312947985 | AO139: 0.0684360303 | AP139: 0.02075328017 | AQ139: 0.0351725329 | AR139: 0.004629037839 | BW139: ='Country list'!H138 -> Micronesia (Federated States of) | BX139: ='Country list'!I138 -> Oceania | BY139: ='Country list'!J138 -> oc
A140: c_ | B140: Fishmeal - reduction | C140: =IFERROR(VLOOKUP(CONCATENATE(A140,B140),E$137:G$180,3,FALSE),0) -> 0.176 | D140: =IFERROR(VLOOKUP(B140,B$7:C$16,2,FALSE),0)*F$36 -> 0.14 | E140: c_Pulses | F140: 0 | G140: 0 | H140: 10 | I140: b | J140: 10b | K140: Synthetic fertilizers N2O | L140: 10 | M140: Sub-Saharan Africa | N140: 0.07784009207 | O140: 0.07005608286 | P140: 0.1236283815 | Q140: 0.0501920816 | R140: 0.05050678362 | S140: 0.1793506194 | T140: 0.03566497401 | U140: 0.03800366083 | V140: 0.0228021965 | W140: 0.03078062706 | X140: 0.009334249435 | Y140: 0.01581962912 | Z140: 0.0007892040795 | AA140: 0.08860386291 | AB140: 0.07974347662 | AC140: 0.01745889246 | AD140: 0.05922205339 | AE140: 0.2102987202 | AF140: 0.03172127044 | AG140: 0.03380135375 | AH140: 0.02028081225 | AI140: 0.03670165071 | AJ140: 0.03910831633 | AK140: 0.0234649898 | AL140: 0.01921297645 | AM140: 0.005826350263 | AN140: 0.009874462959 | AO140: 0.03011499398 | AP140: 0.009132395678 | AQ140: 0.0154775286 | AR140: 0.0007346518695 | BW140: ='Country list'!H139 -> Moldova, Republic of | BX140: ='Country list'!I139 -> Eastern Europe | BY140: ='Country list'!J139 -> ee
A141: c_ | B141: Fishoil - reduction | C141: =IFERROR(VLOOKUP(CONCATENATE(A141,B141),E$137:G$180,3,FALSE),0) -> 0.112 | D141: 0 | E141: c_Oilseed meal (non-soy) | F141: 0 | G141: 0 | H141: 1 | I141: c | J141: 1c | K141: Crop residue N2O | L141: 1 | M141: North America | N141: 0.06222339417 | O141: 0.05600105475 | P141: 0.09882539074 | Q141: =V24 -> 0.04714914973 | R141: 0.0367092005 | S141: 0.1303551202 | T141: 0.05089739122 | U141: 0.05423492507 | V141: 0.03254095504 | W141: 0.04258235169 | X141: 0.01291313174 | Y141: 0.02188509706 | Z141: 0.004168829339 | AA141: 0.1025992411 | AB141: 0.09233931702 | AC141: 0.07646258612 | AD141: 0.05844333599 | AE141: 0.2075334788 | AF141: 0.07068531864 | AG141: 0.0753204215 | AH141: 0.0451922529 | AI141: 0.08160498994 | AJ141: 0.08695613683 | AK141: 0.0521736821 | AL141: 0.05196900252 | AM141: 0.01575964101 | AN141: 0.02670934365 | AO141: 0.07652073819 | AP141: 0.02320497422 | AQ141: 0.03932764905 | AR141: 0.006701107219 | BL141: Dry milled maize | BW141: ='Country list'!H140 -> Monaco | BX141: ='Country list'!I140 -> Western Europe | BY141: ='Country list'!J140 -> we
A142: c_ | B142: Lime | C142: 0 | D142: 0 | E142: c_Oilseed oil (non-soy) | F142: 0 | G142: 0 | H142: 2 | I142: c | J142: 2c | K142: Crop residue N2O | L142: 2 | M142: Russian Federation | N142: 0.07340258156 | O142: 0.06606232341 | P142: 0.1165805707 | Q142: 0.05019980919 | R142: 0.03877536836 | S142: 0.1376921244 | T142: 0.05183990579 | U142: 0.05523924388 | V142: 0.03314354633 | W142: 0.04469735688 | X142: 0.01355450873 | Y142: 0.02297209888 | Z142: 0.004495254264 | AA142: 0.1232025855 | AB142: 0.1108823269 | AC142: 0.07708916278 | AD142: 0.06465496606 | AE142: 0.229591104 | AF142: 0.07155609931 | AG142: 0.07624830255 | AH142: 0.04574898153 | AI142: 0.08291888854 | AJ142: 0.08835619271 | AK142: 0.05301371562 | AL142: 0.05256439562 | AM142: 0.01594019443 | AN142: 0.02701534449 | AO142: 0.07977561507 | AP142: 0.0241920182 | AQ142: 0.04100048518 | AR142: 0.006860635555 | BL142: Ethanol | BM142: *DDGS | BW142: ='Country list'!H141 -> Mongolia | BX142: ='Country list'!I141 -> East Asia and Southeast Asia | BY142: ='Country list'!J141 -> esea
A143: c_ | B143: Maize | C143: 0 | D143: 0.105 | E143: c_Wheat | F143: 0 | G143: 0 | H143: 3 | I143: c | J143: 3c | K143: Crop residue N2O | L143: 3 | M143: Western Europe | N143: 0.05916134713 | O143: 0.05324521242 | P143: 0.09396213956 | Q143: 0.04103624375 | R143: 0.03507899106 | S143: 0.1245662131 | T143: 0.04628857278 | U143: 0.04932388902 | V143: 0.02959433341 | W143: 0.04118573491 | X143: 0.0124896066 | Y143: 0.02116730924 | Z143: 0.004253781696 | AA143: 0.1024178726 | AB143: 0.09217608532 | AC143: 0.07564249879 | AD143: 0.05820763146 | AE143: 0.2066964872 | AF143: 0.06750760926 | AG143: 0.07193433774 | AH143: 0.04316060264 | AI143: 0.07746623625 | AJ143: 0.08254598945 | AK143: 0.04952759367 | AL143: 0.05085582181 | AM143: 0.01542206808 | AN143: 0.0261372271 | AO143: 0.07494637382 | AP143: 0.02272754698 | AQ143: 0.03851850827 | AR143: 0.00671109596 | BK143: Mass | BL143: 1 | BM143: 0.92 | BN143: Kim and Dale (2002) | BW143: ='Country list'!H142 -> Montenegro | BX143: ='Country list'!I142 -> Western Europe | BY143: ='Country list'!J142 -> we
A144: c_ | B144: Maize DDGS | C144: 0 | D144: 0 | E144: c_Wheat flour | F144: 0 | G144: 0 | H144: 4 | I144: c | J144: 4c | K144: Crop residue N2O | L144: 4 | M144: Eastern Europe | N144: 0.07286063547 | O144: 0.06557457192 | P144: 0.1157198328 | Q144: 0.04906034513 | R144: 0.03877502144 | S144: 0.1376908925 | T144: 0.05117506845 | U144: 0.05453081065 | V144: 0.03271848639 | W144: 0.0445220854 | X144: 0.01350135752 | Y144: 0.02288201853 | Z144: 0.004495254264 | AA144: 0.1137482293 | AB144: 0.1023734064 | AC144: 0.07664968749 | AD144: 0.05819784838 | AE144: 0.2066617473 | AF144: 0.07049956592 | AG144: 0.07512248827 | AH144: 0.04507349296 | AI144: 0.08128742152 | AJ144: 0.08661774424 | AK144: 0.05197064654 | AL144: 0.05221517963 | AM144: 0.01583429441 | AN144: 0.02683586578 | AO144: 0.07820930786 | AP144: 0.0237170343 | AQ144: 0.04019548536 | AR144: 0.006840379164 | BK144: Value (€/kg) | BL144: 0.642 | BM144: 0.228 | BN144: Henriksson et al (2014b, p101) | BW144: ='Country list'!H143 -> Montserrat | BX144: ='Country list'!I143 -> Latin America and the Caribbean | BY144: ='Country list'!J143 -> lac
A145: c_ | B145: Maize gluten meal | C145: 0 | D145: 0 | E145: c_Wheat by-products | F145: 0 | G145: 0 | H145: 5 | I145: c | J145: 5c | K145: Crop residue N2O | L145: 5 | M145: West Asia & Northern Africa | N145: 0.06539302037 | O145: 0.05885371833 | P145: 0.1038595029 | Q145: 0.05636335214 | R145: 0.05681958789 | S145: 0.2017675162 | T145: 0.0532941586 | U145: 0.05678885752 | V145: 0.03407331451 | W145: 0.04410504701 | X145: 0.0133748903 | Y145: 0.02266768266 | Z145: 0.004229780775 | AA145: 0.115541837 | AB145: 0.1039876533 | AC145: 0.07652905554 | AD145: 0.08043387398 | AE145: 0.285622328 | AF145: 0.0721313495 | AG145: 0.07686127406 | AH145: 0.04611676444 | AI145: 0.08408625779 | AJ145: 0.08960011076 | AK145: 0.05376006646 | AL145: 0.05223372672 | AM145: 0.01583991883 | AN145: 0.02684539801 | AO145: 0.07784570346 | AP145: 0.02360677098 | AQ145: 0.04000861175 | AR145: 0.006727523255 | BK145: MFA | BL145: =BL143/(BL143+BM143) -> 0.5208333333 | BM145: =1-BL145 -> 0.4791666667 | BW145: ='Country list'!H144 -> Morocco | BX145: ='Country list'!I144 -> Near East and North Africa | BY145: ='Country list'!J144 -> nena
A146: c_ | B146: Meat and bone meal | C146: 0 | D146: 0 | E146: c_Maize | F146: 0 | G146: 0 | H146: 6 | I146: c | J146: 6c | K146: Crop residue N2O | L146: 6 | M146: East Asia | N146: 0.06685273713 | O146: 0.06016746342 | P146: 0.1061778766 | Q146: 0.05326508256 | R146: 0.03301315711 | S146: 0.1172303946 | T146: 0.05027892377 | U146: 0.05357590237 | V146: 0.03214554142 | W146: 0.04438798438 | X146: 0.01346069128 | Y146: 0.02281309764 | Z146: 0.004371477552 | AA146: 0.1140882086 | AB146: 0.1026793878 | AC146: 0.07697372593 | AD146: 0.0541273464 | AE146: 0.1922073117 | AF146: 0.07071070434 | AG146: 0.07534747184 | AH146: 0.0452084831 | AI146: 0.08124529704 | AJ146: 0.0865728575 | AK146: 0.0519437145 | AL146: 0.05228264644 | AM146: 0.01585475377 | AN146: 0.02687054018 | AO146: 0.07810206694 | AP146: 0.02368451341 | AQ146: 0.04014036914 | AR146: 0.006774412611 | BK146: EFA | BL146: =BL143*BL144/(BL143*BL144+BM143*BM144) -> 0.753733446 | BM146: =1-BL146 -> 0.246266554 | BW146: ='Country list'!H145 -> Mozambique | BX146: ='Country list'!I145 -> Sub-Saharan Africa | BY146: ='Country list'!J145 -> ssa
A147: c_ | B147: Oilseed meal (non-soy) | C147: 0 | D147: 0.035 | E147: c_Maize gluten meal | F147: 0 | G147: 0 | H147: 7 | I147: c | J147: 7c | K147: Crop residue N2O | L147: 7 | M147: Oceania | N147: 0.06460033086 | O147: 0.05814029778 | P147: 0.1026005255 | Q147: 0.05688123949 | R147: 0.04265699102 | S147: 0.1514758457 | T147: 0.05361429421 | U147: 0.05712998564 | V147: 0.03427799138 | W147: 0.04358209466 | X147: 0.01321630458 | Y147: 0.02239891255 | Z147: 0.004033765197 | AA147: 0.1169077472 | AB147: 0.1052169725 | AC147: 0.07612063806 | AD147: 0.06426188667 | AE147: 0.228195271 | AF147: 0.07213179616 | AG147: 0.07686175 | AH147: 0.04611705 | AI147: 0.08407559007 | AJ147: 0.08958874352 | AK147: 0.05375324611 | AL147: 0.05240083262 | AM147: 0.01589059382 | AN147: 0.02693128168 | AO147: 0.07880101929 | AP147: 0.02389647126 | AQ147: 0.04049959402 | AR147: 0.006640337521 | BK147: FFA | BL147: =BL146/BL145 -> 1.447168216 | BM147: =BM146/BM145 -> 0.5139475909 | BW147: ='Country list'!H146 -> Myanmar | BX147: ='Country list'!I146 -> East Asia and Southeast Asia | BY147: ='Country list'!J146 -> esea
A148: c_ | B148: Oilseed oil (non-soy) | C148: 0 | D148: 0.105 | E148: c_Maize DDGS | F148: 0 | G148: 0 | H148: 8 | I148: c | J148: 8c | K148: Crop residue N2O | L148: 8 | M148: South Asia | N148: 0.08831840171 | O148: 0.07948656154 | P148: 0.1402704027 | Q148: 0.07606047386 | R148: 0.05351750419 | S148: 0.1900417496 | T148: 0.05182077762 | U148: 0.0552188614 | V148: 0.03313131684 | W148: 0.04849682943 | X148: 0.01470670178 | Y148: 0.02492482865 | Z148: 0.004947506753 | AA148: 0.1301961159 | AB148: 0.1171765043 | AC148: 0.07475689606 | AD148: 0.07929768396 | AE148: 0.2815876941 | AF148: 0.07123840947 | AG148: 0.07590978058 | AH148: 0.04554586835 | AI148: 0.08228716016 | AJ148: 0.08768303951 | AK148: 0.05260982371 | AL148: 0.05303114298 | AM148: 0.01608173594 | AN148: 0.02725522817 | AO148: 0.08269497054 | AP148: 0.02507731504 | AQ148: 0.04250088088 | AR148: 0.007094224598 | BK148: Energy use (MJ/kg ethanol) | BL148: 13.7 | BN148: Kim and Dale (2002) | BW148: ='Country list'!H147 -> Namibia | BX148: ='Country list'!I147 -> Sub-Saharan Africa | BY148: ='Country list'!J147 -> ssa
A149: c_ | B149: Poultry meal | C149: 0 | D149: 0 | E149: c_Rice by-products | F149: 0 | G149: 0 | H149: 9 | I149: c | J149: 9c | K149: Crop residue N2O | L149: 9 | M149: Central & South America | N149: 0.06322648056 | O149: 0.0569038325 | P149: 0.1004185279 | Q149: 0.06325588183 | R149: 0.03750414931 | S149: 0.1331779996 | T149: 0.05138369606 | U149: 0.05475311875 | V149: 0.03285187125 | W149: 0.04547296502 | X149: 0.01378971251 | Y149: 0.02337072082 | Z149: 0.004606583788 | AA149: 0.1029715879 | AB149: 0.09267442907 | AC149: 0.07572758035 | AD149: 0.05920736576 | AE149: 0.2102465641 | AF149: 0.0712475334 | AG149: 0.0759195028 | AH149: 0.04555170168 | AI149: 0.08230566821 | AJ149: 0.08770276121 | AK149: 0.05262165673 | AL149: 0.05256381887 | AM149: 0.01594001953 | AN149: 0.02701504808 | AO149: 0.07977984747 | AP149: 0.02419330167 | AQ149: 0.04100266041 | AR149: 0.006945408801 | BW149: ='Country list'!H148 -> Nauru | BX149: ='Country list'!I148 -> Oceania | BY149: ='Country list'!J148 -> oc
A150: c_ | B150: Pulses | C150: 0 | D150: 0 | E150: nc_Soybean | F150: 0 | G150: 0 | H150: 10 | I150: c | J150: 10c | K150: Crop residue N2O | L150: 10 | M150: Sub-Saharan Africa | N150: 0.08172066096 | O150: 0.07354859487 | P150: 0.129791638 | Q150: 0.0808414155 | R150: 0.04491916302 | S150: 0.1595088646 | T150: 0.05231920289 | U150: 0.05574997029 | V150: 0.03344998218 | W150: 0.05188107624 | X150: 0.01573297729 | Y150: 0.02666415415 | Z150: 0.005932751031 | AA150: 0.1317521891 | AB150: 0.1185769702 | AC150: 0.07426158438 | AD150: 0.06865331784 | AE150: 0.2437893327 | AF150: 0.07149006354 | AG150: 0.07617793655 | AH150: 0.04570676193 | AI150: 0.08279326966 | AJ150: 0.08822233652 | AK150: 0.05293340191 | AL150: 0.0535242951 | AM150: 0.01623128471 | AN150: 0.02750868252 | AO150: 0.0863581695 | AP150: 0.02618818302 | AQ150: 0.04438357317 | AR150: 0.007422165403 | BW150: ='Country list'!H149 -> Nepal | BX150: ='Country list'!I149 -> South Asia | BY150: ='Country list'!J149 -> sa
A151: c_ | B151: Rice by-products | C151: 0 | D151: 0.07 | E151: nc_Soybean meal | F151: 0 | G151: 0 | H151: 1 | I151: d | J151: 1d | K151: Energy used in field operations CO2 | L151: 1 | M151: North America | N151: 0.1099885255 | O151: 0.09898967296 | P151: 0.1746876582 | Q151: 0.1186006218 | R151: 0.116743505 | S151: 0.4145585688 | T151: 0.05845177919 | U151: 0.06228468274 | V151: 0.03737080964 | W151: 0.05990803987 | X151: 0.01816716035 | Y151: 0.03078959276 | Z151: 0.2486873457 | AA151: 0.1109119132 | AB151: 0.09982072189 | AC151: 0.0688547343 | AD151: 0.1234128401 | AE151: 0.4382415137 | AF151: 0.05171684921 | AG151: 0.05510811801 | AH151: 0.03306487081 | AI151: 0.05970760807 | AJ151: 0.06362286106 | AK151: 0.03817371664 | AL151: 0.04181978106 | AM151: 0.0126818816 | AN151: 0.02149317573 | AO151: 0.06158100814 | AP151: 0.01867448929 | AQ151: 0.03164941078 | AR151: 0.2238165001 | BW151: ='Country list'!H150 -> Netherlands | BX151: ='Country list'!I150 -> Western Europe | BY151: ='Country list'!J150 -> we
A152: c_ | B152: Soy oil | C152: 0 | D152: 0.028 | E152: nc_Pulses | F152: 0 | G152: 0 | H152: 2 | I152: d | J152: 2d | K152: Energy used in field operations CO2 | L152: 2 | M152: Russian Federation | N152: 0.1755112261 | O152: 0.1579601035 | P152: 0.2787531237 | Q152: 0.1312602311 | R152: 0.1311457008 | S152: 0.46570106 | T152: 0.06495693326 | U152: 0.06921640429 | V152: 0.04152984258 | W152: 0.1160539985 | X152: 0.03519346658 | Y152: 0.05964567292 | Z152: 0.3559915345 | AA152: 0.2304345071 | AB152: 0.2073910564 | AC152: 0.07795737684 | AD152: 0.1684093773 | AE152: 0.5980251358 | AF152: 0.06785807014 | AG152: 0.07230777965 | AH152: 0.04338466779 | AI152: 0.07863361388 | AJ152: 0.08378991643 | AK152: 0.05027394986 | AL152: 0.09826739132 | AM152: 0.02979966393 | AN152: 0.05050428903 | AO152: 0.1491378695 | AP152: 0.04522617656 | AQ152: 0.07664904873 | AR152: 0.3233583033 | BL152: Wet milled maize | BW152: ='Country list'!H151 -> Netherlands Antilles | BX152: ='Country list'!I151 -> Latin America and the Caribbean | BY152: ='Country list'!J151 -> lac
A153: c_ | B153: Soybean | C153: 0 | D153: 0.14 | E153: nc_Oilseed meal (non-soy) | F153: 0.072 | G153: 0.072 | H153: 3 | I153: d | J153: 3d | K153: Energy used in field operations CO2 | L153: 3 | M153: Western Europe | N153: 0.1223681644 | O153: 0.1101313479 | P153: 0.1943494375 | Q153: 0.08423764259 | R153: 0.10409417 | S153: 0.3696405222 | T153: 0.02898989432 | U153: 0.03089087099 | V153: 0.0185345226 | W153: 0.0672519058 | X153: 0.02039419348 | Y153: 0.03456395497 | Z153: 0.2868309419 | AA153: 0.0943505615 | AB153: 0.08491550535 | AC153: 0.05258469656 | AD153: 0.1210140884 | AE153: 0.4297234976 | AF153: 0.02518526092 | AG153: 0.02683675344 | AH153: 0.01610205206 | AI153: 0.02891916223 | AJ153: 0.03081550074 | AK153: 0.01848930044 | AL153: 0.04333195463 | AM153: 0.01314044942 | AN153: 0.02227035369 | AO153: 0.06392200291 | AP153: 0.0193843978 | AQ153: 0.0328525594 | AR153: 0.2476504107 | BL153: Ethanol | BM153: Corn oil | BN153: Corn gluten meal | BO153: Corn gluten feed | BP153: Total mass/value | BW153: ='Country list'!H152 -> New Caledonia | BX153: ='Country list'!I152 -> Oceania | BY153: ='Country list'!J152 -> oc
A154: c_ | B154: Soybean meal | C154: 0.254 | D154: 0.014 | E154: nc_Oilseed oil (non-soy) | F154: 0.192 | G154: 0.192 | H154: 4 | I154: d | J154: 4d | K154: Energy used in field operations CO2 | L154: 4 | M154: Eastern Europe | N154: 0.1733335853 | O154: 0.1560002267 | P154: 0.2752945178 | Q154: 0.1312602311 | R154: 0.1311457008 | S154: 0.46570106 | T154: 0.06495693326 | U154: 0.06921640429 | V154: 0.04152984258 | W154: 0.1160539985 | X154: 0.03519346658 | Y154: 0.05964567292 | Z154: 0.3559915345 | AA154: 0.1743074059 | AB154: 0.1568766654 | AC154: 0.07189840078 | AD154: 0.1206232458 | AE154: 0.4283356077 | AF154: 0.04611974582 | AG154: 0.04914399145 | AH154: 0.02948639487 | AI154: 0.05318380892 | AJ154: 0.0566712718 | AK154: 0.03400276308 | AL154: 0.07384033501 | AM154: 0.02239213984 | AN154: 0.03795006229 | AO154: 0.1106606796 | AP154: 0.03355793839 | AQ154: 0.0568737897 | AR154: 0.3107187972 | BK154: Mass | BL154: 1 | BM154: 0.13 | BN154: 0.16 | BO154: 0.68 | BP154: =SUM(BL154:BO154) -> 1.97 | BQ154: Kim and Dale (2002) | BW154: ='Country list'!H153 -> New Zealand | BX154: ='Country list'!I153 -> Oceania | BY154: ='Country list'!J153 -> oc
A155: c_ | B155: Vitamin/mineral premix | C155: 0.021 | D155: 0 | E155: nc_Wheat | F155: 0 | G155: =F155+F158 -> 0.106 | H155: 5 | I155: d | J155: 5d | K155: Energy used in field operations CO2 | L155: 5 | M155: West Asia & Northern Africa | N155: 0.1281800717 | O155: 0.1153620645 | P155: 0.2035801139 | Q155: 0.1823543012 | R155: 0.2646889091 | S155: 0.9399157179 | T155: 0.09081564099 | U155: 0.09677076499 | V155: 0.05806245899 | W155: 0.09972575307 | X155: 0.03024191328 | Y155: 0.05125381054 | Z155: 0.2687236374 | AA155: 0.1853445023 | AB155: 0.1668100521 | AC155: 0.04119662568 | AD155: 0.06871125102 | AE155: 0.2439950546 | AF155: 0.09198148549 | AG155: 0.0980130583 | AH155: 0.05880783498 | AI155: 0.1075252518 | AJ155: 0.114576088 | AK155: 0.06874565279 | AL155: 0.06229598448 | AM155: 0.01889130643 | AN155: 0.03201687114 | AO155: 0.09339324385 | AP155: 0.02832157487 | AQ155: 0.04799923268 | AR155: 0.1053649497 | BK155: Value (€/kg) | BL155: 0.731 | BM155: 0.95 | BN155: 0.512 | BO155: 0.161 | BP155: =SUMPRODUCT(BL154:BO154,BL155:BO155) -> 1.0459 | BQ155: Henriksson et al (2014b, p101) | BW155: ='Country list'!H154 -> Nicaragua | BX155: ='Country list'!I154 -> Latin America and the Caribbean | BY155: ='Country list'!J154 -> lac
A156: c_ | B156: Wheat | C156: 0 | D156: 0 | E156: nc_Wheat flour | F156: 0 | G156: =F156+F159 -> 0 | H156: 6 | I156: d | J156: 6d | K156: Energy used in field operations CO2 | L156: 6 | M156: East Asia | N156: 0.136629954 | O156: 0.1229669586 | P156: 0.2170005151 | Q156: 0.1566705108 | R156: 0.08850023896 | S156: 0.3142661547 | T156: 0.03720041737 | U156: 0.039639789 | V156: 0.0237838734 | W156: 0.1075254306 | X156: 0.03260717165 | Y156: 0.05526243602 | Z156: 0.3153028314 | AA156: 0.03803755715 | AB156: 0.03423380144 | AC156: 0.01236762665 | AD156: 0.01811818779 | AE156: 0.06433805458 | AF156: 0.0125394864 | AG156: 0.0133617478 | AH156: 0.008017048682 | AI156: 0.01440888178 | AJ156: 0.01535372648 | AK156: 0.00921223589 | AL156: 0.04185507819 | AM156: 0.01269258548 | AN156: 0.0215113166 | AO156: 0.06252223998 | AP156: 0.01895991859 | AQ156: 0.03213315462 | AR156: 0.1334242108 | BK156: MFA | BL156: =BL154/$BP154 -> 0.5076142132 | BM156: =BM154/$BP154 -> 0.06598984772 | BN156: =BN154/$BP154 -> 0.08121827411 | BO156: =BO154/$BP154 -> 0.345177665 | BW156: ='Country list'!H155 -> Niger | BX156: ='Country list'!I155 -> Sub-Saharan Africa | BY156: ='Country list'!J155 -> ssa
A157: c_ | B157: Wheat by-products | C157: 0 | D157: 0.035 | E157: nc_Wheat by-products | F157: 0 | G157: =F157+F160 -> 0.066 | H157: 7 | I157: d | J157: 7d | K157: Energy used in field operations CO2 | L157: 7 | M157: Oceania | N157: 0.1229487211 | O157: 0.1106538489 | P157: 0.1952714981 | Q157: 0.1866474003 | R157: 0.1598731875 | S157: 0.5677129517 | T157: 0.09650811553 | U157: 0.1028365165 | V157: 0.06170190993 | W157: 0.08530969918 | X157: 0.02587023357 | Y157: 0.04384471437 | Z157: 0.2042883374 | AA157: 0 | AB157: 0 | AC157: 0.1125391722 | AD157: 0.1655002087 | AE157: 0.5876946188 | AF157: 0.09300518036 | AG157: 0.09910388071 | AH157: 0.05946232843 | AI157: 0.1084166914 | AJ157: 0.1155259827 | AK157: 0.0693155896 | AL157: 0.08123201132 | AM157: 0.02463367151 | AN157: 0.04174899652 | AO157: 0.1222710833 | AP157: 0.03707880246 | AQ157: 0.06284092869 | AR157: 0.185833713 | BK157: EFA | BL157: =BL154*BL155/$BP155 -> 0.6989195908 | BM157: =BM154*BM155/$BP155 -> 0.1180801224 | BN157: =BN154*BN155/$BP155 -> 0.07832488766 | BO157: =BO154*BO155/$BP155 -> 0.1046753992 | BP157: =SUM(BL157:BO157) -> 1 | BW157: ='Country list'!H156 -> Nigeria | BX157: ='Country list'!I156 -> Sub-Saharan Africa | BY157: ='Country list'!J156 -> ssa
A158: c_ | B158: Wheat flour | C158: 0 | D158: 0.028 | E158: nc_Wheat | F158: 0.106 | H158: 8 | I158: d | J158: 8d | K158: Energy used in field operations CO2 | L158: 8 | M158: South Asia | N158: 0.261833787 | O158: 0.2356504083 | P158: 0.4158536616 | Q158: 0.3456378877 | R158: 0.2402505875 | S158: 0.8531347392 | T158: 0.06461681426 | U158: 0.0688539824 | V158: 0.04131238944 | W158: 0.2207940966 | X158: 0.06695598395 | Y158: 0.113476594 | Z158: 0.5046580429 | AA158: 0.01937863231 | AB158: 0.01744076908 | AC158: 0.02418593876 | AD158: 0.05535568669 | AE158: 0.1965691732 | AF158: 0.006810825784 | AG158: 0.007257437311 | AH158: 0.004354462386 | AI158: 0.007871557958 | AJ158: 0.008387725693 | AK158: 0.005032635416 | AL158: 0.01077541895 | AM158: 0.003267654297 | AN158: 0.005538000611 | AO158: 0.01682165638 | AP158: 0.005101180565 | AQ158: 0.008645449769 | AR158: 0.1395128793 | BK158: FFA | BL158: =BL157/BL156 -> 1.376871594 | BM158: =BM157/BM156 -> 1.789368008 | BN158: 0.9643751793 | BO158: 0.3032507888 | BW158: ='Country list'!H157 -> Niue | BX158: ='Country list'!I157 -> Oceania | BY158: ='Country list'!J157 -> oc
E159: nc_Wheat flour | F159: 0 | H159: 9 | I159: d | J159: 9d | K159: Energy used in field operations CO2 | L159: 9 | M159: Central & South America | N159: 0.1152991876 | O159: 0.1037692688 | P159: 0.1831222391 | Q159: 0.2394914627 | R159: 0.12173751 | S159: 0.4322923823 | T159: 0.05684479326 | U159: 0.06057232069 | V159: 0.03634339241 | W159: 0.1374350488 | X159: 0.04167728696 | Y159: 0.07063441224 | Z159: 0.3925882617 | AA159: 0.1117679253 | AB159: 0.1005911328 | AC159: 0.06909488887 | AD159: 0.100419268 | AE159: 0.3565908701 | AF159: 0.05437908694 | AG159: 0.05794492871 | AH159: 0.03476695722 | AI159: 0.06284451485 | AJ159: 0.06696546664 | AK159: 0.04017927998 | AL159: 0.09667014331 | AM159: 0.02931529721 | AN159: 0.04968338726 | AO159: 0.1468966007 | AP159: 0.04454651004 | AQ159: 0.07549715405 | AR159: 0.1861848305 | BK159: Energy use (MJ/kg ethanol) | BL159: 12.3 | BW159: ='Country list'!H158 -> Norfolk Island | BX159: ='Country list'!I158 -> Oceania | BY159: ='Country list'!J158 -> oc
B160: Non-commercial | E160: nc_Wheat by-products | F160: 0.066 | H160: 10 | I160: d | J160: 10d | K160: Energy used in field operations CO2 | L160: 10 | M160: Sub-Saharan Africa | N160: 0.2235803008 | O160: 0.2012222707 | P160: 0.3550981248 | Q160: 0.3852704763 | R160: 0.1766152233 | S160: 0.6271642623 | T160: 0.07347951829 | U160: 0.07829784736 | V160: 0.04697870842 | W160: 0.3140876293 | X160: 0.09524732134 | Y160: 0.1614245804 | Z160: 0.8285328067 | AA160: 0 | AB160: 0 | AC160: 0.001589846332 | AD160: 0.04945745319 | AE160: 0.1756244256 | AF160: 0.01920834742 | AG160: 0.02046791119 | AH160: 0.01228074671 | AI160: 0.02218759619 | AJ160: 0.02364252053 | AK160: 0.01418551232 | AL160: 0.01974098198 | AM160: 0.005986468357 | AN160: 0.01014583013 | AO160: 0.03023288585 | AP160: 0.009168146482 | AQ160: 0.01553811885 | AR160: 0.06737447374 | BQ160: Kim and Dale (2002) | BW160: ='Country list'!H159 -> Northern Mariana Islands | BX160: ='Country list'!I159 -> Oceania | BY160: ='Country list'!J159 -> oc
A161: nc_ | B161: Cassava | C161: 0 | D161: =IFERROR(VLOOKUP(B161,B$18:C$27,2,FALSE),0)*F$37 -> 0.069 | E161: nc_Maize | F161: 0 | G161: =F161+F164 -> 0 | H161: 1 | I161: e | J161: 1e | K161: Processing and transport CO2 | L161: 1 | M161: North America | N161: 0.05210500211 | O161: =N161*O$116+O$109 -> 0.215517414 | P161: =N161*P$116+P$109 -> 0.7978049574 | Q161: 0.01118999999 | R161: 0.02369204909 | S161: 0.08413094982 | T161: 0.01491999999 | U161: =T161*U$116+U$109 -> 0.6074756491 | V161: =T161*V$116+V$109 -> 0.3644853894 | W161: 0.01491999906 | X161: =W161*X$116+X$109 -> 0.4757680828 | Y161: =W161*Y$116+Y$109 -> 0.8972333266 | Z161: =Y44*Z$116+Z$109 -> 0.1381044467 | AA161: 0 | AB161: =AA161*AB$116+AB$109 -> 0.1686229121 | AC161: 0 | AD161: 0.008971829899 | AE161: 0.03185915107 | AF161: 0 | AG161: =AF161*AG$116+AG$109 -> 0.5915772884 | AH161: =AF161*AH$116+AH$109 -> 0.354946373 | AI161: 0 | AJ161: =AI161*AJ$116+AJ$109 -> 0.5915772884 | AK161: =AI161*AK$116+AK$109 -> 0.354946373 | AL161: 0 | AM161: =AL161*AM$116+AM$109 -> 0.4712435814 | AN161: =AL161*AN$116+AN$109 -> 0.8895652291 | AO161: 0 | AP161: =AO161*AP$116+AP$109 -> 0.4712435814 | AQ161: =AO161*AQ$116+AQ$109 -> 0.8895652291 | AR161: =S44*AR$116+AR$109 -> 0.134490089 | BL161: Rice | BW161: ='Country list'!H160 -> Norway | BX161: ='Country list'!I160 -> Western Europe | BY161: ='Country list'!J160 -> we
A162: nc_ | B162: Groundnut meal | C162: 0 | D162: =IFERROR(VLOOKUP(B162,B$18:C$27,2,FALSE),0)*F$37 -> 0.033 | E162: nc_Maize gluten meal | F162: 0 | G162: =F162+F165 -> 0 | H162: 2 | I162: e | J162: 2e | K162: Processing and transport CO2 | L162: 2 | M162: Russian Federation | N162: 0.2156228125 | O162: =N162*O$116+O$109 -> 0.3626834434 | P162: =N162*P$116+P$109 -> 1.057509715 | Q162: 0.01118999999 | R162: 0.02369205095 | S162: 0.08413095643 | T162: 0.01491999999 | U162: =T162*U$116+U$109 -> 0.6074756491 | V162: =T162*V$116+V$109 -> 0.3644853894 | W162: 0.01491999999 | X162: =W162*X$116+X$109 -> 0.4757680831 | Y162: =W162*Y$116+Y$109 -> 0.8972333271 | Z162: =Y45*Z$116+Z$109 -> 0.1381044465 | AA162: 0 | AB162: =AA162*AB$116+AB$109 -> 0.1686229121 | AC162: 0 | AD162: 0.008971829899 | AE162: 0.03185915107 | AF162: 0 | AG162: =AF162*AG$116+AG$109 -> 0.5915772884 | AH162: =AF162*AH$116+AH$109 -> 0.354946373 | AI162: 0 | AJ162: =AI162*AJ$116+AJ$109 -> 0.5915772884 | AK162: =AI162*AK$116+AK$109 -> 0.354946373 | AL162: 0 | AM162: =AL162*AM$116+AM$109 -> 0.4712435814 | AN162: =AL162*AN$116+AN$109 -> 0.8895652291 | AO162: 0 | AP162: =AO162*AP$116+AP$109 -> 0.4712435814 | AQ162: =AO162*AQ$116+AQ$109 -> 0.8895652291 | AR162: =S45*AR$116+AR$109 -> 0.134490089 | BL162: Dried rice | BM162: Husks | BN162: Broken rice | BO162: Bran | BP162: Polishings | BQ162: White rice | BW162: ='Country list'!H161 -> Oman | BX162: ='Country list'!I161 -> Near East and North Africa | BY162: ='Country list'!J161 -> nena
A163: nc_ | B163: Maize | C163: 0 | D163: 0.012 | E163: nc_Maize DDGS | F163: 0 | G163: =F163+F166 -> 0 | H163: 3 | I163: e | J163: 3e | K163: Processing and transport CO2 | L163: 3 | M163: Western Europe | N163: 0.2146817744 | O163: 0.3618365091 | P163: 1.056015125 | Q163: 0.01118999999 | R163: 0.02369205095 | S163: 0.08413095643 | T163: 0.01491999906 | U163: 0.6074756481 | V163: 0.3644853888 | W163: 0.01492000092 | X163: 0.4757680834 | Y163: 0.8972333276 | Z163: 0.1381044467 | AA163: 0 | AB163: 0.1686229121 | AC163: 0 | AD163: 0.008971829899 | AE163: 0.03185915107 | AF163: 0 | AG163: 0.5915772884 | AH163: 0.354946373 | AI163: 0 | AJ163: 0.5915772884 | AK163: 0.354946373 | AL163: 0 | AM163: 0.4712435814 | AN163: 0.8895652291 | AO163: 0 | AP163: 0.4712435814 | AQ163: 0.8895652291 | AR163: 0.134490089 | BL163: 900 | BM163: =BL163*0.2 -> 180 | BN163: =(BL163-BM163)*0.12 -> 86.4 | BO163: =(BL163-BM163)*0.06 -> 43.2 | BP163: =(BL163-BM163)*0.02 -> 14.4 | BQ163: =BL163-BM163-BN163-BO163-BP163 -> 576 | BR163: Henriksson et al (2014b, p82) | BW163: ='Country list'!H162 -> Pakistan | BX163: ='Country list'!I162 -> South Asia | BY163: ='Country list'!J162 -> sa
A164: nc_ | B164: Maize DDGS | C164: 0 | D164: 0.03 | E164: nc_Maize | F164: 0 | H164: 4 | I164: e | J164: 4e | K164: Processing and transport CO2 | L164: 4 | M164: Eastern Europe | N164: 0.05403120443 | O164: 0.2172509961 | P164: 0.8008642199 | Q164: 0.01119000092 | R164: 0.02369204909 | S164: 0.08413094982 | T164: 0.01491999906 | U164: 0.6074756481 | V164: 0.3644853888 | W164: 0.01491999906 | X164: 0.4757680828 | Y164: 0.8972333266 | Z164: 0.1381044467 | AA164: 0 | AB164: 0.1686229121 | AC164: 0 | AD164: 0.008971829899 | AE164: 0.03185915107 | AF164: 0 | AG164: 0.5915772884 | AH164: 0.354946373 | AI164: 0 | AJ164: 0.5915772884 | AK164: 0.354946373 | AL164: 0 | AM164: 0.4712435814 | AN164: 0.8895652291 | AO164: 0 | AP164: 0.4712435814 | AQ164: 0.8895652291 | AR164: 0.134490089 | BK164: MFA | BL164: =BL163/$BL163 -> 1 | BM164: =BM163/$BL163 -> 0.2 | BN164: =BN163/$BL163 -> 0.096 | BO164: 0.048 | BP164: 0.016 | BQ164: 0.64 | BW164: ='Country list'!H163 -> Palau | BX164: ='Country list'!I163 -> Oceania | BY164: ='Country list'!J163 -> oc
A165: nc_ | B165: Maize gluten meal | C165: 0 | D165: 0 | E165: nc_Maize gluten meal | F165: 0 | H165: 5 | I165: e | J165: 5e | K165: Processing and transport CO2 | L165: 5 | M165: West Asia & Northern Africa | N165: 0.1992333233 | O165: 0.3479329031 | P165: 1.03147935 | Q165: 0.01118999906 | R165: 0.02369205095 | S165: 0.08413095643 | T165: 0.01491999999 | U165: 0.6074756491 | V165: 0.3644853894 | W165: 0.01491999999 | X165: 0.4757680831 | Y165: 0.8972333271 | Z165: 0.1381044465 | AA165: 0 | AB165: 0.1686229121 | AC165: 0 | AD165: 0.008971829899 | AE165: 0.03185915107 | AF165: 0 | AG165: 0.5915772884 | AH165: 0.354946373 | AI165: 0 | AJ165: 0.5915772884 | AK165: 0.354946373 | AL165: 0 | AM165: 0.4712435814 | AN165: 0.8895652291 | AO165: 0 | AP165: 0.4712435814 | AQ165: 0.8895652291 | AR165: 0.134490089 | BK165: Value (€/kg) | BM165: 0.069 | BN165: 0.24 | BO165: 0.0686 | BP165: 0.0686 | BQ165: 0.38 | BR165: Henriksson et al (2014b, p102) | BW165: ='Country list'!H164 -> Panama | BX165: ='Country list'!I164 -> Latin America and the Caribbean | BY165: ='Country list'!J164 -> lac
A166: nc_ | B166: Oilseed meal (non-soy) | C166: 0.072 | D166: 0 | E166: nc_Maize DDGS | F166: 0 | H166: 6 | I166: e | J166: 6e | K166: Processing and transport CO2 | L166: 6 | M166: East Asia | N166: 0.2160587907 | O166: 0.3630758238 | P166: 1.058202151 | Q166: 0.01118999999 | R166: 0.02369204909 | S166: 0.08413094982 | T166: 0.01491999999 | U166: 0.6074756491 | V166: 0.3644853894 | W166: 0.01492000092 | X166: 0.4757680834 | Y166: 0.8972333276 | Z166: 0.1381044467 | AA166: 0 | AB166: 0.1686229121 | AC166: 0 | AD166: 0.008971829899 | AE166: 0.03185915107 | AF166: 0 | AG166: 0.5915772884 | AH166: 0.354946373 | AI166: 0 | AJ166: 0.5915772884 | AK166: 0.354946373 | AL166: 0 | AM166: 0.4712435814 | AN166: 0.8895652291 | AO166: 0 | AP166: 0.4712435814 | AQ166: 0.8895652291 | AR166: 0.134490089 | BK166: EFA | BM166: =BM164*BM165/$BL167 -> 0.04851802058 | BN166: =BN164*BN165/$BL167 -> 0.08100399957 | BO166: 0.01157682161 | BP166: 0.003858940535 | BQ166: 0.8550422177 | BW166: ='Country list'!H165 -> Papua New Guinea | BX166: ='Country list'!I165 -> Oceania | BY166: ='Country list'!J165 -> oc
A167: nc_ | B167: Oilseed oil (non-soy) | C167: 0.192 | D167: 0 | E167: nc_Rice by-products | F167: 0 | G167: 0 | H167: 7 | I167: e | J167: 7e | K167: Processing and transport CO2 | L167: 7 | M167: Oceania | N167: 0.05234588683 | O167: 0.2157342103 | P167: 0.798187539 | Q167: 0.01118999999 | R167: 0.02369205095 | S167: 0.08413095643 | T167: 0.01492000092 | U167: 0.60747565 | V167: 0.36448539 | W167: 0.01491999999 | X167: 0.4757680831 | Y167: 0.8972333271 | Z167: 0.1381044467 | AA167: 0 | AB167: 0.1686229121 | AC167: 0 | AD167: 0.008971829899 | AE167: 0.03185915107 | AF167: 0 | AG167: 0.5915772884 | AH167: 0.354946373 | AI167: 0 | AJ167: 0.5915772884 | AK167: 0.354946373 | AL167: 0 | AM167: 0.4712435814 | AN167: 0.8895652291 | AO167: 0 | AP167: 0.4712435814 | AQ167: 0.8895652291 | AR167: 0.134490089 | BL167: =SUMPRODUCT(BM164:BQ164,BM165:BQ165) -> 0.2844304 | BW167: ='Country list'!H166 -> Paraguay | BX167: ='Country list'!I166 -> Latin America and the Caribbean | BY167: ='Country list'!J166 -> lac
A168: nc_ | B168: Pulses | C168: 0 | D168: 0 | E168: c_Fishmeal - trimmings | F168: 0 | G168: 0 | H168: 8 | I168: e | J168: 8e | K168: Processing and transport CO2 | L168: 8 | M168: South Asia | N168: 0.06088742241 | O168: 0.2234215923 | P168: 0.8117535073 | Q168: 0.01118999999 | R168: 0.02369204722 | S168: 0.0841309432 | T168: 0.01491999906 | U168: 0.6074756481 | V168: 0.3644853888 | W168: 0.01491999999 | X168: 0.4757680831 | Y168: 0.8972333271 | Z168: 0.1381044467 | AA168: 0 | AB168: 0.1686229121 | AC168: 0 | AD168: 0.008971829899 | AE168: 0.03185915107 | AF168: 0 | AG168: 0.5915772884 | AH168: 0.354946373 | AI168: 0 | AJ168: 0.5915772884 | AK168: 0.354946373 | AL168: 0 | AM168: 0.4712435814 | AN168: 0.8895652291 | AO168: 0 | AP168: 0.4712435814 | AQ168: 0.8895652291 | AR168: 0.134490089 | BW168: ='Country list'!H167 -> Peru | BX168: ='Country list'!I167 -> Latin America and the Caribbean | BY168: ='Country list'!J167 -> lac
A169: nc_ | B169: Rice by-products | C169: 0 | D169: 0.03 | E169: c_Fishmeal - reduction | F169: 0.176 | G169: 0.176 | H169: 9 | I169: e | J169: 9e | K169: Processing and transport CO2 | L169: 9 | M169: Central & South America | N169: 0.05530077964 | O169: 0.2183936138 | P169: 0.8028806041 | Q169: 0.01119000092 | R169: 0.02369204909 | S169: 0.08413094982 | T169: 0.01491999906 | U169: 0.6074756481 | V169: 0.3644853888 | W169: 0.01492000092 | X169: 0.4757680834 | Y169: 0.8972333276 | Z169: 0.1381044465 | AA169: 0 | AB169: 0.1686229121 | AC169: 0 | AD169: 0.008971828967 | AE169: 0.03185914776 | AF169: 0 | AG169: 0.5915772884 | AH169: 0.354946373 | AI169: 0 | AJ169: 0.5915772884 | AK169: 0.354946373 | AL169: 0 | AM169: 0.4712435814 | AN169: 0.8895652291 | AO169: 0 | AP169: 0.4712435814 | AQ169: 0.8895652291 | AR169: 0.134490089 | BW169: ='Country list'!H168 -> Philippines | BX169: ='Country list'!I168 -> East Asia and Southeast Asia | BY169: ='Country list'!J168 -> esea
A170: nc_ | B170: Soybean | C170: 0 | D170: 0.015 | E170: c_Fishoil - trimmings | F170: 0 | G170: 0 | H170: 10 | I170: e | J170: 10e | K170: Processing and transport CO2 | L170: 10 | M170: Sub-Saharan Africa | N170: 0.05439320579 | O170: 0.2175767973 | P170: 0.8014391633 | Q170: 0.01118999999 | R170: 0.02369204722 | S170: 0.0841309432 | T170: 0.01492000092 | U170: 0.60747565 | V170: 0.36448539 | W170: 0.01491999999 | X170: 0.4757680831 | Y170: 0.8972333271 | Z170: 0.1381044467 | AA170: 0 | AB170: 0.1686229121 | AC170: 0 | AD170: 0.008971829899 | AE170: 0.03185915107 | AF170: 0 | AG170: 0.5915772884 | AH170: 0.354946373 | AI170: 0 | AJ170: 0.5915772884 | AK170: 0.354946373 | AL170: 0 | AM170: 0.4712435814 | AN170: 0.8895652291 | AO170: 0 | AP170: 0.4712435814 | AQ170: 0.8895652291 | AR170: 0.134490089 | BW170: ='Country list'!H169 -> Pitcairn | BX170: ='Country list'!I169 -> Oceania | BY170: ='Country list'!J169 -> oc
A171: nc_ | B171: Soybean meal | C171: 0 | D171: 0.03 | E171: c_Fishoil - reduction | F171: 0.112 | G171: 0.112 | H171: 1 | I171: f | J171: 1f | K171: Blending and transport CO2 | L171: 1 | M171: North America | N171: 0 | O171: 0 | P171: 0 | Q171: 0 | R171: 0 | S171: 0 | T171: 0 | U171: 0 | V171: 0 | W171: 0 | X171: 0 | Y171: 0 | Z171: 0 | AA171: 0 | AB171: 0 | AC171: 0 | AD171: 0 | AE171: 0 | AF171: 0 | AG171: 0 | AH171: 0 | AI171: 0 | AJ171: 0 | AK171: 0 | AL171: 0 | AM171: 0 | AN171: 0 | AO171: 0 | AP171: 0 | AQ171: 0 | AR171: 0 | BW171: ='Country list'!H170 -> Poland | BX171: ='Country list'!I170 -> Eastern Europe | BY171: ='Country list'!J170 -> ee
A172: nc_ | B172: Wheat | C172: 0.106 | D172: 0.021 | E172: c_Poultry meal | F172: 0 | G172: 0 | H172: 2 | I172: f | J172: 2f | K172: Blending and transport CO2 | L172: 2 | M172: Russian Federation | N172: 0 | O172: 0 | P172: 0 | Q172: 0 | R172: 0 | S172: 0 | T172: 0 | U172: 0 | V172: 0 | W172: 0 | X172: 0 | Y172: 0 | Z172: 0 | AA172: 0 | AB172: 0 | AC172: 0 | AD172: 0 | AE172: 0 | AF172: 0 | AG172: 0 | AH172: 0 | AI172: 0 | AJ172: 0 | AK172: 0 | AL172: 0 | AM172: 0 | AN172: 0 | AO172: 0 | AP172: 0 | AQ172: 0 | AR172: 0 | BK172: Notes | BW172: ='Country list'!H171 -> Portugal | BX172: ='Country list'!I171 -> Western Europe | BY172: ='Country list'!J171 -> we
A173: nc_ | B173: Wheat by-products | C173: 0.066 | D173: 0 | E173: c_Feather meal | F173: 0 | G173: 0 | H173: 3 | I173: f | J173: 3f | K173: Blending and transport CO2 | L173: 3 | M173: Western Europe | N173: 0 | O173: 0 | P173: 0 | Q173: 0 | R173: 0 | S173: 0 | T173: 0 | U173: 0 | V173: 0 | W173: 0 | X173: 0 | Y173: 0 | Z173: 0 | AA173: 0 | AB173: 0 | AC173: 0 | AD173: 0 | AE173: 0 | AF173: 0 | AG173: 0 | AH173: 0 | AI173: 0 | AJ173: 0 | AK173: 0 | AL173: 0 | AM173: 0 | AN173: 0 | AO173: 0 | AP173: 0 | AQ173: 0 | AR173: 0 | BK173: *Distillers dried grains and solubles | BW173: ='Country list'!H172 -> Puerto Rico | BX173: ='Country list'!I172 -> Latin America and the Caribbean | BY173: ='Country list'!J172 -> lac
A174: nc_ | B174: Wheat flour | C174: =IFERROR(VLOOKUP(CONCATENATE(A174,B174),E$137:G$180,3,FALSE),0) -> 0 | D174: 0 | E174: c_Meat and bone meal | F174: 0 | G174: 0 | H174: 4 | I174: f | J174: 4f | K174: Blending and transport CO2 | L174: 4 | M174: Eastern Europe | N174: 0 | O174: 0 | P174: 0 | Q174: 0 | R174: 0 | S174: 0 | T174: 0 | U174: 0 | V174: 0 | W174: 0 | X174: 0 | Y174: 0 | Z174: 0 | AA174: 0 | AB174: 0 | AC174: 0 | AD174: 0 | AE174: 0 | AF174: 0 | AG174: 0 | AH174: 0 | AI174: 0 | AJ174: 0 | AK174: 0 | AL174: 0 | AM174: 0 | AN174: 0 | AO174: 0 | AP174: 0 | AQ174: 0 | AR174: 0 | BK174: Kim S, Dale BE (2002) Allocation procedure in ethanol production system from corn grain. Int J Life Cycle Assess 7:237–243. doi: 10.1007/BF02978879 | BW174: ='Country list'!H173 -> Qatar | BX174: ='Country list'!I173 -> Near East and North Africa | BY174: ='Country list'!J173 -> nena
C175: =SUM(C137:C174) -> 0.999 | D175: =SUM(D137:D174) -> 0.94 | E175: c_Blood meal | F175: 0 | G175: 0 | H175: 5 | I175: f | J175: 5f | K175: Blending and transport CO2 | L175: 5 | M175: West Asia & Northern Africa | N175: 0 | O175: 0 | P175: 0 | Q175: 0 | R175: 0 | S175: 0 | T175: 0 | U175: 0 | V175: 0 | W175: 0 | X175: 0 | Y175: 0 | Z175: 0 | AA175: 0 | AB175: 0 | AC175: 0 | AD175: 0 | AE175: 0 | AF175: 0 | AG175: 0 | AH175: 0 | AI175: 0 | AJ175: 0 | AK175: 0 | AL175: 0 | AM175: 0 | AN175: 0 | AO175: 0 | AP175: 0 | AQ175: 0 | AR175: 0 | BW175: ='Country list'!H174 -> Republic of Korea | BX175: ='Country list'!I174 -> East Asia and Southeast Asia | BY175: ='Country list'!J174 -> esea
E176: c_Vitamin/mineral premix | F176: 0.021 | G176: 0.021 | H176: 6 | I176: f | J176: 6f | K176: Blending and transport CO2 | L176: 6 | M176: East Asia | N176: 0 | O176: 0 | P176: 0 | Q176: 0 | R176: 0 | S176: 0 | T176: 0 | U176: 0 | V176: 0 | W176: 0 | X176: 0 | Y176: 0 | Z176: 0 | AA176: 0 | AB176: 0 | AC176: 0 | AD176: 0 | AE176: 0 | AF176: 0 | AG176: 0 | AH176: 0 | AI176: 0 | AJ176: 0 | AK176: 0 | AL176: 0 | AM176: 0 | AN176: 0 | AO176: 0 | AP176: 0 | AQ176: 0 | AR176: 0 | BW176: ='Country list'!H175 -> Republic of Serbia | BX176: ='Country list'!I175 -> Western Europe | BY176: ='Country list'!J175 -> we
E177: c_Lime | F177: 0 | G177: 0 | H177: 7 | I177: f | J177: 7f | K177: Blending and transport CO2 | L177: 7 | M177: Oceania | N177: 0 | O177: 0 | P177: 0 | Q177: 0 | R177: 0 | S177: 0 | T177: 0 | U177: 0 | V177: 0 | W177: 0 | X177: 0 | Y177: 0 | Z177: 0 | AA177: 0 | AB177: 0 | AC177: 0 | AD177: 0 | AE177: 0 | AF177: 0 | AG177: 0 | AH177: 0 | AI177: 0 | AJ177: 0 | AK177: 0 | AL177: 0 | AM177: 0 | AN177: 0 | AO177: 0 | AP177: 0 | AQ177: 0 | AR177: 0 | BW177: ='Country list'!H176 -> Republic of Sudan | BX177: ='Country list'!I176 -> Near East and North Africa | BY177: ='Country list'!J176 -> nena
E178: c_Cassava | F178: 0 | G178: 0 | H178: 8 | I178: f | J178: 8f | K178: Blending and transport CO2 | L178: 8 | M178: South Asia | N178: 0 | O178: 0 | P178: 0 | Q178: 0 | R178: 0 | S178: 0 | T178: 0 | U178: 0 | V178: 0 | W178: 0 | X178: 0 | Y178: 0 | Z178: 0 | AA178: 0 | AB178: 0 | AC178: 0 | AD178: 0 | AE178: 0 | AF178: 0 | AG178: 0 | AH178: 0 | AI178: 0 | AJ178: 0 | AK178: 0 | AL178: 0 | AM178: 0 | AN178: 0 | AO178: 0 | AP178: 0 | AQ178: 0 | AR178: 0 | BW178: ='Country list'!H177 -> Reunion | BX178: ='Country list'!I177 -> Sub-Saharan Africa | BY178: ='Country list'!J177 -> ssa
E179: nc_Cassava | F179: 0 | G179: 0 | H179: 9 | I179: f | J179: 9f | K179: Blending and transport CO2 | L179: 9 | M179: Central & South America | N179: 0 | O179: 0 | P179: 0 | Q179: 0 | R179: 0 | S179: 0 | T179: 0 | U179: 0 | V179: 0 | W179: 0 | X179: 0 | Y179: 0 | Z179: 0 | AA179: 0 | AB179: 0 | AC179: 0 | AD179: 0 | AE179: 0 | AF179: 0 | AG179: 0 | AH179: 0 | AI179: 0 | AJ179: 0 | AK179: 0 | AL179: 0 | AM179: 0 | AN179: 0 | AO179: 0 | AP179: 0 | AQ179: 0 | AR179: 0 | BW179: ='Country list'!H178 -> Romania | BX179: ='Country list'!I178 -> Eastern Europe | BY179: ='Country list'!J178 -> ee
E180: nc_Groundnut meal | F180: 0 | G180: 0 | H180: 10 | I180: f | J180: 10f | K180: Blending and transport CO2 | L180: 10 | M180: Sub-Saharan Africa | N180: 0 | O180: 0 | P180: 0 | Q180: 0 | R180: 0 | S180: 0 | T180: 0 | U180: 0 | V180: 0 | W180: 0 | X180: 0 | Y180: 0 | Z180: 0 | AA180: 0 | AB180: 0 | AC180: 0 | AD180: 0 | AE180: 0 | AF180: 0 | AG180: 0 | AH180: 0 | AI180: 0 | AJ180: 0 | AK180: 0 | AL180: 0 | AM180: 0 | AN180: 0 | AO180: 0 | AP180: 0 | AQ180: 0 | AR180: 0 | BW180: ='Country list'!H179 -> Russian Federation | BX180: ='Country list'!I179 -> Russian Federation | BY180: ='Country list'!J179 -> rus
H181: 1 | I181: g | J181: 1g | K181: Rice cultivation CH4 | L181: 1 | M181: North America | N181: 0 | O181: 0 | P181: 0 | Q181: 0 | R181: 0 | S181: 0 | T181: 0 | U181: 0 | V181: 0 | W181: 0 | X181: 0 | Y181: 0 | Z181: 0.302810844 | AA181: 0 | AB181: 0 | AC181: 0 | AD181: 0 | AE181: 0 | AF181: 0 | AG181: 0 | AH181: 0 | AI181: 0 | AJ181: 0 | AK181: 0 | AL181: 0 | AM181: 0 | AN181: 0 | AO181: 0 | AP181: 0 | AQ181: 0 | AR181: 0.2967546023 | BW181: ='Country list'!H180 -> Rwanda | BX181: ='Country list'!I180 -> Sub-Saharan Africa | BY181: ='Country list'!J180 -> ssa
H182: 2 | I182: g | J182: 2g | K182: Rice cultivation CH4 | L182: 2 | M182: Russian Federation | N182: 0 | O182: 0 | P182: 0 | Q182: 0 | R182: 0 | S182: 0 | T182: 0 | U182: 0 | V182: 0 | W182: 0 | X182: 0 | Y182: 0 | Z182: 0.3209801557 | AA182: 0 | AB182: 0 | AC182: 0 | AD182: 0 | AE182: 0 | AF182: 0 | AG182: 0 | AH182: 0 | AI182: 0 | AJ182: 0 | AK182: 0 | AL182: 0 | AM182: 0 | AN182: 0 | AO182: 0 | AP182: 0 | AQ182: 0 | AR182: 0.3149239365 | BW182: ='Country list'!H181 -> Saint Helena | BX182: ='Country list'!I181 -> Sub-Saharan Africa | BY182: ='Country list'!J181 -> ssa
H183: 3 | I183: g | J183: 3g | K183: Rice cultivation CH4 | L183: 3 | M183: Western Europe | N183: 0 | O183: 0 | P183: 0 | Q183: 0 | R183: 0 | S183: 0 | T183: 0 | U183: 0 | V183: 0 | W183: 0 | X183: 0 | Y183: 0 | Z183: 0.3209801557 | AA183: 0 | AB183: 0 | AC183: 0 | AD183: 0 | AE183: 0 | AF183: 0 | AG183: 0 | AH183: 0 | AI183: 0 | AJ183: 0 | AK183: 0 | AL183: 0 | AM183: 0 | AN183: 0 | AO183: 0 | AP183: 0 | AQ183: 0 | AR183: 0.3149239365 | BW183: ='Country list'!H182 -> Saint Kitts and Nevis | BX183: ='Country list'!I182 -> Latin America and the Caribbean | BY183: ='Country list'!J182 -> lac
H184: 4 | I184: g | J184: 4g | K184: Rice cultivation CH4 | L184: 4 | M184: Eastern Europe | N184: 0 | O184: 0 | P184: 0 | Q184: 0 | R184: 0 | S184: 0 | T184: 0 | U184: 0 | V184: 0 | W184: 0 | X184: 0 | Y184: 0 | Z184: 0.3209801557 | AA184: 0 | AB184: 0 | AC184: 0 | AD184: 0 | AE184: 0 | AF184: 0 | AG184: 0 | AH184: 0 | AI184: 0 | AJ184: 0 | AK184: 0 | AL184: 0 | AM184: 0 | AN184: 0 | AO184: 0 | AP184: 0 | AQ184: 0 | AR184: 0.314923914 | BW184: ='Country list'!H183 -> Saint Lucia | BX184: ='Country list'!I183 -> Latin America and the Caribbean | BY184: ='Country list'!J183 -> lac
H185: 5 | I185: g | J185: 5g | K185: Rice cultivation CH4 | L185: 5 | M185: West Asia & Northern Africa | N185: 0 | O185: 0 | P185: 0 | Q185: =V68 -> 0 | R185: =AA68 -> 0 | S185: =R185*(R$114/R$115)*S$116 -> 0 | T185: =W68 -> 0 | U185: =T185*U$116 -> 0 | V185: 0 | W185: =X68 -> 0 | X185: =W185*X$116 -> 0 | Y185: 0 | Z185: =Y68*Z$116 -> 0.3316704028 | AA185: 0 | AB185: 0 | AC185: =N68 -> 0 | AD185: =U68 -> 0 | AE185: 0 | AF185: 0 | AG185: =AF185*AG$116 -> 0 | AH185: =AF185*AH$116 -> 0 | AI185: =P68 -> 0 | AJ185: =AI185*AJ$116 -> 0 | AK185: =AI185*AK$116 -> 0 | AL185: 0 | AM185: =AL185*AM$116 -> 0 | AN185: =AL185*AN$116 -> 0 | AO185: =R68 -> 0 | AP185: =AO185*AP$116 -> 0 | AQ185: =AO185*AQ$116 -> 0 | AR185: 0.3238387741 | BW185: ='Country list'!H184 -> Saint Pierre et Miquelon | BX185: ='Country list'!I184 -> Oceania | BY185: ='Country list'!J184 -> oc
H186: =L186 -> 6 | I186: g | J186: =CONCATENATE(H186,I186) -> 6g | K186: Rice cultivation CH4 | L186: 6 | M186: East Asia | N186: =Z69 -> 0 | O186: =N186*O$116 -> 0 | P186: =N186*P$116 -> 0 | Q186: 0 | R186: 0 | S186: 0 | T186: 0 | U186: 0 | V186: =T186*V$116 -> 0 | W186: 0 | X186: 0 | Y186: =W186*Y$116 -> 0 | Z186: 0.3098748951 | AA186: =T69 -> 0 | AB186: =AA186*AB$116 -> 0 | AC186: 0 | AD186: 0 | AE186: =AD186*(AD$114/AD$115)*AE$116 -> 0 | AF186: =O69 -> 0 | AG186: 0 | AH186: 0 | AI186: 0 | AJ186: 0 | AK186: 0 | AL186: =Q69 -> 0 | AM186: 0 | AN186: 0 | AO186: 0 | AP186: 0 | AQ186: 0 | AR186: =S69*AR$116 -> 0.2978727134 | BW186: ='Country list'!H185 -> Saint Vincent and the Grenadines | BX186: ='Country list'!I185 -> Latin America and the Caribbean | BY186: ='Country list'!J185 -> lac
H187: 7 | I187: g | J187: 7g | K187: Rice cultivation CH4 | L187: 7 | M187: Oceania | N187: 0 | O187: 0 | P187: 0 | Q187: 0 | R187: 0 | S187: 0 | T187: 0 | U187: 0 | V187: 0 | W187: 0 | X187: 0 | Y187: 0 | Z187: 0.278586554 | AA187: 0 | AB187: 0 | AC187: 0 | AD187: 0 | AE187: 0 | AF187: 0 | AG187: 0 | AH187: 0 | AI187: 0 | AJ187: 0 | AK187: 0 | AL187: 0 | AM187: 0 | AN187: 0 | AO187: 0 | AP187: 0 | AQ187: 0 | AR187: 0.2725303124 | BW187: ='Country list'!H186 -> Samoa | BX187: ='Country list'!I186 -> Oceania | BY187: ='Country list'!J186 -> oc
H188: 8 | I188: g | J188: 8g | K188: Rice cultivation CH4 | L188: 8 | M188: South Asia | N188: 0 | O188: 0 | P188: 0 | Q188: 0 | R188: 0 | S188: 0 | T188: 0 | U188: 0 | V188: 0 | W188: 0 | X188: 0 | Y188: 0 | Z188: 0.3767925575 | AA188: 0 | AB188: 0 | AC188: 0 | AD188: 0 | AE188: 0 | AF188: 0 | AG188: 0 | AH188: 0 | AI188: 0 | AJ188: 0 | AK188: 0 | AL188: 0 | AM188: 0 | AN188: 0 | AO188: 0 | AP188: 0 | AQ188: 0 | AR188: 0.364516776 | BW188: ='Country list'!H187 -> San Marino | BX188: ='Country list'!I187 -> Western Europe | BY188: ='Country list'!J187 -> we
H189: 9 | I189: g | J189: 9g | K189: Rice cultivation CH4 | L189: 9 | M189: Central & South America | N189: 0 | O189: 0 | P189: 0 | Q189: 0 | R189: 0 | S189: 0 | T189: 0 | U189: 0 | V189: 0 | W189: 0 | X189: 0 | Y189: 0 | Z189: 0.171065353 | AA189: 0 | AB189: 0 | AC189: 0 | AD189: 0 | AE189: 0 | AF189: 0 | AG189: 0 | AH189: 0 | AI189: 0 | AJ189: 0 | AK189: 0 | AL189: 0 | AM189: 0 | AN189: 0 | AO189: 0 | AP189: 0 | AQ189: 0 | AR189: 0.1645809108 | BW189: ='Country list'!H188 -> Sao Tome and Principe | BX189: ='Country list'!I188 -> Sub-Saharan Africa | BY189: ='Country list'!J188 -> ssa
H190: 10 | I190: g | J190: 10g | K190: Rice cultivation CH4 | L190: 10 | M190: Sub-Saharan Africa | N190: 0 | O190: 0 | P190: 0 | Q190: 0 | R190: 0 | S190: 0 | T190: 0 | U190: 0 | V190: 0 | W190: 0 | X190: 0 | Y190: 0 | Z190: 0.3587725785 | AA190: 0 | AB190: 0 | AC190: 0 | AD190: 0 | AE190: 0 | AF190: 0 | AG190: 0 | AH190: 0 | AI190: 0 | AJ190: 0 | AK190: 0 | AL190: 0 | AM190: 0 | AN190: 0 | AO190: 0 | AP190: 0 | AQ190: 0 | AR190: 0.3280044765 | BW190: ='Country list'!H189 -> Saudi Arabia | BX190: ='Country list'!I189 -> Near East and North Africa | BY190: ='Country list'!J189 -> nena
H191: 1 | I191: h | J191: 1h | K191: LUC for feed production CO2 | L191: 1 | M191: North America | N191: =Z74 -> 0.01314411405 | O191: 0.01182970265 | P191: 0.02087594585 | Q191: 0 | R191: 0 | S191: 0 | T191: 0 | U191: 0 | V191: 0 | W191: 0 | X191: 0 | Y191: 0 | Z191: 0 | AA191: 0 | AB191: 0 | AC191: 0 | AD191: 0 | AE191: 0 | AF191: 0 | AG191: 0 | AH191: 0 | AI191: 0 | AJ191: 0 | AK191: 0 | AL191: 0 | AM191: 0 | AN191: 0 | AO191: 0 | AP191: 0 | AQ191: 0 | AR191: 0 | BW191: ='Country list'!H190 -> Senegal | BX191: ='Country list'!I190 -> Sub-Saharan Africa | BY191: ='Country list'!J190 -> ssa
H192: 2 | I192: h | J192: 2h | K192: LUC for feed production CO2 | L192: 2 | M192: Russian Federation | N192: 0.7545100451 | O192: 0.6790590405 | P192: 1.198339483 | Q192: 0 | R192: 0 | S192: 0 | T192: 0 | U192: 0 | V192: 0 | W192: 0 | X192: 0 | Y192: 0 | Z192: 0 | AA192: 0 | AB192: 0 | AC192: 0 | AD192: 0 | AE192: 0 | AF192: 0 | AG192: 0 | AH192: 0 | AI192: 0 | AJ192: 0 | AK192: 0 | AL192: 0 | AM192: 0 | AN192: 0 | AO192: 0 | AP192: 0 | AQ192: 0 | AR192: 0 | BW192: ='Country list'!H191 -> Seychelles | BX192: ='Country list'!I191 -> Sub-Saharan Africa | BY192: ='Country list'!J191 -> ssa
H193: 3 | I193: h | J193: 3h | K193: LUC for feed production CO2 | L193: 3 | M193: Western Europe | N193: 2.002695799 | O193: 1.802426219 | P193: 3.180752151 | Q193: 0 | R193: 0 | S193: 0 | T193: 0 | U193: 0 | V193: 0 | W193: 0 | X193: 0 | Y193: 0 | Z193: 0 | AA193: 0 | AB193: 0 | AC193: 0 | AD193: 0 | AE193: 0 | AF193: 0 | AG193: 0 | AH193: 0 | AI193: 0 | AJ193: 0 | AK193: 0 | AL193: 0 | AM193: 0 | AN193: 0 | AO193: 0 | AP193: 0 | AQ193: 0 | AR193: 0 | BW193: ='Country list'!H192 -> Sierra Leone | BX193: ='Country list'!I192 -> Sub-Saharan Africa | BY193: ='Country list'!J192 -> ssa
H194: 4 | I194: h | J194: 4h | K194: LUC for feed production CO2 | L194: 4 | M194: Eastern Europe | N194: 0.4764385223 | O194: 0.4287946701 | P194: 0.7566964767 | Q194: 0 | R194: 0 | S194: 0 | T194: 0 | U194: 0 | V194: 0 | W194: 0 | X194: 0 | Y194: 0 | Z194: 0 | AA194: 0 | AB194: 0 | AC194: 0 | AD194: 0 | AE194: 0 | AF194: 0 | AG194: 0 | AH194: 0 | AI194: 0 | AJ194: 0 | AK194: 0 | AL194: 0 | AM194: 0 | AN194: 0 | AO194: 0 | AP194: 0 | AQ194: 0 | AR194: 0 | BW194: ='Country list'!H193 -> Singapore | BX194: ='Country list'!I193 -> East Asia and Southeast Asia | BY194: ='Country list'!J193 -> esea
H195: 5 | I195: h | J195: 5h | K195: LUC for feed production CO2 | L195: 5 | M195: West Asia & Northern Africa | N195: 1.5092839 | O195: 1.35835551 | P195: 2.397097959 | Q195: 0 | R195: 0 | S195: 0 | T195: 0 | U195: 0 | V195: 0 | W195: 0 | X195: 0 | Y195: 0 | Z195: 0 | AA195: 0 | AB195: 0 | AC195: 0 | AD195: 0 | AE195: 0 | AF195: 0 | AG195: 0 | AH195: 0 | AI195: 0 | AJ195: 0 | AK195: 0 | AL195: 0 | AM195: 0 | AN195: 0 | AO195: 0 | AP195: 0 | AQ195: 0 | AR195: 0 | BW195: ='Country list'!H194 -> Slovakia | BX195: ='Country list'!I194 -> Eastern Europe | BY195: ='Country list'!J194 -> ee
H196: 6 | I196: h | J196: 6h | K196: LUC for feed production CO2 | L196: 6 | M196: East Asia | N196: 1.913517356 | O196: 1.72216562 | P196: 3.039115801 | Q196: 0 | R196: 0 | S196: 0 | T196: 0 | U196: 0 | V196: 0 | W196: 0 | X196: 0 | Y196: 0 | Z196: 0 | AA196: 0 | AB196: 0 | AC196: 0 | AD196: 0 | AE196: 0 | AF196: 0 | AG196: 0 | AH196: 0 | AI196: 0 | AJ196: 0 | AK196: 0 | AL196: 0 | AM196: 0 | AN196: 0 | AO196: 0 | AP196: 0 | AQ196: 0 | AR196: 0 | BW196: ='Country list'!H195 -> Slovenia | BX196: ='Country list'!I195 -> Western Europe | BY196: ='Country list'!J195 -> we
H197: 7 | I197: h | J197: 7h | K197: LUC for feed production CO2 | L197: 7 | M197: Oceania | N197: 0.003183427965 | O197: 0.002865085169 | P197: 0.005056032651 | Q197: 0 | R197: 0 | S197: 0 | T197: 0 | U197: 0 | V197: 0 | W197: 0 | X197: 0 | Y197: 0 | Z197: 0 | AA197: 0 | AB197: 0 | AC197: 0 | AD197: 0 | AE197: 0 | AF197: 0 | AG197: 0 | AH197: 0 | AI197: 0 | AJ197: 0 | AK197: 0 | AL197: 0 | AM197: 0 | AN197: 0 | AO197: 0 | AP197: 0 | AQ197: 0 | AR197: 0 | BW197: ='Country list'!H196 -> Solomon Islands | BX197: ='Country list'!I196 -> Oceania | BY197: ='Country list'!J196 -> oc
H198: 8 | I198: h | J198: 8h | K198: LUC for feed production CO2 | L198: 8 | M198: South Asia | N198: 1.218054652 | O198: 1.096249187 | P198: 1.934557389 | Q198: 0 | R198: 0 | S198: 0 | T198: 0 | U198: 0 | V198: 0 | W198: 0 | X198: 0 | Y198: 0 | Z198: 0 | AA198: 0 | AB198: 0 | AC198: 0 | AD198: 0 | AE198: 0 | AF198: 0 | AG198: 0 | AH198: 0 | AI198: 0 | AJ198: 0 | AK198: 0 | AL198: 0 | AM198: 0 | AN198: 0 | AO198: 0 | AP198: 0 | AQ198: 0 | AR198: 0 | BW198: ='Country list'!H197 -> Somalia | BX198: ='Country list'!I197 -> Sub-Saharan Africa | BY198: ='Country list'!J197 -> ssa
H199: 9 | I199: h | J199: 9h | K199: LUC for feed production CO2 | L199: 9 | M199: Central & South America | N199: 4.564888 | O199: 4.1083992 | P199: 7.250116236 | Q199: 0 | R199: 0 | S199: 0 | T199: 0 | U199: 0 | V199: 0 | W199: 0 | X199: 0 | Y199: 0 | Z199: 0 | AA199: 0 | AB199: 0 | AC199: 0 | AD199: 0 | AE199: 0 | AF199: 0 | AG199: 0 | AH199: 0 | AI199: 0 | AJ199: 0 | AK199: 0 | AL199: 0 | AM199: 0 | AN199: 0 | AO199: 0 | AP199: 0 | AQ199: 0 | AR199: 0 | BW199: ='Country list'!H198 -> South Africa | BX199: ='Country list'!I198 -> Sub-Saharan Africa | BY199: ='Country list'!J198 -> ssa
H200: 10 | I200: h | J200: 10h | K200: LUC for feed production CO2 | L200: 10 | M200: Sub-Saharan Africa | N200: 0.9622837901 | O200: 0.8660554111 | P200: 1.528333078 | Q200: 0 | R200: 0 | S200: 0 | T200: 0 | U200: 0 | V200: 0 | W200: 0 | X200: 0 | Y200: 0 | Z200: 0 | AA200: 0 | AB200: 0 | AC200: 0 | AD200: 0 | AE200: 0 | AF200: 0 | AG200: 0 | AH200: 0 | AI200: 0 | AJ200: 0 | AK200: 0 | AL200: 0 | AM200: 0 | AN200: 0 | AO200: 0 | AP200: 0 | AQ200: 0 | AR200: 0 | BW200: ='Country list'!H199 -> South Sudan | BX200: ='Country list'!I199 -> Near East and North Africa | BY200: ='Country list'!J199 -> nena
... 657 more rows

Sheet Electricity EFs (hidden)
AR2: Emissions arising during the production and distribution of fuel used in electricity generation
AR3: Source: UK Government GHG Conversion Factors for Company Reporting
U4: Emissions arising at the power station | AG4: Emissions arising due to losses during electricity distribution | AR4: https://www.gov.uk/government/collections/government-conversion-factors-for-company-reporting
C5: Reasons for using these electricity Efs | U5: Source: UK Government GHG Conversion Factors for Company Reporting | AG5: Source: UK Government GHG Conversion Factors for Company Reporting | AR5: Emissions source: | AS5: WTT- UK & overseas elec | AT5: Expiry: | AU5: 31/06/2017 | AV5: Factor set: | AW5: Full set
C6: Their derivation (and meaning) is clearer than those in the "Electricity emiss by country sheet" - it is essential to know whether the EF is per unit of primary energy (chemical/potential energy of fuel entering power station) or secondary energy (electrical energy leaving power station) or tertiary (energy consumed at point of use) | U6: https://www.gov.uk/government/collections/government-conversion-factors-for-company-reporting | AG6: https://www.gov.uk/government/collections/government-conversion-factors-for-company-reporting | AR6: Scope: | AS6: Scope 3 | AT6: Version: | AU6: 1 | AV6: Year: | AW6: 2016
C7: Consistent with the aqua GHG model developed for SOFA | U7: Note: the UK derives the overseas electricity generation Efs from the IEA, which stopped publishing them for free in 2014, hence the latest freely available EFs are for 2013. Transmission and WTW (well to tank) EFs are for 2016 | AG7: Emissions source: | AH7: Transmission and distribution | AI7: Expiry: | AJ7: 31/06/2017 | AK7: Factor set: | AL7: Full set
AG8: Scope: | AH8: Scope 3 | AI8: Version: | AJ8: 1 | AK8: Year: | AL8: 2016 | AR8: Well-to-tank (WTT) conversion factors for UK and overseas electricity should be used to report the Scope 3 emissions of extraction, refining and transportation of primary fuels before their use in the generation of electricity. It should be noted that electricity generation, transmission and distribution losses have separate WTT emissions assigned to them.
U9: http://www.ukconversionfactorscarbonsmart.co.uk/LandingPage.aspx
U10: Emissions source: | V10: Overseas electricity | W10: Expiry: | X10: 2014-05-31 | AG10: Transmission and distribution (T&D) factors should be used to report the Scope 3 emissions associated with grid losses (the energy loss that occurs in getting the electricity from the power plant to the organisations that purchase it). | AR10: Guidance
U11: Scope: | V11: Scope 2 | W11: Version: | X11: 1.1 | AR11: ● WTT factors for UK and international electricity can be found together in this page for electricity generation and T&D losses.
AG12: Guidance | AR12: ● The year displayed alongside the factors is the reporting year for which users should apply these factors. This is based on a calendar reporting year.
U13: Overseas electricity conversion factors should be used to report on electricity used by an organisation at international sites owned / controlled by them. Electricity should be reported as a scope 2, indirect emissions source. The conversion factors in this listing are for the electricity supplied to the grid that organisations purchase; this does not include the emissions associated with the transmission and distribution of electricity | AG13: ● To account for electricity emissions fully, organisations should account for the T&D loss associated with its purchased power. | AR13: Calculating emissions using WTT factors for UK and overseas electricity generation and T&D losses
AG14: ● The year displayed alongside the T&D factors is the reporting year for which users should apply these factors. This is based on a calendar reporting year. | AR14: Company G voluntarily reports the WTT emissions from the electricity it uses, and the transmission and distribution loss associated with it. It uses the same kWh data from its electricity meters and/or utility bills in both instances.
U15: Defra's overseas electricity guidance | AR15: The kWh energy is multiplied by the WTT factor for ‘WTT- UK electricity (generation)’ and separately by the ‘WTT- UK electricity (T&D)’ factor. These are reported as separate items in Scope 3 to demonstrate the WTT impact of the electricity generation and the losses experienced in the grid.
F16: Source | G16: UK Gov | H16: UK Gov | I16: IEA (generation) and UK Gov T&D/WTT | U16: ● The year displayed alongside the electricity factors is the reporting year for which users should apply these factors. (This is based on a calendar reporting year). | AG16: Calculating emissions from T&D
G17: National | H17: Regional | I17: Other national | J17: Final EF | K17: Final EF | U17: ● Defra advise that organisations also account for the transmission and distribution (T&D) losses of the electricity they purchase, which occur between the power station and their site(s). They should do so using the ‘transmission and distribution’ factors for overseas electricity. The emissions from T&D should be accounted for in Scope 3 | AG17: Company H reports the emissions from T&D losses associated with its electricity use - this is a Scope 3 emission. | AR17: Activity | AS17: Country | AT17: Unit | AU17: Year | AV17: kg CO2e
D18: FAO name | E18: FAO region | G18: kgCO2e/kWh | H18: kgCO2e/kWh | I18: kgCO2e/kWh | J18: kgCO2e/kWh | K18: kgCO2e/MJ | U18: ● Organisations that generate renewable energy or purchase green energy should refer to Annex G of Defra's 'Environmental reporting guidelines' for information on how to account for their electricity usage | AG18: For every kWh of electricity company H purchases, it reports its associated energy losses using the T&D factor for that year. | AR18: WTT- UK electricity (generation) | AS18: Electricity: UK | AT18: kWh | AU18: 2016 | AV18: 0.06188
B19: Electricity: | C19: =CONCATENATE(B19,D19) -> Electricity: Anguilla | D19: Anguilla | E19: Latin America and the Caribbean | F19: lac | G19: =IFERROR(VLOOKUP(C19,$N$27:$S$87,4,FALSE),-99) -> -99 | H19: =VLOOKUP(F19,F$260:J$269,3,FALSE) -> 0.26392 | I19: =IFERROR(VLOOKUP(D19,BU$27:CO$198,21,FALSE),-99) -> -99 | J19: =IF(I19>0,I19,IF(G19>0,G19,H19)) -> 0.26392 | K19: =J19/Conversions!J$28 -> 0.07331111111 | U19: ● Where an organisation voluntarily report the electricity used at a site / for an asset in their supply chain that is not directly under their ownership or control, they may report this electricity in scope 3. A duplicate set of conversion factors have been provided for this purpose in the scope 3 listing, under ‘managed assets- electricity’ | AG19: Every kWh company H uses is multiplied by the appropriate T&D conversion factor to produce its Scope 3 T&D emissions impact.
B20: Electricity: | C20: =CONCATENATE(B20,D20) -> Electricity: Antigua and Barbuda | D20: Antigua and Barbuda | E20: Latin America and the Caribbean | F20: lac | G20: =IFERROR(VLOOKUP(C20,$N$27:$S$87,4,FALSE),-99) -> -99 | H20: =VLOOKUP(F20,F$260:J$269,3,FALSE) -> 0.26392 | I20: =IFERROR(VLOOKUP(D20,BU$27:CO$198,21,FALSE),-99) -> -99 | J20: =IF(I20>0,I20,IF(G20>0,G20,H20)) -> 0.26392 | K20: =J20/Conversions!J$28 -> 0.07331111111
B21: Electricity: | C21: Electricity: Argentina | D21: Argentina | E21: Latin America and the Caribbean | F21: lac | G21: =IFERROR(VLOOKUP(C21,$N$27:$S$87,4,FALSE),-99) -> -99 | H21: 0.26392 | I21: 0.44138 | J21: 0.44138 | K21: =J21/Conversions!J$28 -> 0.1226055556 | U21: Example of calculating emissions from overseas electricity | AG21: Activity | AH21: Type | AI21: Unit | AJ21: Year | AK21: kg CO2e | AL21: kg CO2 | AM21: kg CH4 | AN21: kg N2O
B22: Electricity: | C22: Electricity: Aruba | D22: Aruba | E22: Latin America and the Caribbean | F22: lac | G22: -99 | H22: 0.26392 | I22: -99 | J22: 0.26392 | K22: =J22/Conversions!J$28 -> 0.07331111111 | N22: Total life cycle emission factor for electricity | U22: Company H report the emissions from electricity for a facility in the Czech Republic. They receive the kWh consumption from the facility and multiply by the Czech Republic ‘electricity generation’ conversion factor for the appropriate reporting year. They note in their report that the emissions from overseas electricity are in CO2 only (not CO2e). | AG22: T&D- UK electricity | AH22: Electricity: UK | AI22: kWh | AJ22: 2016 | AK22: 0.03727 | AL22: 0.03705 | AM22: 3e-05 | AN22: 0.00019 | AR22: Activity | AS22: Country | AT22: Unit | AU22: Year | AV22: kg CO2e
B23: Electricity: | C23: Electricity: Bahamas | D23: Bahamas | E23: Latin America and the Caribbean | F23: lac | G23: -99 | H23: 0.26392 | I23: -99 | J23: 0.26392 | K23: =J23/Conversions!J$28 -> 0.07331111111 | U23: The kWh electricity use is multiplied by the ‘electricity generation’ figure appropriate to the reporting year to produce company H's Czech Republic Scope 2 electricity emissions. | AR23: WTT- UK electricity (T&D) | AS23: Electricity: UK | AT23: kWh | AU23: 2016 | AV23: 0.0056
B24: Electricity: | C24: Electricity: Barbados | D24: Barbados | E24: Latin America and the Caribbean | F24: lac | G24: -99 | H24: 0.26392 | I24: -99 | J24: 0.26392 | K24: =J24/Conversions!J$28 -> 0.07331111111 | BE24: T&D and WTT Efs as a % of the generation EF | BT24: Harmonising FAO and IEA names | BY24: Electricity generation only EF (IEA 2013, p110-112) | CL24: Electricity T&D + WTT (2016)
B25: Electricity: | C25: Electricity: Belize | D25: Belize | E25: Latin America and the Caribbean | F25: lac | G25: -99 | H25: =VLOOKUP(F25,F$260:J$269,3,FALSE) -> 0.26392 | I25: -99 | J25: 0.26392 | K25: =J25/Conversions!J$28 -> 0.07331111111 | AR25: WTT- overseas electricity (generation) | AX25: WTT- overseas electricity (T&D) | BG25: WTT fuel | BY25: gCO2 emissions per kWh from electricity generation | CL25: kgCO2e/kWh | CO25: Total electricity EF
B26: Electricity: | C26: Electricity: Bolivia | D26: Bolivia | E26: Latin America and the Caribbean | F26: lac | G26: -99 | H26: 0.26392 | I26: 0.48638 | J26: 0.48638 | K26: =J26/Conversions!J$28 -> 0.1351055556 | N26: Country | O26: Unit | P26: Year | Q26: kg CO2 | R26: MJ/kWh | S26: kgCO2e/MJ | U26: Activity | V26: Country | W26: Unit | X26: Year | Y26: kg CO2 | Z26: MJ/kWh | AA26: kgCO2e/MJ | AG26: Activity | AH26: Type | AI26: Unit | AJ26: Year | AK26: kg CO2 | AR26: Activity | AS26: Country | AT26: Unit | AU26: Year | AV26: kg CO2e | AX26: Activity | AY26: Country | AZ26: Unit | BA26: Year | BB26: kg CO2e | BF26: T&D of elec | BG26: Production | BH26: Distribution | BI26: Total | BJ26: Total | BP26: FAO name | BQ26: T&D + WTT (kgCO2e/kWh) 2016 | BT26: FAO region | BU26: FAO Name | BV26: IEA name | BW26: IEA name | BX26: IEA name | BY26: 1990 | BZ26: 1995 | CA26: 2000 | CB26: 2004 | CC26: 2005 | CD26: 2006 | CE26: 2007 | CF26: 2008 | CG26: 2009 | CH26: 2010 | CI26: 2011 | CJ26: Av. 2009-11 | CL26: National | CM26: Regional defaults
B27: Electricity: | C27: Electricity: Brazil | D27: Brazil | E27: Latin America and the Caribbean | F27: lac | G27: =IFERROR(VLOOKUP(C27,$N$27:$S$87,4,FALSE),-99) -> 0.11256 | H27: 0.26392 | I27: 0.09879 | J27: =IF(I27>0,I27,IF(G27>0,G27,H27)) -> 0.09879 | K27: =J27/Conversions!J$28 -> 0.02744166667 | N27: Electricity: Australia | O27: kWh | P27: 2013 | Q27: =Y27+AK27+AV27+BB27 -> 1.03126 | R27: 3.6 | S27: =Q27/R27 -> 0.2864611111 | U27: Electricity generated | V27: Electricity: Australia | W27: kWh | X27: 2013 | Y27: 0.84092 | Z27: 3.6 | AA27: =Y27/Z27 -> 0.2335888889 | AG27: T&D- overseas electricity | AH27: Electricity: Australia | AI27: kWh | AJ27: 2016 | AK27: 0.05841 | AR27: WTT- overseas electricity (generation) | AS27: Electricity: Australia | AT27: kWh | AU27: 2016 | AV27: 0.12309 | AX27: WTT- overseas electricity (T&D) | AY27: Electricity: Australia | AZ27: kWh | BA27: 2016 | BB27: 0.00884 | BE27: Electricity: Australia | BF27: =AK27/Y27 -> 0.06945963944 | BG27: =AV27/Y27 -> 0.1463753984 | BH27: =BB27/Y27 -> 0.01051229606 | BI27: =SUM(BF27:BH27) -> 0.2263473339 | BJ27: =AK27+AV27+BB27 -> 0.19034 | BM27: Electricity: Australia | BN27: Electricity | BO27: Australia | BP27: =VLOOKUP(BO27,D$19:D$255,1,FALSE) -> Australia | BQ27: =AK27+AV27+BB27 -> 0.19034 | BT27: =VLOOKUP(BU27,D$19:$F$255,3,FALSE) ->  | BV27: World | BY27: 524 | BZ27: 526 | CA27: 528 | CB27: 539 | CC27: 542 | CD27: 543 | CE27: 546 | CF27: 539 | CG27: 533 | CH27: 529 | CI27: 536 | CJ27: 533 | CL27: =IFERROR(VLOOKUP(BU27,BP$26:BQ$87,2,FALSE),-99) -> -99 | CM27: =VLOOKUP(BT27,F$260:J$269,5,FALSE) ->  | CO27: =IFERROR(CJ27/1000+IF(CL27>0,CL27,CM27),-99) -> -99
B28: Electricity: | C28: Electricity: British Virgin Islands | D28: British Virgin Islands | E28: Latin America and the Caribbean | F28: lac | G28: -99 | H28: 0.26392 | I28: -99 | J28: 0.26392 | K28: =J28/Conversions!J$28 -> 0.07331111111 | N28: Electricity: Austria | O28: kWh | P28: 2013 | Q28: =Y28+AK28+AV28+BB28 -> 0.23424 | R28: 3.6 | S28: =Q28/R28 -> 0.06506666667 | V28: Electricity: Austria | W28: kWh | X28: 2013 | Y28: 0.18788 | Z28: 3.6 | AA28: =Y28/Z28 -> 0.05218888889 | AH28: Electricity: Austria | AI28: kWh | AJ28: 2016 | AK28: 0.0117 | AS28: Electricity: Austria | AT28: kWh | AU28: 2016 | AV28: 0.03289 | AY28: Electricity: Austria | AZ28: kWh | BA28: 2016 | BB28: 0.00177 | BE28: Electricity: Austria | BF28: =AK28/Y28 -> 0.06227379178 | BG28: =AV28/Y28 -> 0.175058548 | BH28: =BB28/Y28 -> 0.009420906962 | BI28: =SUM(BF28:BH28) -> 0.2467532468 | BJ28: =AK28+AV28+BB28 -> 0.04636 | BM28: Electricity: Austria | BN28: Electricity | BO28: Austria | BP28: Austria | BQ28: =AK28+AV28+BB28 -> 0.04636 | BT28: =VLOOKUP(BU28,D$19:$F$255,3,FALSE) ->  | BV28: Annex | BW28: I | BX28: Parties | BY28: 493 | BZ28: 472 | CA28: 466 | CB28: 460 | CC28: 461 | CD28: 454 | CE28: 460 | CF28: 447 | CG28: 426 | CH28: 426 | CI28: 429 | CJ28: 427 | CL28: =IFERROR(VLOOKUP(BU28,BP$26:BQ$87,2,FALSE),-99) -> -99 | CM28: =VLOOKUP(BT28,F$260:J$269,5,FALSE) ->  | CO28: =IFERROR(CJ28/1000+IF(CL28>0,CL28,CM28),-99) -> -99
B29: Electricity: | C29: Electricity: Cayman Islands | D29: Cayman Islands | E29: Latin America and the Caribbean | F29: lac | G29: -99 | H29: 0.26392 | I29: -99 | J29: 0.26392 | K29: =J29/Conversions!J$28 -> 0.07331111111 | N29: Electricity: Belgium | O29: kWh | P29: 2013 | Q29: 0.259 | R29: 3.6 | S29: 0.07194444444 | V29: Electricity: Belgium | W29: kWh | X29: 2013 | Y29: 0.21956 | Z29: 3.6 | AA29: 0.06098888889 | AH29: Electricity: Belgium | AI29: kWh | AJ29: 2016 | AK29: 0.00937 | AS29: Electricity: Belgium | AT29: kWh | AU29: 2016 | AV29: 0.02865 | AY29: Electricity: Belgium | AZ29: kWh | BA29: 2016 | BB29: 0.00142 | BE29: Electricity: Belgium | BF29: 0.04267626161 | BG29: 0.1304882492 | BH29: 0.006467480415 | BI29: 0.1796319913 | BJ29: 0.03944 | BM29: Electricity: Belgium | BN29: Electricity | BO29: Belgium | BP29: Belgium | BQ29: 0.03944 | BT29: =VLOOKUP(BU29,D$19:$F$255,3,FALSE) ->  | BV29: Annex | BW29: II | BX29: Parties | BY29: 483 | BZ29: 469 | CA29: 466 | CB29: 462 | CC29: 459 | CD29: 448 | CE29: 456 | CF29: 441 | CG29: 420 | CH29: 420 | CI29: 418 | CJ29: 419 | CL29: -99 | CO29: -99
B30: Electricity: | C30: Electricity: Chile | D30: Chile | E30: Latin America and the Caribbean | F30: lac | G30: =IFERROR(VLOOKUP(C30,$N$27:$S$87,4,FALSE),-99) -> -99 | H30: 0.26392 | I30: 0.47538 | J30: 0.47538 | K30: =J30/Conversions!J$28 -> 0.13205 | N30: Electricity: Brazil | O30: kWh | P30: 2013 | Q30: 0.11256 | R30: 3.6 | S30: 0.03126666667 | V30: Electricity: Brazil | W30: kWh | X30: 2013 | Y30: 0.08677 | Z30: 3.6 | AA30: 0.02410277778 | AH30: Electricity: Brazil | AI30: kWh | AJ30: 2016 | AK30: 0.0133 | AS30: Electricity: Brazil | AT30: kWh | AU30: 2016 | AV30: 0.01048 | AY30: Electricity: Brazil | AZ30: kWh | BA30: 2016 | BB30: 0.00201 | BE30: Electricity: Brazil | BF30: 0.153278783 | BG30: 0.1207790711 | BH30: 0.02316468826 | BI30: 0.2972225424 | BJ30: 0.02579 | BM30: Electricity: Brazil | BN30: Electricity | BO30: Brazil | BP30: Brazil | BQ30: 0.02579 | BT30: =VLOOKUP(BU30,D$19:$F$255,3,FALSE) ->  | BV30: North | BW30: America | BY30: 531 | BZ30: 534 | CA30: 544 | CB30: 531 | CC30: 526 | CD30: 507 | CE30: 512 | CF30: 499 | CG30: 472 | CH30: 481 | CI30: 460 | CJ30: 471 | CL30: -99 | CO30: -99
B31: Electricity: | C31: Electricity: Colombia | D31: Colombia | E31: Latin America and the Caribbean | F31: lac | G31: -99 | H31: 0.26392 | I31: 0.22038 | J31: 0.22038 | K31: =J31/Conversions!J$28 -> 0.06121666667 | N31: Electricity: Bulgaria | O31: kWh | P31: 2013 | Q31: 0.72736 | R31: 3.6 | S31: 0.2020444444 | V31: Electricity: Bulgaria | W31: kWh | X31: 2013 | Y31: 0.53546 | Z31: 3.6 | AA31: 0.1487388889 | AH31: Electricity: Bulgaria | AI31: kWh | AJ31: 2016 | AK31: 0.08642 | AS31: Electricity: Bulgaria | AT31: kWh | AU31: 2016 | AV31: 0.09241 | AY31: Electricity: Bulgaria | AZ31: kWh | BA31: 2016 | BB31: 0.01307 | BE31: Electricity: Bulgaria | BF31: 0.1613939417 | BG31: 0.1725805849 | BH31: 0.02440891943 | BI31: 0.358383446 | BJ31: 0.1919 | BM31: Electricity: Bulgaria | BN31: Electricity | BO31: Bulgaria | BP31: Bulgaria | BQ31: 0.1919 | BT31: =VLOOKUP(BU31,D$19:$F$255,3,FALSE) ->  | BV31: Europe | BY31: 408 | BZ31: 367 | CA31: 335 | CB31: 335 | CC31: 330 | CD31: 333 | CE31: 335 | CF31: 315 | CG31: 299 | CH31: 290 | CI31: 290 | CJ31: 293 | CL31: -99 | CO31: -99
B32: Electricity: | C32: Electricity: Costa Rica | D32: Costa Rica | E32: Latin America and the Caribbean | F32: lac | G32: -99 | H32: 0.26392 | I32: 0.12038 | J32: 0.12038 | K32: =J32/Conversions!J$28 -> 0.03343888889 | N32: Electricity: Canada | O32: kWh | P32: 2013 | Q32: 0.23315 | R32: 3.6 | S32: 0.06476388889 | V32: Electricity: Canada | W32: kWh | X32: 2013 | Y32: 0.18641 | Z32: 3.6 | AA32: 0.05178055556 | AH32: Electricity: Canada | AI32: kWh | AJ32: 2016 | AK32: 0.01904 | AS32: Electricity: Canada | AT32: kWh | AU32: 2016 | AV32: 0.02482 | AY32: Electricity: Canada | AZ32: kWh | BA32: 2016 | BB32: 0.00288 | BE32: Electricity: Canada | BF32: 0.1021404431 | BG32: 0.1331473633 | BH32: 0.01544981492 | BI32: 0.2507376214 | BJ32: 0.04674 | BM32: Electricity: Canada | BN32: Electricity | BO32: Canada | BP32: Canada | BQ32: 0.04674 | BT32: =VLOOKUP(BU32,D$19:$F$255,3,FALSE) ->  | BV32: Asia | BW32: Oceania | BY32: 482 | BZ32: 461 | CA32: 468 | CB32: 499 | CC32: 504 | CD32: 495 | CE32: 521 | CF32: 512 | CG32: 500 | CH32: 486 | CI32: 547 | CJ32: 511 | CL32: -99 | CO32: -99
B33: Electricity: | C33: Electricity: Cuba | D33: Cuba | E33: Latin America and the Caribbean | F33: lac | G33: -99 | H33: 0.26392 | I33: 1.07838 | J33: 1.07838 | K33: =J33/Conversions!J$28 -> 0.29955 | N33: Electricity: Chinese Taipei | O33: kWh | P33: 2013 | Q33: 0.73484 | R33: 3.6 | S33: 0.2041222222 | V33: Electricity: Chinese Taipei | W33: kWh | X33: 2013 | Y33: 0.6238 | Z33: 3.6 | AA33: 0.1732777778 | AH33: Electricity: Chinese Taipei | AI33: kWh | AJ33: 2016 | AK33: 0.01888 | AS33: Electricity: Chinese Taipei | AT33: kWh | AU33: 2016 | AV33: 0.0893 | AY33: Electricity: Chinese Taipei | AZ33: kWh | BA33: 2016 | BB33: 0.00286 | BE33: Electricity: Chinese Taipei | BF33: 0.03026611093 | BG33: 0.1431548573 | BH33: 0.004584802821 | BI33: 0.1780057711 | BJ33: 0.11104 | BM33: Electricity: Chinese Taipei | BN33: Electricity | BO33: Chinese Taipei | BQ33: 0.11104 | BT33: =VLOOKUP(BU33,D$19:$F$255,3,FALSE) ->  | BV33: Annex | BW33: I | BX33: EIT | BY33: 527 | BZ33: 484 | CA33: 464 | CB33: 454 | CC33: 474 | CD33: 484 | CE33: 480 | CF33: 472 | CG33: 449 | CH33: 454 | CI33: 480 | CJ33: 461 | CL33: -99 | CO33: -99
B34: Electricity: | C34: Electricity: Dominica | D34: Dominica | E34: Latin America and the Caribbean | F34: lac | G34: -99 | H34: 0.26392 | I34: -99 | J34: 0.26392 | K34: =J34/Conversions!J$28 -> 0.07331111111 | N34: Electricity: Croatia | O34: kWh | P34: 2013 | Q34: 0.34144 | R34: 3.6 | S34: 0.09484444444 | V34: Electricity: Croatia | W34: kWh | X34: 2013 | Y34: 0.23637 | Z34: 3.6 | AA34: 0.06565833333 | AH34: Electricity: Croatia | AI34: kWh | AJ34: 2016 | AK34: 0.04521 | AS34: Electricity: Croatia | AT34: kWh | AU34: 2016 | AV34: 0.05302 | AY34: Electricity: Croatia | AZ34: kWh | BA34: 2016 | BB34: 0.00684 | BE34: Electricity: Croatia | BF34: 0.1912679274 | BG34: 0.2243093455 | BH34: 0.02893768245 | BI34: 0.4445149554 | BJ34: 0.10507 | BM34: Electricity: Croatia | BN34: Electricity | BO34: Croatia | BP34: Croatia | BQ34: 0.10507 | BT34: =VLOOKUP(BU34,D$19:$F$255,3,FALSE) ->  | BV34: Non-Annex | BW34: I | BX34: Parties | BY34: 625 | BZ34: 658 | CA34: 655 | CB34: 669 | CC34: 668 | CD34: 673 | CE34: 663 | CF34: 658 | CG34: 660 | CH34: 647 | CI34: 648 | CJ34: 651 | CL34: -99 | CO34: -99
B35: Electricity: | C35: Electricity: Dominican Republic | D35: Dominican Republic | E35: Latin America and the Caribbean | F35: lac | G35: -99 | H35: 0.26392 | I35: 0.81838 | J35: 0.81838 | K35: =J35/Conversions!J$28 -> 0.2273277778 | N35: Electricity: Cyprus | O35: kWh | P35: 2013 | Q35: 0.84703 | R35: 3.6 | S35: 0.2352861111 | V35: Electricity: Cyprus | W35: kWh | X35: 2013 | Y35: 0.69708 | Z35: 3.6 | AA35: 0.1936333333 | AH35: Electricity: Cyprus | AI35: kWh | AJ35: 2016 | AK35: 0.03455 | AS35: Electricity: Cyprus | AT35: kWh | AU35: 2016 | AV35: 0.11017 | AY35: Electricity: Cyprus | AZ35: kWh | BA35: 2016 | BB35: 0.00523 | BE35: Electricity: Cyprus | BF35: 0.04956389511 | BG35: 0.1580449877 | BH35: 0.007502725656 | BI35: 0.2151116084 | BJ35: 0.14995 | BM35: Electricity: Cyprus | BN35: Electricity | BO35: Cyprus | BP35: Cyprus | BQ35: 0.14995 | BT35: =VLOOKUP(BU35,D$19:$F$255,3,FALSE) ->  | BV35: Annex | BW35: I | BX35: Kyoto | BY35: 442 | BZ35: 398 | CA35: 382 | CB35: 386 | CC35: 388 | CD35: 391 | CE35: 396 | CF35: 382 | CG35: 365 | CH35: 362 | CI35: 379 | CJ35: 369 | CL35: -99 | CO35: -99
B36: Electricity: | C36: Electricity: Ecuador | D36: Ecuador | E36: Latin America and the Caribbean | F36: lac | G36: -99 | H36: 0.26392 | I36: 0.41738 | J36: 0.41738 | K36: =J36/Conversions!J$28 -> 0.1159388889 | N36: Electricity: Czech Republic | O36: kWh | P36: 2013 | Q36: 0.72783 | R36: 3.6 | S36: 0.202175 | V36: Electricity: Czech Republic | W36: kWh | X36: 2013 | Y36: 0.58902 | Z36: 3.6 | AA36: 0.1636166667 | AH36: Electricity: Czech Republic | AI36: kWh | AJ36: 2016 | AK36: 0.04279 | AS36: Electricity: Czech Republic | AT36: kWh | AU36: 2016 | AV36: 0.08955 | AY36: Electricity: Czech Republic | AZ36: kWh | BA36: 2016 | BB36: 0.00647 | BE36: Electricity: Czech Republic | BF36: 0.07264609012 | BG36: 0.1520321891 | BH36: 0.01098434688 | BI36: 0.2356626261 | BJ36: 0.13881 | BM36: Electricity: Czech Republic | BN36: Electricity | BO36: Czech Republic | BP36: Czech Republic | BQ36: 0.13881 | BT36: =VLOOKUP(BU36,D$19:$F$255,3,FALSE) ->  | CL36: -99 | CO36: -99
B37: Electricity: | C37: Electricity: El Salvador | D37: El Salvador | E37: Latin America and the Caribbean | F37: lac | G37: -99 | H37: 0.26392 | I37: 0.31338 | J37: 0.31338 | K37: =J37/Conversions!J$28 -> 0.08705 | N37: Electricity: Denmark | O37: kWh | P37: 2013 | Q37: 0.42456 | R37: 3.6 | S37: 0.1179333333 | V37: Electricity: Denmark | W37: kWh | X37: 2013 | Y37: 0.35967 | Z37: 3.6 | AA37: 0.09990833333 | AH37: Electricity: Denmark | AI37: kWh | AJ37: 2016 | AK37: 0.01786 | AS37: Electricity: Denmark | AT37: kWh | AU37: 2016 | AV37: 0.04433 | AY37: Electricity: Denmark | AZ37: kWh | BA37: 2016 | BB37: 0.0027 | BE37: Electricity: Denmark | BF37: 0.04965662969 | BG37: 0.1232518698 | BH37: 0.007506881308 | BI37: 0.1804153808 | BJ37: 0.06489 | BM37: Electricity: Denmark | BN37: Electricity | BO37: Denmark | BP37: Denmark | BQ37: 0.06489 | BT37: =VLOOKUP(BU37,D$19:$F$255,3,FALSE) ->  | BV37: Non-OECD | BW37: Total | BY37: 573 | BZ37: 604 | CA37: 611 | CB37: 636 | CC37: 643 | CD37: 652 | CE37: 643 | CF37: 640 | CG37: 639 | CH37: 627 | CI37: 633 | CJ37: 633 | CL37: -99 | CO37: -99
B38: Electricity: | C38: Electricity: Falkland Islands (Malvinas) | D38: Falkland Islands (Malvinas) | E38: Latin America and the Caribbean | F38: lac | G38: -99 | H38: 0.26392 | I38: -99 | J38: 0.26392 | K38: =J38/Conversions!J$28 -> 0.07331111111 | N38: Electricity: Egypt | O38: kWh | P38: 2013 | Q38: 0.58684 | R38: 3.6 | S38: 0.1630111111 | V38: Electricity: Egypt | W38: kWh | X38: 2013 | Y38: 0.44987 | Z38: 3.6 | AA38: 0.1249638889 | AH38: Electricity: Egypt | AI38: kWh | AJ38: 2016 | AK38: 0.05928 | AS38: Electricity: Egypt | AT38: kWh | AU38: 2016 | AV38: 0.06872 | AY38: Electricity: Egypt | AZ38: kWh | BA38: 2016 | BB38: 0.00897 | BE38: Electricity: Egypt | BF38: 0.1317714006 | BG38: 0.1527552404 | BH38: 0.01993909352 | BI38: 0.3044657345 | BJ38: 0.13697 | BM38: Electricity: Egypt | BN38: Electricity | BO38: Egypt | BP38: Egypt | BQ38: 0.13697 | BT38: =VLOOKUP(BU38,D$19:$F$255,3,FALSE) ->  | BV38: OECD | BW38: Total | BY38: 496 | BZ38: 482 | CA38: 478 | CB38: 470 | CC38: 467 | CD38: 457 | CE38: 465 | CF38: 451 | CG38: 434 | CH38: 434 | CI38: 434 | CJ38: 434 | CL38: -99 | CO38: -99
B39: Electricity: | C39: Electricity: French Guiana | D39: French Guiana | E39: Latin America and the Caribbean | F39: lac | G39: -99 | H39: 0.26392 | I39: -99 | J39: 0.26392 | K39: =J39/Conversions!J$28 -> 0.07331111111 | N39: Electricity: Estonia | O39: kWh | P39: 2013 | Q39: 1.34476 | R39: 3.6 | S39: 0.3735444444 | V39: Electricity: Estonia | W39: kWh | X39: 2013 | Y39: 1.01414 | Z39: 3.6 | AA39: 0.2817055556 | AH39: Electricity: Estonia | AI39: kWh | AJ39: 2016 | AK39: 0.14413 | AS39: Electricity: Estonia | AT39: kWh | AU39: 2016 | AV39: 0.16469 | AY39: Electricity: Estonia | AZ39: kWh | BA39: 2016 | BB39: 0.0218 | BE39: Electricity: Estonia | BF39: 0.1421204173 | BG39: 0.1623937523 | BH39: 0.02149604591 | BI39: 0.3260102156 | BJ39: 0.33062 | BM39: Electricity: Estonia | BN39: Electricity | BO39: Estonia | BP39: Estonia | BQ39: 0.33062 | BT39: =VLOOKUP(BU39,D$19:$F$255,3,FALSE) ->  | CL39: -99 | CO39: -99
B40: Electricity: | C40: Electricity: Grenada | D40: Grenada | E40: Latin America and the Caribbean | F40: lac | G40: -99 | H40: 0.26392 | I40: -99 | J40: 0.26392 | K40: =J40/Conversions!J$28 -> 0.07331111111 | N40: Electricity: Finland | O40: kWh | P40: 2013 | Q40: 0.26563 | R40: 3.6 | S40: 0.07378611111 | V40: Electricity: Finland | W40: kWh | X40: 2013 | Y40: 0.22948 | Z40: 3.6 | AA40: 0.06374444444 | AH40: Electricity: Finland | AI40: kWh | AJ40: 2016 | AK40: 0.00625 | AS40: Electricity: Finland | AT40: kWh | AU40: 2016 | AV40: 0.02895 | AY40: Electricity: Finland | AZ40: kWh | BA40: 2016 | BB40: 0.00095 | BE40: Electricity: Finland | BF40: 0.02723548893 | BG40: 0.1261547847 | BH40: 0.004139794318 | BI40: 0.157530068 | BJ40: 0.03615 | BM40: Electricity: Finland | BN40: Electricity | BO40: Finland | BP40: Finland | BQ40: 0.03615 | BT40: =VLOOKUP(BU40,D$19:$F$255,3,FALSE) -> nam | BU40: Canada | BV40: Canada | BY40: 196 | BZ40: 176 | CA40: 216 | CB40: 209 | CC40: 194 | CD40: 190 | CE40: 190 | CF40: 190 | CG40: 167 | CH40: 179 | CI40: 167 | CJ40: 171 | CL40: 0.04674 | CM40: 0.080445 | CO40: =IFERROR(CJ40/1000+IF(CL40>0,CL40,CM40),-99) -> 0.21774
B41: Electricity: | C41: Electricity: Guadeloupe | D41: Guadeloupe | E41: Latin America and the Caribbean | F41: lac | G41: -99 | H41: 0.26392 | I41: -99 | J41: 0.26392 | K41: =J41/Conversions!J$28 -> 0.07331111111 | N41: Electricity: France | O41: kWh | P41: 2013 | Q41: 0.09372 | R41: 3.6 | S41: 0.02603333333 | V41: Electricity: France | W41: kWh | X41: 2013 | Y41: 0.07909 | Z41: 3.6 | AA41: 0.02196944444 | AH41: Electricity: France | AI41: kWh | AJ41: 2016 | AK41: 0.005 | AS41: Electricity: France | AT41: kWh | AU41: 2016 | AV41: 0.00887 | AY41: Electricity: France | AZ41: kWh | BA41: 2016 | BB41: 0.00076 | BE41: Electricity: France | BF41: 0.06321911746 | BG41: 0.1121507144 | BH41: 0.009609305854 | BI41: 0.1849791377 | BJ41: 0.01463 | BM41: Electricity: France | BN41: Electricity | BO41: France | BP41: France | BQ41: 0.01463 | BT41: =VLOOKUP(BU41,D$19:$F$255,3,FALSE) -> lac | BU41: Chile | BV41: Chile | BY41: 457 | BZ41: 267 | CA41: 349 | CB41: 322 | CC41: 318 | CD41: 304 | CE41: 408 | CF41: 411 | CG41: 373 | CH41: 410 | CI41: 441 | CJ41: 408 | CL41: -99 | CM41: 0.06738 | CO41: 0.47538
B42: Electricity: | C42: Electricity: Guatemala | D42: Guatemala | E42: Latin America and the Caribbean | F42: lac | G42: -99 | H42: 0.26392 | I42: 0.37438 | J42: 0.37438 | K42: =J42/Conversions!J$28 -> 0.1039944444 | N42: Electricity: Germany | O42: kWh | P42: 2013 | Q42: 0.55793 | R42: 3.6 | S42: 0.1549805556 | V42: Electricity: Germany | W42: kWh | X42: 2013 | Y42: 0.46089 | Z42: 3.6 | AA42: 0.128025 | AH42: Electricity: Germany | AI42: kWh | AJ42: 2016 | AK42: 0.02229 | AS42: Electricity: Germany | AT42: kWh | AU42: 2016 | AV42: 0.07138 | AY42: Electricity: Germany | AZ42: kWh | BA42: 2016 | BB42: 0.00337 | BE42: Electricity: Germany | BF42: 0.04836294994 | BG42: 0.154874265 | BH42: 0.007311939942 | BI42: 0.2105491549 | BJ42: 0.09704 | BM42: Electricity: Germany | BN42: Electricity | BO42: Germany | BP42: Germany | BQ42: 0.09704 | BT42: =VLOOKUP(BU42,D$19:$F$255,3,FALSE) -> lac | BU42: Mexico | BV42: Mexico | BY42: 549 | BZ42: 539 | CA42: 559 | CB42: 495 | CC42: 509 | CD42: 482 | CE42: 479 | CF42: 431 | CG42: 455 | CH42: 457 | CI42: 450 | CJ42: 454 | CL42: 0.15869 | CM42: 0.06738 | CO42: 0.61269
B43: Electricity: | C43: Electricity: Guyana | D43: Guyana | E43: Latin America and the Caribbean | F43: lac | G43: -99 | H43: 0.26392 | I43: -99 | J43: 0.26392 | K43: =J43/Conversions!J$28 -> 0.07331111111 | N43: Electricity: Gibraltar | O43: kWh | P43: 2013 | Q43: 0.90268 | R43: 3.6 | S43: 0.2507444444 | V43: Electricity: Gibraltar | W43: kWh | X43: 2013 | Y43: 0.7616 | Z43: 3.6 | AA43: 0.2115555556 | AH43: Electricity: Gibraltar | AI43: kWh | AJ43: 2016 | AK43: 0.02395 | AS43: Electricity: Gibraltar | AT43: kWh | AU43: 2016 | AV43: 0.11351 | AY43: Electricity: Gibraltar | AZ43: kWh | BA43: 2016 | BB43: 0.00362 | BE43: Electricity: Gibraltar | BF43: 0.03144695378 | BG43: 0.1490414916 | BH43: 0.004753151261 | BI43: 0.1852415966 | BJ43: 0.14108 | BM43: Electricity: Gibraltar | BN43: Electricity | BO43: Gibraltar | BQ43: 0.14108 | BT43: =VLOOKUP(BU43,D$19:$F$255,3,FALSE) -> nam | BU43: United States of America | BV43: United | BW43: States | BY43: 582 | BZ43: 590 | CA43: 593 | CB43: 577 | CC43: 574 | CD43: 552 | CE43: 560 | CF43: 545 | CG43: 517 | CH43: 522 | CI43: 503 | CJ43: 514 | CL43: 0.11415 | CM43: 0.080445 | CO43: 0.62815
B44: Electricity: | C44: Electricity: Haiti | D44: Haiti | E44: Latin America and the Caribbean | F44: lac | G44: -99 | H44: 0.26392 | I44: 0.45838 | J44: 0.45838 | K44: =J44/Conversions!J$28 -> 0.1273277778 | N44: Electricity: Greece | O44: kWh | P44: 2013 | Q44: 0.89291 | R44: 3.6 | S44: 0.2480305556 | V44: Electricity: Greece | W44: kWh | X44: 2013 | Y44: 0.71826 | Z44: 3.6 | AA44: 0.1995166667 | AH44: Electricity: Greece | AI44: kWh | AJ44: 2016 | AK44: 0.05733 | AS44: Electricity: Greece | AT44: kWh | AU44: 2016 | AV44: 0.10865 | AY44: Electricity: Greece | AZ44: kWh | BA44: 2016 | BB44: 0.00867 | BE44: Electricity: Greece | BF44: 0.07981789324 | BG44: 0.1512683429 | BH44: 0.01207083786 | BI44: 0.243157074 | BJ44: 0.17465 | BM44: Electricity: Greece | BN44: Electricity | BO44: Greece | BP44: Greece | BQ44: 0.17465 | BT44: =VLOOKUP(BU44,D$19:$F$255,3,FALSE) ->  | BV44: OECD | BW44: Americas | BY44: 532 | BZ44: 532 | CA44: 543 | CB44: 527 | CC44: 523 | CD44: 503 | CE44: 509 | CF44: 495 | CG44: 470 | CH44: 479 | CI44: 459 | CJ44: 469 | CL44: -99 | CO44: -99
B45: Electricity: | C45: Electricity: Honduras | D45: Honduras | E45: Latin America and the Caribbean | F45: lac | G45: -99 | H45: 0.26392 | I45: 0.41738 | J45: 0.41738 | K45: =J45/Conversions!J$28 -> 0.1159388889 | N45: Electricity: Hong Kong | O45: kWh | P45: 2013 | Q45: 0.95552 | R45: 3.6 | S45: 0.2654222222 | V45: Electricity: Hong Kong | W45: kWh | X45: 2013 | Y45: 0.72343 | Z45: 3.6 | AA45: 0.2009527778 | AH45: Electricity: Hong Kong, China | AI45: kWh | AJ45: 2016 | AK45: 0.10045 | AS45: Electricity: Hong Kong, China | AT45: kWh | AU45: 2016 | AV45: 0.11644 | AY45: Electricity: Hong Kong, China | AZ45: kWh | BA45: 2016 | BB45: 0.0152 | BE45: Electricity: Hong Kong, China | BF45: 0.1388524114 | BG45: 0.1609554484 | BH45: 0.02101101696 | BI45: 0.3208188767 | BJ45: 0.23209 | BM45: Electricity: Hong Kong, China | BN45: Electricity | BO45: Hong Kong | BP45: Hong Kong | BQ45: 0.23209 | BT45: =VLOOKUP(BU45,D$19:$F$255,3,FALSE) ->  | CL45: -99 | CO45: -99
B46: Electricity: | C46: Electricity: Jamaica | D46: Jamaica | E46: Latin America and the Caribbean | F46: lac | G46: -99 | H46: 0.26392 | I46: 0.71238 | J46: 0.71238 | K46: =J46/Conversions!J$28 -> 0.1978833333 | N46: Electricity: Hungary | O46: kWh | P46: 2013 | Q46: 0.40374 | R46: 3.6 | S46: 0.11215 | V46: Electricity: Hungary | W46: kWh | X46: 2013 | Y46: 0.31708 | Z46: 3.6 | AA46: 0.08807777778 | AH46: Electricity: Hungary | AI46: kWh | AJ46: 2016 | AK46: 0.03345 | AS46: Electricity: Hungary | AT46: kWh | AU46: 2016 | AV46: 0.04815 | AY46: Electricity: Hungary | AZ46: kWh | BA46: 2016 | BB46: 0.00506 | BE46: Electricity: Hungary | BF46: 0.1054938817 | BG46: 0.1518544216 | BH46: 0.01595811783 | BI46: 0.2733064211 | BJ46: 0.08666 | BM46: Electricity: Hungary | BN46: Electricity | BO46: Hungary | BP46: Hungary | BQ46: 0.08666 | BT46: =VLOOKUP(BU46,D$19:$F$255,3,FALSE) -> oc | BU46: Australia | BV46: Australia | BY46: 817 | BZ46: 810 | CA46: 853 | CB46: 880 | CC46: 900 | CD46: 899 | CE46: 887 | CF46: 887 | CG46: 911 | CH46: 844 | CI46: 823 | CJ46: 859 | CL46: 0.19034 | CM46: 0.11117 | CO46: 1.04934
B47: Electricity: | C47: Electricity: Martinique | D47: Martinique | E47: Latin America and the Caribbean | F47: lac | G47: -99 | H47: 0.26392 | I47: -99 | J47: 0.26392 | K47: =J47/Conversions!J$28 -> 0.07331111111 | N47: Electricity: Iceland | O47: kWh | P47: 2013 | Q47: =Y47+AK47+AV47+BB47 -> 0.000214 | R47: 3.6 | S47: 5.944444444e-05 | V47: Electricity: Iceland | W47: kWh | X47: 2013 | Y47: 0.00018 | Z47: 3.6 | AA47: 5e-05 | AH47: Electricity: Iceland | AI47: kWh | AJ47: 2016 | AK47: 4e-06 | AS47: Electricity: Iceland | AT47: kWh | AU47: 2016 | AV47: 3e-05 | AY47: Electricity: Iceland | AZ47: kWh | BA47: 2016 | BB47: 0 | BE47: Electricity: Iceland | BF47: 0.02222222222 | BG47: 0.1666666667 | BH47: 0 | BI47: 0.1888888889 | BJ47: 3.4e-05 | BM47: Electricity: Iceland | BN47: Electricity | BO47: Iceland | BP47: Iceland | BQ47: 3.4e-05 | BT47: =VLOOKUP(BU47,D$19:$F$255,3,FALSE) -> nena | BU47: Israel | BV47: Israel | BY47: 827 | BZ47: 820 | CA47: 765 | CB47: 809 | CC47: 776 | CD47: 774 | CE47: 770 | CF47: 713 | CG47: 694 | CH47: 687 | CI47: 727 | CJ47: 703 | CL47: 0.15246 | CM47: 0.21183 | CO47: 0.85546
B48: Electricity: | C48: Electricity: Mexico | D48: Mexico | E48: Latin America and the Caribbean | F48: lac | G48: =IFERROR(VLOOKUP(C48,$N$27:$S$87,4,FALSE),-99) -> 0.61352 | H48: 0.26392 | I48: 0.61269 | J48: 0.61269 | K48: =J48/Conversions!J$28 -> 0.1701916667 | N48: Electricity: India | O48: kWh | P48: 2013 | Q48: 1.27403 | R48: 3.6 | S48: 0.3538972222 | V48: Electricity: India | W48: kWh | X48: 2013 | Y48: 0.91239 | Z48: 3.6 | AA48: 0.2534416667 | AH48: Electricity: India | AI48: kWh | AJ48: 2016 | AK48: 0.20517 | AS48: Electricity: India | AT48: kWh | AU48: 2016 | AV48: 0.12543 | AY48: Electricity: India | AZ48: kWh | BA48: 2016 | BB48: 0.03104 | BE48: Electricity: India | BF48: 0.2248709433 | BG48: 0.1374741065 | BH48: 0.03402053946 | BI48: 0.3963655893 | BJ48: 0.36164 | BM48: Electricity: India | BN48: Electricity | BO48: India | BP48: India | BQ48: 0.36164 | BT48: =VLOOKUP(BU48,D$19:$F$255,3,FALSE) -> esea | BU48: Japan | BV48: Japan | BY48: 435 | BZ48: 412 | CA48: 402 | CB48: 429 | CC48: 431 | CD48: 420 | CE48: 454 | CF48: 440 | CG48: 416 | CH48: 418 | CI48: 497 | CJ48: 444 | CL48: 0.11056 | CM48: 0.1472055556 | CO48: 0.55456
B49: Electricity: | C49: Electricity: Montserrat | D49: Montserrat | E49: Latin America and the Caribbean | F49: lac | G49: -99 | H49: 0.26392 | I49: -99 | J49: 0.26392 | K49: =J49/Conversions!J$28 -> 0.07331111111 | N49: Electricity: Indonesia | O49: kWh | P49: 2013 | Q49: 0.91975 | R49: 3.6 | S49: 0.2554861111 | V49: Electricity: Indonesia | W49: kWh | X49: 2013 | Y49: 0.70908 | Z49: 3.6 | AA49: 0.1969666667 | AH49: Electricity: Indonesia | AI49: kWh | AJ49: 2016 | AK49: 0.08333 | AS49: Electricity: Indonesia | AT49: kWh | AU49: 2016 | AV49: 0.11473 | AY49: Electricity: Indonesia | AZ49: kWh | BA49: 2016 | BB49: 0.01261 | BE49: Electricity: Indonesia | BF49: 0.1175184746 | BG49: 0.1618012072 | BH49: 0.01778360693 | BI49: 0.2971032888 | BJ49: 0.21067 | BM49: Electricity: Indonesia | BN49: Electricity | BO49: Indonesia | BP49: Indonesia | BQ49: 0.21067 | BT49: =VLOOKUP(BU49,D$19:$F$255,3,FALSE) -> esea | BU49: Republic of Korea | BV49: Korea | BY49: 520 | BZ49: 554 | CA49: 529 | CB49: 503 | CC49: 487 | CD49: 491 | CE49: 481 | CF49: 487 | CG49: 525 | CH49: 534 | CI49: 545 | CJ49: 535 | CL49: 0.10736 | CM49: 0.1472055556 | CO49: 0.64236
B50: Electricity: | C50: Electricity: Netherlands Antilles | D50: Netherlands Antilles | E50: Latin America and the Caribbean | F50: lac | G50: -99 | H50: 0.26392 | I50: -99 | J50: 0.26392 | K50: =J50/Conversions!J$28 -> 0.07331111111 | N50: Electricity: Ireland | O50: kWh | P50: 2013 | Q50: 0.56182 | R50: 3.6 | S50: 0.1560611111 | V50: Electricity: Ireland | W50: kWh | X50: 2013 | Y50: 0.45804 | Z50: 3.6 | AA50: 0.1272333333 | AH50: Electricity: Ireland | AI50: kWh | AJ50: 2016 | AK50: 0.03505 | AS50: Electricity: Ireland | AT50: kWh | AU50: 2016 | AV50: 0.06343 | AY50: Electricity: Ireland | AZ50: kWh | BA50: 2016 | BB50: 0.0053 | BE50: Electricity: Ireland | BF50: 0.07652170116 | BG50: 0.1384813553 | BH50: 0.01157104183 | BI50: 0.2265740983 | BJ50: 0.10378 | BM50: Electricity: Ireland | BN50: Electricity | BO50: Ireland | BP50: Ireland | BQ50: 0.10378 | BT50: =VLOOKUP(BU50,D$19:$F$255,3,FALSE) -> oc | BU50: New Zealand | BV50: New | BW50: Zealand | BY50: 109 | BZ50: 89 | CA50: 165 | CB50: 196 | CC50: 237 | CD50: 231 | CE50: 196 | CF50: 215 | CG50: 168 | CH50: 151 | CI50: 141 | CJ50: 153 | CL50: 0.032 | CM50: 0.11117 | CO50: 0.185
B51: Electricity: | C51: Electricity: Nicaragua | D51: Nicaragua | E51: Latin America and the Caribbean | F51: lac | G51: -99 | H51: 0.26392 | I51: 0.54638 | J51: 0.54638 | K51: =J51/Conversions!J$28 -> 0.1517722222 | N51: Electricity: Israel | O51: kWh | P51: 2013 | Q51: 0.84142 | R51: 3.6 | S51: 0.2337277778 | V51: Electricity: Israel | W51: kWh | X51: 2013 | Y51: 0.68896 | Z51: 3.6 | AA51: 0.1913777778 | AH51: Electricity: Israel | AI51: kWh | AJ51: 2016 | AK51: 0.0354 | AS51: Electricity: Israel | AT51: kWh | AU51: 2016 | AV51: 0.1117 | AY51: Electricity: Israel | AZ51: kWh | BA51: 2016 | BB51: 0.00536 | BE51: Electricity: Israel | BF51: 0.05138179285 | BG51: 0.1621284255 | BH51: 0.007779842081 | BI51: 0.2212900604 | BJ51: 0.15246 | BM51: Electricity: Israel | BN51: Electricity | BO51: Israel | BP51: Israel | BQ51: 0.15246 | BT51: =VLOOKUP(BU51,D$19:$F$255,3,FALSE) ->  | BV51: OECD | BW51: Asia | BX51: Oceania | BY51: 492 | BZ51: 481 | CA51: 487 | CB51: 508 | CC51: 507 | CD51: 502 | CE51: 519 | CF51: 512 | CG51: 512 | CH51: 504 | CI51: 552 | CJ51: 523 | CL51: -99 | CO51: -99
B52: Electricity: | C52: Electricity: Panama | D52: Panama | E52: Latin America and the Caribbean | F52: lac | G52: -99 | H52: 0.26392 | I52: 0.38738 | J52: 0.38738 | K52: =J52/Conversions!J$28 -> 0.1076055556 | N52: Electricity: Italy | O52: kWh | P52: 2013 | Q52: 0.50053 | R52: 3.6 | S52: 0.1390361111 | V52: Electricity: Italy | W52: kWh | X52: 2013 | Y52: 0.40631 | Z52: 3.6 | AA52: 0.1128638889 | AH52: Electricity: Italy | AI52: kWh | AJ52: 2016 | AK52: 0.02941 | AS52: Electricity: Italy | AT52: kWh | AU52: 2016 | AV52: 0.06036 | AY52: Electricity: Italy | AZ52: kWh | BA52: 2016 | BB52: 0.00445 | BE52: Electricity: Italy | BF52: 0.07238315572 | BG52: 0.1485565209 | BH52: 0.01095222859 | BI52: 0.2318919052 | BJ52: 0.09422 | BM52: Electricity: Italy | BN52: Electricity | BO52: Italy | BP52: Italy | BQ52: 0.09422 | BT52: =VLOOKUP(BU52,D$19:$F$255,3,FALSE) ->  | CL52: -99 | CO52: -99
B53: Electricity: | C53: Electricity: Paraguay | D53: Paraguay | E53: Latin America and the Caribbean | F53: lac | G53: -99 | H53: 0.26392 | I53: -99 | J53: 0.26392 | K53: =J53/Conversions!J$28 -> 0.07331111111 | N53: Electricity: Japan | O53: kWh | P53: 2013 | Q53: 0.52697 | R53: 3.6 | S53: 0.1463805556 | V53: Electricity: Japan | W53: kWh | X53: 2013 | Y53: 0.41641 | Z53: 3.6 | AA53: 0.1156694444 | AH53: Electricity: Japan | AI53: kWh | AJ53: 2016 | AK53: 0.02647 | AS53: Electricity: Japan | AT53: kWh | AU53: 2016 | AV53: 0.08009 | AY53: Electricity: Japan | AZ53: kWh | BA53: 2016 | BB53: 0.004 | BE53: Electricity: Japan | BF53: 0.06356715737 | BG53: 0.192334478 | BH53: 0.009605917245 | BI53: 0.2655075527 | BJ53: 0.11056 | BM53: Electricity: Japan | BN53: Electricity | BO53: Japan | BP53: Japan | BQ53: 0.11056 | BT53: =VLOOKUP(BU53,D$19:$F$255,3,FALSE) -> we | BU53: Austria | BV53: Austria | BY53: 238 | BZ53: 206 | CA53: 170 | CB53: 224 | CC53: 218 | CD53: 217 | CE53: 204 | CF53: 187 | CG53: 163 | CH53: 193 | CI53: 215 | CJ53: 190 | CL53: 0.04636 | CM53: 0.08334 | CO53: 0.23636
B54: Electricity: | C54: Electricity: Peru | D54: Peru | E54: Latin America and the Caribbean | F54: lac | G54: -99 | H54: 0.26392 | I54: 0.34738 | J54: 0.34738 | K54: =J54/Conversions!J$28 -> 0.09649444444 | N54: Electricity: Latvia | O54: kWh | P54: 2013 | Q54: 0.15322 | R54: 3.6 | S54: 0.04256111111 | V54: Electricity: Latvia | W54: kWh | X54: 2013 | Y54: 0.11971 | Z54: 3.6 | AA54: 0.03325277778 | AH54: Electricity: Latvia | AI54: kWh | AJ54: 2016 | AK54: 0.01163 | AS54: Electricity: Latvia | AT54: kWh | AU54: 2016 | AV54: 0.02012 | AY54: Electricity: Latvia | AZ54: kWh | BA54: 2016 | BB54: 0.00176 | BE54: Electricity: Latvia | BF54: 0.09715144934 | BG54: 0.1680728427 | BH54: 0.01470219698 | BI54: 0.279926489 | BJ54: 0.03351 | BM54: Electricity: Latvia | BN54: Electricity | BO54: Latvia | BP54: Latvia | BQ54: 0.03351 | BT54: =VLOOKUP(BU54,D$19:$F$255,3,FALSE) -> we | BU54: Belgium | BV54: Belgium | BY54: 347 | BZ54: 361 | CA54: 291 | CB54: 285 | CC54: 275 | CD54: 263 | CE54: 254 | CF54: 254 | CG54: 218 | CH54: 220 | CI54: 196 | CJ54: 211 | CL54: 0.03944 | CM54: 0.08334 | CO54: 0.25044
B55: Electricity: | C55: Electricity: Puerto Rico | D55: Puerto Rico | E55: Latin America and the Caribbean | F55: lac | G55: -99 | H55: 0.26392 | I55: -99 | J55: 0.26392 | K55: =J55/Conversions!J$28 -> 0.07331111111 | N55: Electricity: Lithuania | O55: kWh | P55: 2013 | Q55: 0.40853 | R55: 3.6 | S55: 0.1134805556 | V55: Electricity: Lithuania | W55: kWh | X55: 2013 | Y55: 0.33741 | Z55: 3.6 | AA55: 0.093725 | AH55: Electricity: Lithuania | AI55: kWh | AJ55: 2016 | AK55: 0.02629 | AS55: Electricity: Lithuania | AT55: kWh | AU55: 2016 | AV55: 0.04085 | AY55: Electricity: Lithuania | AZ55: kWh | BA55: 2016 | BB55: 0.00398 | BE55: Electricity: Lithuania | BF55: 0.07791707418 | BG55: 0.1210693222 | BH55: 0.01179573812 | BI55: 0.2107821345 | BJ55: 0.07112 | BM55: Electricity: Lithuania | BN55: Electricity | BO55: Lithuania | BP55: Lithuania | BQ55: 0.07112 | BT55: =VLOOKUP(BU55,D$19:$F$255,3,FALSE) -> ee | BU55: Czech Republic | BV55: Czech | BW55: Republic | BY55: 744 | BZ55: 794 | CA55: 728 | CB55: 617 | CC55: 614 | CD55: 606 | CE55: 636 | CF55: 621 | CG55: 588 | CH55: 589 | CI55: 591 | CJ55: 589 | CL55: 0.13881 | CM55: 0.15233 | CO55: 0.72781
B56: Electricity: | C56: Electricity: Saint Kitts and Nevis | D56: Saint Kitts and Nevis | E56: Latin America and the Caribbean | F56: lac | G56: -99 | H56: 0.26392 | I56: -99 | J56: 0.26392 | K56: =J56/Conversions!J$28 -> 0.07331111111 | N56: Electricity: Luxembourg | O56: kWh | P56: 2013 | Q56: 0.47772 | R56: 3.6 | S56: 0.1327 | V56: Electricity: Luxembourg | W56: kWh | X56: 2013 | Y56: 0.40984 | Z56: 3.6 | AA56: 0.1138444444 | AH56: Electricity: Luxembourg | AI56: kWh | AJ56: 2016 | AK56: 0.00759 | AS56: Electricity: Luxembourg | AT56: kWh | AU56: 2016 | AV56: 0.05914 | AY56: Electricity: Luxembourg | AZ56: kWh | BA56: 2016 | BB56: 0.00115 | BE56: Electricity: Luxembourg | BF56: 0.01851942221 | BG56: 0.1443002147 | BH56: 0.002805973063 | BI56: 0.16562561 | BJ56: 0.06788 | BM56: Electricity: Luxembourg | BN56: Electricity | BO56: Luxembourg | BP56: Luxembourg | BQ56: 0.06788 | BT56: =VLOOKUP(BU56,D$19:$F$255,3,FALSE) -> we | BU56: Denmark | BV56: Denmark | BY56: 669 | BZ56: 588 | CA56: 450 | CB56: 404 | CC56: 370 | CD56: 459 | CE56: 426 | CF56: 399 | CG56: 399 | CH56: 359 | CI56: 315 | CJ56: 358 | CL56: 0.06489 | CM56: 0.08334 | CO56: 0.42289
B57: Electricity: | C57: Electricity: Saint Lucia | D57: Saint Lucia | E57: Latin America and the Caribbean | F57: lac | G57: -99 | H57: 0.26392 | I57: -99 | J57: 0.26392 | K57: =J57/Conversions!J$28 -> 0.07331111111 | N57: Electricity: Malaysia | O57: kWh | P57: 2013 | Q57: 0.87303 | R57: 3.6 | S57: 0.2425083333 | V57: Electricity: Malaysia | W57: kWh | X57: 2013 | Y57: 0.72738 | Z57: 3.6 | AA57: 0.20205 | AH57: Electricity: Malaysia | AI57: kWh | AJ57: 2016 | AK57: 0.03167 | AS57: Electricity: Malaysia | AT57: kWh | AU57: 2016 | AV57: 0.10919 | AY57: Electricity: Malaysia | AZ57: kWh | BA57: 2016 | BB57: 0.00479 | BE57: Electricity: Malaysia | BF57: 0.04353982788 | BG57: 0.1501141082 | BH57: 0.006585278671 | BI57: 0.2002392147 | BJ57: 0.14565 | BM57: Electricity: Malaysia | BN57: Electricity | BO57: Malaysia | BP57: Malaysia | BQ57: 0.14565 | BT57: =VLOOKUP(BU57,D$19:$F$255,3,FALSE) -> we | BU57: Estonia | BV57: Estonia | BY57: 932 | BZ57: 1062 | CA57: 1063 | CB57: 1029 | CC57: 1048 | CD57: 965 | CE57: 1048 | CF57: 1084 | CG57: 1078 | CH57: 1014 | CI57: 1085 | CJ57: 1059 | CL57: 0.33062 | CM57: 0.08334 | CO57: 1.38962
B58: Electricity: | C58: Electricity: Saint Vincent and the Grenadines | D58: Saint Vincent and the Grenadines | E58: Latin America and the Caribbean | F58: lac | G58: -99 | H58: 0.26392 | I58: -99 | J58: 0.26392 | K58: =J58/Conversions!J$28 -> 0.07331111111 | N58: Electricity: Malta | O58: kWh | P58: 2013 | Q58: 1.13463 | R58: 3.6 | S58: 0.315175 | V58: Electricity: Malta | W58: kWh | X58: 2013 | Y58: 0.87232 | Z58: 3.6 | AA58: 0.2423111111 | AH58: Electricity: Malta | AI58: kWh | AJ58: 2016 | AK58: 0.11404 | AS58: Electricity: Malta | AT58: kWh | AU58: 2016 | AV58: 0.13102 | AY58: Electricity: Malta | AZ58: kWh | BA58: 2016 | BB58: 0.01725 | BE58: Electricity: Malta | BF58: 0.1307318415 | BG58: 0.1501971753 | BH58: 0.01977485326 | BI58: 0.3007038701 | BJ58: 0.26231 | BM58: Electricity: Malta | BN58: Electricity | BO58: Malta | BP58: Malta | BQ58: 0.26231 | BT58: =VLOOKUP(BU58,D$19:$F$255,3,FALSE) -> we | BU58: Finland | BV58: Finland | BY58: 188 | BZ58: 223 | CA58: 173 | CB58: 258 | CC58: 164 | CD58: 265 | CE58: 238 | CF58: 177 | CG58: 190 | CH58: 230 | CI58: 191 | CJ58: 203 | CL58: 0.03615 | CM58: 0.08334 | CO58: 0.23915
B59: Electricity: | C59: Electricity: Suriname | D59: Suriname | E59: Latin America and the Caribbean | F59: lac | G59: -99 | H59: 0.26392 | I59: -99 | J59: 0.26392 | K59: =J59/Conversions!J$28 -> 0.07331111111 | N59: Electricity: Mexico | O59: kWh | P59: 2013 | Q59: 0.61352 | R59: 3.6 | S59: 0.1704222222 | V59: Electricity: Mexico | W59: kWh | X59: 2013 | Y59: 0.45483 | Z59: 3.6 | AA59: 0.1263416667 | AH59: Electricity: Mexico | AI59: kWh | AJ59: 2016 | AK59: 0.07892 | AS59: Electricity: Mexico | AT59: kWh | AU59: 2016 | AV59: 0.06783 | AY59: Electricity: Mexico | AZ59: kWh | BA59: 2016 | BB59: 0.01194 | BE59: Electricity: Mexico | BF59: 0.1735153794 | BG59: 0.149132643 | BH59: 0.02625156652 | BI59: 0.3488995889 | BJ59: 0.15869 | BM59: Electricity: Mexico | BN59: Electricity | BO59: Mexico | BP59: =VLOOKUP(BO59,D$19:D$255,1,FALSE) -> Mexico | BQ59: 0.15869 | BT59: =VLOOKUP(BU59,D$19:$F$255,3,FALSE) -> we | BU59: France | BV59: France | BY59: 105 | BZ59: 73 | CA59: 75 | CB59: 67 | CC59: 79 | CD59: 72 | CE59: 76 | CF59: 72 | CG59: 74 | CH59: 77 | CI59: 61 | CJ59: 71 | CL59: 0.01463 | CM59: =VLOOKUP(BT59,F$260:J$269,5,FALSE) -> 0.08334 | CO59: 0.08563
B60: Electricity: | C60: Electricity: Trinidad and Tobago | D60: Trinidad and Tobago | E60: Latin America and the Caribbean | F60: lac | G60: -99 | H60: 0.26392 | I60: 0.70838 | J60: 0.70838 | K60: =J60/Conversions!J$28 -> 0.1967722222 | N60: Electricity: Netherlands | O60: kWh | P60: 2013 | Q60: 0.49462 | R60: 3.6 | S60: 0.1373944444 | V60: Electricity: Netherlands | W60: kWh | X60: 2013 | Y60: 0.41485 | Z60: 3.6 | AA60: 0.1152361111 | AH60: Electricity: Netherlands | AI60: kWh | AJ60: 2016 | AK60: 0.01686 | AS60: Electricity: Netherlands | AT60: kWh | AU60: 2016 | AV60: 0.06036 | AY60: Electricity: Netherlands | AZ60: kWh | BA60: 2016 | BB60: 0.00255 | BE60: Electricity: Netherlands | BF60: 0.04064119561 | BG60: 0.1454983729 | BH60: 0.006146800048 | BI60: 0.1922863686 | BJ60: 0.07977 | BM60: Electricity: Netherlands | BN60: Electricity | BO60: Netherlands | BP60: Netherlands | BQ60: 0.07977 | BT60: =VLOOKUP(BU60,D$19:$F$255,3,FALSE) -> we | BU60: Germany | BV60: Germany | BY60: 607 | BZ60: 581 | CA60: 526 | CB60: 504 | CC60: 487 | CD60: 485 | CE60: 511 | CF60: 481 | CG60: 473 | CH60: 461 | CI60: 477 | CJ60: 470 | CL60: 0.09704 | CM60: 0.08334 | CO60: 0.56704
B61: Electricity: | C61: Electricity: Turks and Caicos Islands | D61: Turks and Caicos Islands | E61: Latin America and the Caribbean | F61: lac | G61: -99 | H61: 0.26392 | I61: -99 | J61: 0.26392 | K61: =J61/Conversions!J$28 -> 0.07331111111 | N61: Electricity: New Zealand | O61: kWh | P61: 2013 | Q61: 0.1822 | R61: 3.6 | S61: 0.05061111111 | V61: Electricity: New Zealand | W61: kWh | X61: 2013 | Y61: 0.1502 | Z61: 3.6 | AA61: 0.04172222222 | AH61: Electricity: New Zealand | AI61: kWh | AJ61: 2016 | AK61: 0.01024 | AS61: Electricity: New Zealand | AT61: kWh | AU61: 2016 | AV61: 0.02021 | AY61: Electricity: New Zealand | AZ61: kWh | BA61: 2016 | BB61: 0.00155 | BE61: Electricity: New Zealand | BF61: 0.06817576565 | BG61: 0.1345539281 | BH61: 0.0103195739 | BI61: 0.2130492676 | BJ61: 0.032 | BM61: Electricity: New Zealand | BN61: Electricity | BO61: New Zealand | BP61: New Zealand | BQ61: 0.032 | BT61: =VLOOKUP(BU61,D$19:$F$255,3,FALSE) -> we | BU61: Greece | BV61: Greece | BY61: 990 | BZ61: 946 | CA61: 820 | CB61: 780 | CC61: 779 | CD61: 731 | CE61: 752 | CF61: 748 | CG61: 725 | CH61: 718 | CI61: 720 | CJ61: 721 | CL61: 0.17465 | CM61: 0.08334 | CO61: 0.89565
B62: Electricity: | C62: Electricity: United States Virgin Islands | D62: United States Virgin Islands | E62: Latin America and the Caribbean | F62: lac | G62: -99 | H62: 0.26392 | I62: -99 | J62: 0.26392 | K62: =J62/Conversions!J$28 -> 0.07331111111 | N62: Electricity: Norway | O62: kWh | P62: 2013 | Q62: 0.02032 | R62: 3.6 | S62: 0.005644444444 | V62: Electricity: Norway | W62: kWh | X62: 2013 | Y62: 0.01669 | Z62: 3.6 | AA62: 0.004636111111 | AH62: Electricity: Norway | AI62: kWh | AJ62: 2016 | AK62: 0.00135 | AS62: Electricity: Norway | AT62: kWh | AU62: 2016 | AV62: 0.00208 | AY62: Electricity: Norway | AZ62: kWh | BA62: 2016 | BB62: 0.0002 | BE62: Electricity: Norway | BF62: 0.08088675854 | BG62: 0.1246255243 | BH62: 0.01198322349 | BI62: 0.2174955063 | BJ62: 0.00363 | BM62: Electricity: Norway | BN62: Electricity | BO62: Norway | BP62: Norway | BQ62: 0.00363 | BT62: =VLOOKUP(BU62,D$19:$F$255,3,FALSE) -> ee | BU62: Hungary | BV62: Hungary | BY62: 496 | BZ62: 512 | CA62: 469 | CB62: 448 | CC62: 372 | CD62: 373 | CE62: 368 | CF62: 351 | CG62: 313 | CH62: 317 | CI62: 317 | CJ62: 316 | CL62: 0.08666 | CM62: 0.15233 | CO62: 0.40266
B63: Electricity: | C63: Electricity: Uruguay | D63: Uruguay | E63: Latin America and the Caribbean | F63: lac | G63: -99 | H63: 0.26392 | I63: 0.24438 | J63: 0.24438 | K63: =J63/Conversions!J$28 -> 0.06788333333 | N63: Electricity: Pakistan | O63: kWh | P63: 2013 | Q63: 0.58023 | R63: 3.6 | S63: 0.161175 | V63: Electricity: Pakistan | W63: kWh | X63: 2013 | Y63: 0.42466 | Z63: 3.6 | AA63: 0.1179611111 | AH63: Electricity: Pakistan | AI63: kWh | AJ63: 2016 | AK63: 0.08329 | AS63: Electricity: Pakistan | AT63: kWh | AU63: 2016 | AV63: 0.05968 | AY63: Electricity: Pakistan | AZ63: kWh | BA63: 2016 | BB63: 0.0126 | BE63: Electricity: Pakistan | BF63: 0.1961333773 | BG63: 0.1405359582 | BH63: 0.02967079546 | BI63: 0.3663401309 | BJ63: 0.15557 | BM63: Electricity: Pakistan | BN63: Electricity | BO63: Pakistan | BP63: Pakistan | BQ63: 0.15557 | BT63: =VLOOKUP(BU63,D$19:$F$255,3,FALSE) -> we | BU63: Iceland | BV63: Iceland | BY63: 1 | BZ63: 1 | CA63: 0 | CB63: 0 | CC63: 0 | CD63: 0 | CE63: 1 | CF63: 1 | CG63: 0 | CH63: 0 | CI63: 0 | CJ63: 0 | CL63: 3.4e-05 | CM63: 0.08334 | CO63: 3.4e-05
B64: Electricity: | C64: Electricity: Venezuela | D64: Venezuela | E64: Latin America and the Caribbean | F64: lac | G64: -99 | H64: 0.26392 | I64: 0.30038 | J64: 0.30038 | K64: =J64/Conversions!J$28 -> 0.08343888889 | N64: Electricity: China | O64: kWh | P64: 2013 | Q64: 0.94077 | R64: 3.6 | S64: 0.261325 | V64: Electricity: China | W64: kWh | X64: 2013 | Y64: 0.76647 | Z64: 3.6 | AA64: 0.2129083333 | AH64: Electricity: People's Rep. of China | AI64: kWh | AJ64: 2016 | AK64: 0.05252 | AS64: Electricity: People's Rep. of China | AT64: kWh | AU64: 2016 | AV64: 0.11383 | AY64: Electricity: People's Rep. of China | AZ64: kWh | BA64: 2016 | BB64: 0.00795 | BE64: Electricity: People's Rep. of China | BF64: 0.06852192519 | BG64: 0.1485120096 | BH64: 0.01037222592 | BI64: 0.2274061607 | BJ64: 0.1743 | BM64: Electricity: People's Rep. of China | BN64: Electricity | BO64: China | BP64: China | BQ64: 0.1743 | BT64: =VLOOKUP(BU64,D$19:$F$255,3,FALSE) -> we | BU64: Ireland | BV64: Ireland | BY64: 740 | BZ64: 727 | CA64: 642 | CB64: 575 | CC64: 584 | CD64: 537 | CE64: 510 | CF64: 471 | CG64: 452 | CH64: 458 | CI64: 427 | CJ64: 445 | CL64: 0.10378 | CM64: 0.08334 | CO64: 0.54878
B65: Electricity: | C65: Electricity: Angola | D65: Angola | E65: Sub-Saharan Africa | F65: ssa | G65: -99 | H65: 0.83126 | I65: 0.62285 | J65: 0.62285 | K65: =J65/Conversions!J$28 -> 0.1730138889 | N65: Electricity: Philippines | O65: kWh | P65: 2013 | Q65: 0.62837 | R65: 3.6 | S65: 0.1745472222 | V65: Electricity: Philippines | W65: kWh | X65: 2013 | Y65: 0.481 | Z65: 3.6 | AA65: 0.1336111111 | AH65: Electricity: Philippines | AI65: kWh | AJ65: 2016 | AK65: 0.06259 | AS65: Electricity: Philippines | AT65: kWh | AU65: 2016 | AV65: 0.07531 | AY65: Electricity: Philippines | AZ65: kWh | BA65: 2016 | BB65: 0.00947 | BE65: Electricity: Philippines | BF65: 0.1301247401 | BG65: 0.1565696466 | BH65: 0.01968814969 | BI65: 0.3063825364 | BJ65: 0.14737 | BM65: Electricity: Philippines | BN65: Electricity | BO65: Philippines | BP65: Philippines | BQ65: 0.14737 | BT65: =VLOOKUP(BU65,D$19:$F$255,3,FALSE) -> we | BU65: Italy | BV65: Italy | BY65: 575 | BZ65: 545 | CA65: 498 | CB65: 497 | CC65: 486 | CD65: 479 | CE65: 475 | CF65: 452 | CG65: 411 | CH65: 406 | CI65: 402 | CJ65: 406 | CL65: 0.09422 | CM65: 0.08334 | CO65: 0.50022
B66: Electricity: | C66: Electricity: Benin | D66: Benin | E66: Sub-Saharan Africa | F66: ssa | G66: -99 | H66: 0.83126 | I66: 0.91385 | J66: 0.91385 | K66: =J66/Conversions!J$28 -> 0.2538472222 | N66: Electricity: Poland | O66: kWh | P66: 2013 | Q66: 0.97202 | R66: 3.6 | S66: 0.2700055556 | V66: Electricity: Poland | W66: kWh | X66: 2013 | Y66: 0.78135 | Z66: 3.6 | AA66: 0.2170416667 | AH66: Electricity: Poland | AI66: kWh | AJ66: 2016 | AK66: 0.06392 | AS66: Electricity: Poland | AT66: kWh | AU66: 2016 | AV66: 0.11708 | AY66: Electricity: Poland | AZ66: kWh | BA66: 2016 | BB66: 0.00967 | BE66: Electricity: Poland | BF66: 0.08180712869 | BG66: 0.1498432201 | BH66: 0.01237601587 | BI66: 0.2440263646 | BJ66: 0.19067 | BM66: Electricity: Poland | BN66: Electricity | BO66: Poland | BP66: Poland | BQ66: 0.19067 | BT66: =VLOOKUP(BU66,D$19:$F$255,3,FALSE) -> we | BU66: Luxembourg | BV66: Luxembourg | BY66: 2552 | BZ66: 1738 | CA66: 528 | CB66: 393 | CC66: 389 | CD66: 387 | CE66: 381 | CF66: 385 | CG66: 376 | CH66: 379 | CI66: 387 | CJ66: 381 | CL66: 0.06788 | CM66: 0.08334 | CO66: 0.44888
B67: Electricity: | C67: Electricity: Botswana | D67: Botswana | E67: Sub-Saharan Africa | F67: ssa | G67: -99 | H67: 0.83126 | I67: 1.98185 | J67: 1.98185 | K67: =J67/Conversions!J$28 -> 0.5505138889 | N67: Electricity: Portugal | O67: kWh | P67: 2013 | Q67: 0.33732 | R67: 3.6 | S67: 0.0937 | V67: Electricity: Portugal | W67: kWh | X67: 2013 | Y67: 0.25531 | Z67: 3.6 | AA67: 0.07091944444 | AH67: Electricity: Portugal | AI67: kWh | AJ67: 2016 | AK67: 0.03408 | AS67: Electricity: Portugal | AT67: kWh | AU67: 2016 | AV67: 0.04277 | AY67: Electricity: Portugal | AZ67: kWh | BA67: 2016 | BB67: 0.00516 | BE67: Electricity: Portugal | BF67: 0.1334847832 | BG67: 0.1675218362 | BH67: 0.02021072422 | BI67: 0.3212173436 | BJ67: 0.08201 | BM67: Electricity: Portugal | BN67: Electricity | BO67: Portugal | BP67: Portugal | BQ67: 0.08201 | BT67: =VLOOKUP(BU67,D$19:$F$255,3,FALSE) -> we | BU67: Netherlands | BV67: Netherlands | BY67: 607 | BZ67: 546 | CA67: 477 | CB67: 467 | CC67: 454 | CD67: 452 | CE67: 455 | CF67: 442 | CG67: 420 | CH67: 415 | CI67: 404 | CJ67: 413 | CL67: 0.07977 | CM67: 0.08334 | CO67: 0.49277
B68: Electricity: | C68: Electricity: Burkina Faso | D68: Burkina Faso | E68: Sub-Saharan Africa | F68: ssa | G68: -99 | H68: 0.83126 | I68: -99 | J68: 0.83126 | K68: =J68/Conversions!J$28 -> 0.2309055556 | N68: Electricity: Romania | O68: kWh | P68: 2013 | Q68: 0.59152 | R68: 3.6 | S68: 0.1643111111 | V68: Electricity: Romania | W68: kWh | X68: 2013 | Y68: 0.41344 | Z68: 3.6 | AA68: 0.1148444444 | AH68: Electricity: Romania | AI68: kWh | AJ68: 2016 | AK68: 0.08787 | AS68: Electricity: Romania | AT68: kWh | AU68: 2016 | AV68: 0.07692 | AY68: Electricity: Romania | AZ68: kWh | BA68: 2016 | BB68: 0.01329 | BE68: Electricity: Romania | BF68: 0.2125338622 | BG68: 0.1860487616 | BH68: 0.03214493034 | BI68: 0.4307275542 | BJ68: 0.17808 | BM68: Electricity: Romania | BN68: Electricity | BO68: Romania | BP68: Romania | BQ68: 0.17808 | BT68: =VLOOKUP(BU68,D$19:$F$255,3,FALSE) -> we | BU68: Norway | BV68: Norway | BY68: 1 | BZ68: 2 | CA68: 1 | CB68: 3 | CC68: 2 | CD68: 3 | CE68: 4 | CF68: 3 | CG68: 11 | CH68: 16 | CI68: 13 | CJ68: 14 | CL68: 0.00363 | CM68: 0.08334 | CO68: 0.01763
B69: Electricity: | C69: Electricity: Burundi | D69: Burundi | E69: Sub-Saharan Africa | F69: ssa | G69: -99 | H69: 0.83126 | I69: -99 | J69: 0.83126 | K69: =J69/Conversions!J$28 -> 0.2309055556 | N69: Electricity: Russian Federation | O69: kWh | P69: 2013 | Q69: 0.52612 | R69: 3.6 | S69: 0.1461444444 | V69: Electricity: Russian Federation | W69: kWh | X69: 2013 | Y69: 0.3836 | Z69: 3.6 | AA69: 0.1065555556 | AH69: Electricity: Russian Federation | AI69: kWh | AJ69: 2016 | AK69: 0.06468 | AS69: Electricity: Russian Federation | AT69: kWh | AU69: 2016 | AV69: 0.06805 | AY69: Electricity: Russian Federation | AZ69: kWh | BA69: 2016 | BB69: 0.00979 | BE69: Electricity: Russian Federation | BF69: 0.1686131387 | BG69: 0.1773983316 | BH69: 0.02552137643 | BI69: 0.3715328467 | BJ69: 0.14252 | BM69: Electricity: Russian Federation | BN69: Electricity | BO69: Russian Federation | BP69: Russian Federation | BQ69: 0.14252 | BT69: =VLOOKUP(BU69,D$19:$F$255,3,FALSE) -> ee | BU69: Poland | BV69: Poland | BY69: 988 | BZ69: 905 | CA69: 866 | CB69: 833 | CC69: 818 | CD69: 821 | CE69: 820 | CF69: 815 | CG69: 799 | CH69: 781 | CI69: 780 | CJ69: 787 | CL69: 0.19067 | CM69: 0.15233 | CO69: 0.97767
B70: Electricity: | C70: Electricity: Cote d’Ivoire | D70: Cote d’Ivoire | E70: Sub-Saharan Africa | F70: ssa | G70: -99 | H70: 0.83126 | I70: 0.62385 | J70: 0.62385 | K70: =J70/Conversions!J$28 -> 0.1732916667 | N70: Electricity: Saudi Arabia | O70: kWh | P70: 2013 | Q70: 0.9206 | R70: 3.6 | S70: 0.2557222222 | V70: Electricity: Saudi Arabia | W70: kWh | X70: 2013 | Y70: 0.73678 | Z70: 3.6 | AA70: 0.2046611111 | AH70: Electricity: Saudi Arabia | AI70: kWh | AJ70: 2016 | AK70: 0.06072 | AS70: Electricity: Saudi Arabia | AT70: kWh | AU70: 2016 | AV70: 0.11391 | AY70: Electricity: Saudi Arabia | AZ70: kWh | BA70: 2016 | BB70: 0.00919 | BE70: Electricity: Saudi Arabia | BF70: 0.0824126605 | BG70: 0.1546051739 | BH70: 0.01247319417 | BI70: 0.2494910285 | BJ70: 0.18382 | BM70: Electricity: Saudi Arabia | BN70: Electricity | BO70: Saudi Arabia | BP70: Saudi Arabia | BQ70: 0.18382 | BT70: =VLOOKUP(BU70,D$19:$F$255,3,FALSE) -> we | BU70: Portugal | BV70: Portugal | BY70: 519 | BZ70: 576 | CA70: 486 | CB70: 465 | CC70: 521 | CD70: 431 | CE70: 396 | CF70: 394 | CG70: 379 | CH70: 255 | CI70: 303 | CJ70: 313 | CL70: 0.08201 | CM70: 0.08334 | CO70: 0.39501
B71: Electricity: | C71: Electricity: Cameroon | D71: Cameroon | E71: Sub-Saharan Africa | F71: ssa | G71: -99 | H71: 0.83126 | I71: 0.39485 | J71: 0.39485 | K71: =J71/Conversions!J$28 -> 0.1096805556 | N71: Electricity: Singapore | O71: kWh | P71: 2013 | Q71: 0.57886 | R71: 3.6 | S71: 0.1607944444 | V71: Electricity: Singapore | W71: kWh | X71: 2013 | Y71: 0.49945 | Z71: 3.6 | AA71: 0.1387361111 | AH71: Electricity: Singapore | AI71: kWh | AJ71: 2016 | AK71: 0.00261 | AS71: Electricity: Singapore | AT71: kWh | AU71: 2016 | AV71: 0.07641 | AY71: Electricity: Singapore | AZ71: kWh | BA71: 2016 | BB71: 0.00039 | BE71: Electricity: Singapore | BF71: 0.005225748323 | BG71: 0.1529882871 | BH71: 0.0007808589448 | BI71: 0.1589948944 | BJ71: 0.07941 | BM71: Electricity: Singapore | BN71: Electricity | BO71: Singapore | BP71: Singapore | BQ71: 0.07941 | BT71: =VLOOKUP(BU71,D$19:$F$255,3,FALSE) -> ee | BU71: Slovakia | BV71: Slovak | BW71: Republic | BY71: 389 | BZ71: 364 | CA71: 245 | CB71: 233 | CC71: 221 | CD71: 214 | CE71: 221 | CF71: 208 | CG71: 210 | CH71: 197 | CI71: 200 | CJ71: 202 | CL71: -99 | CM71: 0.15233 | CO71: 0.35433
B72: Electricity: | C72: Electricity: Cape Verde | D72: Cape Verde | E72: Sub-Saharan Africa | F72: ssa | G72: -99 | H72: 0.83126 | I72: -99 | J72: 0.83126 | K72: =J72/Conversions!J$28 -> 0.2309055556 | N72: Electricity: Slovak Republic | O72: kWh | P72: 2013 | Q72: 0.23367 | R72: 3.6 | S72: 0.06490833333 | V72: Electricity: Slovak Republic | W72: kWh | X72: 2013 | Y72: 0.19704 | Z72: 3.6 | AA72: 0.05473333333 | AH72: Electricity: Slovak Republic | AI72: kWh | AJ72: 2016 | AK72: 0.00596 | AS72: Electricity: Slovak Republic | AT72: kWh | AU72: 2016 | AV72: 0.02977 | AY72: Electricity: Slovak Republic | AZ72: kWh | BA72: 2016 | BB72: 0.0009 | BE72: Electricity: Slovak Republic | BF72: 0.03024766545 | BG72: 0.1510860739 | BH72: 0.004567600487 | BI72: 0.1859013398 | BJ72: 0.03663 | BM72: Electricity: Slovak Republic | BN72: Electricity | BO72: Slovak Republic | BQ72: 0.03663 | BT72: =VLOOKUP(BU72,D$19:$F$255,3,FALSE) -> we | BU72: Slovenia | BV72: Slovenia | BY72: 429 | BZ72: 382 | CA72: 343 | CB72: 345 | CC72: 349 | CD72: 362 | CE72: 375 | CF72: 332 | CG72: 318 | CH72: 325 | CI72: 338 | CJ72: 327 | CL72: 0.07892 | CM72: 0.08334 | CO72: 0.40592
B73: Electricity: | C73: Electricity: Central African Republic | D73: Central African Republic | E73: Sub-Saharan Africa | F73: ssa | G73: -99 | H73: 0.83126 | I73: -99 | J73: 0.83126 | K73: =J73/Conversions!J$28 -> 0.2309055556 | N73: Electricity: Slovenia | O73: kWh | P73: 2013 | Q73: 0.40383 | R73: 3.6 | S73: 0.112175 | V73: Electricity: Slovenia | W73: kWh | X73: 2013 | Y73: 0.32491 | Z73: 3.6 | AA73: 0.09025277778 | AH73: Electricity: Slovenia | AI73: kWh | AJ73: 2016 | AK73: 0.02323 | AS73: Electricity: Slovenia | AT73: kWh | AU73: 2016 | AV73: 0.05218 | AY73: Electricity: Slovenia | AZ73: kWh | BA73: 2016 | BB73: 0.00351 | BE73: Electricity: Slovenia | BF73: 0.07149672217 | BG73: 0.1605983195 | BH73: 0.0108029916 | BI73: 0.2428980333 | BJ73: 0.07892 | BM73: Electricity: Slovenia | BN73: Electricity | BO73: Slovenia | BP73: Slovenia | BQ73: 0.07892 | BT73: =VLOOKUP(BU73,D$19:$F$255,3,FALSE) -> we | BU73: Spain | BV73: Spain | BY73: 427 | BZ73: 454 | CA73: 432 | CB73: 383 | CC73: 396 | CD73: 369 | CE73: 387 | CF73: 327 | CG73: 297 | CH73: 237 | CI73: 291 | CJ73: 275 | CL73: 0.07962 | CM73: 0.08334 | CO73: 0.35462
B74: Electricity: | C74: Electricity: Chad | D74: Chad | E74: Sub-Saharan Africa | F74: ssa | G74: -99 | H74: 0.83126 | I74: -99 | J74: 0.83126 | K74: =J74/Conversions!J$28 -> 0.2309055556 | N74: Electricity: South Africa | O74: kWh | P74: 2013 | Q74: 1.16439 | R74: 3.6 | S74: 0.3234416667 | V74: Electricity: South Africa | W74: kWh | X74: 2013 | Y74: 0.92654 | Z74: 3.6 | AA74: 0.2573722222 | AH74: Electricity: South Africa | AI74: kWh | AJ74: 2016 | AK74: 0.09395 | AS74: Electricity: South Africa | AT74: kWh | AU74: 2016 | AV74: 0.12969 | AY74: Electricity: South Africa | AZ74: kWh | BA74: 2016 | BB74: 0.01421 | BE74: Electricity: South Africa | BF74: 0.1013987523 | BG74: 0.1399723703 | BH74: 0.01533662875 | BI74: 0.2567077514 | BJ74: 0.23785 | BM74: Electricity: South Africa | BN74: Electricity | BO74: South Africa | BP74: South Africa | BQ74: 0.23785 | BT74: =VLOOKUP(BU74,D$19:$F$255,3,FALSE) -> we | BU74: Sweden | BV74: Sweden | BY74: 12 | BZ74: 22 | CA74: 22 | CB74: 23 | CC74: 19 | CD74: 23 | CE74: 17 | CF74: 18 | CG74: 19 | CH74: 26 | CI74: 17 | CJ74: 21 | CL74: 0.00402 | CM74: 0.08334 | CO74: 0.02502
B75: Electricity: | C75: Electricity: Comoros | D75: Comoros | E75: Sub-Saharan Africa | F75: ssa | G75: -99 | H75: 0.83126 | I75: -99 | J75: 0.83126 | K75: =J75/Conversions!J$28 -> 0.2309055556 | N75: Electricity: Republic of Korea | O75: kWh | P75: 2013 | Q75: 0.64043 | R75: 3.6 | S75: 0.1778972222 | V75: Electricity: Republic of Korea | W75: kWh | X75: 2013 | Y75: 0.53307 | Z75: 3.6 | AA75: 0.148075 | AH75: Electricity: South Korea | AI75: kWh | AJ75: 2016 | AK75: 0.02074 | AS75: Electricity: South Korea | AT75: kWh | AU75: 2016 | AV75: 0.08348 | AY75: Electricity: South Korea | AZ75: kWh | BA75: 2016 | BB75: 0.00314 | BE75: Electricity: South Korea | BF75: 0.03890671019 | BG75: 0.1566023224 | BH75: 0.005890408389 | BI75: 0.201399441 | BJ75: 0.10736 | BM75: Electricity: South Korea | BN75: Electricity | BO75: Republic of Korea | BP75: Republic of Korea | BQ75: 0.10736 | BT75: =VLOOKUP(BU75,D$19:$F$255,3,FALSE) -> we | BU75: Switzerland | BV75: Switzerland | BY75: 24 | BZ75: 23 | CA75: 25 | CB75: 28 | CC75: 32 | CD75: 33 | CE75: 30 | CF75: 29 | CG75: 26 | CH75: 27 | CI75: 30 | CJ75: 28 | CL75: 0.00768 | CM75: 0.08334 | CO75: 0.03568
B76: Electricity: | C76: Electricity: Congo | D76: Congo | E76: Sub-Saharan Africa | F76: ssa | G76: -99 | H76: 0.83126 | I76: 0.44085 | J76: 0.44085 | K76: =J76/Conversions!J$28 -> 0.1224583333 | N76: Electricity: Spain | O76: kWh | P76: 2013 | Q76: 0.3176 | R76: 3.6 | S76: 0.08822222222 | V76: Electricity: Spain | W76: kWh | X76: 2013 | Y76: 0.23798 | Z76: 3.6 | AA76: 0.06610555556 | AH76: Electricity: Spain | AI76: kWh | AJ76: 2016 | AK76: 0.03117 | AS76: Electricity: Spain | AT76: kWh | AU76: 2016 | AV76: 0.04373 | AY76: Electricity: Spain | AZ76: kWh | BA76: 2016 | BB76: 0.00472 | BE76: Electricity: Spain | BF76: 0.1309773931 | BG76: 0.1837549374 | BH76: 0.01983359946 | BI76: 0.3345659299 | BJ76: 0.07962 | BM76: Electricity: Spain | BN76: Electricity | BO76: Spain | BP76: Spain | BQ76: 0.07962 | BT76: =VLOOKUP(BU76,D$19:$F$255,3,FALSE) -> nena | BU76: Turkey | BV76: Turkey | BY76: 568 | BZ76: 512 | CA76: 529 | CB76: 426 | CC76: 438 | CD76: 452 | CE76: 494 | CF76: 511 | CG76: 496 | CH76: 460 | CI76: 472 | CJ76: 476 | CL76: 0.17148 | CM76: 0.21183 | CO76: 0.64748
B77: Electricity: | C77: Electricity: Democratic Republic of the Congo | D77: Democratic Republic of the Congo | E77: Sub-Saharan Africa | F77: ssa | G77: -99 | H77: 0.83126 | I77: 0.19685 | J77: 0.19685 | K77: =J77/Conversions!J$28 -> 0.05468055556 | N77: Electricity: Sweden | O77: kWh | P77: 2013 | Q77: 0.03359 | R77: 3.6 | S77: 0.009330555556 | V77: Electricity: Sweden | W77: kWh | X77: 2013 | Y77: 0.02957 | Z77: 3.6 | AA77: 0.008213888889 | AH77: Electricity: Sweden | AI77: kWh | AJ77: 2016 | AK77: 0.00132 | AS77: Electricity: Sweden | AT77: kWh | AU77: 2016 | AV77: 0.0025 | AY77: Electricity: Sweden | AZ77: kWh | BA77: 2016 | BB77: 0.0002 | BE77: Electricity: Sweden | BF77: 0.04463983767 | BG77: 0.08454514711 | BH77: 0.006763611769 | BI77: 0.1359485966 | BJ77: 0.00402 | BM77: Electricity: Sweden | BN77: Electricity | BO77: Sweden | BP77: Sweden | BQ77: 0.00402 | BT77: =VLOOKUP(BU77,D$19:$F$255,3,FALSE) -> we | BU77: U.K. of Great Britain and Northern Ireland | BV77: United | BW77: Kingdom | BY77: 672 | BZ77: 529 | CA77: 472 | CB77: 492 | CC77: 491 | CD77: 515 | CE77: 506 | CF77: 499 | CG77: 453 | CH77: 457 | CI77: 441 | CJ77: 450 | CL77: -99 | CM77: 0.08334 | CO77: 0.53334
B78: Electricity: | C78: Electricity: Djibouti | D78: Djibouti | E78: Sub-Saharan Africa | F78: ssa | G78: -99 | H78: 0.83126 | I78: -99 | J78: 0.83126 | K78: =J78/Conversions!J$28 -> 0.2309055556 | N78: Electricity: Switzerland | O78: kWh | P78: 2013 | Q78: =Y78+AK78+AV78+BB78 -> 0.03499 | R78: 3.6 | S78: 0.009719444444 | V78: Electricity: Switzerland | W78: kWh | X78: 2013 | Y78: 0.02731 | Z78: 3.6 | AA78: 0.007586111111 | AH78: Electricity: Switzerland | AI78: kWh | AJ78: 2016 | AK78: 0.00253 | AS78: Electricity: Switzerland | AT78: kWh | AU78: 2016 | AV78: 0.00477 | AY78: Electricity: Switzerland | AZ78: kWh | BA78: 2016 | BB78: 0.00038 | BE78: Electricity: Switzerland | BF78: 0.09264005859 | BG78: 0.1746612962 | BH78: 0.0139143171 | BI78: 0.2812156719 | BJ78: 0.00768 | BM78: Electricity: Switzerland | BN78: Electricity | BO78: Switzerland | BP78: Switzerland | BQ78: 0.00768 | BT78: =VLOOKUP(BU78,D$19:$F$255,3,FALSE) ->  | BV78: OECD | BW78: Europe | BY78: 448 | BZ78: 407 | CA78: 376 | CB78: 370 | CC78: 365 | CD78: 368 | CE78: 374 | CF78: 356 | CG78: 340 | CH78: 331 | CI78: 334 | CJ78: 335 | CL78: -99 | CO78: -99
B79: Electricity: | C79: Electricity: Equatorial Guinea | D79: Equatorial Guinea | E79: Sub-Saharan Africa | F79: ssa | G79: -99 | H79: 0.83126 | I79: -99 | J79: 0.83126 | K79: =J79/Conversions!J$28 -> 0.2309055556 | N79: Electricity: Thailand | O79: kWh | P79: 2013 | Q79: 0.63033 | R79: 3.6 | S79: 0.1750916667 | V79: Electricity: Thailand | W79: kWh | X79: 2013 | Y79: 0.51289 | Z79: 3.6 | AA79: 0.1424694444 | AH79: Electricity: Thailand | AI79: kWh | AJ79: 2016 | AK79: 0.03303 | AS79: Electricity: Thailand | AT79: kWh | AU79: 2016 | AV79: 0.07941 | AY79: Electricity: Thailand | AZ79: kWh | BA79: 2016 | BB79: 0.005 | BE79: Electricity: Thailand | BF79: 0.06439977383 | BG79: 0.1548285207 | BH79: 0.009748679054 | BI79: 0.2289769736 | BJ79: 0.11744 | BM79: Electricity: Thailand | BN79: Electricity | BO79: Thailand | BP79: Thailand | BQ79: 0.11744 | BT79: =VLOOKUP(BU79,D$19:$F$255,3,FALSE) ->  | BV79: European | BW79: Union | BX79: 27 | BY79: 488 | BZ79: 440 | CA79: 401 | CB79: 391 | CC79: 387 | CD79: 389 | CE79: 396 | CF79: 375 | CG79: 357 | CH79: 347 | CI79: 352 | CJ79: 352 | CL79: -99 | CO79: -99
B80: Electricity: | C80: Electricity: Eritrea | D80: Eritrea | E80: Sub-Saharan Africa | F80: ssa | G80: -99 | H80: 0.83126 | I80: 1.03785 | J80: 1.03785 | K80: =J80/Conversions!J$28 -> 0.2882916667 | N80: Electricity: Turkey | O80: kWh | P80: 2013 | Q80: 0.63108 | R80: 3.6 | S80: 0.1753 | V80: Electricity: Turkey | W80: kWh | X80: 2013 | Y80: 0.4596 | Z80: 3.6 | AA80: 0.1276666667 | AH80: Electricity: Turkey | AI80: kWh | AJ80: 2016 | AK80: 0.08792 | AS80: Electricity: Turkey | AT80: kWh | AU80: 2016 | AV80: 0.07026 | AY80: Electricity: Turkey | AZ80: kWh | BA80: 2016 | BB80: 0.0133 | BE80: Electricity: Turkey | BF80: 0.1912967798 | BG80: 0.1528720627 | BH80: 0.02893820714 | BI80: 0.3731070496 | BJ80: 0.17148 | BM80: Electricity: Turkey | BN80: Electricity | BO80: Turkey | BP80: Turkey | BQ80: 0.17148 | BT80: =VLOOKUP(BU80,D$19:$F$255,3,FALSE) ->  | CL80: -99 | CO80: -99
B81: Electricity: | C81: Electricity: Ethiopia | D81: Ethiopia | E81: Sub-Saharan Africa | F81: ssa | G81: -99 | H81: 0.83126 | I81: 0.23885 | J81: 0.23885 | K81: =J81/Conversions!J$28 -> 0.06634722222 | N81: Electricity: Ukraine | O81: kWh | P81: 2013 | Q81: 0.54518 | R81: 3.6 | S81: 0.1514388889 | V81: Electricity: Ukraine | W81: kWh | X81: 2013 | Y81: 0.39165 | Z81: 3.6 | AA81: 0.1087916667 | AH81: Electricity: Ukraine | AI81: kWh | AJ81: 2016 | AK81: 0.07122 | AS81: Electricity: Ukraine | AT81: kWh | AU81: 2016 | AV81: 0.07154 | AY81: Electricity: Ukraine | AZ81: kWh | BA81: 2016 | BB81: 0.01077 | BE81: Electricity: Ukraine | BF81: 0.181846036 | BG81: 0.182663092 | BH81: 0.02749904251 | BI81: 0.3920081706 | BJ81: 0.15353 | BM81: Electricity: Ukraine | BN81: Electricity | BO81: Ukraine | BP81: Ukraine | BQ81: 0.15353 | BT81: =VLOOKUP(BU81,D$19:$F$255,3,FALSE) ->  | BV81: Non-OECD | BW81: Total | BY81: 573 | BZ81: 604 | CA81: 611 | CB81: 636 | CC81: 643 | CD81: 652 | CE81: 643 | CF81: 640 | CG81: 639 | CH81: 627 | CI81: 633 | CJ81: 633 | CL81: -99 | CO81: -99
B82: Electricity: | C82: Electricity: Gabon | D82: Gabon | E82: Sub-Saharan Africa | F82: ssa | G82: -99 | H82: 0.83126 | I82: 0.56685 | J82: 0.56685 | K82: =J82/Conversions!J$28 -> 0.1574583333 | N82: Electricity: United States of America | O82: kWh | P82: 2013 | Q82: 0.6364 | R82: 3.6 | S82: 0.1767777778 | V82: Electricity: United States of America | W82: kWh | X82: 2013 | Y82: 0.52225 | Z82: 3.6 | AA82: 0.1450694444 | AH82: Electricity: United States | AI82: kWh | AJ82: 2016 | AK82: 0.03365 | AS82: Electricity: United States | AT82: kWh | AU82: 2016 | AV82: 0.07541 | AY82: Electricity: United States | AZ82: kWh | BA82: 2016 | BB82: 0.00509 | BE82: Electricity: United States | BF82: 0.06443274294 | BG82: 0.1443944471 | BH82: 0.009746290091 | BI82: 0.2185734801 | BJ82: 0.11415 | BM82: Electricity: United States | BN82: Electricity | BO82: United States of America | BP82: United States of America | BQ82: 0.11415 | BT82: =VLOOKUP(BU82,D$19:$F$255,3,FALSE) -> we | BU82: Albania | BV82: Albania | BY82: 162 | BZ82: 38 | CA82: 43 | CB82: 30 | CC82: 26 | CD82: 26 | CE82: 31 | CF82: - | CG82: 1 | CH82: 2 | CI82: 7 | CJ82: 3 | CL82: -99 | CM82: 0.08334 | CO82: 0.08634
B83: Electricity: | C83: Electricity: Gambia | D83: Gambia | E83: Sub-Saharan Africa | F83: ssa | G83: -99 | H83: 0.83126 | I83: -99 | J83: 0.83126 | K83: =J83/Conversions!J$28 -> 0.2309055556 | N83: Electricity: Africa (average) | O83: kWh | P83: 2013 | Q83: 0.83126 | R83: 3.6 | S83: 0.2309055556 | V83: Electricity: Africa (average) | W83: kWh | X83: 2013 | Y83: 0.63741 | Z83: 3.6 | AA83: 0.1770583333 | AH83: Electricity: Africa (average) | AI83: kWh | AJ83: 2016 | AK83: 0.09191 | AS83: Electricity: Africa (average) | AT83: kWh | AU83: 2016 | AV83: 0.08804 | AY83: Electricity: Africa (average) | AZ83: kWh | BA83: 2016 | BB83: 0.0139 | BE83: Electricity: Africa (average) | BF83: 0.1441929057 | BG83: 0.1381214603 | BH83: 0.0218070002 | BI83: 0.3041213662 | BJ83: 0.19385 | BM83: Electricity: Africa (average) | BN83: Electricity | BO83: Africa (average) | BQ83: 0.19385 | BT83: =VLOOKUP(BU83,D$19:$F$255,3,FALSE) -> nena | BU83: Armenia | BV83: Armenia | BY83: 495 | BZ83: 211 | CA83: 238 | CB83: 114 | CC83: 131 | CD83: 130 | CE83: 157 | CF83: 159 | CG83: 102 | CH83: 92 | CI83: 123 | CJ83: 106 | CL83: -99 | CM83: 0.21183 | CO83: 0.31783
B84: Electricity: | C84: =CONCATENATE(B84,D84) -> Electricity: Ghana | D84: Ghana | E84: Sub-Saharan Africa | F84: ssa | G84: =IFERROR(VLOOKUP(C84,$N$27:$S$87,4,FALSE),-99) -> -99 | H84: =VLOOKUP(F84,F$260:J$269,3,FALSE) -> 0.83126 | I84: =IFERROR(VLOOKUP(D84,BU$27:CO$198,21,FALSE),-99) -> 0.42685 | J84: =IF(I84>0,I84,IF(G84>0,G84,H84)) -> 0.42685 | K84: =J84/Conversions!J$28 -> 0.1185694444 | N84: Electricity: EU (average) | O84: kWh | P84: 2013 | Q84: 0.43057 | R84: 3.6 | S84: 0.1196027778 | V84: Electricity: EU (average) | W84: kWh | X84: 2013 | Y84: 0.34723 | Z84: 3.6 | AA84: 0.09645277778 | AH84: Electricity: EU (average) | AI84: kWh | AJ84: 2016 | AK84: 0.02634 | AS84: Electricity: EU (average) | AT84: kWh | AU84: 2016 | AV84: 0.05302 | AY84: Electricity: EU (average) | AZ84: kWh | BA84: 2016 | BB84: 0.00398 | BE84: Electricity: EU (average) | BF84: 0.07585750079 | BG84: 0.1526941797 | BH84: 0.01146214325 | BI84: 0.2400138237 | BJ84: 0.08334 | BM84: Electricity: EU (average) | BN84: Electricity | BO84: EU (average) | BQ84: 0.08334 | BT84: =VLOOKUP(BU84,D$19:$F$255,3,FALSE) -> nena | BU84: Azerbaijan | BV84: Azerbaijan | BY84: 574 | BZ84: 696 | CA84: 739 | CB84: 535 | CC84: 536 | CD84: 519 | CE84: 549 | CF84: 518 | CG84: 481 | CH84: 431 | CI84: 455 | CJ84: 456 | CL84: -99 | CM84: 0.21183 | CO84: 0.66783
B85: Electricity: | C85: Electricity: Guinea | D85: Guinea | E85: Sub-Saharan Africa | F85: ssa | G85: -99 | H85: 0.83126 | I85: -99 | J85: 0.83126 | K85: =J85/Conversions!J$28 -> 0.2309055556 | N85: Electricity: Latin America (average) | O85: kWh | P85: 2013 | Q85: 0.26392 | R85: 3.6 | S85: 0.07331111111 | V85: Electricity: Latin America (average) | W85: kWh | X85: 2013 | Y85: 0.19654 | Z85: 3.6 | AA85: 0.05459444444 | AH85: Electricity: Latin America (average) | AI85: kWh | AJ85: 2016 | AK85: 0.03432 | AS85: Electricity: Latin America (average) | AT85: kWh | AU85: 2016 | AV85: 0.02787 | AY85: Electricity: Latin America (average) | AZ85: kWh | BA85: 2016 | BB85: 0.00519 | BE85: Electricity: Latin America (average) | BF85: 0.1746209423 | BG85: 0.1418031953 | BH85: 0.0264068383 | BI85: 0.3428309759 | BJ85: 0.06738 | BM85: Electricity: Latin America (average) | BN85: Electricity | BO85: Latin America (average) | BQ85: 0.06738 | BT85: =VLOOKUP(BU85,D$19:$F$255,3,FALSE) -> ee | BU85: Belarus | BV85: Belarus | BY85: 548 | BZ85: 500 | CA85: 472 | CB85: 463 | CC85: 459 | CD85: 461 | CE85: 452 | CF85: 465 | CG85: 466 | CH85: 449 | CI85: 441 | CJ85: 452 | CL85: -99 | CM85: 0.15233 | CO85: 0.60433
B86: Electricity: | C86: Electricity: Guinea-Bissau | D86: Guinea-Bissau | E86: Sub-Saharan Africa | F86: ssa | G86: -99 | H86: 0.83126 | I86: -99 | J86: 0.83126 | K86: =J86/Conversions!J$28 -> 0.2309055556 | N86: Electricity: Middle East (average) | O86: kWh | P86: 2013 | Q86: 0.88605 | R86: 3.6 | S86: 0.246125 | V86: Electricity: Middle East (average) | W86: kWh | X86: 2013 | Y86: 0.67422 | Z86: 3.6 | AA86: 0.1872833333 | AH86: Electricity: Middle East (average) | AI86: kWh | AJ86: 2016 | AK86: 0.09602 | AS86: Electricity: Middle East (average) | AT86: kWh | AU86: 2016 | AV86: 0.10128 | AY86: Electricity: Middle East (average) | AZ86: kWh | BA86: 2016 | BB86: 0.01453 | BE86: Electricity: Middle East (average) | BF86: 0.1424164219 | BG86: 0.1502180297 | BH86: 0.02155082911 | BI86: 0.3141852808 | BJ86: 0.21183 | BM86: Electricity: Middle East (average) | BN86: Electricity | BO86: Middle East (average) | BQ86: 0.21183 | BT86: =VLOOKUP(BU86,D$19:$F$255,3,FALSE) -> we | BU86: Bosnia and Herzegovina | BV86: Bosnia | BW86: and | BX86: Herzegovina | BY86: 713 | BZ86: 176 | CA86: 824 | CB86: 772 | CC86: 797 | CD86: 852 | CE86: 1007 | CF86: 830 | CG86: 805 | CH86: 723 | CI86: 974 | CJ86: 834 | CL86: -99 | CM86: 0.08334 | CO86: 0.91734
B87: Electricity: | C87: Electricity: Kenya | D87: Kenya | E87: Sub-Saharan Africa | F87: ssa | G87: -99 | H87: 0.83126 | I87: 0.51585 | J87: 0.51585 | K87: =J87/Conversions!J$28 -> 0.1432916667 | N87: Electricity: Non-OECD Europe and Eurasia (average) | O87: kWh | P87: 2013 | Q87: =Y87+AK87+AV87+BB87 -> 0.55965 | R87: 3.6 | S87: 0.1554583333 | V87: Electricity: Non-OECD Europe and Eurasia (average) | W87: kWh | X87: 2013 | Y87: 0.40732 | Z87: 3.6 | AA87: 0.1131444444 | AH87: Electricity: Non-OECD Europe and Eurasia (average) | AI87: kWh | AJ87: 2016 | AK87: 0.07032 | AS87: Electricity: Non-OECD Europe and Eurasia (average) | AT87: kWh | AU87: 2016 | AV87: 0.07137 | AY87: Electricity: Non-OECD Europe and Eurasia (average) | AZ87: kWh | BA87: 2016 | BB87: 0.01064 | BE87: Electricity: Non-OECD Europe and Eurasia (average) | BF87: 0.1726406756 | BG87: 0.1752185014 | BH87: 0.02612196799 | BI87: 0.373981145 | BJ87: =AK87+AV87+BB87 -> 0.15233 | BM87: Electricity: Non-OECD Europe and Eurasia (average) | BN87: Electricity | BO87: Non-OECD Europe and Eurasia (average) | BQ87: 0.15233 | BT87: =VLOOKUP(BU87,D$19:$F$255,3,FALSE) -> ee | BU87: Bulgaria | BV87: Bulgaria | BY87: 761 | BZ87: 582 | CA87: 478 | CB87: 538 | CC87: 506 | CD87: 493 | CE87: 597 | CF87: 566 | CG87: 540 | CH87: 542 | CI87: 591 | CJ87: 558 | CL87: 0.1919 | CM87: 0.15233 | CO87: 0.7499
B88: Electricity: | C88: Electricity: Lesotho | D88: Lesotho | E88: Sub-Saharan Africa | F88: ssa | G88: -99 | H88: 0.83126 | I88: -99 | J88: 0.83126 | K88: =J88/Conversions!J$28 -> 0.2309055556 | BT88: =VLOOKUP(BU88,D$19:$F$255,3,FALSE) -> we | BU88: Croatia | BV88: Croatia | BY88: 382 | BZ88: 263 | CA88: 313 | CB88: 312 | CC88: 330 | CD88: 337 | CE88: 422 | CF88: 367 | CG88: 290 | CH88: 236 | CI88: 334 | CJ88: 287 | CL88: 0.10507 | CM88: 0.08334 | CO88: 0.39207
B89: Electricity: | C89: Electricity: Liberia | D89: Liberia | E89: Sub-Saharan Africa | F89: ssa | G89: -99 | H89: 0.83126 | I89: -99 | J89: 0.83126 | K89: =J89/Conversions!J$28 -> 0.2309055556 | N89: Electricity: UK | O89: kWh | P89: 2016 | Q89: =Y105+AK22+AV18+AV23 -> 0.5168 | R89: 3.6 | S89: =Q89/R89 -> 0.1435555556 | BT89: =VLOOKUP(BU89,D$19:$F$255,3,FALSE) -> nena | BU89: Cyprus | BV89: Cyprus | BY89: 838 | BZ89: 822 | CA89: 838 | CB89: 772 | CC89: 788 | CD89: 758 | CE89: 761 | CF89: 759 | CG89: 746 | CH89: 705 | CI89: 732 | CJ89: 728 | CL89: 0.14995 | CM89: 0.21183 | CO89: 0.87795
B90: Electricity: | C90: Electricity: Madagascar | D90: Madagascar | E90: Sub-Saharan Africa | F90: ssa | G90: -99 | H90: 0.83126 | I90: -99 | J90: 0.83126 | K90: =J90/Conversions!J$28 -> 0.2309055556 | BT90: =VLOOKUP(BU90,D$19:$F$255,3,FALSE) -> nena | BU90: Georgia | BV90: Georgia | BY90: 574 | BZ90: 510 | CA90: 225 | CB90: 89 | CC90: 101 | CD90: 147 | CE90: 161 | CF90: 79 | CG90: 123 | CH90: 69 | CI90: 102 | CJ90: 98 | CL90: -99 | CM90: 0.21183 | CO90: 0.30983
B91: Electricity: | C91: Electricity: Malawi | D91: Malawi | E91: Sub-Saharan Africa | F91: ssa | G91: -99 | H91: 0.83126 | I91: -99 | J91: 0.83126 | K91: =J91/Conversions!J$28 -> 0.2309055556 | U91: FAQs | AG91: Activity | AH91: Type | AI91: Unit | AJ91: Year | AK91: kg CO2e | AL91: kg CO2 | AM91: kg CH4 | AN91: kg N2O | BT91: =VLOOKUP(BU91,D$19:$F$255,3,FALSE) ->  | BV91: Gibraltar | BY91: 737 | BZ91: 766 | CA91: 760 | CB91: 743 | CC91: 761 | CD91: 751 | CE91: 751 | CF91: 757 | CG91: 757 | CH91: 762 | CI91: 752 | CJ91: 757 | CL91: -99 | CM91: =VLOOKUP(BT91,F$260:J$269,5,FALSE) ->  | CO91: -99
B92: Electricity: | C92: Electricity: Mali | D92: Mali | E92: Sub-Saharan Africa | F92: ssa | G92: -99 | H92: 0.83126 | I92: -99 | J92: 0.83126 | K92: =J92/Conversions!J$28 -> 0.2309055556 | U92: I am not publishing a company report, but I need a factor for ‘electricity consumption’ instead of ‘electricity generation’ what should I do? | AG92: Distribution - district heat & steam | AH92: 5% loss | AI92: kWh | AJ92: 2016 | AK92: 0.01075322912 | AL92: 0.01065546174 | AM92: 5.668774572e-05 | AN92: 4.107963638e-05 | BT92: =VLOOKUP(BU92,D$19:$F$255,3,FALSE) -> nena | BU92: Kazakhstan | BV92: Kazakhstan | BY92: 611 | BZ92: 621 | CA92: 730 | CB92: 597 | CC92: 597 | CD92: 866 | CE92: 683 | CF92: 566 | CG92: 441 | CH92: 409 | CI92: 431 | CJ92: 427 | CL92: =IFERROR(VLOOKUP(BU92,BP$26:BQ$87,2,FALSE),-99) -> -99 | CM92: 0.21183 | CO92: =IFERROR(CJ92/1000+IF(CL92>0,CL92,CM92),-99) -> 0.63883
B93: Electricity: | C93: Electricity: Mauritania | D93: Mauritania | E93: Sub-Saharan Africa | F93: ssa | G93: -99 | H93: 0.83126 | I93: -99 | J93: 0.83126 | K93: =J93/Conversions!J$28 -> 0.2309055556 | U93: For company reporting purposes, organisations should use the ‘electricity generation’ figures for Scope 2 electricity and may use the ‘T&D’ factors for reporting Scope 3 losses. However, for other reporting contexts (where specific scopes do not need to be reported) the ‘electricity consumption’ figure, (as published in 2011 and 2012 conversion factors) can be calculated by adding together the ‘electricity generation’ and ‘T&D’ values within each year for each country. | BT93: =VLOOKUP(BU93,D$19:$F$255,3,FALSE) ->  | BV93: Kosovo | BW93: ** | BY93: .. | BZ93: .. | CA93: 1316 | CB93: 1297 | CC93: 1121 | CD93: 1126 | CE93: 1089 | CF93: 1088 | CG93: 1286 | CH93: 1287 | CI93: 1109 | CJ93: 1227 | CL93: -99 | CO93: -99
B94: Electricity: | C94: Electricity: Mauritius | D94: Mauritius | E94: Sub-Saharan Africa | F94: ssa | G94: -99 | H94: 0.83126 | I94: -99 | J94: 0.83126 | K94: =J94/Conversions!J$28 -> 0.2309055556 | U94: I previously used a 5 year grid rolling average factors; these factors are based on 1 year average factors and look quite different, what should I do? | AG94: FAQs | BT94: =VLOOKUP(BU94,D$19:$F$255,3,FALSE) -> nena | BU94: Kyrgyzstan | BV94: Kyrgyzstan | BY94: 165 | BZ94: 99 | CA94: 78 | CB94: 73 | CC94: 64 | CD94: 66 | CE94: 65 | CF94: 84 | CG94: 50 | CH94: 56 | CI94: 45 | CJ94: 51 | CL94: -99 | CM94: 0.21183 | CO94: 0.26283
B95: Electricity: | C95: Electricity: Mayotte | D95: Mayotte | E95: Sub-Saharan Africa | F95: ssa | G95: -99 | H95: 0.83126 | I95: -99 | J95: 0.83126 | K95: =J95/Conversions!J$28 -> 0.2309055556 | U95: Please refer to the 'what's new in 2013 section of the ‘what’s new’ tab for full instructions on how to rebaseline your data to compensate for the changes made. | AG95: Is reporting T&D compulsory? | BT95: =VLOOKUP(BU95,D$19:$F$255,3,FALSE) -> we | BU95: Latvia | BV95: Latvia | BY95: 115 | BZ95: 134 | CA95: 135 | CB95: 97 | CC95: 88 | CD95: 113 | CE95: 106 | CF95: 114 | CG95: 96 | CH95: 120 | CI95: 133 | CJ95: 116 | CL95: 0.03351 | CM95: 0.08334 | CO95: 0.14951
B96: Electricity: | C96: Electricity: Mozambique | D96: Mozambique | E96: Sub-Saharan Africa | F96: ssa | G96: -99 | H96: 0.83126 | I96: 0.19485 | J96: 0.19485 | K96: =J96/Conversions!J$28 -> 0.054125 | AG96: As with other Scope 3 impacts, reporting T&D is voluntary. However, it is considered best practice. | BT96: =VLOOKUP(BU96,D$19:$F$255,3,FALSE) -> we | BU96: Lithuania | BV96: Lithuania | BY96: 158 | BZ96: 65 | CA96: 99 | CB96: 68 | CC96: 101 | CD96: 100 | CE96: 88 | CF96: 83 | CG96: 84 | CH96: 338 | CI96: 270 | CJ96: 230 | CL96: 0.07112 | CM96: 0.08334 | CO96: 0.30112
B97: Electricity: | C97: Electricity: Namibia | D97: Namibia | E97: Sub-Saharan Africa | F97: ssa | G97: -99 | H97: 0.83126 | I97: 0.24485 | J97: 0.24485 | K97: =J97/Conversions!J$28 -> 0.06801388889 | U97: For information about the derivation of the conversion factors please refer to accompanying 'Methodology paper' to the conversion factors, which is available on the conversion factors website. | AG97: I am not publishing a company report, but I need a factor for ‘electricity consumption’. What should I do? | BT97: =VLOOKUP(BU97,D$19:$F$255,3,FALSE) -> we | BU97: The former Yugoslav Republic of Macedonia | BV97: FYR | BW97: of | BX97: Macedonia | BY97: 917 | BZ97: 879 | CA97: 799 | CB97: 798 | CC97: 791 | CD97: 783 | CE97: 870 | CF97: 904 | CG97: 798 | CH97: 684 | CI97: 811 | CJ97: 764 | CL97: -99 | CM97: 0.08334 | CO97: 0.84734
B98: Electricity: | C98: Electricity: Niger | D98: Niger | E98: Sub-Saharan Africa | F98: ssa | G98: -99 | H98: 0.83126 | I98: -99 | J98: 0.83126 | K98: =J98/Conversions!J$28 -> 0.2309055556 | AG98: For company reporting purposes, organisations should use the ‘electricity generation’ figures for Scope 2 electricity and may use the ‘T&D’ factors for reporting Scope 3 losses. However, for other reporting contexts (where specific scopes do not need to be reported) the ‘electricity consumption’ figure (as published in 2011 and 2012 conversion factors) can be calculated by adding together the ‘electricity generation’ and ‘T&D’ values within each year for each country. | BT98: =VLOOKUP(BU98,D$19:$F$255,3,FALSE) -> we | BU98: Malta | BV98: Malta | BY98: 1587 | BZ98: 957 | CA98: 819 | CB98: 913 | CC98: 1034 | CD98: 954 | CE98: 1012 | CF98: 849 | CG98: 850 | CH98: 871 | CI98: 862 | CJ98: 861 | CL98: 0.26231 | CM98: 0.08334 | CO98: 1.12331
B99: Electricity: | C99: Electricity: Nigeria | D99: Nigeria | E99: Sub-Saharan Africa | F99: ssa | G99: -99 | H99: 0.83126 | I99: 0.61185 | J99: 0.61185 | K99: =J99/Conversions!J$28 -> 0.1699583333 | AG99: What factor do I need for my CRC Energy Efficiency Scheme (CRC) reporting? | BT99: =VLOOKUP(BU99,D$19:$F$255,3,FALSE) -> ee | BU99: Moldova, Republic of | BV99: Republic | BW99: of | BX99: Moldova | BY99: 723 | BZ99: 712 | CA99: 642 | CB99: 494 | CC99: 493 | CD99: 483 | CE99: 491 | CF99: 487 | CG99: 500 | CH99: 493 | CI99: 486 | CJ99: 493 | CL99: -99 | CM99: 0.15233 | CO99: 0.64533
B100: Electricity: | C100: Electricity: Rwanda | D100: Rwanda | E100: Sub-Saharan Africa | F100: ssa | G100: -99 | H100: 0.83126 | I100: -99 | J100: 0.83126 | K100: =J100/Conversions!J$28 -> 0.2309055556 | AG100: CRC reporting is now aligned with UK Government GHG Conversion Factors for Company Reporting. You should use the 'UK electricity generation CO2 only' factor, which needs to be added to the 'CO2 only T&D- UK electricity' factor to get the overall factor that should be used for CRC reporting. | BT100: =VLOOKUP(BU100,D$19:$F$255,3,FALSE) -> we | BU100: Montenegro | BV100: Montenegro | BW100: ** | BX100: .. | BY100: .. | BZ100: .. | CA100: .. | CC100: 384 | CD100: 429 | CE100: 455 | CF100: 530 | CG100: 290 | CH100: 420 | CI100: 653 | CJ100: 454 | CL100: -99 | CM100: 0.08334 | CO100: 0.53734
B101: Electricity: | C101: Electricity: Reunion | D101: Reunion | E101: Sub-Saharan Africa | F101: ssa | G101: -99 | H101: 0.83126 | I101: -99 | J101: 0.83126 | K101: =J101/Conversions!J$28 -> 0.2309055556 | AG101: For information about how the conversion factors have been derived, please refer to the 'Methodology paper' that accompanies the conversion factors. | BT101: =VLOOKUP(BU101,D$19:$F$255,3,FALSE) -> ee | BU101: Romania | BV101: Romania | BY101: 855 | BZ101: 741 | CA101: 579 | CB101: 528 | CC101: 493 | CD101: 521 | CE101: 542 | CF101: 512 | CG101: 472 | CH101: 412 | CI101: 499 | CJ101: 461 | CL101: 0.17808 | CM101: 0.15233 | CO101: 0.63908
B102: Electricity: | C102: Electricity: Saint Helena | D102: Saint Helena | E102: Sub-Saharan Africa | F102: ssa | G102: -99 | H102: 0.83126 | I102: -99 | J102: 0.83126 | K102: =J102/Conversions!J$28 -> 0.2309055556 | BT102: =VLOOKUP(BU102,D$19:$F$255,3,FALSE) -> rus | BU102: Russian Federation | BV102: Russian | BW102: Federation | BY102: 406 | BZ102: 363 | CA102: 394 | CB102: 402 | CC102: 436 | CD102: 445 | CE102: 428 | CF102: 426 | CG102: 402 | CH102: 412 | CI102: 437 | CJ102: 417 | CL102: 0.14252 | CM102: 0.14252 | CO102: 0.55952
B103: Electricity: | C103: Electricity: Sao Tome and Principe | D103: Sao Tome and Principe | E103: Sub-Saharan Africa | F103: ssa | G103: -99 | H103: 0.83126 | I103: -99 | J103: 0.83126 | K103: =J103/Conversions!J$28 -> 0.2309055556 | U103: https://www.gov.uk/government/publications/greenhouse-gas-reporting-conversion-factors-2016 | BT103: =VLOOKUP(BU103,D$19:$F$255,3,FALSE) -> we | BU103: Republic of Serbia | BV103: Serbia | BW103: ** | BY103: 892 | BZ103: 1001 | CA103: 886 | CB103: 884 | CC103: 764 | CD103: 817 | CE103: 734 | CF103: 733 | CG103: 740 | CH103: 711 | CI103: 784 | CJ103: 745 | CL103: -99 | CM103: 0.08334 | CO103: 0.82834
B104: Electricity: | C104: Electricity: Senegal | D104: Senegal | E104: Sub-Saharan Africa | F104: ssa | G104: -99 | H104: 0.83126 | I104: 0.87285 | J104: 0.87285 | K104: =J104/Conversions!J$28 -> 0.2424583333 | U104: Activity | V104: Country | W104: Unit | X104: Year | Y104: kg CO2e | Z104: kg CO2 | AA104: kg CH4 | AB104: kg N2O | BT104: =VLOOKUP(BU104,D$19:$F$255,3,FALSE) -> nena | BU104: Tajikistan | BV104: Tajikistan | BY104: 68 | BZ104: 25 | CA104: 26 | CB104: 22 | CC104: 21 | CD104: 21 | CE104: 20 | CF104: 20 | CG104: 17 | CH104: 14 | CI104: 12 | CJ104: 15 | CL104: -99 | CM104: 0.21183 | CO104: 0.22683
B105: Electricity: | C105: Electricity: Seychelles | D105: Seychelles | E105: Sub-Saharan Africa | F105: ssa | G105: -99 | H105: 0.83126 | I105: -99 | J105: 0.83126 | K105: =J105/Conversions!J$28 -> 0.2309055556 | U105: Electricity generated | V105: Electricity: UK | W105: kWh | X105: 2016 | Y105: 0.41205 | Z105: 0.40957 | AA105: 0.00039 | AB105: 0.00209 | BT105: =VLOOKUP(BU105,D$19:$F$255,3,FALSE) -> nena | BU105: Turkmenistan | BV105: Turkmenistan | BY105: 686 | BZ105: 931 | CA105: 872 | CB105: 872 | CC105: 872 | CD105: 872 | CE105: 872 | CF105: 927 | CG105: 865 | CH105: 954 | CI105: 983 | CJ105: 934 | CL105: -99 | CM105: 0.21183 | CO105: 1.14583
B106: Electricity: | C106: Electricity: Sierra Leone | D106: Sierra Leone | E106: Sub-Saharan Africa | F106: ssa | G106: -99 | H106: 0.83126 | I106: -99 | J106: 0.83126 | K106: =J106/Conversions!J$28 -> 0.2309055556 | BT106: =VLOOKUP(BU106,D$19:$F$255,3,FALSE) -> ee | BU106: Ukraine | BV106: Ukraine | BY106: 654 | BZ106: 566 | CA106: 400 | CB106: 360 | CC106: 397 | CD106: 430 | CE106: 440 | CF106: 432 | CG106: 411 | CH106: 416 | CI106: 450 | CJ106: 426 | CL106: 0.15353 | CM106: 0.15233 | CO106: 0.57953
B107: Electricity: | C107: Electricity: Somalia | D107: Somalia | E107: Sub-Saharan Africa | F107: ssa | G107: -99 | H107: 0.83126 | I107: -99 | J107: 0.83126 | K107: =J107/Conversions!J$28 -> 0.2309055556 | BT107: =VLOOKUP(BU107,D$19:$F$255,3,FALSE) -> nena | BU107: Uzbekistan | BV107: Uzbekistan | BY107: 624 | BZ107: 572 | CA107: 629 | CB107: 588 | CC107: 588 | CD107: 582 | CE107: 609 | CF107: 543 | CG107: 566 | CH107: 550 | CI107: 559 | CJ107: 558 | CL107: -99 | CM107: 0.21183 | CO107: 0.76983
B108: Electricity: | C108: Electricity: South Africa | D108: South Africa | E108: Sub-Saharan Africa | F108: ssa | G108: 1.16439 | H108: 0.83126 | I108: 1.13885 | J108: 1.13885 | K108: =J108/Conversions!J$28 -> 0.3163472222 | BT108: =VLOOKUP(BU108,D$19:$F$255,3,FALSE) ->  | BV108: Non-OECD Europe and Eurasia | BW108: Europe | BY108: 500 | BZ108: 449 | CA108: 441 | CB108: 430 | CC108: 451 | CD108: 476 | CE108: 463 | CF108: 452 | CG108: 426 | CH108: 427 | CI108: 459 | CJ108: 437 | CL108: -99 | CO108: -99
B109: Electricity: | C109: Electricity: Swaziland | D109: Swaziland | E109: Sub-Saharan Africa | F109: ssa | G109: -99 | H109: 0.83126 | I109: -99 | J109: 0.83126 | K109: =J109/Conversions!J$28 -> 0.2309055556 | BT109: =VLOOKUP(BU109,D$19:$F$255,3,FALSE) ->  | CL109: -99 | CO109: -99
B110: Electricity: | C110: Electricity: Togo | D110: Togo | E110: Sub-Saharan Africa | F110: ssa | G110: -99 | H110: 0.83126 | I110: 0.40085 | J110: 0.40085 | K110: =J110/Conversions!J$28 -> 0.1113472222 | BT110: =VLOOKUP(BU110,D$19:$F$255,3,FALSE) -> nena | BU110: Algeria | BV110: Algeria | BY110: 631 | BZ110: 633 | CA110: 620 | CB110: 632 | CC110: 606 | CD110: 621 | CE110: 597 | CF110: 596 | CG110: 638 | CH110: 546 | CI110: 556 | CJ110: 580 | CL110: -99 | CM110: 0.21183 | CO110: 0.79183
B111: Electricity: | C111: Electricity: Uganda | D111: Uganda | E111: Sub-Saharan Africa | F111: ssa | G111: -99 | H111: 0.83126 | I111: -99 | J111: 0.83126 | K111: =J111/Conversions!J$28 -> 0.2309055556 | BT111: =VLOOKUP(BU111,D$19:$F$255,3,FALSE) -> ssa | BU111: Angola | BV111: Angola | BY111: 343 | BZ111: 177 | CA111: 499 | CB111: 290 | CC111: 273 | CD111: 260 | CE111: 300 | CF111: 330 | CG111: 465 | CH111: 430 | CI111: 390 | CJ111: 429 | CL111: -99 | CM111: 0.19385 | CO111: 0.62285
B112: Electricity: | C112: Electricity: United Republic of Tanzania | D112: United Republic of Tanzania | E112: Sub-Saharan Africa | F112: ssa | G112: -99 | H112: 0.83126 | I112: 0.46385 | J112: 0.46385 | K112: =J112/Conversions!J$28 -> 0.1288472222 | BT112: =VLOOKUP(BU112,D$19:$F$255,3,FALSE) -> ssa | BU112: Benin | BV112: Benin | BY112: 1200 | BZ112: 951 | CA112: 601 | CB112: 740 | CC112: 709 | CD112: 698 | CE112: 662 | CF112: 679 | CG112: 719 | CH112: 720 | CI112: 722 | CJ112: 720 | CL112: -99 | CM112: 0.19385 | CO112: 0.91385
B113: Electricity: | C113: Electricity: Zambia | D113: Zambia | E113: Sub-Saharan Africa | F113: ssa | G113: -99 | H113: 0.83126 | I113: 0.19685 | J113: 0.19685 | K113: =J113/Conversions!J$28 -> 0.05468055556 | BT113: =VLOOKUP(BU113,D$19:$F$255,3,FALSE) -> ssa | BU113: Botswana | BV113: Botswana | BY113: 1791 | BZ113: 1800 | CA113: 1876 | CB113: 2190 | CC113: 2073 | CD113: 1927 | CE113: 1587 | CF113: 1789 | CG113: 1787 | CH113: 1790 | CI113: 1787 | CJ113: 1788 | CL113: -99 | CM113: 0.19385 | CO113: 1.98185
B114: Electricity: | C114: Electricity: Zimbabwe | D114: Zimbabwe | E114: Sub-Saharan Africa | F114: ssa | G114: -99 | H114: 0.83126 | I114: 0.55185 | J114: 0.55185 | K114: =J114/Conversions!J$28 -> 0.1532916667 | BT114: =VLOOKUP(BU114,D$19:$F$255,3,FALSE) -> ssa | BU114: Cameroon | BV114: Cameroon | BY114: 13 | BZ114: 10 | CA114: 10 | CB114: 28 | CC114: 40 | CD114: 83 | CE114: 162 | CF114: 161 | CG114: 196 | CH114: 207 | CI114: 200 | CJ114: 201 | CL114: -99 | CM114: 0.19385 | CO114: 0.39485
B115: Electricity: | C115: Electricity: Algeria | D115: Algeria | E115: Near East and North Africa | F115: nena | G115: -99 | H115: 0.88605 | I115: 0.79183 | J115: 0.79183 | K115: =J115/Conversions!J$28 -> 0.2199527778 | BT115: =VLOOKUP(BU115,D$19:$F$255,3,FALSE) -> ssa | BU115: Congo | BV115: Congo | BY115: 6 | BZ115: 9 | CA115: - | CB115: 97 | CC115: 103 | CD115: 102 | CE115: 130 | CF115: 100 | CG115: 245 | CH115: 267 | CI115: 230 | CJ115: 247 | CL115: -99 | CM115: 0.19385 | CO115: 0.44085
B116: Electricity: | C116: Electricity: Armenia | D116: Armenia | E116: Near East and North Africa | F116: nena | G116: -99 | H116: 0.88605 | I116: 0.31783 | J116: 0.31783 | K116: =J116/Conversions!J$28 -> 0.08828611111 | BT116: =VLOOKUP(BU116,D$19:$F$255,3,FALSE) -> ssa | BU116: Democratic Republic of the Congo | BV116: D.R. Congo | BY116: 4 | BZ116: 4 | CA116: 1 | CB116: 1 | CC116: 1 | CD116: 2 | CE116: 3 | CF116: 4 | CG116: 3 | CH116: 3 | CI116: 3 | CJ116: 3 | CL116: -99 | CM116: 0.19385 | CO116: 0.19685
B117: Electricity: | C117: Electricity: Azerbaijan | D117: Azerbaijan | E117: Near East and North Africa | F117: nena | G117: -99 | H117: 0.88605 | I117: 0.66783 | J117: 0.66783 | K117: =J117/Conversions!J$28 -> 0.1855083333 | BT117: =VLOOKUP(BU117,D$19:$F$255,3,FALSE) -> ssa | BU117: Cote d’Ivoire | BV117: Côte | BW117: d'Ivoire | BY117: 205 | BZ117: 275 | CA117: 379 | CB117: 356 | CC117: 457 | CD117: 385 | CE117: 409 | CF117: 449 | CG117: 391 | CH117: 461 | CI117: 437 | CJ117: 430 | CL117: -99 | CM117: 0.19385 | CO117: 0.62385
B118: Electricity: | C118: Electricity: Bahrain | D118: Bahrain | E118: Near East and North Africa | F118: nena | G118: -99 | H118: 0.88605 | I118: 0.84683 | J118: 0.84683 | K118: =J118/Conversions!J$28 -> 0.2352305556 | BT118: =VLOOKUP(BU118,D$19:$F$255,3,FALSE) -> nena | BU118: Egypt | BV118: Egypt | BY118: 521 | BZ118: 443 | CA118: 343 | CB118: 489 | CC118: 474 | CD118: 473 | CE118: 450 | CF118: 460 | CG118: 466 | CH118: 450 | CI118: 457 | CJ118: 458 | CL118: 0.13697 | CM118: 0.21183 | CO118: 0.59497
B119: Electricity: | C119: Electricity: Cyprus | D119: Cyprus | E119: Near East and North Africa | F119: nena | G119: 0.84703 | H119: 0.88605 | I119: 0.87795 | J119: 0.87795 | K119: =J119/Conversions!J$28 -> 0.243875 | BT119: =VLOOKUP(BU119,D$19:$F$255,3,FALSE) -> ssa | BU119: Eritrea | BV119: Eritrea | BW119: .. | BZ119: 1073 | CA119: 1333 | CB119: 1003 | CC119: 975 | CD119: 962 | CE119: 941 | CF119: 802 | CG119: 833 | CH119: 850 | CI119: 849 | CJ119: 844 | CL119: -99 | CM119: 0.19385 | CO119: 1.03785
B120: Electricity: | C120: Electricity: Egypt | D120: Egypt | E120: Near East and North Africa | F120: nena | G120: 0.58684 | H120: 0.88605 | I120: 0.59497 | J120: 0.59497 | K120: =J120/Conversions!J$28 -> 0.1652694444 | BT120: =VLOOKUP(BU120,D$19:$F$255,3,FALSE) -> ssa | BU120: Ethiopia | BV120: Ethiopia | BY120: 136 | BZ120: 42 | CA120: 11 | CB120: 6 | CC120: 3 | CD120: 3 | CE120: 44 | CF120: 119 | CG120: 122 | CH120: 7 | CI120: 7 | CJ120: 45 | CL120: -99 | CM120: 0.19385 | CO120: 0.23885
B121: Electricity: | C121: Electricity: Gaza Strip | D121: Gaza Strip | E121: Near East and North Africa | F121: nena | G121: -99 | H121: 0.88605 | I121: -99 | J121: 0.88605 | K121: =J121/Conversions!J$28 -> 0.246125 | BT121: =VLOOKUP(BU121,D$19:$F$255,3,FALSE) -> ssa | BU121: Gabon | BV121: Gabon | BY121: 270 | BZ121: 255 | CA121: 326 | CB121: 327 | CC121: 382 | CD121: 348 | CE121: 424 | CF121: 350 | CG121: 356 | CH121: 383 | CI121: 378 | CJ121: 373 | CL121: -99 | CM121: 0.19385 | CO121: 0.56685
B122: Electricity: | C122: Electricity: Georgia | D122: Georgia | E122: Near East and North Africa | F122: nena | G122: -99 | H122: 0.88605 | I122: 0.30983 | J122: 0.30983 | K122: =J122/Conversions!J$28 -> 0.08606388889 | BT122: =VLOOKUP(BU122,D$19:$F$255,3,FALSE) -> ssa | BU122: Ghana | BV122: Ghana | BY122: - | BZ122: 3 | CA122: 66 | CB122: 84 | CC122: 147 | CD122: 276 | CE122: 360 | CF122: 215 | CG122: 188 | CH122: 295 | CI122: 215 | CJ122: 233 | CL122: -99 | CM122: 0.19385 | CO122: 0.42685
B123: Electricity: | C123: Electricity: Iraq | D123: Iraq | E123: Near East and North Africa | F123: nena | G123: -99 | H123: 0.88605 | I123: 1.15783 | J123: 1.15783 | K123: =J123/Conversions!J$28 -> 0.3216194444 | BT123: =VLOOKUP(BU123,D$19:$F$255,3,FALSE) -> ssa | BU123: Kenya | BV123: Kenya | BY123: 51 | BZ123: 63 | CA123: 455 | CB123: 217 | CC123: 247 | CD123: 259 | CE123: 249 | CF123: 322 | CG123: 397 | CH123: 274 | CI123: 294 | CJ123: 322 | CL123: -99 | CM123: =VLOOKUP(BT123,F$260:J$269,5,FALSE) -> 0.19385 | CO123: 0.51585
B124: Electricity: | C124: Electricity: Israel | D124: Israel | E124: Near East and North Africa | F124: nena | G124: 0.84142 | H124: 0.88605 | I124: 0.85546 | J124: 0.85546 | K124: =J124/Conversions!J$28 -> 0.2376277778 | BT124: =VLOOKUP(BU124,D$19:$F$255,3,FALSE) -> nena | BU124: State of Libya | BV124: Libya | BY124: 779 | BZ124: 1131 | CA124: 1022 | CB124: 851 | CC124: 902 | CD124: 883 | CE124: 779 | CF124: 692 | CG124: 705 | CH124: 680 | CI124: 636 | CJ124: 674 | CL124: -99 | CM124: 0.21183 | CO124: 0.88583
B125: Electricity: | C125: Electricity: Jordan | D125: Jordan | E125: Near East and North Africa | F125: nena | G125: -99 | H125: 0.88605 | I125: 0.81083 | J125: 0.81083 | K125: =J125/Conversions!J$28 -> 0.2252305556 | BT125: =VLOOKUP(BU125,D$19:$F$255,3,FALSE) -> nena | BU125: Morocco | BV125: Morocco | BY125: 783 | BZ125: 928 | CA125: 831 | CB125: 860 | CC125: 830 | CD125: 819 | CE125: 802 | CF125: 787 | CG125: 698 | CH125: 687 | CI125: 729 | CJ125: 705 | CL125: -99 | CM125: 0.21183 | CO125: 0.91683
B126: Electricity: | C126: Electricity: Kazakhstan | D126: Kazakhstan | E126: Near East and North Africa | F126: nena | G126: -99 | H126: 0.88605 | I126: 0.63883 | J126: 0.63883 | K126: =J126/Conversions!J$28 -> 0.1774527778 | BT126: =VLOOKUP(BU126,D$19:$F$255,3,FALSE) -> ssa | BU126: Mozambique | BV126: Mozambique | BY126: 241 | BZ126: 64 | CA126: 5 | CB126: 3 | CC126: 1 | CD126: 1 | CE126: 1 | CF126: 0 | CG126: 1 | CH126: 1 | CI126: 1 | CJ126: 1 | CL126: -99 | CM126: 0.19385 | CO126: 0.19485
B127: Electricity: | C127: Electricity: Kuwait | D127: Kuwait | E127: Near East and North Africa | F127: nena | G127: -99 | H127: 0.88605 | I127: 1.01683 | J127: 1.01683 | K127: =J127/Conversions!J$28 -> 0.2824527778 | BT127: =VLOOKUP(BU127,D$19:$F$255,3,FALSE) -> ssa | BU127: Namibia | BV127: Namibia | BY127: .. | BZ127: 37 | CA127: 5 | CB127: 1 | CC127: 29 | CD127: 95 | CE127: 98 | CF127: 148 | CG127: 71 | CH127: 59 | CI127: 24 | CJ127: 51 | CL127: -99 | CM127: 0.19385 | CO127: 0.24485
B128: Electricity: | C128: Electricity: Kyrgyzstan | D128: Kyrgyzstan | E128: Near East and North Africa | F128: nena | G128: -99 | H128: 0.88605 | I128: 0.26283 | J128: 0.26283 | K128: =J128/Conversions!J$28 -> 0.07300833333 | BT128: =VLOOKUP(BU128,D$19:$F$255,3,FALSE) -> ssa | BU128: Nigeria | BV128: Nigeria | BY128: 420 | BZ128: 371 | CA128: 338 | CB128: 362 | CC128: 359 | CD128: 385 | CE128: 385 | CF128: 386 | CG128: 416 | CH128: 405 | CI128: 433 | CJ128: 418 | CL128: -99 | CM128: 0.19385 | CO128: 0.61185
B129: Electricity: | C129: Electricity: Lebanon | D129: Lebanon | E129: Near East and North Africa | F129: nena | G129: -99 | H129: 0.88605 | I129: 0.92283 | J129: 0.92283 | K129: =J129/Conversions!J$28 -> 0.2563416667 | BT129: =VLOOKUP(BU129,D$19:$F$255,3,FALSE) -> ssa | BU129: Senegal | BV129: Senegal | BY129: 889 | BZ129: 881 | CA129: 940 | CB129: 674 | CC129: 741 | CD129: 751 | CE129: 635 | CF129: 617 | CG129: 683 | CH129: 665 | CI129: 689 | CJ129: 679 | CL129: -99 | CM129: 0.19385 | CO129: 0.87285
B130: Electricity: | C130: Electricity: Morocco | D130: Morocco | E130: Near East and North Africa | F130: nena | G130: -99 | H130: 0.88605 | I130: 0.91683 | J130: 0.91683 | K130: =J130/Conversions!J$28 -> 0.254675 | BT130: =VLOOKUP(BU130,D$19:$F$255,3,FALSE) -> ssa | BU130: South Africa | BV130: South | BW130: Africa | BY130: 849 | BZ130: 884 | CA130: 893 | CB130: 871 | CC130: 851 | CD130: 831 | CE130: 827 | CF130: 948 | CG130: 906 | CH130: 927 | CI130: 869 | CJ130: 901 | CL130: 0.23785 | CM130: 0.19385 | CO130: 1.13885
B131: Electricity: | C131: Electricity: Oman | D131: Oman | E131: Near East and North Africa | F131: nena | G131: -99 | H131: 0.88605 | I131: 0.97483 | J131: 0.97483 | K131: =J131/Conversions!J$28 -> 0.2707861111 | BT131: =VLOOKUP(BU131,D$19:$F$255,3,FALSE) -> nena | BU131: Republic of Sudan | BV131: Sudan | BY131: 325 | BZ131: 465 | CA131: 508 | CB131: 607 | CC131: 615 | CD131: 658 | CE131: 580 | CF131: 601 | CG131: 413 | CH131: 165 | CI131: 204 | CJ131: 261 | CL131: -99 | CM131: 0.21183 | CO131: 0.47283
B132: Electricity: | C132: Electricity: Qatar | D132: Qatar | E132: Near East and North Africa | F132: nena | G132: -99 | H132: 0.88605 | I132: 0.70883 | J132: 0.70883 | K132: =J132/Conversions!J$28 -> 0.1968972222 | BT132: =VLOOKUP(BU132,D$19:$F$255,3,FALSE) -> ssa | BU132: United Republic of Tanzania | BV132: Tanzania | BY132: 152 | BZ132: 284 | CA132: 192 | CB132: 141 | CC132: 349 | CD132: 415 | CE132: 232 | CF132: 218 | CG132: 253 | CH132: 269 | CI132: 288 | CJ132: 270 | CL132: -99 | CM132: 0.19385 | CO132: 0.46385
B133: Electricity: | C133: Electricity: Republic of Sudan | D133: Republic of Sudan | E133: Near East and North Africa | F133: nena | G133: -99 | H133: 0.88605 | I133: 0.47283 | J133: 0.47283 | K133: =J133/Conversions!J$28 -> 0.1313416667 | BT133: =VLOOKUP(BU133,D$19:$F$255,3,FALSE) -> ssa | BU133: Togo | BV133: Togo | BY133: 422 | BZ133: 185 | CA133: 558 | CB133: 439 | CC133: 350 | CD133: 456 | CE133: 401 | CF133: 206 | CG133: 200 | CH133: 216 | CI133: 206 | CJ133: 207 | CL133: -99 | CM133: 0.19385 | CO133: 0.40085
B134: Electricity: | C134: Electricity: Saudi Arabia | D134: Saudi Arabia | E134: Near East and North Africa | F134: nena | G134: 0.9206 | H134: 0.88605 | I134: 0.93282 | J134: 0.93282 | K134: =J134/Conversions!J$28 -> 0.2591166667 | BT134: =VLOOKUP(BU134,D$19:$F$255,3,FALSE) -> nena | BU134: Tunisia | BV134: Tunisia | BY134: 651 | BZ134: 588 | CA134: 574 | CB134: 477 | CC134: 469 | CD134: 492 | CE134: 506 | CF134: 494 | CG134: 472 | CH134: 463 | CI134: 455 | CJ134: 463 | CL134: -99 | CM134: 0.21183 | CO134: 0.67483
B135: Electricity: | C135: Electricity: South Sudan | D135: South Sudan | E135: Near East and North Africa | F135: nena | G135: -99 | H135: 0.88605 | I135: -99 | J135: 0.88605 | K135: =J135/Conversions!J$28 -> 0.246125 | BT135: =VLOOKUP(BU135,D$19:$F$255,3,FALSE) -> ssa | BU135: Zambia | BV135: Zambia | BY135: 11 | BZ135: 7 | CA135: 7 | CB135: 6 | CC135: 6 | CD135: 5 | CE135: 3 | CF135: 3 | CG135: 2 | CH135: 2 | CI135: 3 | CJ135: 3 | CL135: -99 | CM135: 0.19385 | CO135: 0.19685
B136: Electricity: | C136: Electricity: State of Libya | D136: State of Libya | E136: Near East and North Africa | F136: nena | G136: -99 | H136: 0.88605 | I136: 0.88583 | J136: 0.88583 | K136: =J136/Conversions!J$28 -> 0.2460638889 | BT136: =VLOOKUP(BU136,D$19:$F$255,3,FALSE) -> ssa | BU136: Zimbabwe | BV136: Zimbabwe | BY136: 714 | BZ136: 920 | CA136: 740 | CB136: 572 | CC136: 572 | CD136: 461 | CE136: 422 | CF136: 328 | CG136: 357 | CH136: 358 | CI136: 358 | CJ136: 358 | CL136: -99 | CM136: 0.19385 | CO136: 0.55185
B137: Electricity: | C137: Electricity: Syrian Arab Republic | D137: Syrian Arab Republic | E137: Near East and North Africa | F137: nena | G137: -99 | H137: 0.88605 | I137: 0.81983 | J137: 0.81983 | K137: =J137/Conversions!J$28 -> 0.2277305556 | BT137: =VLOOKUP(BU137,D$19:$F$255,3,FALSE) ->  | BV137: Other | BW137: Africa | BY137: 374 | BZ137: 323 | CA137: 443 | CB137: 460 | CC137: 487 | CD137: 528 | CE137: 518 | CF137: 518 | CG137: 516 | CH137: 527 | CI137: 527 | CJ137: 523 | CL137: -99 | CO137: -99
B138: Electricity: | C138: Electricity: Tajikistan | D138: Tajikistan | E138: Near East and North Africa | F138: nena | G138: -99 | H138: 0.88605 | I138: 0.22683 | J138: 0.22683 | K138: =J138/Conversions!J$28 -> 0.06300833333 | BT138: =VLOOKUP(BU138,D$19:$F$255,3,FALSE) ->  | BV138: Africa | BY138: 670 | BZ138: 690 | CA138: 651 | CB138: 649 | CC138: 636 | CD138: 627 | CE138: 612 | CF138: 655 | CG138: 630 | CH138: 620 | CI138: 596 | CJ138: 616 | CL138: -99 | CO138: -99
B139: Electricity: | C139: Electricity: Tunisia | D139: Tunisia | E139: Near East and North Africa | F139: nena | G139: -99 | H139: 0.88605 | I139: 0.67483 | J139: 0.67483 | K139: =J139/Conversions!J$28 -> 0.1874527778 | BT139: =VLOOKUP(BU139,D$19:$F$255,3,FALSE) ->  | CL139: -99 | CO139: -99
B140: Electricity: | C140: Electricity: Turkey | D140: Turkey | E140: Near East and North Africa | F140: nena | G140: 0.63108 | H140: 0.88605 | I140: 0.64748 | J140: 0.64748 | K140: =J140/Conversions!J$28 -> 0.1798555556 | BT140: =VLOOKUP(BU140,D$19:$F$255,3,FALSE) -> sa | BU140: Bangladesh | BV140: Bangladesh | BY140: 554 | BZ140: 601 | CA140: 556 | CB140: 546 | CC140: 553 | CD140: 578 | CE140: 593 | CF140: 585 | CG140: 597 | CH140: 604 | CI140: 564 | CJ140: 588 | CL140: -99 | CM140: 0.258605 | CO140: 0.846605
